Workbook

Sheet SUMMARY
A1: TITLE | E1: REDUCING INEQUALITY THROUGH PROGRESSIVE SPENDING | AJ1: REDUCING INEQUALITY THROUGH PROGRESSIVE TAX POLICIES | BF1: REDUCING INEQUALITY THROUGH RESPECT FOR LABOUR RIGHTS AND FAIR WAGES | CD1: COMMITMENT TO REDUCING INEQUALITY
A2: WHAT ARE WE MEASURING? | E2: INDICATOR PS1: Government spending on education, health and social protection as % of total spending | Q2: INDICATOR PS2: Public services implementation in practice (measuring equity of coverage) | AD2: INDICATOR PS3: Impact of spending on income Gini | AG2: PROGRESSIVITY OF PUBLIC SERVICES | AJ2: INDICATOR T1: Policy | AW2: INDICATOR T2: Tax Policies implementation in practice | AZ2: INDICATOR T3: Impact of tax on income Gini | BC2: PROGRESSIVITY OF TAX POLICY | BF2: INDICATOR L1: Policy | BR2: INDICATOR L2: Coverage of Labour Rights | BX2: INDICATOR L3: Impact | CA2: PROGRESSIVITY OF LABOUR LEGISLATION | CD2: Composite index
A3: WHAT IS THE MEASURE? | E3: PS1A: Education spending as % total spending | H3: PS1B: Health spending as % total spending | K3: PS1c: Social Protection spending as % total spending | N3: INDICATOR PS1: Average Score of Three Spending Sectors | Q3: PS2A: Education coverage (% completion by poorest quintile of upper secondary) | S3: PS2B: Health coverage (UHC and OOP datasets) | X3: PS2C: Social Protection coverage | AA3: INDICATOR PS2: Average Score of Three Coverage Scores for Sectors | AD3: INDICATOR PS3: Combined Impact of Three Sectors spending on the Gini (i.e.impact in reducing inequality) | AG3: Average of Public Services Pillar | AJ3: VAT rate, adjusted for basic foodstuffs exemptions and high minimum thresholds | AL3: Progressivity of Personal Income Tax (PIT) based on rates and bands of tax | AN3: Corporate income tax (CIT) rate | AP3: T1A Average of VAT, PIT & CIT | AR3: Harmful Tax Practices (HTP), Existence of, absence of anti tax avoidance measures and evidence of profit shifting | AT3: INDICATOR T1: Policy average of T1A (VAT, PIT & CIT) and T1B (HTP) | AW3: Tax productivity comparing tax collected with tax base | AZ3: The share of total tax raised from each of income, corporate and VAT taxes multiplied by the actual or predicted impact of each on the Gini coefficient | BC3: Average of policy, implementation and impact scores | BF3: L1A: Labour Rights Performance in law and in practice in respecting labour and union rights according to ILO standards | BI3: L1B: Women's Rights Composite measure of legal provisions for mandate for equal pay, non discrimination, rape, sexual harassment and length of parental leave | BL3: L1C: Minimum Wage Minimum wage rate in law, compared with the average income (GDP per capita) in the country | BO3: INDICATOR L1: Average across three indicators | BR3: L2A Unemployment percentage of labour force unemployed | BS3: L2B: Vulnerable Employment vulnerable employment as percentage of labour force | BU3: INDICATOR L2: Sum across two indicators | BX3: INDICATOR L3: Wages Gini the Gini coefficient of wages based on wage data by decile | CA3: Average of three components | CD3: Average of: a) the square root of the product of the tax and public spending scores and b) the labour pillar score
A4: DATA SOURCE | E4: See Source Sheet PS1 . For LICs and many LIMCs the data is based on DFI data, sourced from national budget documents (Government Spending Watch database). These are largely planned/ budgeted spending (from 2019 financial year). For HICs and many UMICs this is largely OECD data (2018). Across all countries we have supplemented this with regional data and/or UN data sources (i.e. WHO or UiS, 2018) when this is deemed most accurate. A small number of countries have data from older than 2018. | K4: See Source Sheet PS1 This is based on either data from DFI/GSW or from regional databases (see explanation in previous column). Where this is not available, we have used the ILO 2016/17 Word Social Protection report and its accompanying database. | Q4: For the vast majority of countries this is based on indicator for the poorest quintile part of SDG4 monitoring (“upper secondary completion, by poorest quintile”, UiS data). For some countries, where these data are not available, this has been supplemented by from national household surveys. Where no data is available by poorest quintile, this has been supplemented by completion of upper secondary data (all): these data have then been ranked and normalised in each dataset before combining to reflect respective rankings. To reflect this, this column only has the normalised score - data available on supplementary sheet. Data is mainly from 2017, but some data are older due to a lack of UiS updates. See source sheet for more info | S4: There are two sub indicators here (see forumla in sheet). PS2b1. Universal Health Coverage Index (UHC). SDG 3.8.2 indicator 2PSb2. Catastrophic Household Spending (COOP) SDG 3.8.1 indicator. In a small handful of countries COOP data was unavailable from WHO database, which DFI has supplemented with a proxy (using OOP US$ per capita and GDP $ per capita data, and a regression for calcuating the proxy - see source sheet for more info). | X4: PS2c. Pension coverage to measure SP coverage ILO 2016/17 Word Social Protection report and its accompanying database. In a very small handful of countries DFI has supplemented this with national data sources (see datasheet PS2c) | AD4: Actual spending impact on Gini for 60 countries + predicted incidence from coefficients in Martinez-Vazquez et al for remaining countries | AJ4: DFI has conducted a major data collection exercise, drawing on national tax code documents, budget speeches, and accounting company tax guides (which have been found to be more recent than the database of the International Bureau on Fiscal Documentation), all data 2019 | AR4: HTP as assessed by Oxfam and OECD; anti tax avoidance from (TBA); profit shifting based on IMF, World Bank, EuroStat and various UN databases. All data for 2016 as of June 2018 | AW4: Tax productivity data based on tax collection from national sources, IMF and ICTD | AZ4: DFI data and IMF data on share of each tax for 2019. Incidence data from CEQ for 46 countries and from Martinez-Vazquez et al global panel study for others | BF4: "Labour Rights Indicators” designed by the Global Labour University and the Center for Global Workers, as of November 2019 | BI4: Wage Indicator; national sources; For rape and sexual harassment at work: Social Institutions and Gender Index, as of 2014 updated from US State Department profiles and national sources | BL4: Wage rate as of 2019. DFI compiled data using primary sources (eg government gazette announcements, www. Wage-indicator.org etc) | BR4: ILOSTAT 2019 Modelled Estimates | BS4: ILOSTAT 2019 Modelled Estimates | BX4: calculated from ILO modelled estimates of wages by decile in ILOSTAT
A5: 1 | B5: =A5+1 -> 2 | C5: =B5+1 -> 3 | D5: 4 | E5: 5 | F5: 6 | G5: 7 | H5: 8 | I5: 9 | J5: =I5+1 -> 10 | K5: =J5+1 -> 11 | L5: =K5+1 -> 12 | M5: =L5+1 -> 13 | N5: =M5+1 -> 14 | O5: =N5+1 -> 15 | P5: =O5+1 -> 16 | Q5: =P5+1 -> 17 | R5: =Q5+1 -> 18 | S5: =R5+1 -> 19 | T5: =S5+1 -> 20 | U5: =T5+1 -> 21 | V5: =U5+1 -> 22 | W5: =V5+1 -> 23 | X5: =W5+1 -> 24 | Y5: =X5+1 -> 25 | Z5: =Y5+1 -> 26 | AA5: =Z5+1 -> 27 | AB5: =AA5+1 -> 28 | AC5: =AB5+1 -> 29 | AD5: =AC5+1 -> 30 | AE5: =AD5+1 -> 31 | AF5: =AE5+1 -> 32 | AG5: =AF5+1 -> 33 | AH5: =AG5+1 -> 34 | AI5: =AH5+1 -> 35 | AJ5: =AI5+1 -> 36 | AK5: =AJ5+1 -> 37 | AL5: =AK5+1 -> 38 | AM5: =AL5+1 -> 39 | AN5: =AM5+1 -> 40 | AO5: =AN5+1 -> 41 | AP5: =AO5+1 -> 42 | AQ5: =AP5+1 -> 43 | AR5: =AQ5+1 -> 44 | AS5: =AR5+1 -> 45 | AT5: =AS5+1 -> 46 | AU5: =AT5+1 -> 47 | AV5: =AU5+1 -> 48 | AW5: =AV5+1 -> 49 | AX5: =AW5+1 -> 50 | AY5: =AX5+1 -> 51 | AZ5: =AY5+1 -> 52 | BA5: =AZ5+1 -> 53 | BB5: =BA5+1 -> 54 | BC5: =BB5+1 -> 55 | BD5: =BC5+1 -> 56 | BE5: =BD5+1 -> 57 | BF5: =BE5+1 -> 58 | BG5: =BF5+1 -> 59 | BH5: =BG5+1 -> 60 | BI5: =BH5+1 -> 61 | BJ5: =BI5+1 -> 62 | BK5: =BJ5+1 -> 63 | BL5: =BK5+1 -> 64 | BM5: =BL5+1 -> 65 | BN5: =BM5+1 -> 66 | BO5: =BN5+1 -> 67 | BP5: =BO5+1 -> 68 | BQ5: =BP5+1 -> 69 | BR5: =BQ5+1 -> 70 | BS5: =BR5+1 -> 71 | BT5: =BS5+1 -> 72 | BU5: =BT5+1 -> 73 | BV5: =BU5+1 -> 74 | BW5: =BV5+1 -> 75 | BX5: =BW5+1 -> 76 | BY5: =BX5+1 -> 77 | BZ5: =BY5+1 -> 78 | CA5: =BZ5+1 -> 79 | CB5: =CA5+1 -> 80 | CC5: =CB5+1 -> 81 | CD5: =CC5+1 -> 82 | CE5: =CD5+1 -> 83 | CF5: =CE5+1 -> 84
A6: Country | B6: Income Group | C6: Region | D6: OECD | E6: PS-1A % | F6: Std Score | G6: PS-1A Education Rank | H6: PS-1B % | I6: Std Score | J6: PS-1B Health Rank | K6: PS-1C % | L6: Std Score | M6: PS-1C SP Rank | N6: Spending % Average Score | O6: Std Score | P6: PS1 Policy Rank | Q6: PS-2A Std Score | R6: PS-2A Education Rank | S6: PS-2B UHC % | T6: PS-2B OOP % | U6: Sq Root of UHC * OOP | V6: Std Score | W6: PS-2B Health Rank | X6: PS-2C % | Y6: Std Score | Z6: PS-2C SP Rank | AA6: Coverage Average Score | AB6: Std Score | AC6: PS2 Coverage Rank | AD6: PS3 Public Services Incidence | AE6: Std Score | AF6: PS3 Incidence Rank | AG6: Average PS Score | AH6: Standardised Public Services Score | AI6: Public Services Rank | AJ6: T1A VAT PROG | AK6: VAT Std | AL6: T1A PIT PROG | AM6: PIT Std | AN6: T1A CIT PROG | AO6: CIT Std | AP6: T1A Average | AQ6: T1A Std | AR6: T1B HTP Score | AS6: HTP Std Score | AT6: T1 Average | AU6: T1 Std | AV6: T1 Rank | AW6: T2 Implementation | AX6: Standardised Score | AY6: T2 Rank | AZ6: T3 Impact | BA6: Standardised Score | BB6: T3 Rank | BC6: Average tax score | BD6: Standardised Tax Score | BE6: TAX RANK | BF6: L1A Score | BG6: L1A Std | BH6: L1A Rank | BI6: L1B Score | BJ6: L1B Std | BK6: L1B Rank | BL6: L1C Min Wage % gdp | BM6: L1C Std | BN6: L1C Rank | BO6: L1 Average | BP6: L1 Std | BQ6: L1 Rank | BR6: L2A Unemployment | BS6: L2B Vulnerable Employment | BT6: Vulnerable Employment as % of labour force | BU6: L2 Sum | BV6: L2 Std | BW6: L2 Rank | BX6: L3 Wage Gini | BY6: L3 Std | BZ6: L3 Rank | CA6: Average labour score | CB6: Std Labour Score | CC6: LABOUR RANK | CD6: OVERALL CRI SCORE | CE6: OVERALL SCORE Std | CF6: CRI RANK
A7: Afghanistan | B7: =VLOOKUP(A7,Source_WB_country_income,6,FALSE) -> LIC | C7: SA | E7: =VLOOKUP(A7,PS1_Summary,3,FALSE) -> 12.02259103 | F7: =(E7-PS1AMin)/(PS1AMax-PS1AMin) -> 0.2745413635 | G7: =_xlfn.RANK.EQ(F7,$F$7:$F$164) -> 109 | H7: =VLOOKUP(A7,PS1_Summary,10,FALSE) -> 4.04 | I7: =(H7-PS1BMin)/(PS1BMax-PS1BMin) -> 0.08214303458 | J7: =_xlfn.RANK.EQ(I7,$I$7:$I$164) -> 154 | K7: =VLOOKUP(A7,PS1_Summary,17,FALSE) -> 8.066830872 | L7: =(K7-PS1CMin)/(PS1CMax-PS1CMin) -> 0.1650227313 | M7: =_xlfn.RANK.EQ(L7,$L$7:$L$164) -> 111 | N7: =AVERAGE(F7,I7,L7) -> 0.1739023764 | O7: =(N7-PS1AvMin)/(PS1AvMax-PS1AvMin) -> 0.1957905572 | P7: =_xlfn.RANK.EQ(O7,$O$7:$O$164) -> 152 | Q7: =VLOOKUP(A7,PS2A,3,FALSE) -> 0.1409116384 | R7: =_xlfn.RANK.EQ(Q7,$Q$7:$Q$164) -> 112 | S7: =VLOOKUP(A7,PS2B,6,FALSE) -> 37 | T7: =VLOOKUP(A7,PS2B,2,FALSE) -> 14.63 | U7: =SQRT(S7*(100-T7)) -> 56.20222416 | V7: =(U7-PS2BMin)/(PS2BMax-PS2BMin) -> 0.139632201 | W7: =_xlfn.RANK.EQ(V7,$V$7:$V$164) -> 153 | X7: =VLOOKUP(A7,PS2C_Source,3,FALSE) -> 10.7 | Y7: =(X7-PS2CMin)/(PS2CMax-PS2CMin) -> 0.107 | Z7: =_xlfn.RANK.EQ(Y7,$Y$7:$Y$164) -> 122 | AA7: =AVERAGE(Q7,V7,Y7) -> 0.1291812798 | AB7: =(AA7-PS2AvMin)/(PS2AvMax-PS2AvMin) -> 0.127053301 | AC7: =_xlfn.RANK.EQ(AB7,$AB$7:$AB$164) -> 140 | AD7: =VLOOKUP(A7,PS_3,25,FALSE) -> -0.01532773611 | AE7: =(AD7-PS3Max)/(PS3Min-PS3Max) -> 0.03108521699 | AF7: =_xlfn.RANK.EQ(AE7,$AE$7:$AE$164) -> 137 | AG7: =AVERAGE(N7,AA7,AE7) -> 0.1113896244 | AH7: =(AG7-PSMin)/(PSMax-PSMin) -> 0.1080763158 | AI7: =_xlfn.RANK.EQ(AH7,$AH$7:$AH$164) -> 153 | AJ7: =VLOOKUP(A7,T1_VAT,13,FALSE) -> 2 | AK7: =(AJ7-T1_VATMax)/(T1_VATMin-T1_VATMax) -> 0.92 | AL7: =VLOOKUP(A7,T1_PIT,60,FALSE) -> 0.07077671794 | AM7: =(AL7-T1_PITMin)/(T1_PITMax-T1_PITMin) -> 0.4353747556 | AN7: =VLOOKUP(A7,T1_CIT,4,FALSE) -> 20 | AO7: =(AN7-T1_CITMIn)/(T1_CITMAx-T1_CITMIn) -> 0.5 | AP7: =AVERAGE(AK7,AM7,AO7) -> 0.6184582519 | AQ7: =(AP7-T1AMin)/(T1AMax-T1AMin) -> 0.6680996212 | AR7: =VLOOKUP(A7,T1_HTP,5,FALSE) -> 1 | AS7: =(AR7-T1_HTPMax)/(T1_HTPMin-T1_HTPMax) -> 0.8888888889 | AT7: =AVERAGE(AQ7,AS7) -> 0.778494255 | AU7: =(AT7-T1A_B_Min)/(T1A_B_Max-T1A_B_Min) -> 0.7055694366 | AV7: =RANK(AU7,$AU$7:$AU$164,0) -> 41 | AW7: =VLOOKUP(A7,T_2,20,FALSE) -> 0.5292080131 | AX7: =(AW7-T2Min)/(T2Max-T2Min) -> 0.6950702183 | AY7: =RANK(AX7,$AX$7:$AX$164,0) -> 27 | AZ7: =VLOOKUP(A7,T_3,30,FALSE) -> 0.0062326771 | BA7: =(AZ7-T3Max)/(T3Min-T3Max) -> 0.5880717078 | BB7: =RANK(BA7,$BA$7:$BA$164,0) -> 89 | BC7: =AVERAGE(AU7,AX7,BA7) -> 0.6629037876 | BD7: =(BC7-TMin)/(TMax-TMin) -> 0.8349911528 | BE7: =RANK(BD7,$BD$7:$BD$164,0) -> 6 | BF7: =VLOOKUP(A7,L1A,2,FALSE) -> 0.895789 | BG7: =(BF7-L1AMax)/(L1AMin-L1AMax) -> 0.9104211 | BH7: =RANK(BG7,$BG$7:$BG$164,0) -> 19 | BI7: =VLOOKUP(A7,L1B,9,FALSE) -> 0.7601229229 | BJ7: =(BI7-L1BMin)/(L1BMax-L1BMin) -> 0.7454177241 | BK7: =RANK(BJ7,$BJ$7:$BJ$164,0) -> 96 | BL7: =VLOOKUP(A7,L1C,6,FALSE) -> 1.603795884 | BM7: =(BL7-L1CMin)/(L1CMax-L1CMin) -> 0.7364678894 | BN7: =RANK(BM7,$BM$7:$BM$164,0) -> 4 | BO7: =AVERAGE(BG7,BJ7,BM7) -> 0.7974355712 | BP7: =(BO7-L1Min)/(L1Max-L1Min) -> 1 | BQ7: =RANK(BP7,$BP$7:$BP$164,0) -> 1 | BR7: =VLOOKUP($A7,L_2,3,FALSE) -> 11.118 | BS7: =VLOOKUP($A7,L_2,2,FALSE) -> 79.726 | BT7: =BS7-BS7*BR7/100 -> 70.86206332 | BU7: =BR7+BT7 -> 81.98006332 | BV7: =(BU7-L2Max)/(L2Min-L2Max) -> 0.1452586798 | BW7: =RANK(BV7,$BV$7:$BV$164,0) -> 143 | BX7: =VLOOKUP(A7,L_3,2,FALSE) -> 0.7209357182 | BY7: =(BX7-L3Max)/(L3Min-L3Max) -> 0.2205312833 | BZ7: =RANK(BY7,$BY$7:$BY$164,0) -> 141 | CA7: =AVERAGE(BP7,BV7,BY7) -> 0.455263321 | CB7: =(CA7-LMin)/(LMax-LMin) -> 0.384936689 | CC7: =RANK(CB7,$CB$7:$CB$164,0) -> 113 | CD7: =AVERAGE(AH7,BD7,CB7) -> 0.4426680525 | CE7: =(CD7-OverallScoreMin)/(OverallScoreMax-OverallScoreMin) -> 0.471547013 | CF7: =RANK(CE7,$CE$7:$CE$164,0) -> 102
A8: Albania | B8: =VLOOKUP(A8,Source_WB_country_income,6,FALSE) -> UMIC | C8: ECA | E8: =VLOOKUP(A8,PS1_Summary,3,FALSE) -> 8.23 | F8: =(E8-PS1AMin)/(PS1AMax-PS1AMin) -> 0.08462694041 | G8: =_xlfn.RANK.EQ(F8,$F$7:$F$164) -> 152 | H8: =VLOOKUP(A8,PS1_Summary,10,FALSE) -> 10.8 | I8: =(H8-PS1BMin)/(PS1BMax-PS1BMin) -> 0.3839294008 | J8: =_xlfn.RANK.EQ(I8,$I$7:$I$164) -> 75 | K8: =VLOOKUP(A8,PS1_Summary,17,FALSE) -> 33.12 | L8: =(K8-PS1CMin)/(PS1CMax-PS1CMin) -> 0.6919032597 | M8: =_xlfn.RANK.EQ(L8,$L$7:$L$164) -> 32 | N8: =AVERAGE(F8,I8,L8) -> 0.386819867 | O8: =(N8-PS1AvMin)/(PS1AvMax-PS1AvMin) -> 0.5240398872 | P8: =_xlfn.RANK.EQ(O8,$O$7:$O$164) -> 84 | Q8: =VLOOKUP(A8,PS2A,3,FALSE) -> 0.6437563882 | R8: =_xlfn.RANK.EQ(Q8,$Q$7:$Q$164) -> 53 | S8: =VLOOKUP(A8,PS2B,6,FALSE) -> 59 | T8: =VLOOKUP(A8,PS2B,2,FALSE) -> 16.72 | U8: =SQRT(S8*(100-T8)) -> 70.09650491 | V8: =(U8-PS2BMin)/(PS2BMax-PS2BMin) -> 0.4637348112 | W8: =_xlfn.RANK.EQ(V8,$V$7:$V$164) -> 115 | X8: =VLOOKUP(A8,PS2C_Source,3,FALSE) -> 77 | Y8: =(X8-PS2CMin)/(PS2CMax-PS2CMin) -> 0.77 | Z8: =_xlfn.RANK.EQ(Y8,$Y$7:$Y$164) -> 68 | AA8: =AVERAGE(Q8,V8,Y8) -> 0.6258303998 | AB8: =(AA8-PS2AvMin)/(PS2AvMax-PS2AvMin) -> 0.6463607001 | AC8: =_xlfn.RANK.EQ(AB8,$AB$7:$AB$164) -> 65 | AD8: =VLOOKUP(A8,PS_3,25,FALSE) -> -0.1 | AE8: =(AD8-PS3Max)/(PS3Min-PS3Max) -> 0.240546585 | AF8: =_xlfn.RANK.EQ(AE8,$AE$7:$AE$164) -> 42 | AG8: =AVERAGE(N8,AA8,AE8) -> 0.4177322839 | AH8: =(AG8-PSMin)/(PSMax-PSMin) -> 0.5101803417 | AI8: =_xlfn.RANK.EQ(AH8,$AH$7:$AH$164) -> 59 | AJ8: =VLOOKUP(A8,T1_VAT,13,FALSE) -> 20 | AK8: =(AJ8-T1_VATMax)/(T1_VATMin-T1_VATMax) -> 0.2 | AL8: =VLOOKUP(A8,T1_PIT,60,FALSE) -> 0.03485037341 | AM8: =(AL8-T1_PITMin)/(T1_PITMax-T1_PITMin) -> 0.2143780222 | AN8: =VLOOKUP(A8,T1_CIT,4,FALSE) -> 15 | AO8: =(AN8-T1_CITMIn)/(T1_CITMAx-T1_CITMIn) -> 0.375 | AP8: =AVERAGE(AK8,AM8,AO8) -> 0.2631260074 | AQ8: =(AP8-T1AMin)/(T1AMax-T1AMin) -> 0.202728632 | AR8: =VLOOKUP(A8,T1_HTP,5,FALSE) -> 1.5 | AS8: =(AR8-T1_HTPMax)/(T1_HTPMin-T1_HTPMax) -> 0.8333333333 | AT8: =AVERAGE(AQ8,AS8) -> 0.5180309827 | AU8: =(AT8-T1A_B_Min)/(T1A_B_Max-T1A_B_Min) -> 0.3593556261 | AV8: =RANK(AU8,$AU$7:$AU$164,0) -> 136 | AW8: =VLOOKUP(A8,T_2,20,FALSE) -> 0.3396766473 | AX8: =(AW8-T2Min)/(T2Max-T2Min) -> 0.4461367091 | AY8: =RANK(AX8,$AX$7:$AX$164,0) -> 95 | AZ8: =VLOOKUP(A8,T_3,30,FALSE) -> -0.0078 | BA8: =(AZ8-T3Max)/(T3Min-T3Max) -> 0.6644388548 | BB8: =RANK(BA8,$BA$7:$BA$164,0) -> 43 | BC8: =AVERAGE(AU8,AX8,BA8) -> 0.4899770633 | BD8: =(BC8-TMin)/(TMax-TMin) -> 0.4215983331 | BE8: =RANK(BD8,$BD$7:$BD$164,0) -> 124 | BF8: =VLOOKUP(A8,L1A,2,FALSE) -> 2.208421 | BG8: =(BF8-L1AMax)/(L1AMin-L1AMax) -> 0.7791579 | BH8: =RANK(BG8,$BG$7:$BG$164,0) -> 57 | BI8: =VLOOKUP(A8,L1B,9,FALSE) -> 0.8039513823 | BJ8: =(BI8-L1BMin)/(L1BMax-L1BMin) -> 0.7986328986 | BK8: =RANK(BJ8,$BJ$7:$BJ$164,0) -> 70 | BL8: =VLOOKUP(A8,L1C,6,FALSE) -> 0.5250152131 | BM8: =(BL8-L1CMin)/(L1CMax-L1CMin) -> 0.2410885636 | BN8: =RANK(BM8,$BM$7:$BM$164,0) -> 49 | BO8: =AVERAGE(BG8,BJ8,BM8) -> 0.6062931207 | BP8: =(BO8-L1Min)/(L1Max-L1Min) -> 0.6845773948 | BQ8: =RANK(BP8,$BP$7:$BP$164,0) -> 50 | BR8: =VLOOKUP(A8,L_2,3,FALSE) -> 12.331 | BS8: =VLOOKUP($A8,L_2,2,FALSE) -> 52.852 | BT8: =BS8-BS8*BR8/100 -> 46.33481988 | BU8: =BR8+BT8 -> 58.66581988 | BV8: =(BU8-L2Max)/(L2Min-L2Max) -> 0.4123769334 | BW8: =RANK(BV8,$BV$7:$BV$164,0) -> 113 | BX8: =VLOOKUP(A8,L_3,2,FALSE) -> 0.4445768264 | BY8: =(BX8-L3Max)/(L3Min-L3Max) -> 0.6940972851 | BZ8: =RANK(BY8,$BY$7:$BY$164,0) -> 69 | CA8: =AVERAGE(BP8,BV8,BY8) -> 0.5970172044 | CB8: =(CA8-LMin)/(LMax-LMin) -> 0.5749010683 | CC8: =RANK(CB8,$CB$7:$CB$164,0) -> 78 | CD8: =AVERAGE(AH8,BD8,CB8) -> 0.502226581 | CE8: =(CD8-OverallScoreMin)/(OverallScoreMax-OverallScoreMin) -> 0.5482966132 | CF8: =RANK(CE8,$CE$7:$CE$164,0) -> 80
A9: Algeria | B9: =VLOOKUP(A9,Source_WB_country_income,6,FALSE) -> UMIC | C9: MENA | E9: =VLOOKUP(A9,PS1_Summary,3,FALSE) -> 11.42835 | F9: =(E9-PS1AMin)/(PS1AMax-PS1AMin) -> 0.244784677 | G9: =_xlfn.RANK.EQ(F9,$F$7:$F$164) -> 119 | H9: =VLOOKUP(A9,PS1_Summary,10,FALSE) -> 10.73546767 | I9: =(H9-PS1BMin)/(PS1BMax-PS1BMin) -> 0.3810484869 | J9: =_xlfn.RANK.EQ(I9,$I$7:$I$164) -> 77 | K9: =VLOOKUP(A9,PS1_Summary,17,FALSE) -> 11.8468927 | L9: =(K9-PS1CMin)/(PS1CMax-PS1CMin) -> 0.2445192996 | M9: =_xlfn.RANK.EQ(L9,$L$7:$L$164) -> 94 | N9: =AVERAGE(F9,I9,L9) -> 0.2901174879 | O9: =(N9-PS1AvMin)/(PS1AvMax-PS1AvMin) -> 0.3749563569 | P9: =_xlfn.RANK.EQ(O9,$O$7:$O$164) -> 125 | Q9: =VLOOKUP(A9,PS2A,3,FALSE) -> 0.1793021258 | R9: =_xlfn.RANK.EQ(Q9,$Q$7:$Q$164) -> 107 | S9: =VLOOKUP(A9,PS2B,6,FALSE) -> 78 | T9: =VLOOKUP(A9,PS2B,2,FALSE) -> 8.589014573 | U9: =SQRT(S9*(100-T9)) -> 84.43966404 | V9: =(U9-PS2BMin)/(PS2BMax-PS2BMin) -> 0.7983081077 | W9: =_xlfn.RANK.EQ(V9,$V$7:$V$164) -> 37 | X9: =VLOOKUP(A9,PS2C_Source,3,FALSE) -> 63.6 | Y9: =(X9-PS2CMin)/(PS2CMax-PS2CMin) -> 0.636 | Z9: =_xlfn.RANK.EQ(Y9,$Y$7:$Y$164) -> 79 | AA9: =AVERAGE(Q9,V9,Y9) -> 0.5378700779 | AB9: =(AA9-PS2AvMin)/(PS2AvMax-PS2AvMin) -> 0.5543874253 | AC9: =_xlfn.RANK.EQ(AB9,$AB$7:$AB$164) -> 83 | AD9: =VLOOKUP(A9,PS_3,25,FALSE) -> -0.04172564891 | AE9: =(AD9-PS3Max)/(PS3Min-PS3Max) -> 0.0963880998 | AF9: =_xlfn.RANK.EQ(AE9,$AE$7:$AE$164) -> 70 | AG9: =AVERAGE(N9,AA9,AE9) -> 0.3081252218 | AH9: =(AG9-PSMin)/(PSMax-PSMin) -> 0.3663105947 | AI9: =_xlfn.RANK.EQ(AH9,$AH$7:$AH$164) -> 91 | AJ9: =VLOOKUP(A9,T1_VAT,13,FALSE) -> 9.5 | AK9: =(AJ9-T1_VATMax)/(T1_VATMin-T1_VATMax) -> 0.62 | AL9: =VLOOKUP(A9,T1_PIT,60,FALSE) -> 0.01669044491 | AM9: =(AL9-T1_PITMin)/(T1_PITMax-T1_PITMin) -> 0.1026693323 | AN9: =VLOOKUP(A9,T1_CIT,4,FALSE) -> 23 | AO9: =(AN9-T1_CITMIn)/(T1_CITMAx-T1_CITMIn) -> 0.575 | AP9: =AVERAGE(AK9,AM9,AO9) -> 0.4325564441 | AQ9: =(AP9-T1AMin)/(T1AMax-T1AMin) -> 0.4246280266 | AR9: =VLOOKUP(A9,T1_HTP,5,FALSE) -> 2 | AS9: =(AR9-T1_HTPMax)/(T1_HTPMin-T1_HTPMax) -> 0.7777777778 | AT9: =AVERAGE(AQ9,AS9) -> 0.6012029022 | AU9: =(AT9-T1A_B_Min)/(T1A_B_Max-T1A_B_Min) -> 0.4699096667 | AV9: =RANK(AU9,$AU$7:$AU$164,0) -> 105 | AW9: =VLOOKUP(A9,T_2,20,FALSE) -> 0.6843875852 | AX9: =(AW9-T2Min)/(T2Max-T2Min) -> 0.8988855356 | AY9: =RANK(AX9,$AX$7:$AX$164,0) -> 5 | AZ9: =VLOOKUP(A9,T_3,30,FALSE) -> 0.01720571188 | BA9: =(AZ9-T3Max)/(T3Min-T3Max) -> 0.5283554216 | BB9: =RANK(BA9,$BA$7:$BA$164,0) -> 120 | BC9: =AVERAGE(AU9,AX9,BA9) -> 0.6323835413 | BD9: =(BC9-TMin)/(TMax-TMin) -> 0.762030477 | BE9: =RANK(BD9,$BD$7:$BD$164,0) -> 18 | BF9: =VLOOKUP(A9,L1A,2,FALSE) -> 5.793684 | BG9: =(BF9-L1AMax)/(L1AMin-L1AMax) -> 0.4206316 | BH9: =RANK(BG9,$BG$7:$BG$164,0) -> 132 | BI9: =VLOOKUP(A9,L1B,9,FALSE) -> 0.4973157245 | BJ9: =(BI9-L1BMin)/(L1BMax-L1BMin) -> 0.4263252649 | BK9: =RANK(BJ9,$BJ$7:$BJ$164,0) -> 141 | BL9: =VLOOKUP(A9,L1C,6,FALSE) -> 0.458581336 | BM9: =(BL9-L1CMin)/(L1CMax-L1CMin) -> 0.2105819276 | BN9: =RANK(BM9,$BM$7:$BM$164,0) -> 68 | BO9: =AVERAGE(BG9,BJ9,BM9) -> 0.3525129308 | BP9: =(BO9-L1Min)/(L1Max-L1Min) -> 0.2657902103 | BQ9: =RANK(BP9,$BP$7:$BP$164,0) -> 145 | BR9: =VLOOKUP(A9,L_2,3,FALSE) -> 11.704 | BS9: =VLOOKUP($A9,L_2,2,FALSE) -> 26.993 | BT9: =BS9-BS9*BR9/100 -> 23.83373928 | BU9: =BR9+BT9 -> 35.53773928 | BV9: =(BU9-L2Max)/(L2Min-L2Max) -> 0.6773622637 | BW9: =RANK(BV9,$BV$7:$BV$164,0) -> 66 | BX9: =VLOOKUP(A9,L_3,2,FALSE) -> 0.4932542323 | BY9: =(BX9-L3Max)/(L3Min-L3Max) -> 0.6106841394 | BZ9: =RANK(BY9,$BY$7:$BY$164,0) -> 92 | CA9: =AVERAGE(BP9,BV9,BY9) -> 0.5179455378 | CB9: =(CA9-LMin)/(LMax-LMin) -> 0.4689371277 | CC9: =RANK(CB9,$CB$7:$CB$164,0) -> 99 | CD9: =AVERAGE(AH9,BD9,CB9) -> 0.5324260665 | CE9: =(CD9-OverallScoreMin)/(OverallScoreMax-OverallScoreMin) -> 0.5872129278 | CF9: =RANK(CE9,$CE$7:$CE$164,0) -> 70
A10: Angola | B10: =VLOOKUP(A10,Source_WB_country_income,6,FALSE) -> LMIC | C10: SSA | E10: =VLOOKUP(A10,PS1_Summary,3,FALSE) -> 9.58 | F10: =(E10-PS1AMin)/(PS1AMax-PS1AMin) -> 0.1522283425 | G10: =_xlfn.RANK.EQ(F10,$F$7:$F$164) -> 137 | H10: =VLOOKUP(A10,PS1_Summary,10,FALSE) -> 10.84 | I10: =(H10-PS1BMin)/(PS1BMax-PS1BMin) -> 0.3857151189 | J10: =_xlfn.RANK.EQ(I10,$I$7:$I$164) -> 73 | K10: =VLOOKUP(A10,PS1_Summary,17,FALSE) -> 16.5513727 | L10: =(K10-PS1CMin)/(PS1CMax-PS1CMin) -> 0.3434568391 | M10: =_xlfn.RANK.EQ(L10,$L$7:$L$164) -> 77 | N10: =AVERAGE(F10,I10,L10) -> 0.2938001002 | O10: =(N10-PS1AvMin)/(PS1AvMax-PS1AvMin) -> 0.3806337441 | P10: =_xlfn.RANK.EQ(O10,$O$7:$O$164) -> 120 | Q10: =VLOOKUP(A10,PS2A,3,FALSE) -> 0.01894578055 | R10: =_xlfn.RANK.EQ(Q10,$Q$7:$Q$164) -> 131 | S10: =VLOOKUP(A10,PS2B,6,FALSE) -> 40 | T10: =VLOOKUP(A10,PS2B,2,FALSE) -> 12.38 | U10: =SQRT(S10*(100-T10)) -> 59.20135134 | V10: =(U10-PS2BMin)/(PS2BMax-PS2BMin) -> 0.2095908383 | W10: =_xlfn.RANK.EQ(V10,$V$7:$V$164) -> 147 | X10: =VLOOKUP(A10,PS2C_Source,3,FALSE) -> 14.5 | Y10: =(X10-PS2CMin)/(PS2CMax-PS2CMin) -> 0.145 | Z10: =_xlfn.RANK.EQ(Y10,$Y$7:$Y$164) -> 115 | AA10: =AVERAGE(Q10,V10,Y10) -> 0.1245122063 | AB10: =(AA10-PS2AvMin)/(PS2AvMax-PS2AvMin) -> 0.1221712135 | AC10: =_xlfn.RANK.EQ(AB10,$AB$7:$AB$164) -> 143 | AD10: =VLOOKUP(A10,PS_3,25,FALSE) -> -0.02910305927 | AE10: =(AD10-PS3Max)/(PS3Min-PS3Max) -> 0.06516246852 | AF10: =_xlfn.RANK.EQ(AE10,$AE$7:$AE$164) -> 100 | AG10: =AVERAGE(N10,AA10,AE10) -> 0.1611582583 | AH10: =(AG10-PSMin)/(PSMax-PSMin) -> 0.1734024056 | AI10: =_xlfn.RANK.EQ(AH10,$AH$7:$AH$164) -> 137 | AJ10: =VLOOKUP(A10,T1_VAT,13,FALSE) -> 0 | AK10: =(AJ10-T1_VATMax)/(T1_VATMin-T1_VATMax) -> 1 | AL10: =VLOOKUP(A10,T1_PIT,60,FALSE) -> 0.02030370911 | AM10: =(AL10-T1_PITMin)/(T1_PITMax-T1_PITMin) -> 0.1248959071 | AN10: =VLOOKUP(A10,T1_CIT,4,FALSE) -> 30 | AO10: =(AN10-T1_CITMIn)/(T1_CITMAx-T1_CITMIn) -> 0.75 | AP10: =AVERAGE(AK10,AM10,AO10) -> 0.6249653024 | AQ10: =(AP10-T1AMin)/(T1AMax-T1AMin) -> 0.6766217651 | AR10: =VLOOKUP(A10,T1_HTP,5,FALSE) -> 0.75 | AS10: =(AR10-T1_HTPMax)/(T1_HTPMin-T1_HTPMax) -> 0.9166666667 | AT10: =AVERAGE(AQ10,AS10) -> 0.7966442159 | AU10: =(AT10-T1A_B_Min)/(T1A_B_Max-T1A_B_Min) -> 0.7296947847 | AV10: =RANK(AU10,$AU$7:$AU$164,0) -> 29 | AW10: =VLOOKUP(A10,T_2,20,FALSE) -> 0.4293994402 | AX10: =(AW10-T2Min)/(T2Max-T2Min) -> 0.5639800519 | AY10: =RANK(AX10,$AX$7:$AX$164,0) -> 57 | AZ10: =VLOOKUP(A10,T_3,30,FALSE) -> 0.009145790626 | BA10: =(AZ10-T3Max)/(T3Min-T3Max) -> 0.5722182703 | BB10: =RANK(BA10,$BA$7:$BA$164,0) -> 98 | BC10: =AVERAGE(AU10,AX10,BA10) -> 0.621964369 | BD10: =(BC10-TMin)/(TMax-TMin) -> 0.7371227535 | BE10: =RANK(BD10,$BD$7:$BD$164,0) -> 25 | BF10: =VLOOKUP(A10,L1A,2,FALSE) -> 3.171579 | BG10: =(BF10-L1AMax)/(L1AMin-L1AMax) -> 0.6828421 | BH10: =RANK(BG10,$BG$7:$BG$164,0) -> 87 | BI10: =VLOOKUP(A10,L1B,9,FALSE) -> 0.6261229229 | BJ10: =(BI10-L1BMin)/(L1BMax-L1BMin) -> 0.5827190241 | BK10: =RANK(BJ10,$BJ$7:$BJ$164,0) -> 121 | BL10: =VLOOKUP(A10,L1C,6,FALSE) -> 0.246433298 | BM10: =(BL10-L1CMin)/(L1CMax-L1CMin) -> 0.113162911 | BN10: =RANK(BM10,$BM$7:$BM$164,0) -> 125 | BO10: =AVERAGE(BG10,BJ10,BM10) -> 0.4595746784 | BP10: =(BO10-L1Min)/(L1Max-L1Min) -> 0.4424631327 | BQ10: =RANK(BP10,$BP$7:$BP$164,0) -> 117 | BR10: =VLOOKUP(A10,L_2,3,FALSE) -> 6.886 | BS10: =VLOOKUP($A10,L_2,2,FALSE) -> 65.995 | BT10: =BS10-BS10*BR10/100 -> 61.4505843 | BU10: =BR10+BT10 -> 68.3365843 | BV10: =(BU10-L2Max)/(L2Min-L2Max) -> 0.3015760957 | BW10: =RANK(BV10,$BV$7:$BV$164,0) -> 121 | BX10: =VLOOKUP(A10,L_3,2,FALSE) -> 0.6105538387 | BY10: =(BX10-L3Max)/(L3Min-L3Max) -> 0.4096806354 | BZ10: =RANK(BY10,$BY$7:$BY$164,0) -> 120 | CA10: =AVERAGE(BP10,BV10,BY10) -> 0.3845732879 | CB10: =(CA10-LMin)/(LMax-LMin) -> 0.2902049756 | CC10: =RANK(CB10,$CB$7:$CB$164,0) -> 125 | CD10: =AVERAGE(AH10,BD10,CB10) -> 0.4002433782 | CE10: =(CD10-OverallScoreMin)/(OverallScoreMax-OverallScoreMin) -> 0.4168768109 | CF10: =RANK(CE10,$CE$7:$CE$164,0) -> 119
A11: Antigua and Barbuda | B11: =VLOOKUP(A11,Source_WB_country_income,6,FALSE) -> HIC | C11: LAC | E11: =VLOOKUP(A11,PS1_Summary,3,FALSE) -> 6.92814 | F11: =(E11-PS1AMin)/(PS1AMax-PS1AMin) -> 0.01943615423 | G11: =_xlfn.RANK.EQ(F11,$F$7:$F$164) -> 157 | H11: =VLOOKUP(A11,PS1_Summary,10,FALSE) -> 9.48342989 | I11: =(H11-PS1BMin)/(PS1BMax-PS1BMin) -> 0.3251538225 | J11: =_xlfn.RANK.EQ(I11,$I$7:$I$164) -> 101 | K11: =VLOOKUP(A11,PS1_Summary,17,FALSE) -> 12.78 | L11: =(K11-PS1CMin)/(PS1CMax-PS1CMin) -> 0.2641430074 | M11: =_xlfn.RANK.EQ(L11,$L$7:$L$164) -> 89 | N11: =AVERAGE(F11,I11,L11) -> 0.2029109947 | O11: =(N11-PS1AvMin)/(PS1AvMax-PS1AvMin) -> 0.2405123857 | P11: =_xlfn.RANK.EQ(O11,$O$7:$O$164) -> 146 | Q11: =VLOOKUP(A11,PS2A,3,FALSE) -> 0.5039654291 | R11: =_xlfn.RANK.EQ(Q11,$Q$7:$Q$164) -> 66 | S11: =VLOOKUP(A11,PS2B,6,FALSE) -> 73 | T11: =VLOOKUP(A11,PS2B,2,FALSE) -> 7.154801226 | U11: =SQRT(S11*(100-T11)) -> 82.32678489 | V11: =(U11-PS2BMin)/(PS2BMax-PS2BMin) -> 0.7490223865 | W11: =_xlfn.RANK.EQ(V11,$V$7:$V$164) -> 56 | X11: =VLOOKUP(A11,PS2C_Source,3,FALSE) -> 83.5089 | Y11: =(X11-PS2CMin)/(PS2CMax-PS2CMin) -> 0.835089 | Z11: =_xlfn.RANK.EQ(Y11,$Y$7:$Y$164) -> 59 | AA11: =AVERAGE(Q11,V11,Y11) -> 0.6960256052 | AB11: =(AA11-PS2AvMin)/(PS2AvMax-PS2AvMin) -> 0.7197583728 | AC11: =_xlfn.RANK.EQ(AB11,$AB$7:$AB$164) -> 57 | AD11: =VLOOKUP(A11,PS_3,25,FALSE) -> -0.02243251002 | AE11: =(AD11-PS3Max)/(PS3Min-PS3Max) -> 0.04866093298 | AF11: =_xlfn.RANK.EQ(AE11,$AE$7:$AE$164) -> 119 | AG11: =AVERAGE(N11,AA11,AE11) -> 0.3158658443 | AH11: =(AG11-PSMin)/(PSMax-PSMin) -> 0.3764709016 | AI11: =_xlfn.RANK.EQ(AH11,$AH$7:$AH$164) -> 88 | AJ11: =VLOOKUP(A11,T1_VAT,13,FALSE) -> 7.5 | AK11: =(AJ11-T1_VATMax)/(T1_VATMin-T1_VATMax) -> 0.7 | AL11: =VLOOKUP(A11,T1_PIT,60,FALSE) -> 0.06067209475 | AM11: =(AL11-T1_PITMin)/(T1_PITMax-T1_PITMin) -> 0.3732173403 | AN11: =VLOOKUP(A11,T1_CIT,4,FALSE) -> 25 | AO11: =(AN11-T1_CITMIn)/(T1_CITMAx-T1_CITMIn) -> 0.625 | AP11: =AVERAGE(AK11,AM11,AO11) -> 0.5660724468 | AQ11: =(AP11-T1AMin)/(T1AMax-T1AMin) -> 0.5994910603 | AR11: =VLOOKUP(A11,T1_HTP,5,FALSE) -> 3.5 | AS11: =(AR11-T1_HTPMax)/(T1_HTPMin-T1_HTPMax) -> 0.6111111111 | AT11: =AVERAGE(AQ11,AS11) -> 0.6053010857 | AU11: =(AT11-T1A_B_Min)/(T1A_B_Max-T1A_B_Min) -> 0.4753570671 | AV11: =RANK(AU11,$AU$7:$AU$164,0) -> 102 | AW11: =VLOOKUP(A11,T_2,20,FALSE) -> 0.2681427482 | AX11: =(AW11-T2Min)/(T2Max-T2Min) -> 0.3521829487 | AY11: =RANK(AX11,$AX$7:$AX$164,0) -> 116 | AZ11: =VLOOKUP(A11,T_3,30,FALSE) -> 0.01844985646 | BA11: =(AZ11-T3Max)/(T3Min-T3Max) -> 0.5215846699 | BB11: =RANK(BA11,$BA$7:$BA$164,0) -> 124 | BC11: =AVERAGE(AU11,AX11,BA11) -> 0.4497082286 | BD11: =(BC11-TMin)/(TMax-TMin) -> 0.325333009 | BE11: =RANK(BD11,$BD$7:$BD$164,0) -> 143 | BF11: =VLOOKUP(A11,L1A,2,FALSE) -> 0.723158 | BG11: =(BF11-L1AMax)/(L1AMin-L1AMax) -> 0.9276842 | BH11: =RANK(BG11,$BG$7:$BG$164,0) -> 15 | BI11: =VLOOKUP(A11,L1B,9,FALSE) -> 0.5498479065 | BJ11: =(BI11-L1BMin)/(L1BMax-L1BMin) -> 0.490108233 | BK11: =RANK(BJ11,$BJ$7:$BJ$164,0) -> 138 | BL11: =VLOOKUP(A11,L1C,6,FALSE) -> 0.3487504754 | BM11: =(BL11-L1CMin)/(L1CMax-L1CMin) -> 0.1601472664 | BN11: =RANK(BM11,$BM$7:$BM$164,0) -> 98 | BO11: =AVERAGE(BG11,BJ11,BM11) -> 0.5259798998 | BP11: =(BO11-L1Min)/(L1Max-L1Min) -> 0.5520447976 | BQ11: =RANK(BP11,$BP$7:$BP$164,0) -> 86 | BR11: =VLOOKUP(A11,L_2,3,FALSE) -> 8.7 | BS11: =VLOOKUP($A11,L_2,2,FALSE) -> 9 | BT11: =BS11-BS11*BR11/100 -> 8.217 | BU11: =BR11+BT11 -> 16.917 | BV11: =(BU11-L2Max)/(L2Min-L2Max) -> 0.8907056376 | BW11: =RANK(BV11,$BV$7:$BV$164,0) -> 36 | CA11: =AVERAGE(BP11,BV11,BY11) -> 0.7213752176 | CB11: =(CA11-LMin)/(LMax-LMin) -> 0.7415532419 | CC11: =RANK(CB11,$CB$7:$CB$164,0) -> 44 | CD11: =AVERAGE(AH11,BD11,CB11) -> 0.4811190508 | CE11: =(CD11-OverallScoreMin)/(OverallScoreMax-OverallScoreMin) -> 0.5210965708 | CF11: =RANK(CE11,$CE$7:$CE$164,0) -> 90
A12: Argentina | B12: =VLOOKUP(A12,Source_WB_country_income,6,FALSE) -> UMIC | C12: LAC | E12: =VLOOKUP(A12,PS1_Summary,3,FALSE) -> 13.26392 | F12: =(E12-PS1AMin)/(PS1AMax-PS1AMin) -> 0.3367010516 | G12: =_xlfn.RANK.EQ(F12,$F$7:$F$164) -> 95 | H12: =VLOOKUP(A12,PS1_Summary,10,FALSE) -> 16.16069191 | I12: =(H12-PS1BMin)/(PS1BMax-PS1BMin) -> 0.6232465208 | J12: =_xlfn.RANK.EQ(I12,$I$7:$I$164) -> 21 | K12: =VLOOKUP(A12,PS1_Summary,17,FALSE) -> 47.77 | L12: =(K12-PS1CMin)/(PS1CMax-PS1CMin) -> 1 | M12: =_xlfn.RANK.EQ(L12,$L$7:$L$164) -> 1 | N12: =AVERAGE(F12,I12,L12) -> 0.6533158575 | O12: =(N12-PS1AvMin)/(PS1AvMax-PS1AvMin) -> 0.9348897903 | P12: =_xlfn.RANK.EQ(O12,$O$7:$O$164) -> 3 | Q12: =VLOOKUP(A12,PS2A,3,FALSE) -> 0.4938801804 | R12: =_xlfn.RANK.EQ(Q12,$Q$7:$Q$164) -> 69 | S12: =VLOOKUP(A12,PS2B,6,FALSE) -> 76 | T12: =VLOOKUP(A12,PS2B,2,FALSE) -> 6.712072571 | U12: =SQRT(S12*(100-T12)) -> 84.20143992 | V12: =(U12-PS2BMin)/(PS2BMax-PS2BMin) -> 0.7927512127 | W12: =_xlfn.RANK.EQ(V12,$V$7:$V$164) -> 40 | X12: =VLOOKUP(A12,PS2C_Source,3,FALSE) -> 89.3 | Y12: =(X12-PS2CMin)/(PS2CMax-PS2CMin) -> 0.893 | Z12: =_xlfn.RANK.EQ(Y12,$Y$7:$Y$164) -> 54 | AA12: =AVERAGE(Q12,V12,Y12) -> 0.7265437977 | AB12: =(AA12-PS2AvMin)/(PS2AvMax-PS2AvMin) -> 0.7516688757 | AC12: =_xlfn.RANK.EQ(AB12,$AB$7:$AB$164) -> 56 | AD12: =VLOOKUP(A12,PS_3,25,FALSE) -> -0.1369 | AE12: =(AD12-PS3Max)/(PS3Min-PS3Max) -> 0.3318294222 | AF12: =_xlfn.RANK.EQ(AE12,$AE$7:$AE$164) -> 36 | AG12: =AVERAGE(N12,AA12,AE12) -> 0.5705630258 | AH12: =(AG12-PSMin)/(PSMax-PSMin) -> 0.7107853005 | AI12: =_xlfn.RANK.EQ(AH12,$AH$7:$AH$164) -> 31 | AJ12: =VLOOKUP(A12,T1_VAT,13,FALSE) -> 10.5 | AK12: =(AJ12-T1_VATMax)/(T1_VATMin-T1_VATMax) -> 0.58 | AL12: =VLOOKUP(A12,T1_PIT,60,FALSE) -> 0.008914617132 | AM12: =(AL12-T1_PITMin)/(T1_PITMax-T1_PITMin) -> 0.05483723134 | AN12: =VLOOKUP(A12,T1_CIT,4,FALSE) -> 30 | AO12: =(AN12-T1_CITMIn)/(T1_CITMAx-T1_CITMIn) -> 0.75 | AP12: =AVERAGE(AK12,AM12,AO12) -> 0.4616124104 | AQ12: =(AP12-T1AMin)/(T1AMax-T1AMin) -> 0.4626820001 | AR12: =VLOOKUP(A12,T1_HTP,5,FALSE) -> 1.5 | AS12: =(AR12-T1_HTPMax)/(T1_HTPMin-T1_HTPMax) -> 0.8333333333 | AT12: =AVERAGE(AQ12,AS12) -> 0.6480076667 | AU12: =(AT12-T1A_B_Min)/(T1A_B_Max-T1A_B_Min) -> 0.5321236431 | AV12: =RANK(AU12,$AU$7:$AU$164,0) -> 83 | AW12: =VLOOKUP(A12,T_2,20,FALSE) -> 0.2837613192 | AX12: =(AW12-T2Min)/(T2Max-T2Min) -> 0.3726966281 | AY12: =RANK(AX12,$AX$7:$AX$164,0) -> 114 | AZ12: =VLOOKUP(A12,T_3,30,FALSE) -> -0.0405186045 | BA12: =(AZ12-T3Max)/(T3Min-T3Max) -> 0.8424965742 | BB12: =RANK(BA12,$BA$7:$BA$164,0) -> 3 | BC12: =AVERAGE(AU12,AX12,BA12) -> 0.5824389485 | BD12: =(BC12-TMin)/(TMax-TMin) -> 0.6426346107 | BE12: =RANK(BD12,$BD$7:$BD$164,0) -> 53 | BF12: =VLOOKUP(A12,L1A,2,FALSE) -> 4.954737 | BG12: =(BF12-L1AMax)/(L1AMin-L1AMax) -> 0.5045263 | BH12: =RANK(BG12,$BG$7:$BG$164,0) -> 125 | BI12: =VLOOKUP(A12,L1B,9,FALSE) -> 0.8267034323 | BJ12: =(BI12-L1BMin)/(L1BMax-L1BMin) -> 0.8262577415 | BK12: =RANK(BJ12,$BJ$7:$BJ$164,0) -> 47 | BL12: =VLOOKUP(A12,L1C,6,FALSE) -> 0.331437621 | BM12: =(BL12-L1CMin)/(L1CMax-L1CMin) -> 0.1521971516 | BN12: =RANK(BM12,$BM$7:$BM$164,0) -> 105 | BO12: =AVERAGE(BG12,BJ12,BM12) -> 0.4943270644 | BP12: =(BO12-L1Min)/(L1Max-L1Min) -> 0.499811399 | BQ12: =RANK(BP12,$BP$7:$BP$164,0) -> 101 | BR12: =VLOOKUP(A12,L_2,3,FALSE) -> 9.789 | BS12: =VLOOKUP($A12,L_2,2,FALSE) -> 21.805 | BT12: =BS12-BS12*BR12/100 -> 19.67050855 | BU12: =BR12+BT12 -> 29.45950855 | BV12: =(BU12-L2Max)/(L2Min-L2Max) -> 0.7470023694 | BW12: =RANK(BV12,$BV$7:$BV$164,0) -> 55 | BX12: =VLOOKUP(A12,L_3,2,FALSE) -> 0.4001235801 | BY12: =(BX12-L3Max)/(L3Min-L3Max) -> 0.7702719505 | BZ12: =RANK(BY12,$BY$7:$BY$164,0) -> 41 | CA12: =AVERAGE(BP12,BV12,BY12) -> 0.6723619063 | CB12: =(CA12-LMin)/(LMax-LMin) -> 0.6758705033 | CC12: =RANK(CB12,$CB$7:$CB$164,0) -> 48 | CD12: =AVERAGE(AH12,BD12,CB12) -> 0.6764301382 | CE12: =(CD12-OverallScoreMin)/(OverallScoreMax-OverallScoreMin) -> 0.7727825716 | CF12: =RANK(CE12,$CE$7:$CE$164,0) -> 35
A13: Armenia | B13: =VLOOKUP(A13,Source_WB_country_income,6,FALSE) -> UMIC | C13: ECA | E13: =VLOOKUP(A13,PS1_Summary,3,FALSE) -> 8.58 | F13: =(E13-PS1AMin)/(PS1AMax-PS1AMin) -> 0.1021532298 | G13: =_xlfn.RANK.EQ(F13,$F$7:$F$164) -> 148 | H13: =VLOOKUP(A13,PS1_Summary,10,FALSE) -> 5.44 | I13: =(H13-PS1BMin)/(PS1BMax-PS1BMin) -> 0.1446431696 | J13: =_xlfn.RANK.EQ(I13,$I$7:$I$164) -> 138 | K13: =VLOOKUP(A13,PS1_Summary,17,FALSE) -> 26.99 | L13: =(K13-PS1CMin)/(PS1CMax-PS1CMin) -> 0.5629863302 | M13: =_xlfn.RANK.EQ(L13,$L$7:$L$164) -> 51 | N13: =AVERAGE(F13,I13,L13) -> 0.2699275765 | O13: =(N13-PS1AvMin)/(PS1AvMax-PS1AvMin) -> 0.3438300984 | P13: =_xlfn.RANK.EQ(O13,$O$7:$O$164) -> 129 | Q13: =VLOOKUP(A13,PS2A,3,FALSE) -> 0.5325477775 | R13: =_xlfn.RANK.EQ(Q13,$Q$7:$Q$164) -> 65 | S13: =VLOOKUP(A13,PS2B,6,FALSE) -> 69 | T13: =VLOOKUP(A13,PS2B,2,FALSE) -> 16.05 | U13: =SQRT(S13*(100-T13)) -> 76.1088037 | V13: =(U13-PS2BMin)/(PS2BMax-PS2BMin) -> 0.6039796908 | W13: =_xlfn.RANK.EQ(V13,$V$7:$V$164) -> 91 | X13: =VLOOKUP(A13,PS2C_Source,3,FALSE) -> 68.4506 | Y13: =(X13-PS2CMin)/(PS2CMax-PS2CMin) -> 0.684506 | Z13: =_xlfn.RANK.EQ(Y13,$Y$7:$Y$164) -> 76 | AA13: =AVERAGE(Q13,V13,Y13) -> 0.6070111561 | AB13: =(AA13-PS2AvMin)/(PS2AvMax-PS2AvMin) -> 0.6266828791 | AC13: =_xlfn.RANK.EQ(AB13,$AB$7:$AB$164) -> 71 | AD13: =VLOOKUP(A13,PS_3,25,FALSE) -> -0.107 | AE13: =(AD13-PS3Max)/(PS3Min-PS3Max) -> 0.2578631123 | AF13: =_xlfn.RANK.EQ(AE13,$AE$7:$AE$164) -> 41 | AG13: =AVERAGE(N13,AA13,AE13) -> 0.3782672817 | AH13: =(AG13-PSMin)/(PSMax-PSMin) -> 0.4583787536 | AI13: =_xlfn.RANK.EQ(AH13,$AH$7:$AH$164) -> 72 | AJ13: =VLOOKUP(A13,T1_VAT,13,FALSE) -> 10 | AK13: =(AJ13-T1_VATMax)/(T1_VATMin-T1_VATMax) -> 0.6 | AL13: =VLOOKUP(A13,T1_PIT,60,FALSE) -> 0.004709897435 | AM13: =(AL13-T1_PITMin)/(T1_PITMax-T1_PITMin) -> 0.02897238675 | AN13: =VLOOKUP(A13,T1_CIT,4,FALSE) -> 20 | AO13: =(AN13-T1_CITMIn)/(T1_CITMAx-T1_CITMIn) -> 0.5 | AP13: =AVERAGE(AK13,AM13,AO13) -> 0.3763241289 | AQ13: =(AP13-T1AMin)/(T1AMax-T1AMin) -> 0.3509817743 | AR13: =VLOOKUP(A13,T1_HTP,5,FALSE) -> 1.5 | AS13: =(AR13-T1_HTPMax)/(T1_HTPMin-T1_HTPMax) -> 0.8333333333 | AT13: =AVERAGE(AQ13,AS13) -> 0.5921575538 | AU13: =(AT13-T1A_B_Min)/(T1A_B_Max-T1A_B_Min) -> 0.4578863802 | AV13: =RANK(AU13,$AU$7:$AU$164,0) -> 108 | AW13: =VLOOKUP(A13,T_2,20,FALSE) -> 0.3700472246 | AX13: =(AW13-T2Min)/(T2Max-T2Min) -> 0.4860259082 | AY13: =RANK(AX13,$AX$7:$AX$164,0) -> 82 | AZ13: =VLOOKUP(A13,T_3,30,FALSE) -> -0.0197 | BA13: =(AZ13-T3Max)/(T3Min-T3Max) -> 0.7291997727 | BB13: =RANK(BA13,$BA$7:$BA$164,0) -> 17 | BC13: =AVERAGE(AU13,AX13,BA13) -> 0.5577040204 | BD13: =(BC13-TMin)/(TMax-TMin) -> 0.5835041223 | BE13: =RANK(BD13,$BD$7:$BD$164,0) -> 75 | BF13: =VLOOKUP(A13,L1A,2,FALSE) -> 1.78 | BG13: =(BF13-L1AMax)/(L1AMin-L1AMax) -> 0.822 | BH13: =RANK(BG13,$BG$7:$BG$164,0) -> 43 | BI13: =VLOOKUP(A13,L1B,9,FALSE) -> 0.6406356578 | BJ13: =(BI13-L1BMin)/(L1BMax-L1BMin) -> 0.6003399428 | BK13: =RANK(BJ13,$BJ$7:$BJ$164,0) -> 117 | BL13: =VLOOKUP(A13,L1C,6,FALSE) -> 0.2996050607 | BM13: =(BL13-L1CMin)/(L1CMax-L1CMin) -> 0.1375795443 | BN13: =RANK(BM13,$BM$7:$BM$164,0) -> 115 | BO13: =AVERAGE(BG13,BJ13,BM13) -> 0.5199731623 | BP13: =(BO13-L1Min)/(L1Max-L1Min) -> 0.5421325004 | BQ13: =RANK(BP13,$BP$7:$BP$164,0) -> 87 | BR13: =VLOOKUP(A13,L_2,3,FALSE) -> 16.99 | BS13: =VLOOKUP($A13,L_2,2,FALSE) -> 38.668 | BT13: =BS13-BS13*BR13/100 -> 32.0983068 | BU13: =BR13+BT13 -> 49.0883068 | BV13: =(BU13-L2Max)/(L2Min-L2Max) -> 0.5221093626 | BW13: =RANK(BV13,$BV$7:$BV$164,0) -> 95 | BX13: =VLOOKUP(A13,L_3,2,FALSE) -> 0.431658331 | BY13: =(BX13-L3Max)/(L3Min-L3Max) -> 0.7162342973 | BZ13: =RANK(BY13,$BY$7:$BY$164,0) -> 61 | CA13: =AVERAGE(BP13,BV13,BY13) -> 0.5934920534 | CB13: =(CA13-LMin)/(LMax-LMin) -> 0.5701770134 | CC13: =RANK(CB13,$CB$7:$CB$164,0) -> 80 | CD13: =AVERAGE(AH13,BD13,CB13) -> 0.5373532964 | CE13: =(CD13-OverallScoreMin)/(OverallScoreMax-OverallScoreMin) -> 0.5935623615 | CF13: =RANK(CE13,$CE$7:$CE$164,0) -> 69
A14: Australia | B14: =VLOOKUP(A14,Source_WB_country_income,6,FALSE) -> HIC | C14: EAP | D14: OECD | E14: =VLOOKUP(A14,PS1_Summary,3,FALSE) -> 15.39375639 | F14: =(E14-PS1AMin)/(PS1AMax-PS1AMin) -> 0.443352849 | G14: =_xlfn.RANK.EQ(F14,$F$7:$F$164) -> 72 | H14: =VLOOKUP(A14,PS1_Summary,10,FALSE) -> 20.03133856 | I14: =(H14-PS1BMin)/(PS1BMax-PS1BMin) -> 0.7960436197 | J14: =_xlfn.RANK.EQ(I14,$I$7:$I$164) -> 4 | K14: =VLOOKUP(A14,PS1_Summary,17,FALSE) -> 27.5269422 | L14: =(K14-PS1CMin)/(PS1CMax-PS1CMin) -> 0.5742784901 | M14: =_xlfn.RANK.EQ(L14,$L$7:$L$164) -> 47 | N14: =AVERAGE(F14,I14,L14) -> 0.6045583196 | O14: =(N14-PS1AvMin)/(PS1AvMax-PS1AvMin) -> 0.8597215685 | P14: =_xlfn.RANK.EQ(O14,$O$7:$O$164) -> 9 | Q14: =VLOOKUP(A14,PS2A,3,FALSE) -> 0.7889199055 | R14: =_xlfn.RANK.EQ(Q14,$Q$7:$Q$164) -> 35 | S14: =VLOOKUP(A14,PS2B,6,FALSE) -> 87 | T14: =VLOOKUP(A14,PS2B,2,FALSE) -> 3.71 | U14: =SQRT(S14*(100-T14)) -> 91.52720907 | V14: =(U14-PS2BMin)/(PS2BMax-PS2BMin) -> 0.9636345384 | W14: =_xlfn.RANK.EQ(V14,$V$7:$V$164) -> 3 | X14: =VLOOKUP(A14,PS2C_Source,3,FALSE) -> 74.27413194 | Y14: =(X14-PS2CMin)/(PS2CMax-PS2CMin) -> 0.7427413194 | Z14: =_xlfn.RANK.EQ(Y14,$Y$7:$Y$164) -> 72 | AA14: =AVERAGE(Q14,V14,Y14) -> 0.8317652545 | AB14: =(AA14-PS2AvMin)/(PS2AvMax-PS2AvMin) -> 0.8616907782 | AC14: =_xlfn.RANK.EQ(AB14,$AB$7:$AB$164) -> 33 | AD14: =VLOOKUP(A14,PS_3,25,FALSE) -> -0.135116948 | AE14: =(AD14-PS3Max)/(PS3Min-PS3Max) -> 0.3274185265 | AF14: =_xlfn.RANK.EQ(AE14,$AE$7:$AE$164) -> 37 | AG14: =AVERAGE(N14,AA14,AE14) -> 0.5879140335 | AH14: =(AG14-PSMin)/(PSMax-PSMin) -> 0.7335601569 | AI14: =_xlfn.RANK.EQ(AH14,$AH$7:$AH$164) -> 30 | AJ14: =VLOOKUP(A14,T1_VAT,13,FALSE) -> 5 | AK14: =(AJ14-T1_VATMax)/(T1_VATMin-T1_VATMax) -> 0.8 | AL14: =VLOOKUP(A14,T1_PIT,60,FALSE) -> 0.01646969348 | AM14: =(AL14-T1_PITMin)/(T1_PITMax-T1_PITMin) -> 0.1013114056 | AN14: =VLOOKUP(A14,T1_CIT,4,FALSE) -> 27.5 | AO14: =(AN14-T1_CITMIn)/(T1_CITMAx-T1_CITMIn) -> 0.6875 | AP14: =AVERAGE(AK14,AM14,AO14) -> 0.5296038019 | AQ14: =(AP14-T1AMin)/(T1AMax-T1AMin) -> 0.5517288613 | AR14: =VLOOKUP(A14,T1_HTP,5,FALSE) -> 3 | AS14: =(AR14-T1_HTPMax)/(T1_HTPMin-T1_HTPMax) -> 0.6666666667 | AT14: =AVERAGE(AQ14,AS14) -> 0.609197764 | AU14: =(AT14-T1A_B_Min)/(T1A_B_Max-T1A_B_Min) -> 0.4805366221 | AV14: =RANK(AU14,$AU$7:$AU$164,0) -> 101 | AW14: =VLOOKUP(A14,T_2,20,FALSE) -> 0.5127548773 | AX14: =(AW14-T2Min)/(T2Max-T2Min) -> 0.6734604082 | AY14: =RANK(AX14,$AX$7:$AX$164,0) -> 32 | AZ14: =VLOOKUP(A14,T_3,30,FALSE) -> -0.03654375 | BA14: =(AZ14-T3Max)/(T3Min-T3Max) -> 0.8208650426 | BB14: =RANK(BA14,$BA$7:$BA$164,0) -> 6 | BC14: =AVERAGE(AU14,AX14,BA14) -> 0.6582873576 | BD14: =(BC14-TMin)/(TMax-TMin) -> 0.8239552705 | BE14: =RANK(BD14,$BD$7:$BD$164,0) -> 7 | BF14: =VLOOKUP(A14,L1A,2,FALSE) -> 4.521053 | BG14: =(BF14-L1AMax)/(L1AMin-L1AMax) -> 0.5478947 | BH14: =RANK(BG14,$BG$7:$BG$164,0) -> 120 | BI14: =VLOOKUP(A14,L1B,9,FALSE) -> 0.8199114723 | BJ14: =(BI14-L1BMin)/(L1BMax-L1BMin) -> 0.8180111516 | BK14: =RANK(BJ14,$BJ$7:$BJ$164,0) -> 59 | BL14: =VLOOKUP(A14,L1C,6,FALSE) -> 0.4893780721 | BM14: =(BL14-L1CMin)/(L1CMax-L1CMin) -> 0.2247238814 | BN14: =RANK(BM14,$BM$7:$BM$164,0) -> 57 | BO14: =AVERAGE(BG14,BJ14,BM14) -> 0.530209911 | BP14: =(BO14-L1Min)/(L1Max-L1Min) -> 0.5590251473 | BQ14: =RANK(BP14,$BP$7:$BP$164,0) -> 85 | BR14: =VLOOKUP(A14,L_2,3,FALSE) -> 5.268 | BS14: =VLOOKUP($A14,L_2,2,FALSE) -> 10.634 | BT14: =BS14-BS14*BR14/100 -> 10.07380088 | BU14: =BR14+BT14 -> 15.34180088 | BV14: =(BU14-L2Max)/(L2Min-L2Max) -> 0.9087531646 | BW14: =RANK(BV14,$BV$7:$BV$164,0) -> 28 | BX14: =VLOOKUP(A14,L_3,2,FALSE) -> 0.4268417179 | BY14: =(BX14-L3Max)/(L3Min-L3Max) -> 0.7244880003 | BZ14: =RANK(BY14,$BY$7:$BY$164,0) -> 56 | CA14: =AVERAGE(BP14,BV14,BY14) -> 0.7307554374 | CB14: =(CA14-LMin)/(LMax-LMin) -> 0.7541236745 | CC14: =RANK(CB14,$CB$7:$CB$164,0) -> 43 | CD14: =AVERAGE(AH14,BD14,CB14) -> 0.7705463673 | CE14: =(CD14-OverallScoreMin)/(OverallScoreMax-OverallScoreMin) -> 0.8940646639 | CF14: =RANK(CE14,$CE$7:$CE$164,0) -> 16
A15: Austria | B15: =VLOOKUP(A15,Source_WB_country_income,6,FALSE) -> HIC | C15: ECA | D15: OECD | E15: =VLOOKUP(A15,PS1_Summary,3,FALSE) -> 9.820173464 | F15: =(E15-PS1AMin)/(PS1AMax-PS1AMin) -> 0.1642550558 | G15: =_xlfn.RANK.EQ(F15,$F$7:$F$164) -> 134 | H15: =VLOOKUP(A15,PS1_Summary,10,FALSE) -> 16.78679439 | I15: =(H15-PS1BMin)/(PS1BMax-PS1BMin) -> 0.6511975847 | J15: =_xlfn.RANK.EQ(I15,$I$7:$I$164) -> 17 | K15: =VLOOKUP(A15,PS1_Summary,17,FALSE) -> 41.37625068 | L15: =(K15-PS1CMin)/(PS1CMax-PS1CMin) -> 0.865536292 | M15: =_xlfn.RANK.EQ(L15,$L$7:$L$164) -> 10 | N15: =AVERAGE(F15,I15,L15) -> 0.5603296441 | O15: =(N15-PS1AvMin)/(PS1AvMax-PS1AvMin) -> 0.7915353756 | P15: =_xlfn.RANK.EQ(O15,$O$7:$O$164) -> 19 | Q15: =VLOOKUP(A15,PS2A,3,FALSE) -> 0.7905303844 | R15: =_xlfn.RANK.EQ(Q15,$Q$7:$Q$164) -> 34 | S15: =VLOOKUP(A15,PS2B,6,FALSE) -> 79 | T15: =VLOOKUP(A15,PS2B,2,FALSE) -> 8.378344233 | U15: =SQRT(S15*(100-T15)) -> 85.07708743 | V15: =(U15-PS2BMin)/(PS2BMax-PS2BMin) -> 0.8131768576 | W15: =_xlfn.RANK.EQ(V15,$V$7:$V$164) -> 33 | X15: =VLOOKUP(A15,PS2C_Source,3,FALSE) -> 100 | Y15: =(X15-PS2CMin)/(PS2CMax-PS2CMin) -> 1 | Z15: =_xlfn.RANK.EQ(Y15,$Y$7:$Y$164) -> 1 | AA15: =AVERAGE(Q15,V15,Y15) -> 0.867902414 | AB15: =(AA15-PS2AvMin)/(PS2AvMax-PS2AvMin) -> 0.8994765983 | AC15: =_xlfn.RANK.EQ(AB15,$AB$7:$AB$164) -> 25 | AD15: =VLOOKUP(A15,PS_3,25,FALSE) -> -0.2263150225 | AE15: =(AD15-PS3Max)/(PS3Min-PS3Max) -> 0.5530233772 | AF15: =_xlfn.RANK.EQ(AE15,$AE$7:$AE$164) -> 6 | AG15: =AVERAGE(N15,AA15,AE15) -> 0.6604184784 | AH15: =(AG15-PSMin)/(PSMax-PSMin) -> 0.828729172 | AI15: =_xlfn.RANK.EQ(AH15,$AH$7:$AH$164) -> 10 | AJ15: =VLOOKUP(A15,T1_VAT,13,FALSE) -> 15 | AK15: =(AJ15-T1_VATMax)/(T1_VATMin-T1_VATMax) -> 0.4 | AL15: =VLOOKUP(A15,T1_PIT,60,FALSE) -> 0.01517567402 | AM15: =(AL15-T1_PITMin)/(T1_PITMax-T1_PITMin) -> 0.09335139518 | AN15: =VLOOKUP(A15,T1_CIT,4,FALSE) -> 25 | AO15: =(AN15-T1_CITMIn)/(T1_CITMAx-T1_CITMIn) -> 0.625 | AP15: =AVERAGE(AK15,AM15,AO15) -> 0.3727837984 | AQ15: =(AP15-T1AMin)/(T1AMax-T1AMin) -> 0.3463450796 | AR15: =VLOOKUP(A15,T1_HTP,5,FALSE) -> 1 | AS15: =(AR15-T1_HTPMax)/(T1_HTPMin-T1_HTPMax) -> 0.8888888889 | AT15: =AVERAGE(AQ15,AS15) -> 0.6176169843 | AU15: =(AT15-T1A_B_Min)/(T1A_B_Max-T1A_B_Min) -> 0.4917276445 | AV15: =RANK(AU15,$AU$7:$AU$164,0) -> 97 | AW15: =VLOOKUP(A15,T_2,20,FALSE) -> 0.4307370587 | AX15: =(AW15-T2Min)/(T2Max-T2Min) -> 0.5657369012 | AY15: =RANK(AX15,$AX$7:$AX$164,0) -> 56 | AZ15: =VLOOKUP(A15,T_3,30,FALSE) -> -0.013142575 | BA15: =(AZ15-T3Max)/(T3Min-T3Max) -> 0.6935136499 | BB15: =RANK(BA15,$BA$7:$BA$164,0) -> 25 | BC15: =AVERAGE(AU15,AX15,BA15) -> 0.5836593985 | BD15: =(BC15-TMin)/(TMax-TMin) -> 0.6455521776 | BE15: =RANK(BD15,$BD$7:$BD$164,0) -> 50 | BF15: =VLOOKUP(A15,L1A,2,FALSE) -> 0.375789 | BG15: =(BF15-L1AMax)/(L1AMin-L1AMax) -> 0.9624211 | BH15: =RANK(BG15,$BG$7:$BG$164,0) -> 9 | BI15: =VLOOKUP(A15,L1B,9,FALSE) -> 0.9063290037 | BJ15: =(BI15-L1BMin)/(L1BMax-L1BMin) -> 0.9229366741 | BK15: =RANK(BJ15,$BJ$7:$BJ$164,0) -> 4 | BL15: =VLOOKUP(A15,L1C,6,FALSE) -> 0.3426108659 | BM15: =(BL15-L1CMin)/(L1CMax-L1CMin) -> 0.1573279392 | BN15: =RANK(BM15,$BM$7:$BM$164,0) -> 100 | BO15: =AVERAGE(BG15,BJ15,BM15) -> 0.6808952378 | BP15: =(BO15-L1Min)/(L1Max-L1Min) -> 0.8076855482 | BQ15: =RANK(BP15,$BP$7:$BP$164,0) -> 13 | BR15: =VLOOKUP(A15,L_2,3,FALSE) -> 4.674 | BS15: =VLOOKUP($A15,L_2,2,FALSE) -> 7.385 | BT15: =BS15-BS15*BR15/100 -> 7.0398251 | BU15: =BR15+BT15 -> 11.7138251 | BV15: =(BU15-L2Max)/(L2Min-L2Max) -> 0.9503199672 | BW15: =RANK(BV15,$BV$7:$BV$164,0) -> 14 | BX15: =VLOOKUP(A15,L_3,2,FALSE) -> 0.4075114508 | BY15: =(BX15-L3Max)/(L3Min-L3Max) -> 0.7576121646 | BZ15: =RANK(BY15,$BY$7:$BY$164,0) -> 43 | CA15: =AVERAGE(BP15,BV15,BY15) -> 0.8385392267 | CB15: =(CA15-LMin)/(LMax-LMin) -> 0.8985647306 | CC15: =RANK(CB15,$CB$7:$CB$164,0) -> 18 | CD15: =AVERAGE(AH15,BD15,CB15) -> 0.7909486934 | CE15: =(CD15-OverallScoreMin)/(OverallScoreMax-OverallScoreMin) -> 0.920355951 | CF15: =RANK(CE15,$CE$7:$CE$164,0) -> 9
A16: Azerbaijan | B16: =VLOOKUP(A16,Source_WB_country_income,6,FALSE) -> UMIC | C16: ECA | E16: =VLOOKUP(A16,PS1_Summary,3,FALSE) -> 8.651392775 | F16: =(E16-PS1AMin)/(PS1AMax-PS1AMin) -> 0.1057282311 | G16: =_xlfn.RANK.EQ(F16,$F$7:$F$164) -> 147 | H16: =VLOOKUP(A16,PS1_Summary,10,FALSE) -> 3.122965387 | I16: =(H16-PS1BMin)/(PS1BMax-PS1BMin) -> 0.04120390094 | J16: =_xlfn.RANK.EQ(I16,$I$7:$I$164) -> 157 | K16: =VLOOKUP(A16,PS1_Summary,17,FALSE) -> 19.83407763 | L16: =(K16-PS1CMin)/(PS1CMax-PS1CMin) -> 0.4124937461 | M16: =_xlfn.RANK.EQ(L16,$L$7:$L$164) -> 68 | N16: =AVERAGE(F16,I16,L16) -> 0.1864752927 | O16: =(N16-PS1AvMin)/(PS1AvMax-PS1AvMin) -> 0.2151738936 | P16: =_xlfn.RANK.EQ(O16,$O$7:$O$164) -> 148 | Q16: =VLOOKUP(A16,PS2A,3,FALSE) -> 0.8761004939 | R16: =_xlfn.RANK.EQ(Q16,$Q$7:$Q$164) -> 21 | S16: =VLOOKUP(A16,PS2B,6,FALSE) -> 65 | T16: =VLOOKUP(A16,PS2B,2,FALSE) -> 17.74056739 | U16: =SQRT(S16*(100-T16)) -> 73.12224777 | V16: =(U16-PS2BMin)/(PS2BMax-PS2BMin) -> 0.5343142948 | W16: =_xlfn.RANK.EQ(V16,$V$7:$V$164) -> 105 | X16: =VLOOKUP(A16,PS2C_Source,3,FALSE) -> 81.1434 | Y16: =(X16-PS2CMin)/(PS2CMax-PS2CMin) -> 0.811434 | Z16: =_xlfn.RANK.EQ(Y16,$Y$7:$Y$164) -> 63 | AA16: =AVERAGE(Q16,V16,Y16) -> 0.7406162629 | AB16: =(AA16-PS2AvMin)/(PS2AvMax-PS2AvMin) -> 0.7663833592 | AC16: =_xlfn.RANK.EQ(AB16,$AB$7:$AB$164) -> 53 | AD16: =VLOOKUP(A16,PS_3,25,FALSE) -> -0.01862999252 | AE16: =(AD16-PS3Max)/(PS3Min-PS3Max) -> 0.03925430464 | AF16: =_xlfn.RANK.EQ(AE16,$AE$7:$AE$164) -> 130 | AG16: =AVERAGE(N16,AA16,AE16) -> 0.3221152867 | AH16: =(AG16-PSMin)/(PSMax-PSMin) -> 0.3846738923 | AI16: =_xlfn.RANK.EQ(AH16,$AH$7:$AH$164) -> 83 | AJ16: =VLOOKUP(A16,T1_VAT,13,FALSE) -> 9 | AK16: =(AJ16-T1_VATMax)/(T1_VATMin-T1_VATMax) -> 0.64 | AL16: =VLOOKUP(A16,T1_PIT,60,FALSE) -> 0.003252481094 | AM16: =(AL16-T1_PITMin)/(T1_PITMax-T1_PITMin) -> 0.02000725949 | AN16: =VLOOKUP(A16,T1_CIT,4,FALSE) -> 20 | AO16: =(AN16-T1_CITMIn)/(T1_CITMAx-T1_CITMIn) -> 0.5 | AP16: =AVERAGE(AK16,AM16,AO16) -> 0.3866690865 | AQ16: =(AP16-T1AMin)/(T1AMax-T1AMin) -> 0.3645303425 | AR16: =VLOOKUP(A16,T1_HTP,5,FALSE) -> 1 | AS16: =(AR16-T1_HTPMax)/(T1_HTPMin-T1_HTPMax) -> 0.8888888889 | AT16: =AVERAGE(AQ16,AS16) -> 0.6267096157 | AU16: =(AT16-T1A_B_Min)/(T1A_B_Max-T1A_B_Min) -> 0.5038137807 | AV16: =RANK(AU16,$AU$7:$AU$164,0) -> 94 | AW16: =VLOOKUP(A16,T_2,20,FALSE) -> 0.6437918634 | AX16: =(AW16-T2Min)/(T2Max-T2Min) -> 0.8455664691 | AY16: =RANK(AX16,$AX$7:$AX$164,0) -> 9 | AZ16: =VLOOKUP(A16,T_3,30,FALSE) -> 0.03943 | BA16: =(AZ16-T3Max)/(T3Min-T3Max) -> 0.4074087579 | BB16: =RANK(BA16,$BA$7:$BA$164,0) -> 148 | BC16: =AVERAGE(AU16,AX16,BA16) -> 0.5855963359 | BD16: =(BC16-TMin)/(TMax-TMin) -> 0.6501825549 | BE16: =RANK(BD16,$BD$7:$BD$164,0) -> 49 | BF16: =VLOOKUP(A16,L1A,2,FALSE) -> 2.212632 | BG16: =(BF16-L1AMax)/(L1AMin-L1AMax) -> 0.7787368 | BH16: =RANK(BG16,$BG$7:$BG$164,0) -> 58 | BI16: =VLOOKUP(A16,L1B,9,FALSE) -> 0.770572092 | BJ16: =(BI16-L1BMin)/(L1BMax-L1BMin) -> 0.7581047856 | BK16: =RANK(BJ16,$BJ$7:$BJ$164,0) -> 76 | BL16: =VLOOKUP(A16,L1C,6,FALSE) -> 0.2558974644 | BM16: =(BL16-L1CMin)/(L1CMax-L1CMin) -> 0.1175088847 | BN16: =RANK(BM16,$BM$7:$BM$164,0) -> 123 | BO16: =AVERAGE(BG16,BJ16,BM16) -> 0.5514501568 | BP16: =(BO16-L1Min)/(L1Max-L1Min) -> 0.5940757268 | BQ16: =RANK(BP16,$BP$7:$BP$164,0) -> 77 | BR16: =VLOOKUP(A16,L_2,3,FALSE) -> 5.509 | BS16: =VLOOKUP($A16,L_2,2,FALSE) -> 55.231 | BT16: =BS16-BS16*BR16/100 -> 52.18832421 | BU16: =BR16+BT16 -> 57.69732421 | BV16: =(BU16-L2Max)/(L2Min-L2Max) -> 0.4234732776 | BW16: =RANK(BV16,$BV$7:$BV$164,0) -> 112 | BX16: =VLOOKUP(A16,L_3,2,FALSE) -> 0.4743207836 | BY16: =(BX16-L3Max)/(L3Min-L3Max) -> 0.6431283192 | BZ16: =RANK(BY16,$BY$7:$BY$164,0) -> 81 | CA16: =AVERAGE(BP16,BV16,BY16) -> 0.5535591079 | CB16: =(CA16-LMin)/(LMax-LMin) -> 0.5166628731 | CC16: =RANK(CB16,$CB$7:$CB$164,0) -> 91 | CD16: =AVERAGE(AH16,BD16,CB16) -> 0.5171731068 | CE16: =(CD16-OverallScoreMin)/(OverallScoreMax-OverallScoreMin) -> 0.5675573287 | CF16: =RANK(CE16,$CE$7:$CE$164,0) -> 74
A17: Bahamas, The | B17: =VLOOKUP(A17,Source_WB_country_income,6,FALSE) -> HIC | C17: LAC | E17: =VLOOKUP(A17,PS1_Summary,3,FALSE) -> 12.8361238 | F17: =(E17-PS1AMin)/(PS1AMax-PS1AMin) -> 0.3152791084 | G17: =_xlfn.RANK.EQ(F17,$F$7:$F$164) -> 99 | H17: =VLOOKUP(A17,PS1_Summary,10,FALSE) -> 12.73465246 | I17: =(H17-PS1BMin)/(PS1BMax-PS1BMin) -> 0.4702980007 | J17: =_xlfn.RANK.EQ(I17,$I$7:$I$164) -> 52 | K17: =VLOOKUP(A17,PS1_Summary,17,FALSE) -> 8.98021309 | L17: =(K17-PS1CMin)/(PS1CMax-PS1CMin) -> 0.1842316107 | M17: =_xlfn.RANK.EQ(L17,$L$7:$L$164) -> 103 | N17: =AVERAGE(F17,I17,L17) -> 0.3232695733 | O17: =(N17-PS1AvMin)/(PS1AvMax-PS1AvMin) -> 0.4260660605 | P17: =_xlfn.RANK.EQ(O17,$O$7:$O$164) -> 109 | Q17: =VLOOKUP(A17,PS2A,3,FALSE) -> 0.7625322298 | R17: =_xlfn.RANK.EQ(Q17,$Q$7:$Q$164) -> 39 | S17: =VLOOKUP(A17,PS2B,6,FALSE) -> 75 | T17: =VLOOKUP(A17,PS2B,2,FALSE) -> 2.69 | U17: =SQRT(S17*(100-T17)) -> 85.42979574 | V17: =(U17-PS2BMin)/(PS2BMax-PS2BMin) -> 0.8214042488 | W17: =_xlfn.RANK.EQ(V17,$V$7:$V$164) -> 30 | X17: =VLOOKUP(A17,PS2C_Source,3,FALSE) -> 84.2 | Y17: =(X17-PS2CMin)/(PS2CMax-PS2CMin) -> 0.842 | Z17: =_xlfn.RANK.EQ(Y17,$Y$7:$Y$164) -> 58 | AA17: =AVERAGE(Q17,V17,Y17) -> 0.8086454929 | AB17: =(AA17-PS2AvMin)/(PS2AvMax-PS2AvMin) -> 0.8375162397 | AC17: =_xlfn.RANK.EQ(AB17,$AB$7:$AB$164) -> 40 | AD17: =VLOOKUP(A17,PS_3,25,FALSE) -> -0.023337 | AE17: =(AD17-PS3Max)/(PS3Min-PS3Max) -> 0.05089845091 | AF17: =_xlfn.RANK.EQ(AE17,$AE$7:$AE$164) -> 115 | AG17: =AVERAGE(N17,AA17,AE17) -> 0.3942711724 | AH17: =(AG17-PSMin)/(PSMax-PSMin) -> 0.47938539 | AI17: =_xlfn.RANK.EQ(AH17,$AH$7:$AH$164) -> 66 | AJ17: =VLOOKUP(A17,T1_VAT,13,FALSE) -> 3.75 | AK17: =(AJ17-T1_VATMax)/(T1_VATMin-T1_VATMax) -> 0.85 | AL17: =VLOOKUP(A17,T1_PIT,60,FALSE) -> 0 | AM17: =(AL17-T1_PITMin)/(T1_PITMax-T1_PITMin) -> 0 | AN17: =VLOOKUP(A17,T1_CIT,4,FALSE) -> 0 | AO17: =(AN17-T1_CITMIn)/(T1_CITMAx-T1_CITMIn) -> 0 | AP17: =AVERAGE(AK17,AM17,AO17) -> 0.2833333333 | AQ17: =(AP17-T1AMin)/(T1AMax-T1AMin) -> 0.2291937317 | AR17: =VLOOKUP(A17,T1_HTP,5,FALSE) -> 2 | AS17: =(AR17-T1_HTPMax)/(T1_HTPMin-T1_HTPMax) -> 0.7777777778 | AT17: =AVERAGE(AQ17,AS17) -> 0.5034857547 | AU17: =(AT17-T1A_B_Min)/(T1A_B_Max-T1A_B_Min) -> 0.3400217725 | AV17: =RANK(AU17,$AU$7:$AU$164,0) -> 139 | AW17: =VLOOKUP(A17,T_2,20,FALSE) -> 0.4898304096 | AX17: =(AW17-T2Min)/(T2Max-T2Min) -> 0.6433510478 | AY17: =RANK(AX17,$AX$7:$AX$164,0) -> 43 | AZ17: =VLOOKUP(A17,T_3,30,FALSE) -> 0.0246 | BA17: =(AZ17-T3Max)/(T3Min-T3Max) -> 0.488115011 | BB17: =RANK(BA17,$BA$7:$BA$164,0) -> 133 | BC17: =AVERAGE(AU17,AX17,BA17) -> 0.4904959438 | BD17: =(BC17-TMin)/(TMax-TMin) -> 0.4228387512 | BE17: =RANK(BD17,$BD$7:$BD$164,0) -> 123 | BF17: =VLOOKUP(A17,L1A,2,FALSE) -> 2.674737 | BG17: =(BF17-L1AMax)/(L1AMin-L1AMax) -> 0.7325263 | BH17: =RANK(BG17,$BG$7:$BG$164,0) -> 69 | BI17: =VLOOKUP(A17,L1B,9,FALSE) -> 0.2855911763 | BJ17: =(BI17-L1BMin)/(L1BMax-L1BMin) -> 0.1692557964 | BK17: =RANK(BJ17,$BJ$7:$BJ$164,0) -> 155 | BL17: =VLOOKUP(A17,L1C,6,FALSE) -> 0.3283093287 | BM17: =(BL17-L1CMin)/(L1CMax-L1CMin) -> 0.1507606304 | BN17: =RANK(BM17,$BM$7:$BM$164,0) -> 106 | BO17: =AVERAGE(BG17,BJ17,BM17) -> 0.3508475756 | BP17: =(BO17-L1Min)/(L1Max-L1Min) -> 0.2630420468 | BQ17: =RANK(BP17,$BP$7:$BP$164,0) -> 146 | BR17: =VLOOKUP(A17,L_2,3,FALSE) -> 10.36 | BS17: =VLOOKUP($A17,L_2,2,FALSE) -> 14.066 | BT17: =BS17-BS17*BR17/100 -> 12.6087624 | BU17: =BR17+BT17 -> 22.9687624 | BV17: =(BU17-L2Max)/(L2Min-L2Max) -> 0.8213687875 | BW17: =RANK(BV17,$BV$7:$BV$164,0) -> 45 | BX17: =VLOOKUP(A17,L_3,2,FALSE) -> 0.4181556222 | BY17: =(BX17-L3Max)/(L3Min-L3Max) -> 0.7393724123 | BZ17: =RANK(BY17,$BY$7:$BY$164,0) -> 51 | CA17: =AVERAGE(BP17,BV17,BY17) -> 0.6079277489 | CB17: =(CA17-LMin)/(LMax-LMin) -> 0.5895222889 | CC17: =RANK(CB17,$CB$7:$CB$164,0) -> 74 | CD17: =AVERAGE(AH17,BD17,CB17) -> 0.4972488101 | CE17: =(CD17-OverallScoreMin)/(OverallScoreMax-OverallScoreMin) -> 0.5418820502 | CF17: =RANK(CE17,$CE$7:$CE$164,0) -> 85
A18: Bahrain | B18: =VLOOKUP(A18,Source_WB_country_income,6,FALSE) -> HIC | C18: MENA | E18: =VLOOKUP(A18,PS1_Summary,3,FALSE) -> 7.18035 | F18: =(E18-PS1AMin)/(PS1AMax-PS1AMin) -> 0.0320655984 | G18: =_xlfn.RANK.EQ(F18,$F$7:$F$164) -> 156 | H18: =VLOOKUP(A18,PS1_Summary,10,FALSE) -> 8.49397869 | I18: =(H18-PS1BMin)/(PS1BMax-PS1BMin) -> 0.2809817985 | J18: =_xlfn.RANK.EQ(I18,$I$7:$I$164) -> 110 | K18: =VLOOKUP(A18,PS1_Summary,17,FALSE) -> 14.03961739 | L18: =(K18-PS1CMin)/(PS1CMax-PS1CMin) -> 0.2906333836 | M18: =_xlfn.RANK.EQ(L18,$L$7:$L$164) -> 84 | N18: =AVERAGE(F18,I18,L18) -> 0.2012269268 | O18: =(N18-PS1AvMin)/(PS1AvMax-PS1AvMin) -> 0.2379161024 | P18: =_xlfn.RANK.EQ(O18,$O$7:$O$164) -> 147 | Q18: =VLOOKUP(A18,PS2A,3,FALSE) -> 0.4966471441 | R18: =_xlfn.RANK.EQ(Q18,$Q$7:$Q$164) -> 68 | S18: =VLOOKUP(A18,PS2B,6,FALSE) -> 77 | T18: =VLOOKUP(A18,PS2B,2,FALSE) -> 6.944481345 | U18: =SQRT(S18*(100-T18)) -> 84.64794703 | V18: =(U18-PS2BMin)/(PS2BMax-PS2BMin) -> 0.803166586 | W18: =_xlfn.RANK.EQ(V18,$V$7:$V$164) -> 34 | X18: =VLOOKUP(A18,PS2C_Source,3,FALSE) -> 40.1 | Y18: =(X18-PS2CMin)/(PS2CMax-PS2CMin) -> 0.401 | Z18: =_xlfn.RANK.EQ(Y18,$Y$7:$Y$164) -> 89 | AA18: =AVERAGE(Q18,V18,Y18) -> 0.56693791 | AB18: =(AA18-PS2AvMin)/(PS2AvMax-PS2AvMin) -> 0.584781399 | AC18: =_xlfn.RANK.EQ(AB18,$AB$7:$AB$164) -> 78 | AD18: =VLOOKUP(A18,PS_3,25,FALSE) -> -0.0279069325 | AE18: =(AD18-PS3Max)/(PS3Min-PS3Max) -> 0.06220350252 | AF18: =_xlfn.RANK.EQ(AE18,$AE$7:$AE$164) -> 104 | AG18: =AVERAGE(N18,AA18,AE18) -> 0.2767894465 | AH18: =(AG18-PSMin)/(PSMax-PSMin) -> 0.3251793939 | AI18: =_xlfn.RANK.EQ(AH18,$AH$7:$AH$164) -> 102 | AJ18: =VLOOKUP(A18,T1_VAT,13,FALSE) -> 5 | AK18: =(AJ18-T1_VATMax)/(T1_VATMin-T1_VATMax) -> 0.8 | AL18: =VLOOKUP(A18,T1_PIT,60,FALSE) -> 0 | AM18: =(AL18-T1_PITMin)/(T1_PITMax-T1_PITMin) -> 0 | AN18: =VLOOKUP(A18,T1_CIT,4,FALSE) -> 0 | AO18: =(AN18-T1_CITMIn)/(T1_CITMAx-T1_CITMIn) -> 0 | AP18: =AVERAGE(AK18,AM18,AO18) -> 0.2666666667 | AQ18: =(AP18-T1AMin)/(T1AMax-T1AMin) -> 0.2073657572 | AR18: =VLOOKUP(A18,T1_HTP,5,FALSE) -> 2 | AS18: =(AR18-T1_HTPMax)/(T1_HTPMin-T1_HTPMax) -> 0.7777777778 | AT18: =AVERAGE(AQ18,AS18) -> 0.4925717675 | AU18: =(AT18-T1A_B_Min)/(T1A_B_Max-T1A_B_Min) -> 0.325514648 | AV18: =RANK(AU18,$AU$7:$AU$164,0) -> 140 | AW18: =VLOOKUP(A18,T_2,20,FALSE) -> 0 | AX18: =(AW18-T2Min)/(T2Max-T2Min) -> 0 | AY18: =RANK(AX18,$AX$7:$AX$164,0) -> 158 | AZ18: =VLOOKUP(A18,T_3,30,FALSE) -> 0.001222235407 | BA18: =(AZ18-T3Max)/(T3Min-T3Max) -> 0.6153390021 | BB18: =RANK(BA18,$BA$7:$BA$164,0) -> 65 | BC18: =AVERAGE(AU18,AX18,BA18) -> 0.3136178834 | BD18: =(BC18-TMin)/(TMax-TMin) -> 0 | BE18: =RANK(BD18,$BD$7:$BD$164,0) -> 158 | BF18: =VLOOKUP(A18,L1A,2,FALSE) -> 6.426316 | BG18: =(BF18-L1AMax)/(L1AMin-L1AMax) -> 0.3573684 | BH18: =RANK(BG18,$BG$7:$BG$164,0) -> 139 | BI18: =VLOOKUP(A18,L1B,9,FALSE) -> 0.6857055366 | BJ18: =(BI18-L1BMin)/(L1BMax-L1BMin) -> 0.6550624107 | BK18: =RANK(BJ18,$BJ$7:$BJ$164,0) -> 114 | BL18: =VLOOKUP(A18,L1C,6,FALSE) -> 0 | BM18: =(BL18-L1CMin)/(L1CMax-L1CMin) -> 0 | BN18: =RANK(BM18,$BM$7:$BM$164,0) -> 148 | BO18: =AVERAGE(BG18,BJ18,BM18) -> 0.3374769369 | BP18: =(BO18-L1Min)/(L1Max-L1Min) -> 0.2409778655 | BQ18: =RANK(BP18,$BP$7:$BP$164,0) -> 148 | BR18: =VLOOKUP(A18,L_2,3,FALSE) -> 0.714 | BS18: =VLOOKUP($A18,L_2,2,FALSE)+79 -> 80.081 | BT18: =BS18-BS18*BR18/100 -> 79.50922166 | BU18: =BR18+BT18 -> 80.22322166 | BV18: =(BU18-L2Max)/(L2Min-L2Max) -> 0.1653873396 | BW18: =RANK(BV18,$BV$7:$BV$164,0) -> 139 | BX18: =VLOOKUP(A18,L_3,2,FALSE) -> 0.4367702875 | BY18: =(BX18-L3Max)/(L3Min-L3Max) -> 0.7074744967 | BZ18: =RANK(BY18,$BY$7:$BY$164,0) -> 65 | CA18: =AVERAGE(BP18,BV18,BY18) -> 0.3712799006 | CB18: =(CA18-LMin)/(LMax-LMin) -> 0.2723905072 | CC18: =RANK(CB18,$CB$7:$CB$164,0) -> 131 | CD18: =AVERAGE(AH18,BD18,CB18) -> 0.199189967 | CE18: =(CD18-OverallScoreMin)/(OverallScoreMax-OverallScoreMin) -> 0.1577910124 | CF18: =RANK(CE18,$CE$7:$CE$164,0) -> 156
A19: Bangladesh | B19: =VLOOKUP(A19,Source_WB_country_income,6,FALSE) -> LMIC | C19: SA | E19: =VLOOKUP(A19,PS1_Summary,3,FALSE) -> 14.63 | F19: =(E19-PS1AMin)/(PS1AMax-PS1AMin) -> 0.4051076615 | G19: =_xlfn.RANK.EQ(F19,$F$7:$F$164) -> 79 | H19: =VLOOKUP(A19,PS1_Summary,10,FALSE) -> 5.04 | I19: =(H19-PS1BMin)/(PS1BMax-PS1BMin) -> 0.1267859882 | J19: =_xlfn.RANK.EQ(I19,$I$7:$I$164) -> 146 | K19: =VLOOKUP(A19,PS1_Summary,17,FALSE) -> 6.14 | L19: =(K19-PS1CMin)/(PS1CMax-PS1CMin) -> 0.1245005258 | M19: =_xlfn.RANK.EQ(L19,$L$7:$L$164) -> 130 | N19: =AVERAGE(F19,I19,L19) -> 0.2187980585 | O19: =(N19-PS1AvMin)/(PS1AvMax-PS1AvMin) -> 0.2650050567 | P19: =_xlfn.RANK.EQ(O19,$O$7:$O$164) -> 143 | Q19: =VLOOKUP(A19,PS2A,3,FALSE) -> 0.04001739317 | R19: =_xlfn.RANK.EQ(Q19,$Q$7:$Q$164) -> 125 | S19: =VLOOKUP(A19,PS2B,6,FALSE) -> 48 | T19: =VLOOKUP(A19,PS2B,2,FALSE) -> 24.67 | U19: =SQRT(S19*(100-T19)) -> 60.13185512 | V19: =(U19-PS2BMin)/(PS2BMax-PS2BMin) -> 0.2312960787 | W19: =_xlfn.RANK.EQ(V19,$V$7:$V$164) -> 143 | X19: =VLOOKUP(A19,PS2C_Source,3,FALSE) -> 33.3875 | Y19: =(X19-PS2CMin)/(PS2CMax-PS2CMin) -> 0.333875 | Z19: =_xlfn.RANK.EQ(Y19,$Y$7:$Y$164) -> 96 | AA19: =AVERAGE(Q19,V19,Y19) -> 0.2017294906 | AB19: =(AA19-PS2AvMin)/(PS2AvMax-PS2AvMin) -> 0.2029113286 | AC19: =_xlfn.RANK.EQ(AB19,$AB$7:$AB$164) -> 124 | AD19: =VLOOKUP(A19,PS_3,25,FALSE) -> -0.011369 | AE19: =(AD19-PS3Max)/(PS3Min-PS3Max) -> 0.02129213667 | AF19: =_xlfn.RANK.EQ(AE19,$AE$7:$AE$164) -> 148 | AG19: =AVERAGE(N19,AA19,AE19) -> 0.1472732286 | AH19: =(AG19-PSMin)/(PSMax-PSMin) -> 0.1551769767 | AI19: =_xlfn.RANK.EQ(AH19,$AH$7:$AH$164) -> 142 | AJ19: =VLOOKUP(A19,T1_VAT,13,FALSE) -> 0 | AK19: =(AJ19-T1_VATMax)/(T1_VATMin-T1_VATMax) -> 1 | AL19: =VLOOKUP(A19,T1_PIT,60,FALSE) -> 0.08935312481 | AM19: =(AL19-T1_PITMin)/(T1_PITMax-T1_PITMin) -> 0.5496453638 | AN19: =VLOOKUP(A19,T1_CIT,4,FALSE) -> 35 | AO19: =(AN19-T1_CITMIn)/(T1_CITMAx-T1_CITMIn) -> 0.875 | AP19: =AVERAGE(AK19,AM19,AO19) -> 0.8082151213 | AQ19: =(AP19-T1AMin)/(T1AMax-T1AMin) -> 0.9166201069 | AR19: =VLOOKUP(A19,T1_HTP,5,FALSE) -> 0 | AS19: =(AR19-T1_HTPMax)/(T1_HTPMin-T1_HTPMax) -> 1 | AT19: =AVERAGE(AQ19,AS19) -> 0.9583100535 | AU19: =(AT19-T1A_B_Min)/(T1A_B_Max-T1A_B_Min) -> 0.9445847581 | AV19: =RANK(AU19,$AU$7:$AU$164,0) -> 3 | AW19: =VLOOKUP(A19,T_2,20,FALSE) -> 0.2070727018 | AX19: =(AW19-T2Min)/(T2Max-T2Min) -> 0.2719725788 | AY19: =RANK(AX19,$AX$7:$AX$164,0) -> 131 | AZ19: =VLOOKUP(A19,T_3,30,FALSE) -> 0.0006897261508 | BA19: =(AZ19-T3Max)/(T3Min-T3Max) -> 0.6182369675 | BB19: =RANK(BA19,$BA$7:$BA$164,0) -> 63 | BC19: =AVERAGE(AU19,AX19,BA19) -> 0.6115981015 | BD19: =(BC19-TMin)/(TMax-TMin) -> 0.7123415026 | BE19: =RANK(BD19,$BD$7:$BD$164,0) -> 32 | BF19: =VLOOKUP(A19,L1A,2,FALSE) -> 8.358947 | BG19: =(BF19-L1AMax)/(L1AMin-L1AMax) -> 0.1641053 | BH19: =RANK(BG19,$BG$7:$BG$164,0) -> 148 | BI19: =VLOOKUP(A19,L1B,9,FALSE) -> 0.7005085262 | BJ19: =(BI19-L1BMin)/(L1BMax-L1BMin) -> 0.6730357477 | BK19: =RANK(BJ19,$BJ$7:$BJ$164,0) -> 109 | BL19: =VLOOKUP(A19,L1C,6,FALSE) -> 0.1092479016 | BM19: =(BL19-L1CMin)/(L1CMax-L1CMin) -> 0.05016696474 | BN19: =RANK(BM19,$BM$7:$BM$164,0) -> 143 | BO19: =AVERAGE(BG19,BJ19,BM19) -> 0.2957693375 | BP19: =(BO19-L1Min)/(L1Max-L1Min) -> 0.1721521304 | BQ19: =RANK(BP19,$BP$7:$BP$164,0) -> 151 | BR19: =VLOOKUP(A19,L_2,3,FALSE) -> 4.19 | BS19: =VLOOKUP($A19,L_2,2,FALSE) -> 55.25 | BT19: =BS19-BS19*BR19/100 -> 52.935025 | BU19: =BR19+BT19 -> 57.125025 | BV19: =(BU19-L2Max)/(L2Min-L2Max) -> 0.4300302807 | BW19: =RANK(BV19,$BV$7:$BV$164,0) -> 110 | BX19: =VLOOKUP(A19,L_3,2,FALSE) -> 0.3791984563 | BY19: =(BX19-L3Max)/(L3Min-L3Max) -> 0.8061290461 | BZ19: =RANK(BY19,$BY$7:$BY$164,0) -> 33 | CA19: =AVERAGE(BP19,BV19,BY19) -> 0.4694371524 | CB19: =(CA19-LMin)/(LMax-LMin) -> 0.4039310404 | CC19: =RANK(CB19,$CB$7:$CB$164,0) -> 109 | CD19: =AVERAGE(AH19,BD19,CB19) -> 0.4238165066 | CE19: =(CD19-OverallScoreMin)/(OverallScoreMax-OverallScoreMin) -> 0.4472541258 | CF19: =RANK(CE19,$CE$7:$CE$164,0) -> 113
A20: Barbados | B20: =VLOOKUP(A20,Source_WB_country_income,6,FALSE) -> HIC | C20: LAC | E20: =VLOOKUP(A20,PS1_Summary,3,FALSE) -> 19.7955707 | F20: =(E20-PS1AMin)/(PS1AMax-PS1AMin) -> 0.6637741962 | G20: =_xlfn.RANK.EQ(F20,$F$7:$F$164) -> 18 | H20: =VLOOKUP(A20,PS1_Summary,10,FALSE) -> 11.27768313 | I20: =(H20-PS1BMin)/(PS1BMax-PS1BMin) -> 0.4052545868 | J20: =_xlfn.RANK.EQ(I20,$I$7:$I$164) -> 67 | K20: =VLOOKUP(A20,PS1_Summary,17,FALSE) -> 14.07155026 | L20: =(K20-PS1CMin)/(PS1CMax-PS1CMin) -> 0.2913049475 | M20: =_xlfn.RANK.EQ(L20,$L$7:$L$164) -> 83 | N20: =AVERAGE(F20,I20,L20) -> 0.4534445768 | O20: =(N20-PS1AvMin)/(PS1AvMax-PS1AvMin) -> 0.6267534611 | P20: =_xlfn.RANK.EQ(O20,$O$7:$O$164) -> 58 | Q20: =VLOOKUP(A20,PS2A,3,FALSE) -> 0.9556079021 | R20: =_xlfn.RANK.EQ(Q20,$Q$7:$Q$164) -> 5 | S20: =VLOOKUP(A20,PS2B,6,FALSE) -> 77 | T20: =VLOOKUP(A20,PS2B,2,FALSE) -> 16.37 | U20: =SQRT(S20*(100-T20)) -> 80.24655756 | V20: =(U20-PS2BMin)/(PS2BMax-PS2BMin) -> 0.7004983125 | W20: =_xlfn.RANK.EQ(V20,$V$7:$V$164) -> 69 | X20: =VLOOKUP(A20,PS2C_Source,3,FALSE) -> 68.3 | Y20: =(X20-PS2CMin)/(PS2CMax-PS2CMin) -> 0.683 | Z20: =_xlfn.RANK.EQ(Y20,$Y$7:$Y$164) -> 77 | AA20: =AVERAGE(Q20,V20,Y20) -> 0.7797020715 | AB20: =(AA20-PS2AvMin)/(PS2AvMax-PS2AvMin) -> 0.8072523526 | AC20: =_xlfn.RANK.EQ(AB20,$AB$7:$AB$164) -> 45 | AD20: =VLOOKUP(A20,PS_3,25,FALSE) -> -0.013335 | AE20: =(AD20-PS3Max)/(PS3Min-PS3Max) -> 0.02615560708 | AF20: =_xlfn.RANK.EQ(AE20,$AE$7:$AE$164) -> 141 | AG20: =AVERAGE(N20,AA20,AE20) -> 0.4197674185 | AH20: =(AG20-PSMin)/(PSMax-PSMin) -> 0.5128516504 | AI20: =_xlfn.RANK.EQ(AH20,$AH$7:$AH$164) -> 58 | AJ20: =VLOOKUP(A20,T1_VAT,13,FALSE) -> 8.75 | AK20: =(AJ20-T1_VATMax)/(T1_VATMin-T1_VATMax) -> 0.65 | AL20: =VLOOKUP(A20,T1_PIT,60,FALSE) -> 0.01417820068 | AM20: =(AL20-T1_PITMin)/(T1_PITMax-T1_PITMin) -> 0.08721555388 | AN20: =VLOOKUP(A20,T1_CIT,4,FALSE) -> 5.5 | AO20: =(AN20-T1_CITMIn)/(T1_CITMAx-T1_CITMIn) -> 0.1375 | AP20: =AVERAGE(AK20,AM20,AO20) -> 0.2915718513 | AQ20: =(AP20-T1AMin)/(T1AMax-T1AMin) -> 0.2399835413 | AR20: =VLOOKUP(A20,T1_HTP,5,FALSE) -> 2 | AS20: =(AR20-T1_HTPMax)/(T1_HTPMin-T1_HTPMax) -> 0.7777777778 | AT20: =AVERAGE(AQ20,AS20) -> 0.5088806595 | AU20: =(AT20-T1A_B_Min)/(T1A_B_Max-T1A_B_Min) -> 0.3471928048 | AV20: =RANK(AU20,$AU$7:$AU$164,0) -> 138 | AW20: =VLOOKUP(A20,T_2,20,FALSE) -> 0.7239831996 | AX20: =(AW20-T2Min)/(T2Max-T2Min) -> 0.950891045 | AY20: =RANK(AX20,$AX$7:$AX$164,0) -> 4 | AZ20: =VLOOKUP(A20,T_3,30,FALSE) -> 0.05820523955 | BA20: =(AZ20-T3Max)/(T3Min-T3Max) -> 0.3052321404 | BB20: =RANK(BA20,$BA$7:$BA$164,0) -> 153 | BC20: =AVERAGE(AU20,AX20,BA20) -> 0.5344386634 | BD20: =(BC20-TMin)/(TMax-TMin) -> 0.5278867411 | BE20: =RANK(BD20,$BD$7:$BD$164,0) -> 92 | BF20: =VLOOKUP(A20,L1A,2,FALSE) -> 3.1 | BG20: =(BF20-L1AMax)/(L1AMin-L1AMax) -> 0.69 | BH20: =RANK(BG20,$BG$7:$BG$164,0) -> 85 | BI20: =VLOOKUP(A20,L1B,9,FALSE) -> 0.3583813947 | BJ20: =(BI20-L1BMin)/(L1BMax-L1BMin) -> 0.2576354524 | BK20: =RANK(BJ20,$BJ$7:$BJ$164,0) -> 152 | BL20: =VLOOKUP(A20,L1C,6,FALSE) -> 0.3596137987 | BM20: =(BL20-L1CMin)/(L1CMax-L1CMin) -> 0.1651357371 | BN20: =RANK(BM20,$BM$7:$BM$164,0) -> 92 | BO20: =AVERAGE(BG20,BJ20,BM20) -> 0.3709237298 | BP20: =(BO20-L1Min)/(L1Max-L1Min) -> 0.2961716466 | BQ20: =RANK(BP20,$BP$7:$BP$164,0) -> 140 | BR20: =VLOOKUP(A20,L_2,3,FALSE) -> 10.331 | BS20: =VLOOKUP($A20,L_2,2,FALSE) -> 15.841 | BT20: =BS20-BS20*BR20/100 -> 14.20446629 | BU20: =BR20+BT20 -> 24.53546629 | BV20: =(BU20-L2Max)/(L2Min-L2Max) -> 0.8034185929 | BW20: =RANK(BV20,$BV$7:$BV$164,0) -> 49 | BX20: =VLOOKUP(A20,L_3,2,FALSE) -> 0.4283925197 | BY20: =(BX20-L3Max)/(L3Min-L3Max) -> 0.721830561 | BZ20: =RANK(BY20,$BY$7:$BY$164,0) -> 57 | CA20: =AVERAGE(BP20,BV20,BY20) -> 0.6071402668 | CB20: =(CA20-LMin)/(LMax-LMin) -> 0.5884669842 | CC20: =RANK(CB20,$CB$7:$CB$164,0) -> 75 | CD20: =AVERAGE(AH20,BD20,CB20) -> 0.5430684586 | CE20: =(CD20-OverallScoreMin)/(OverallScoreMax-OverallScoreMin) -> 0.6009271574 | CF20: =RANK(CE20,$CE$7:$CE$164,0) -> 67
A21: Belarus | B21: =VLOOKUP(A21,Source_WB_country_income,6,FALSE) -> UMIC | C21: ECA | E21: =VLOOKUP(A21,PS1_Summary,3,FALSE) -> 12.28169 | F21: =(E21-PS1AMin)/(PS1AMax-PS1AMin) -> 0.2875157737 | G21: =_xlfn.RANK.EQ(F21,$F$7:$F$164) -> 105 | H21: =VLOOKUP(A21,PS1_Summary,10,FALSE) -> 10.65954561 | I21: =(H21-PS1BMin)/(PS1BMax-PS1BMin) -> 0.3776591019 | J21: =_xlfn.RANK.EQ(I21,$I$7:$I$164) -> 79 | K21: =VLOOKUP(A21,PS1_Summary,17,FALSE) -> 38.56448827 | L21: =(K21-PS1CMin)/(PS1CMax-PS1CMin) -> 0.8064035388 | M21: =_xlfn.RANK.EQ(L21,$L$7:$L$164) -> 18 | N21: =AVERAGE(F21,I21,L21) -> 0.4905261381 | O21: =(N21-PS1AvMin)/(PS1AvMax-PS1AvMin) -> 0.6839211349 | P21: =_xlfn.RANK.EQ(O21,$O$7:$O$164) -> 50 | Q21: =VLOOKUP(A21,PS2A,3,FALSE) -> 0.8325933004 | R21: =_xlfn.RANK.EQ(Q21,$Q$7:$Q$164) -> 26 | S21: =VLOOKUP(A21,PS2B,6,FALSE) -> 76 | T21: =VLOOKUP(A21,PS2B,2,FALSE) -> 9.16 | U21: =SQRT(S21*(100-T21)) -> 83.0893495 | V21: =(U21-PS2BMin)/(PS2BMax-PS2BMin) -> 0.766810222 | W21: =_xlfn.RANK.EQ(V21,$V$7:$V$164) -> 47 | X21: =VLOOKUP(A21,PS2C_Source,3,FALSE) -> 100 | Y21: =(X21-PS2CMin)/(PS2CMax-PS2CMin) -> 1 | Z21: =_xlfn.RANK.EQ(Y21,$Y$7:$Y$164) -> 1 | AA21: =AVERAGE(Q21,V21,Y21) -> 0.8664678408 | AB21: =(AA21-PS2AvMin)/(PS2AvMax-PS2AvMin) -> 0.8979765766 | AC21: =_xlfn.RANK.EQ(AB21,$AB$7:$AB$164) -> 26 | AD21: =VLOOKUP(A21,PS_3,25,FALSE) -> -0.168 | AE21: =(AD21-PS3Max)/(PS3Min-PS3Max) -> 0.4087642795 | AF21: =_xlfn.RANK.EQ(AE21,$AE$7:$AE$164) -> 27 | AG21: =AVERAGE(N21,AA21,AE21) -> 0.5885860861 | AH21: =(AG21-PSMin)/(PSMax-PSMin) -> 0.7344422902 | AI21: =_xlfn.RANK.EQ(AH21,$AH$7:$AH$164) -> 29 | AJ21: =VLOOKUP(A21,T1_VAT,13,FALSE) -> 15 | AK21: =(AJ21-T1_VATMax)/(T1_VATMin-T1_VATMax) -> 0.4 | AL21: =VLOOKUP(A21,T1_PIT,60,FALSE) -> 0 | AM21: =(AL21-T1_PITMin)/(T1_PITMax-T1_PITMin) -> 0 | AN21: =VLOOKUP(A21,T1_CIT,4,FALSE) -> 18 | AO21: =(AN21-T1_CITMIn)/(T1_CITMAx-T1_CITMIn) -> 0.45 | AP21: =AVERAGE(AK21,AM21,AO21) -> 0.2833333333 | AQ21: =(AP21-T1AMin)/(T1AMax-T1AMin) -> 0.2291937317 | AR21: =VLOOKUP(A21,T1_HTP,5,FALSE) -> 1.5 | AS21: =(AR21-T1_HTPMax)/(T1_HTPMin-T1_HTPMax) -> 0.8333333333 | AT21: =AVERAGE(AQ21,AS21) -> 0.5312635325 | AU21: =(AT21-T1A_B_Min)/(T1A_B_Max-T1A_B_Min) -> 0.3769446376 | AV21: =RANK(AU21,$AU$7:$AU$164,0) -> 131 | AW21: =VLOOKUP(A21,T_2,20,FALSE) -> 0.598600059 | AX21: =(AW21-T2Min)/(T2Max-T2Min) -> 0.7862108347 | AY21: =RANK(AX21,$AX$7:$AX$164,0) -> 16 | AZ21: =VLOOKUP(A21,T_3,30,FALSE) -> -0.0092 | BA21: =(AZ21-T3Max)/(T3Min-T3Max) -> 0.6720577863 | BB21: =RANK(BA21,$BA$7:$BA$164,0) -> 39 | BC21: =AVERAGE(AU21,AX21,BA21) -> 0.6117377529 | BD21: =(BC21-TMin)/(TMax-TMin) -> 0.7126753486 | BE21: =RANK(BD21,$BD$7:$BD$164,0) -> 31 | BF21: =VLOOKUP(A21,L1A,2,FALSE) -> 10 | BG21: =(BF21-L1AMax)/(L1AMin-L1AMax) -> 0 | BH21: =RANK(BG21,$BG$7:$BG$164,0) -> 149 | BI21: =VLOOKUP(A21,L1B,9,FALSE) -> 0.5915684179 | BJ21: =(BI21-L1BMin)/(L1BMax-L1BMin) -> 0.5407640014 | BK21: =RANK(BJ21,$BJ$7:$BJ$164,0) -> 129 | BL21: =VLOOKUP(A21,L1C,6,FALSE) -> 0.2859087903 | BM21: =(BL21-L1CMin)/(L1CMax-L1CMin) -> 0.1312901757 | BN21: =RANK(BM21,$BM$7:$BM$164,0) -> 118 | BO21: =AVERAGE(BG21,BJ21,BM21) -> 0.224018059 | BP21: =(BO21-L1Min)/(L1Max-L1Min) -> 0.05374842085 | BQ21: =RANK(BP21,$BP$7:$BP$164,0) -> 156 | BR21: =VLOOKUP(A21,L_2,3,FALSE) -> 4.595 | BS21: =VLOOKUP($A21,L_2,2,FALSE) -> 3.287 | BT21: =BS21-BS21*BR21/100 -> 3.13596235 | BU21: =BR21+BT21 -> 7.73096235 | BV21: =(BU21-L2Max)/(L2Min-L2Max) -> 0.9959528159 | BW21: =RANK(BV21,$BV$7:$BV$164,0) -> 2 | BX21: =VLOOKUP(A21,L_3,2,FALSE) -> 0.341270463 | BY21: =(BX21-L3Max)/(L3Min-L3Max) -> 0.8711220991 | BZ21: =RANK(BY21,$BY$7:$BY$164,0) -> 18 | CA21: =AVERAGE(BP21,BV21,BY21) -> 0.6402744453 | CB21: =(CA21-LMin)/(LMax-LMin) -> 0.6328700968 | CC21: =RANK(CB21,$CB$7:$CB$164,0) -> 62 | CD21: =AVERAGE(AH21,BD21,CB21) -> 0.6933292452 | CE21: =(CD21-OverallScoreMin)/(OverallScoreMax-OverallScoreMin) -> 0.7945594647 | CF21: =RANK(CE21,$CE$7:$CE$164,0) -> 33
A22: Belgium | B22: =VLOOKUP(A22,Source_WB_country_income,6,FALSE) -> HIC | C22: ECA | D22: OECD | E22: =VLOOKUP(A22,PS1_Summary,3,FALSE) -> 11.9423358 | F22: =(E22-PS1AMin)/(PS1AMax-PS1AMin) -> 0.2705225741 | G22: =_xlfn.RANK.EQ(F22,$F$7:$F$164) -> 112 | H22: =VLOOKUP(A22,PS1_Summary,10,FALSE) -> 14.56644398 | I22: =(H22-PS1BMin)/(PS1BMax-PS1BMin) -> 0.5520745846 | J22: =_xlfn.RANK.EQ(I22,$I$7:$I$164) -> 30 | K22: =VLOOKUP(A22,PS1_Summary,17,FALSE) -> 36.99703341 | L22: =(K22-PS1CMin)/(PS1CMax-PS1CMin) -> 0.7734391885 | M22: =_xlfn.RANK.EQ(L22,$L$7:$L$164) -> 20 | N22: =AVERAGE(F22,I22,L22) -> 0.5320121157 | O22: =(N22-PS1AvMin)/(PS1AvMax-PS1AvMin) -> 0.7478789822 | P22: =_xlfn.RANK.EQ(O22,$O$7:$O$164) -> 30 | Q22: =VLOOKUP(A22,PS2A,3,FALSE) -> 0.8088898432 | R22: =_xlfn.RANK.EQ(Q22,$Q$7:$Q$164) -> 31 | S22: =VLOOKUP(A22,PS2B,6,FALSE) -> 84 | T22: =VLOOKUP(A22,PS2B,2,FALSE) -> 11.45 | U22: =SQRT(S22*(100-T22)) -> 86.24499986 | V22: =(U22-PS2BMin)/(PS2BMax-PS2BMin) -> 0.8404199709 | W22: =_xlfn.RANK.EQ(V22,$V$7:$V$164) -> 24 | X22: =VLOOKUP(A22,PS2C_Source,3,FALSE) -> 100 | Y22: =(X22-PS2CMin)/(PS2CMax-PS2CMin) -> 1 | Z22: =_xlfn.RANK.EQ(Y22,$Y$7:$Y$164) -> 1 | AA22: =AVERAGE(Q22,V22,Y22) -> 0.8831032714 | AB22: =(AA22-PS2AvMin)/(PS2AvMax-PS2AvMin) -> 0.9153709539 | AC22: =_xlfn.RANK.EQ(AB22,$AB$7:$AB$164) -> 19 | AD22: =VLOOKUP(A22,PS_3,25,FALSE) -> -0.2334960223 | AE22: =(AD22-PS3Max)/(PS3Min-PS3Max) -> 0.5707876599 | AF22: =_xlfn.RANK.EQ(AE22,$AE$7:$AE$164) -> 5 | AG22: =AVERAGE(N22,AA22,AE22) -> 0.6619676823 | AH22: =(AG22-PSMin)/(PSMax-PSMin) -> 0.8307626502 | AI22: =_xlfn.RANK.EQ(AH22,$AH$7:$AH$164) -> 7 | AJ22: =VLOOKUP(A22,T1_VAT,13,FALSE) -> 13.5 | AK22: =(AJ22-T1_VATMax)/(T1_VATMin-T1_VATMax) -> 0.46 | AL22: =VLOOKUP(A22,T1_PIT,60,FALSE) -> 0.00579637827 | AM22: =(AL22-T1_PITMin)/(T1_PITMax-T1_PITMin) -> 0.03565574735 | AN22: =VLOOKUP(A22,T1_CIT,4,FALSE) -> 29.58 | AO22: =(AN22-T1_CITMIn)/(T1_CITMAx-T1_CITMIn) -> 0.7395 | AP22: =AVERAGE(AK22,AM22,AO22) -> 0.4117185824 | AQ22: =(AP22-T1AMin)/(T1AMax-T1AMin) -> 0.3973371279 | AR22: =VLOOKUP(A22,T1_HTP,5,FALSE) -> 2.5 | AS22: =(AR22-T1_HTPMax)/(T1_HTPMin-T1_HTPMax) -> 0.7222222222 | AT22: =AVERAGE(AQ22,AS22) -> 0.5597796751 | AU22: =(AT22-T1A_B_Min)/(T1A_B_Max-T1A_B_Min) -> 0.4148489544 | AV22: =RANK(AU22,$AU$7:$AU$164,0) -> 121 | AW22: =VLOOKUP(A22,T_2,20,FALSE) -> 0.502043425 | AX22: =(AW22-T2Min)/(T2Max-T2Min) -> 0.6593918164 | AY22: =RANK(AX22,$AX$7:$AX$164,0) -> 38 | AZ22: =VLOOKUP(A22,T_3,30,FALSE) -> -0.02249895 | BA22: =(AZ22-T3Max)/(T3Min-T3Max) -> 0.7444319216 | BB22: =RANK(BA22,$BA$7:$BA$164,0) -> 14 | BC22: =AVERAGE(AU22,AX22,BA22) -> 0.6062242308 | BD22: =(BC22-TMin)/(TMax-TMin) -> 0.6994949078 | BE22: =RANK(BD22,$BD$7:$BD$164,0) -> 37 | BF22: =VLOOKUP(A22,L1A,2,FALSE) -> 1.66 | BG22: =(BF22-L1AMax)/(L1AMin-L1AMax) -> 0.834 | BH22: =RANK(BG22,$BG$7:$BG$164,0) -> 39 | BI22: =VLOOKUP(A22,L1B,9,FALSE) -> 0.8431630216 | BJ22: =(BI22-L1BMin)/(L1BMax-L1BMin) -> 0.8462424712 | BK22: =RANK(BJ22,$BJ$7:$BJ$164,0) -> 27 | BL22: =VLOOKUP(A22,L1C,6,FALSE) -> 0.4752538316 | BM22: =(BL22-L1CMin)/(L1CMax-L1CMin) -> 0.2182379877 | BN22: =RANK(BM22,$BM$7:$BM$164,0) -> 60 | BO22: =AVERAGE(BG22,BJ22,BM22) -> 0.6328268196 | BP22: =(BO22-L1Min)/(L1Max-L1Min) -> 0.7283632122 | BQ22: =RANK(BP22,$BP$7:$BP$164,0) -> 37 | BR22: =VLOOKUP(A22,L_2,3,FALSE) -> 5.589 | BS22: =VLOOKUP($A22,L_2,2,FALSE) -> 10.189 | BT22: =BS22-BS22*BR22/100 -> 9.61953679 | BU22: =BR22+BT22 -> 15.20853679 | BV22: =(BU22-L2Max)/(L2Min-L2Max) -> 0.9102800111 | BW22: =RANK(BV22,$BV$7:$BV$164,0) -> 26 | BX22: =VLOOKUP(A22,L_3,2,FALSE) -> 0.2816345215 | BY22: =(BX22-L3Max)/(L3Min-L3Max) -> 0.9733136886 | BZ22: =RANK(BY22,$BY$7:$BY$164,0) -> 3 | CA22: =AVERAGE(BP22,BV22,BY22) -> 0.870652304 | CB22: =(CA22-LMin)/(LMax-LMin) -> 0.9415994655 | CC22: =RANK(CB22,$CB$7:$CB$164,0) -> 8 | CD22: =AVERAGE(AH22,BD22,CB22) -> 0.8239523412 | CE22: =(CD22-OverallScoreMin)/(OverallScoreMax-OverallScoreMin) -> 0.962885826 | CF22: =RANK(CE22,$CE$7:$CE$164,0) -> 4
A23: Belize | B23: =VLOOKUP(A23,Source_WB_country_income,6,FALSE) -> UMIC | C23: LAC | E23: =VLOOKUP(A23,PS1_Summary,3,FALSE) -> 23.6 | F23: =(E23-PS1AMin)/(PS1AMax-PS1AMin) -> 0.8542814221 | G23: =_xlfn.RANK.EQ(F23,$F$7:$F$164) -> 5 | H23: =VLOOKUP(A23,PS1_Summary,10,FALSE) -> 11.76 | I23: =(H23-PS1BMin)/(PS1BMax-PS1BMin) -> 0.4267866362 | J23: =_xlfn.RANK.EQ(I23,$I$7:$I$164) -> 62 | K23: =VLOOKUP(A23,PS1_Summary,17,FALSE) -> 6.59 | L23: =(K23-PS1CMin)/(PS1CMax-PS1CMin) -> 0.1339642482 | M23: =_xlfn.RANK.EQ(L23,$L$7:$L$164) -> 124 | N23: =AVERAGE(F23,I23,L23) -> 0.4716774355 | O23: =(N23-PS1AvMin)/(PS1AvMax-PS1AvMin) -> 0.6548625827 | P23: =_xlfn.RANK.EQ(O23,$O$7:$O$164) -> 55 | Q23: =VLOOKUP(A23,PS2A,3,FALSE) -> 0.2000726863 | R23: =_xlfn.RANK.EQ(Q23,$Q$7:$Q$164) -> 105 | S23: =VLOOKUP(A23,PS2B,6,FALSE) -> 64 | T23: =VLOOKUP(A23,PS2B,2,FALSE) -> 6.772065496 | U23: =SQRT(S23*(100-T23)) -> 77.24369106 | V23: =(U23-PS2BMin)/(PS2BMax-PS2BMin) -> 0.6304524505 | W23: =_xlfn.RANK.EQ(V23,$V$7:$V$164) -> 89 | X23: =VLOOKUP(A23,PS2C_Source,3,FALSE) -> 64.6 | Y23: =(X23-PS2CMin)/(PS2CMax-PS2CMin) -> 0.646 | Z23: =_xlfn.RANK.EQ(Y23,$Y$7:$Y$164) -> 78 | AA23: =AVERAGE(Q23,V23,Y23) -> 0.4921750456 | AB23: =(AA23-PS2AvMin)/(PS2AvMax-PS2AvMin) -> 0.5066076802 | AC23: =_xlfn.RANK.EQ(AB23,$AB$7:$AB$164) -> 93 | AD23: =VLOOKUP(A23,PS_3,25,FALSE) -> -0.036905 | AE23: =(AD23-PS3Max)/(PS3Min-PS3Max) -> 0.08446282855 | AF23: =_xlfn.RANK.EQ(AE23,$AE$7:$AE$164) -> 79 | AG23: =AVERAGE(N23,AA23,AE23) -> 0.3494384366 | AH23: =(AG23-PSMin)/(PSMax-PSMin) -> 0.4205381384 | AI23: =_xlfn.RANK.EQ(AH23,$AH$7:$AH$164) -> 79 | AJ23: =VLOOKUP(A23,T1_VAT,13,FALSE) -> 6.25 | AK23: =(AJ23-T1_VATMax)/(T1_VATMin-T1_VATMax) -> 0.75 | AL23: =VLOOKUP(A23,T1_PIT,60,FALSE) -> 0.0656456168 | AM23: =(AL23-T1_PITMin)/(T1_PITMax-T1_PITMin) -> 0.4038113833 | AN23: =VLOOKUP(A23,T1_CIT,4,FALSE) -> 25 | AO23: =(AN23-T1_CITMIn)/(T1_CITMAx-T1_CITMIn) -> 0.625 | AP23: =AVERAGE(AK23,AM23,AO23) -> 0.5929371278 | AQ23: =(AP23-T1AMin)/(T1AMax-T1AMin) -> 0.6346751545 | AR23: =VLOOKUP(A23,T1_HTP,5,FALSE) -> 0 | AS23: =(AR23-T1_HTPMax)/(T1_HTPMin-T1_HTPMax) -> 1 | AT23: =AVERAGE(AQ23,AS23) -> 0.8173375772 | AU23: =(AT23-T1A_B_Min)/(T1A_B_Max-T1A_B_Min) -> 0.7572008796 | AV23: =RANK(AU23,$AU$7:$AU$164,0) -> 22 | AW23: =VLOOKUP(A23,T_2,20,FALSE) -> 0.495710446 | AX23: =(AW23-T2Min)/(T2Max-T2Min) -> 0.6510739812 | AY23: =RANK(AX23,$AX$7:$AX$164,0) -> 40 | AZ23: =VLOOKUP(A23,T_3,30,FALSE) -> 0.03420073756 | BA23: =(AZ23-T3Max)/(T3Min-T3Max) -> 0.4358668953 | BB23: =RANK(BA23,$BA$7:$BA$164,0) -> 144 | BC23: =AVERAGE(AU23,AX23,BA23) -> 0.6147139187 | BD23: =(BC23-TMin)/(TMax-TMin) -> 0.7197900707 | BE23: =RANK(BD23,$BD$7:$BD$164,0) -> 30 | BF23: =VLOOKUP(A23,L1A,2,FALSE) -> 2.596842 | BG23: =(BF23-L1AMax)/(L1AMin-L1AMax) -> 0.7403158 | BH23: =RANK(BG23,$BG$7:$BG$164,0) -> 66 | BI23: =VLOOKUP(A23,L1B,9,FALSE) -> 0.4284449605 | BJ23: =(BI23-L1BMin)/(L1BMax-L1BMin) -> 0.3427044903 | BK23: =RANK(BJ23,$BJ$7:$BJ$164,0) -> 147 | BL23: =VLOOKUP(A23,L1C,6,FALSE) -> 0.78393066 | BM23: =(BL23-L1CMin)/(L1CMax-L1CMin) -> 0.3599833149 | BN23: =RANK(BM23,$BM$7:$BM$164,0) -> 26 | BO23: =AVERAGE(BG23,BJ23,BM23) -> 0.4810012017 | BP23: =(BO23-L1Min)/(L1Max-L1Min) -> 0.4778211069 | BQ23: =RANK(BP23,$BP$7:$BP$164,0) -> 111 | BR23: =VLOOKUP(A23,L_2,3,FALSE) -> 6.413 | BS23: =VLOOKUP($A23,L_2,2,FALSE) -> 29.622 | BT23: =BS23-BS23*BR23/100 -> 27.72234114 | BU23: =BR23+BT23 -> 34.13534114 | BV23: =(BU23-L2Max)/(L2Min-L2Max) -> 0.6934299582 | BW23: =RANK(BV23,$BV$7:$BV$164,0) -> 62 | BX23: =VLOOKUP(A23,L_3,2,FALSE) -> 0.4669542469 | BY23: =(BX23-L3Max)/(L3Min-L3Max) -> 0.6557515473 | BZ23: =RANK(BY23,$BY$7:$BY$164,0) -> 75 | CA23: =AVERAGE(BP23,BV23,BY23) -> 0.6090008708 | CB23: =(CA23-LMin)/(LMax-LMin) -> 0.5909603796 | CC23: =RANK(CB23,$CB$7:$CB$164,0) -> 73 | CD23: =AVERAGE(AH23,BD23,CB23) -> 0.5770961962 | CE23: =(CD23-OverallScoreMin)/(OverallScoreMax-OverallScoreMin) -> 0.6447767173 | CF23: =RANK(CE23,$CE$7:$CE$164,0) -> 53
A24: Benin | B24: =VLOOKUP(A24,Source_WB_country_income,6,FALSE) -> LIC | C24: SSA | E24: =VLOOKUP(A24,PS1_Summary,3,FALSE) -> 19.78 | F24: =(E24-PS1AMin)/(PS1AMax-PS1AMin) -> 0.6629944917 | G24: =_xlfn.RANK.EQ(F24,$F$7:$F$164) -> 19 | H24: =VLOOKUP(A24,PS1_Summary,10,FALSE) -> 5.03 | I24: =(H24-PS1BMin)/(PS1BMax-PS1BMin) -> 0.1263395586 | J24: =_xlfn.RANK.EQ(I24,$I$7:$I$164) -> 148 | K24: =VLOOKUP(A24,PS1_Summary,17,FALSE) -> 6.76 | L24: =(K24-PS1CMin)/(PS1CMax-PS1CMin) -> 0.1375394322 | M24: =_xlfn.RANK.EQ(L24,$L$7:$L$164) -> 122 | N24: =AVERAGE(F24,I24,L24) -> 0.3089578275 | O24: =(N24-PS1AvMin)/(PS1AvMax-PS1AvMin) -> 0.4040020161 | P24: =_xlfn.RANK.EQ(O24,$O$7:$O$164) -> 115 | Q24: =VLOOKUP(A24,PS2A,3,FALSE) -> 0.006162550998 | R24: =_xlfn.RANK.EQ(Q24,$Q$7:$Q$164) -> 148 | S24: =VLOOKUP(A24,PS2B,6,FALSE) -> 40 | T24: =VLOOKUP(A24,PS2B,2,FALSE) -> 10.92 | U24: =SQRT(S24*(100-T24)) -> 59.6925456 | V24: =(U24-PS2BMin)/(PS2BMax-PS2BMin) -> 0.2210485989 | W24: =_xlfn.RANK.EQ(V24,$V$7:$V$164) -> 144 | X24: =VLOOKUP(A24,PS2C_Source,3,FALSE) -> 9.7 | Y24: =(X24-PS2CMin)/(PS2CMax-PS2CMin) -> 0.097 | Z24: =_xlfn.RANK.EQ(Y24,$Y$7:$Y$164) -> 124 | AA24: =AVERAGE(Q24,V24,Y24) -> 0.1080703833 | AB24: =(AA24-PS2AvMin)/(PS2AvMax-PS2AvMin) -> 0.1049792766 | AC24: =_xlfn.RANK.EQ(AB24,$AB$7:$AB$164) -> 147 | AD24: =VLOOKUP(A24,PS_3,25,FALSE) -> -0.0907 | AE24: =(AD24-PS3Max)/(PS3Min-PS3Max) -> 0.2175403415 | AF24: =_xlfn.RANK.EQ(AE24,$AE$7:$AE$164) -> 45 | AG24: =AVERAGE(N24,AA24,AE24) -> 0.2115228508 | AH24: =(AG24-PSMin)/(PSMax-PSMin) -> 0.2395107478 | AI24: =_xlfn.RANK.EQ(AH24,$AH$7:$AH$164) -> 119 | AJ24: =VLOOKUP(A24,T1_VAT,13,FALSE) -> 0 | AK24: =(AJ24-T1_VATMax)/(T1_VATMin-T1_VATMax) -> 1 | AL24: =VLOOKUP(A24,T1_PIT,60,FALSE) -> 0.04013607415 | AM24: =(AL24-T1_PITMin)/(T1_PITMax-T1_PITMin) -> 0.2468923961 | AN24: =VLOOKUP(A24,T1_CIT,4,FALSE) -> 30 | AO24: =(AN24-T1_CITMIn)/(T1_CITMAx-T1_CITMIn) -> 0.75 | AP24: =AVERAGE(AK24,AM24,AO24) -> 0.6656307987 | AQ24: =(AP24-T1AMin)/(T1AMax-T1AMin) -> 0.72988049 | AR24: =VLOOKUP(A24,T1_HTP,5,FALSE) -> 0 | AS24: =(AR24-T1_HTPMax)/(T1_HTPMin-T1_HTPMax) -> 1 | AT24: =AVERAGE(AQ24,AS24) -> 0.864940245 | AU24: =(AT24-T1A_B_Min)/(T1A_B_Max-T1A_B_Min) -> 0.8204754474 | AV24: =RANK(AU24,$AU$7:$AU$164,0) -> 11 | AW24: =VLOOKUP(A24,T_2,20,FALSE) -> 0.2360887504 | AX24: =(AW24-T2Min)/(T2Max-T2Min) -> 0.3100827184 | AY24: =RANK(AX24,$AX$7:$AX$164,0) -> 123 | AZ24: =VLOOKUP(A24,T_3,30,FALSE) -> -0.007927504646 | BA24: =(AZ24-T3Max)/(T3Min-T3Max) -> 0.6651327471 | BB24: =RANK(BA24,$BA$7:$BA$164,0) -> 42 | BC24: =AVERAGE(AU24,AX24,BA24) -> 0.5985636376 | BD24: =(BC24-TMin)/(TMax-TMin) -> 0.6811817511 | BE24: =RANK(BD24,$BD$7:$BD$164,0) -> 42 | BF24: =VLOOKUP(A24,L1A,2,FALSE) -> 3.68 | BG24: =(BF24-L1AMax)/(L1AMin-L1AMax) -> 0.632 | BH24: =RANK(BG24,$BG$7:$BG$164,0) -> 97 | BI24: =VLOOKUP(A24,L1B,9,FALSE) -> 0.7633157245 | BJ24: =(BI24-L1BMin)/(L1BMax-L1BMin) -> 0.7492943263 | BK24: =RANK(BJ24,$BJ$7:$BJ$164,0) -> 83 | BL24: =VLOOKUP(A24,L1C,6,FALSE) -> 0.6754908732 | BM24: =(BL24-L1CMin)/(L1CMax-L1CMin) -> 0.3101874389 | BN24: =RANK(BM24,$BM$7:$BM$164,0) -> 33 | BO24: =AVERAGE(BG24,BJ24,BM24) -> 0.5638272551 | BP24: =(BO24-L1Min)/(L1Max-L1Min) -> 0.6145003713 | BQ24: =RANK(BP24,$BP$7:$BP$164,0) -> 73 | BR24: =VLOOKUP(A24,L_2,3,FALSE) -> 2.232 | BS24: =VLOOKUP($A24,L_2,2,FALSE) -> 87.732 | BT24: =BS24-BS24*BR24/100 -> 85.77382176 | BU24: =BR24+BT24 -> 88.00582176 | BV24: =(BU24-L2Max)/(L2Min-L2Max) -> 0.07621976477 | BW24: =RANK(BV24,$BV$7:$BV$164,0) -> 153 | BX24: =VLOOKUP(A24,L_3,2,FALSE) -> 0.725029724 | BY24: =(BX24-L3Max)/(L3Min-L3Max) -> 0.2135158334 | BZ24: =RANK(BY24,$BY$7:$BY$164,0) -> 144 | CA24: =AVERAGE(BP24,BV24,BY24) -> 0.3014119898 | CB24: =(CA24-LMin)/(LMax-LMin) -> 0.1787605199 | CC24: =RANK(CB24,$CB$7:$CB$164,0) -> 147 | CD24: =AVERAGE(AH24,BD24,CB24) -> 0.3664843396 | CE24: =(CD24-OverallScoreMin)/(OverallScoreMax-OverallScoreMin) -> 0.3733735079 | CF24: =RANK(CE24,$CE$7:$CE$164,0) -> 126
A25: Bhutan | B25: =VLOOKUP(A25,Source_WB_country_income,6,FALSE) -> LMIC | C25: SA | E25: =VLOOKUP(A25,PS1_Summary,3,FALSE) -> 16.25 | F25: =(E25-PS1AMin)/(PS1AMax-PS1AMin) -> 0.486229344 | G25: =_xlfn.RANK.EQ(F25,$F$7:$F$164) -> 61 | H25: =VLOOKUP(A25,PS1_Summary,10,FALSE) -> 7.5 | I25: =(H25-PS1BMin)/(PS1BMax-PS1BMin) -> 0.236607654 | J25: =_xlfn.RANK.EQ(I25,$I$7:$I$164) -> 122 | K25: =VLOOKUP(A25,PS1_Summary,17,FALSE) -> 5.46520341 | L25: =(K25-PS1CMin)/(PS1CMax-PS1CMin) -> 0.11030922 | M25: =_xlfn.RANK.EQ(L25,$L$7:$L$164) -> 134 | N25: =AVERAGE(F25,I25,L25) -> 0.277715406 | O25: =(N25-PS1AvMin)/(PS1AvMax-PS1AvMin) -> 0.3558363915 | P25: =_xlfn.RANK.EQ(O25,$O$7:$O$164) -> 128 | Q25: =VLOOKUP(A25,PS2A,3,FALSE) -> 0.06571032854 | R25: =_xlfn.RANK.EQ(Q25,$Q$7:$Q$164) -> 121 | S25: =VLOOKUP(A25,PS2B,6,FALSE) -> 62 | T25: =VLOOKUP(A25,PS2B,2,FALSE) -> 1.79 | U25: =SQRT(S25*(100-T25)) -> 78.03217285 | V25: =(U25-PS2BMin)/(PS2BMax-PS2BMin) -> 0.6488448389 | W25: =_xlfn.RANK.EQ(V25,$V$7:$V$164) -> 84 | X25: =VLOOKUP(A25,PS2C_Source,3,FALSE) -> 3.2 | Y25: =(X25-PS2CMin)/(PS2CMax-PS2CMin) -> 0.032 | Z25: =_xlfn.RANK.EQ(Y25,$Y$7:$Y$164) -> 143 | AA25: =AVERAGE(Q25,V25,Y25) -> 0.2488517225 | AB25: =(AA25-PS2AvMin)/(PS2AvMax-PS2AvMin) -> 0.2521833854 | AC25: =_xlfn.RANK.EQ(AB25,$AB$7:$AB$164) -> 117 | AD25: =VLOOKUP(A25,PS_3,25,FALSE) -> -0.02292254651 | AE25: =(AD25-PS3Max)/(PS3Min-PS3Max) -> 0.04987318017 | AF25: =_xlfn.RANK.EQ(AE25,$AE$7:$AE$164) -> 118 | AG25: =AVERAGE(N25,AA25,AE25) -> 0.1921467695 | AH25: =(AG25-PSMin)/(PSMax-PSMin) -> 0.2140777889 | AI25: =_xlfn.RANK.EQ(AH25,$AH$7:$AH$164) -> 124 | AJ25: =VLOOKUP(A25,T1_VAT,13,FALSE) -> 20 | AK25: =(AJ25-T1_VATMax)/(T1_VATMin-T1_VATMax) -> 0.2 | AL25: =VLOOKUP(A25,T1_PIT,60,FALSE) -> 0.03869867832 | AM25: =(AL25-T1_PITMin)/(T1_PITMax-T1_PITMin) -> 0.2380504226 | AN25: =VLOOKUP(A25,T1_CIT,4,FALSE) -> 30 | AO25: =(AN25-T1_CITMIn)/(T1_CITMAx-T1_CITMIn) -> 0.75 | AP25: =AVERAGE(AK25,AM25,AO25) -> 0.3960168075 | AQ25: =(AP25-T1AMin)/(T1AMax-T1AMin) -> 0.3767728514 | AR25: =VLOOKUP(A25,T1_HTP,5,FALSE) -> 0 | AS25: =(AR25-T1_HTPMax)/(T1_HTPMin-T1_HTPMax) -> 1 | AT25: =AVERAGE(AQ25,AS25) -> 0.6883864257 | AU25: =(AT25-T1A_B_Min)/(T1A_B_Max-T1A_B_Min) -> 0.5857960242 | AV25: =RANK(AU25,$AU$7:$AU$164,0) -> 72 | AW25: =VLOOKUP(A25,T_2,20,FALSE) -> 0.2251793695 | AX25: =(AW25-T2Min)/(T2Max-T2Min) -> 0.295754164 | AY25: =RANK(AX25,$AX$7:$AX$164,0) -> 124 | AZ25: =VLOOKUP(A25,T_3,30,FALSE) -> 0.01485083697 | BA25: =(AZ25-T3Max)/(T3Min-T3Max) -> 0.5411708721 | BB25: =RANK(BA25,$BA$7:$BA$164,0) -> 114 | BC25: =AVERAGE(AU25,AX25,BA25) -> 0.4742403534 | BD25: =(BC25-TMin)/(TMax-TMin) -> 0.3839786829 | BE25: =RANK(BD25,$BD$7:$BD$164,0) -> 130 | BI25: =VLOOKUP(A25,L1B,9,FALSE) -> 0.5891483927 | BJ25: =(BI25-L1BMin)/(L1BMax-L1BMin) -> 0.5378256808 | BK25: =RANK(BJ25,$BJ$7:$BJ$164,0) -> 130 | BL25: =VLOOKUP(A25,L1C,6,FALSE) -> 0.2888029445 | BM25: =(BL25-L1CMin)/(L1CMax-L1CMin) -> 0.13261918 | BN25: =RANK(BM25,$BM$7:$BM$164,0) -> 116 | BO25: =AVERAGE(BG25,BJ25,BM25) -> 0.3352224304 | BP25: =(BO25-L1Min)/(L1Max-L1Min) -> 0.2372574868 | BQ25: =RANK(BP25,$BP$7:$BP$164,0) -> 149 | BR25: =VLOOKUP(A25,L_2,3,FALSE) -> 2.342 | BS25: =VLOOKUP($A25,L_2,2,FALSE) -> 71.479 | BT25: =BS25-BS25*BR25/100 -> 69.80496182 | BU25: =BR25+BT25 -> 72.14696182 | BV25: =(BU25-L2Max)/(L2Min-L2Max) -> 0.2579194619 | BW25: =RANK(BV25,$BV$7:$BV$164,0) -> 126 | BX25: =VLOOKUP(A25,L_3,2,FALSE) -> 0.5770050807 | BY25: =(BX25-L3Max)/(L3Min-L3Max) -> 0.4671694721 | BZ25: =RANK(BY25,$BY$7:$BY$164,0) -> 113 | CA25: =AVERAGE(BP25,BV25,BY25) -> 0.3207821403 | CB25: =(CA25-LMin)/(LMax-LMin) -> 0.2047184585 | CC25: =RANK(CB25,$CB$7:$CB$164,0) -> 141 | CD25: =AVERAGE(AH25,BD25,CB25) -> 0.2675916434 | CE25: =(CD25-OverallScoreMin)/(OverallScoreMax-OverallScoreMin) -> 0.2459362612 | CF25: =RANK(CE25,$CE$7:$CE$164,0) -> 146
A26: Bolivia | B26: =VLOOKUP(A26,Source_WB_country_income,6,FALSE) -> LMIC | C26: LAC | E26: =VLOOKUP(A26,PS1_Summary,3,FALSE) -> 23.03808446 | F26: =(E26-PS1AMin)/(PS1AMax-PS1AMin) -> 0.8261434383 | G26: =_xlfn.RANK.EQ(F26,$F$7:$F$164) -> 8 | H26: =VLOOKUP(A26,PS1_Summary,10,FALSE) -> 14.72948754 | I26: =(H26-PS1BMin)/(PS1BMax-PS1BMin) -> 0.5593533304 | J26: =_xlfn.RANK.EQ(I26,$I$7:$I$164) -> 27 | K26: =VLOOKUP(A26,PS1_Summary,17,FALSE) -> 12.43224574 | L26: =(K26-PS1CMin)/(PS1CMax-PS1CMin) -> 0.2568295634 | M26: =_xlfn.RANK.EQ(L26,$L$7:$L$164) -> 91 | N26: =AVERAGE(F26,I26,L26) -> 0.5474421107 | O26: =(N26-PS1AvMin)/(PS1AvMax-PS1AvMin) -> 0.7716670021 | P26: =_xlfn.RANK.EQ(O26,$O$7:$O$164) -> 24 | Q26: =VLOOKUP(A26,PS2A,3,FALSE) -> 0.6116598669 | R26: =_xlfn.RANK.EQ(Q26,$Q$7:$Q$164) -> 57 | S26: =VLOOKUP(A26,PS2B,6,FALSE) -> 68 | T26: =VLOOKUP(A26,PS2B,2,FALSE) -> 6.02 | U26: =SQRT(S26*(100-T26)) -> 79.9414786 | V26: =(U26-PS2BMin)/(PS2BMax-PS2BMin) -> 0.6933819392 | W26: =_xlfn.RANK.EQ(V26,$V$7:$V$164) -> 73 | X26: =VLOOKUP(A26,PS2C_Source,3,FALSE) -> 100 | Y26: =(X26-PS2CMin)/(PS2CMax-PS2CMin) -> 1 | Z26: =_xlfn.RANK.EQ(Y26,$Y$7:$Y$164) -> 1 | AA26: =AVERAGE(Q26,V26,Y26) -> 0.7683472687 | AB26: =(AA26-PS2AvMin)/(PS2AvMax-PS2AvMin) -> 0.7953795175 | AC26: =_xlfn.RANK.EQ(AB26,$AB$7:$AB$164) -> 48 | AD26: =VLOOKUP(A26,PS_3,25,FALSE) -> -0.0676 | AE26: =(AD26-PS3Max)/(PS3Min-PS3Max) -> 0.1603958011 | AF26: =_xlfn.RANK.EQ(AE26,$AE$7:$AE$164) -> 49 | AG26: =AVERAGE(N26,AA26,AE26) -> 0.4920617268 | AH26: =(AG26-PSMin)/(PSMax-PSMin) -> 0.6077448412 | AI26: =_xlfn.RANK.EQ(AH26,$AH$7:$AH$164) -> 43 | AJ26: =VLOOKUP(A26,T1_VAT,13,FALSE) -> 13 | AK26: =(AJ26-T1_VATMax)/(T1_VATMin-T1_VATMax) -> 0.48 | AL26: =VLOOKUP(A26,T1_PIT,60,FALSE) -> 0 | AM26: =(AL26-T1_PITMin)/(T1_PITMax-T1_PITMin) -> 0 | AN26: =VLOOKUP(A26,T1_CIT,4,FALSE) -> 25 | AO26: =(AN26-T1_CITMIn)/(T1_CITMAx-T1_CITMIn) -> 0.625 | AP26: =AVERAGE(AK26,AM26,AO26) -> 0.3683333333 | AQ26: =(AP26-T1AMin)/(T1AMax-T1AMin) -> 0.3405164014 | AR26: =VLOOKUP(A26,T1_HTP,5,FALSE) -> 0.75 | AS26: =(AR26-T1_HTPMax)/(T1_HTPMin-T1_HTPMax) -> 0.9166666667 | AT26: =AVERAGE(AQ26,AS26) -> 0.628591534 | AU26: =(AT26-T1A_B_Min)/(T1A_B_Max-T1A_B_Min) -> 0.5063152701 | AV26: =RANK(AU26,$AU$7:$AU$164,0) -> 92 | AW26: =VLOOKUP(A26,T_2,20,FALSE) -> 0.465746906 | AX26: =(AW26-T2Min)/(T2Max-T2Min) -> 0.6117193914 | AY26: =RANK(AX26,$AX$7:$AX$164,0) -> 49 | AZ26: =VLOOKUP(A26,T_3,30,FALSE) -> 0.0007889311 | BA26: =(AZ26-T3Max)/(T3Min-T3Max) -> 0.6176970849 | BB26: =RANK(BA26,$BA$7:$BA$164,0) -> 64 | BC26: =AVERAGE(AU26,AX26,BA26) -> 0.5785772488 | BD26: =(BC26-TMin)/(TMax-TMin) -> 0.6334029611 | BE26: =RANK(BD26,$BD$7:$BD$164,0) -> 57 | BF26: =VLOOKUP(A26,L1A,2,FALSE) -> 3.491579 | BG26: =(BF26-L1AMax)/(L1AMin-L1AMax) -> 0.6508421 | BH26: =RANK(BG26,$BG$7:$BG$164,0) -> 93 | BI26: =VLOOKUP(A26,L1B,9,FALSE) -> 0.826993687 | BJ26: =(BI26-L1BMin)/(L1BMax-L1BMin) -> 0.8266101599 | BK26: =RANK(BJ26,$BJ$7:$BJ$164,0) -> 46 | BL26: =VLOOKUP(A26,L1C,6,FALSE) -> 1.001303391 | BM26: =(BL26-L1CMin)/(L1CMax-L1CMin) -> 0.4598015261 | BN26: =RANK(BM26,$BM$7:$BM$164,0) -> 18 | BO26: =AVERAGE(BG26,BJ26,BM26) -> 0.645751262 | BP26: =(BO26-L1Min)/(L1Max-L1Min) -> 0.7496910819 | BQ26: =RANK(BP26,$BP$7:$BP$164,0) -> 29 | BR26: =VLOOKUP(A26,L_2,3,FALSE) -> 3.498 | BS26: =VLOOKUP($A26,L_2,2,FALSE) -> 63.224 | BT26: =BS26-BS26*BR26/100 -> 61.01242448 | BU26: =BR26+BT26 -> 64.51042448 | BV26: =(BU26-L2Max)/(L2Min-L2Max) -> 0.345413552 | BW26: =RANK(BV26,$BV$7:$BV$164,0) -> 116 | BX26: =VLOOKUP(A26,L_3,2,FALSE) -> 0.4440250231 | BY26: =(BX26-L3Max)/(L3Min-L3Max) -> 0.69504285 | BZ26: =RANK(BY26,$BY$7:$BY$164,0) -> 68 | CA26: =AVERAGE(BP26,BV26,BY26) -> 0.596715828 | CB26: =(CA26-LMin)/(LMax-LMin) -> 0.5744971937 | CC26: =RANK(CB26,$CB$7:$CB$164,0) -> 79 | CD26: =AVERAGE(AH26,BD26,CB26) -> 0.6052149986 | CE26: =(CD26-OverallScoreMin)/(OverallScoreMax-OverallScoreMin) -> 0.6810117771 | CF26: =RANK(CE26,$CE$7:$CE$164,0) -> 49
A27: Botswana | B27: =VLOOKUP(A27,Source_WB_country_income,6,FALSE) -> UMIC | C27: SSA | E27: =VLOOKUP(A27,PS1_Summary,3,FALSE) -> 20.4774 | F27: =(E27-PS1AMin)/(PS1AMax-PS1AMin) -> 0.6979168753 | G27: =_xlfn.RANK.EQ(F27,$F$7:$F$164) -> 15 | H27: =VLOOKUP(A27,PS1_Summary,10,FALSE) -> 15.68293234 | I27: =(H27-PS1BMin)/(PS1BMax-PS1BMin) -> 0.6019179225 | J27: =_xlfn.RANK.EQ(I27,$I$7:$I$164) -> 22 | K27: =VLOOKUP(A27,PS1_Summary,17,FALSE) -> 6.878520527 | L27: =(K27-PS1CMin)/(PS1CMax-PS1CMin) -> 0.1400319774 | M27: =_xlfn.RANK.EQ(L27,$L$7:$L$164) -> 121 | N27: =AVERAGE(F27,I27,L27) -> 0.4799555918 | O27: =(N27-PS1AvMin)/(PS1AvMax-PS1AvMin) -> 0.6676247998 | P27: =_xlfn.RANK.EQ(O27,$O$7:$O$164) -> 53 | Q27: =VLOOKUP(A27,PS2A,3,FALSE) -> 0.8158157426 | R27: =_xlfn.RANK.EQ(Q27,$Q$7:$Q$164) -> 30 | S27: =VLOOKUP(A27,PS2B,6,FALSE) -> 61 | T27: =VLOOKUP(A27,PS2B,2,FALSE) -> 1 | U27: =SQRT(S27*(100-T27)) -> 77.71100308 | V27: =(U27-PS2BMin)/(PS2BMax-PS2BMin) -> 0.6413531261 | W27: =_xlfn.RANK.EQ(V27,$V$7:$V$164) -> 86 | X27: =VLOOKUP(A27,PS2C_Source,3,FALSE) -> 100 | Y27: =(X27-PS2CMin)/(PS2CMax-PS2CMin) -> 1 | Z27: =_xlfn.RANK.EQ(Y27,$Y$7:$Y$164) -> 1 | AA27: =AVERAGE(Q27,V27,Y27) -> 0.8190562896 | AB27: =(AA27-PS2AvMin)/(PS2AvMax-PS2AvMin) -> 0.8484020009 | AC27: =_xlfn.RANK.EQ(AB27,$AB$7:$AB$164) -> 38 | AD27: =VLOOKUP(A27,PS_3,25,FALSE) -> -0.03426990342 | AE27: =(AD27-PS3Max)/(PS3Min-PS3Max) -> 0.07794415397 | AF27: =_xlfn.RANK.EQ(AE27,$AE$7:$AE$164) -> 84 | AG27: =AVERAGE(N27,AA27,AE27) -> 0.4589853451 | AH27: =(AG27-PSMin)/(PSMax-PSMin) -> 0.5643289282 | AI27: =_xlfn.RANK.EQ(AH27,$AH$7:$AH$164) -> 48 | AJ27: =VLOOKUP(A27,T1_VAT,13,FALSE) -> 0 | AK27: =(AJ27-T1_VATMax)/(T1_VATMin-T1_VATMax) -> 1 | AL27: =VLOOKUP(A27,T1_PIT,60,FALSE) -> 0.03018092306 | AM27: =(AL27-T1_PITMin)/(T1_PITMax-T1_PITMin) -> 0.185654441 | AN27: =VLOOKUP(A27,T1_CIT,4,FALSE) -> 22 | AO27: =(AN27-T1_CITMIn)/(T1_CITMAx-T1_CITMIn) -> 0.55 | AP27: =AVERAGE(AK27,AM27,AO27) -> 0.5785514803 | AQ27: =(AP27-T1AMin)/(T1AMax-T1AMin) -> 0.6158345818 | AR27: =VLOOKUP(A27,T1_HTP,5,FALSE) -> 2 | AS27: =(AR27-T1_HTPMax)/(T1_HTPMin-T1_HTPMax) -> 0.7777777778 | AT27: =AVERAGE(AQ27,AS27) -> 0.6968061798 | AU27: =(AT27-T1A_B_Min)/(T1A_B_Max-T1A_B_Min) -> 0.5969877562 | AV27: =RANK(AU27,$AU$7:$AU$164,0) -> 70 | AW27: =VLOOKUP(A27,T_2,20,FALSE) -> 0.4282250997 | AX27: =(AW27-T2Min)/(T2Max-T2Min) -> 0.5624376544 | AY27: =RANK(AX27,$AX$7:$AX$164,0) -> 58 | AZ27: =VLOOKUP(A27,T_3,30,FALSE) -> 0.007842221405 | BA27: =(AZ27-T3Max)/(T3Min-T3Max) -> 0.5793124164 | BB27: =RANK(BA27,$BA$7:$BA$164,0) -> 92 | BC27: =AVERAGE(AU27,AX27,BA27) -> 0.5795792757 | BD27: =(BC27-TMin)/(TMax-TMin) -> 0.6357983729 | BE27: =RANK(BD27,$BD$7:$BD$164,0) -> 56 | BF27: =VLOOKUP(A27,L1A,2,FALSE) -> 4.325263 | BG27: =(BF27-L1AMax)/(L1AMin-L1AMax) -> 0.5674737 | BH27: =RANK(BG27,$BG$7:$BG$164,0) -> 115 | BI27: =VLOOKUP(A27,L1B,9,FALSE) -> 0.5461906973 | BJ27: =(BI27-L1BMin)/(L1BMax-L1BMin) -> 0.4856677615 | BK27: =RANK(BJ27,$BJ$7:$BJ$164,0) -> 139 | BL27: =VLOOKUP(A27,L1C,6,FALSE) -> 0.1211675002 | BM27: =(BL27-L1CMin)/(L1CMax-L1CMin) -> 0.05564048021 | BN27: =RANK(BM27,$BM$7:$BM$164,0) -> 141 | BO27: =AVERAGE(BG27,BJ27,BM27) -> 0.3695939806 | BP27: =(BO27-L1Min)/(L1Max-L1Min) -> 0.293977299 | BQ27: =RANK(BP27,$BP$7:$BP$164,0) -> 141 | BR27: =VLOOKUP(A27,L_2,3,FALSE) -> 18.193 | BS27: =VLOOKUP($A27,L_2,2,FALSE) -> 25.912 | BT27: =BS27-BS27*BR27/100 -> 21.19782984 | BU27: =BR27+BT27 -> 39.39082984 | BV27: =(BU27-L2Max)/(L2Min-L2Max) -> 0.6332162538 | BW27: =RANK(BV27,$BV$7:$BV$164,0) -> 76 | BX27: =VLOOKUP(A27,L_3,2,FALSE) -> 0.4863792956 | BY27: =(BX27-L3Max)/(L3Min-L3Max) -> 0.6224649664 | BZ27: =RANK(BY27,$BY$7:$BY$164,0) -> 89 | CA27: =AVERAGE(BP27,BV27,BY27) -> 0.5165528397 | CB27: =(CA27-LMin)/(LMax-LMin) -> 0.467070773 | CC27: =RANK(CB27,$CB$7:$CB$164,0) -> 100 | CD27: =AVERAGE(AH27,BD27,CB27) -> 0.5557326914 | CE27: =(CD27-OverallScoreMin)/(OverallScoreMax-OverallScoreMin) -> 0.6172468152 | CF27: =RANK(CE27,$CE$7:$CE$164,0) -> 60
A28: Brazil | B28: =VLOOKUP(A28,Source_WB_country_income,6,FALSE) -> UMIC | C28: LAC | E28: =VLOOKUP(A28,PS1_Summary,3,FALSE) -> 7.876370887 | F28: =(E28-PS1AMin)/(PS1AMax-PS1AMin) -> 0.06691892275 | G28: =_xlfn.RANK.EQ(F28,$F$7:$F$164) -> 154 | H28: =VLOOKUP(A28,PS1_Summary,10,FALSE) -> 6.979062812 | I28: =(H28-PS1BMin)/(PS1BMax-PS1BMin) -> 0.2133514792 | J28: =_xlfn.RANK.EQ(I28,$I$7:$I$164) -> 128 | K28: =VLOOKUP(A28,PS1_Summary,17,FALSE) -> 34.46457642 | L28: =(K28-PS1CMin)/(PS1CMax-PS1CMin) -> 0.7201803664 | M28: =_xlfn.RANK.EQ(L28,$L$7:$L$164) -> 26 | N28: =AVERAGE(F28,I28,L28) -> 0.3334835895 | O28: =(N28-PS1AvMin)/(PS1AvMax-PS1AvMin) -> 0.4418127423 | P28: =_xlfn.RANK.EQ(O28,$O$7:$O$164) -> 102 | Q28: =VLOOKUP(A28,PS2A,3,FALSE) -> 0.4570538974 | R28: =_xlfn.RANK.EQ(Q28,$Q$7:$Q$164) -> 75 | S28: =VLOOKUP(A28,PS2B,6,FALSE) -> 79 | T28: =VLOOKUP(A28,PS2B,2,FALSE) -> 25.56 | U28: =SQRT(S28*(100-T28)) -> 76.68611348 | V28: =(U28-PS2BMin)/(PS2BMax-PS2BMin) -> 0.6174462106 | W28: =_xlfn.RANK.EQ(V28,$V$7:$V$164) -> 90 | X28: =VLOOKUP(A28,PS2C_Source,3,FALSE) -> 78.3 | Y28: =(X28-PS2CMin)/(PS2CMax-PS2CMin) -> 0.783 | Z28: =_xlfn.RANK.EQ(Y28,$Y$7:$Y$164) -> 65 | AA28: =AVERAGE(Q28,V28,Y28) -> 0.6191667026 | AB28: =(AA28-PS2AvMin)/(PS2AvMax-PS2AvMin) -> 0.6393929897 | AC28: =_xlfn.RANK.EQ(AB28,$AB$7:$AB$164) -> 67 | AD28: =VLOOKUP(A28,PS_3,25,FALSE) -> -0.117 | AE28: =(AD28-PS3Max)/(PS3Min-PS3Max) -> 0.2826010086 | AF28: =_xlfn.RANK.EQ(AE28,$AE$7:$AE$164) -> 39 | AG28: =AVERAGE(N28,AA28,AE28) -> 0.4117504336 | AH28: =(AG28-PSMin)/(PSMax-PSMin) -> 0.5023285913 | AI28: =_xlfn.RANK.EQ(AH28,$AH$7:$AH$164) -> 64 | AJ28: =VLOOKUP(A28,T1_VAT,13,FALSE) -> 24.15 | AK28: =(AJ28-T1_VATMax)/(T1_VATMin-T1_VATMax) -> 0.034 | AL28: =VLOOKUP(A28,T1_PIT,60,FALSE) -> 0.02463375163 | AM28: =(AL28-T1_PITMin)/(T1_PITMax-T1_PITMin) -> 0.1515316605 | AN28: =VLOOKUP(A28,T1_CIT,4,FALSE) -> 34 | AO28: =(AN28-T1_CITMIn)/(T1_CITMAx-T1_CITMIn) -> 0.85 | AP28: =AVERAGE(AK28,AM28,AO28) -> 0.3451772202 | AQ28: =(AP28-T1AMin)/(T1AMax-T1AMin) -> 0.3101893386 | AR28: =VLOOKUP(A28,T1_HTP,5,FALSE) -> 1 | AS28: =(AR28-T1_HTPMax)/(T1_HTPMin-T1_HTPMax) -> 0.8888888889 | AT28: =AVERAGE(AQ28,AS28) -> 0.5995391137 | AU28: =(AT28-T1A_B_Min)/(T1A_B_Max-T1A_B_Min) -> 0.4676981206 | AV28: =RANK(AU28,$AU$7:$AU$164,0) -> 106 | AW28: =VLOOKUP(A28,T_2,20,FALSE) -> 0.3816707011 | AX28: =(AW28-T2Min)/(T2Max-T2Min) -> 0.5012923671 | AY28: =RANK(AX28,$AX$7:$AX$164,0) -> 76 | AZ28: =VLOOKUP(A28,T_3,30,FALSE) -> 0.0052813058 | BA28: =(AZ28-T3Max)/(T3Min-T3Max) -> 0.5932491597 | BB28: =RANK(BA28,$BA$7:$BA$164,0) -> 83 | BC28: =AVERAGE(AU28,AX28,BA28) -> 0.5207465491 | BD28: =(BC28-TMin)/(TMax-TMin) -> 0.4951548325 | BE28: =RANK(BD28,$BD$7:$BD$164,0) -> 102 | BF28: =VLOOKUP(A28,L1A,2,FALSE) -> 4.241053 | BG28: =(BF28-L1AMax)/(L1AMin-L1AMax) -> 0.5758947 | BH28: =RANK(BG28,$BG$7:$BG$164,0) -> 114 | BI28: =VLOOKUP(A28,L1B,9,FALSE) -> 0.8711124011 | BJ28: =(BI28-L1BMin)/(L1BMax-L1BMin) -> 0.8801777528 | BK28: =RANK(BJ28,$BJ$7:$BJ$164,0) -> 15 | BL28: =VLOOKUP(A28,L1C,6,FALSE) -> 0.3493822591 | BM28: =(BL28-L1CMin)/(L1CMax-L1CMin) -> 0.1604373833 | BN28: =RANK(BM28,$BM$7:$BM$164,0) -> 97 | BO28: =AVERAGE(BG28,BJ28,BM28) -> 0.538836612 | BP28: =(BO28-L1Min)/(L1Max-L1Min) -> 0.5732608993 | BQ28: =RANK(BP28,$BP$7:$BP$164,0) -> 82 | BR28: =VLOOKUP(A28,L_2,3,FALSE) -> 12.083 | BS28: =VLOOKUP($A28,L_2,2,FALSE) -> 27.908 | BT28: =BS28-BS28*BR28/100 -> 24.53587636 | BU28: =BR28+BT28 -> 36.61887636 | BV28: =(BU28-L2Max)/(L2Min-L2Max) -> 0.6649753531 | BW28: =RANK(BV28,$BV$7:$BV$164,0) -> 70 | BX28: =VLOOKUP(A28,L_3,2,FALSE) -> 0.497442318 | BY28: =(BX28-L3Max)/(L3Min-L3Max) -> 0.6035074751 | BZ28: =RANK(BY28,$BY$7:$BY$164,0) -> 94 | CA28: =AVERAGE(BP28,BV28,BY28) -> 0.6139145758 | CB28: =(CA28-LMin)/(LMax-LMin) -> 0.5975452357 | CC28: =RANK(CB28,$CB$7:$CB$164,0) -> 71 | CD28: =AVERAGE(AH28,BD28,CB28) -> 0.5316762199 | CE28: =(CD28-OverallScoreMin)/(OverallScoreMax-OverallScoreMin) -> 0.5862466442 | CF28: =RANK(CE28,$CE$7:$CE$164,0) -> 71
A29: Bulgaria | B29: =VLOOKUP(A29,Source_WB_country_income,6,FALSE) -> UMIC | C29: ECA | E29: =VLOOKUP(A29,PS1_Summary,3,FALSE) -> 9.7 | F29: =(E29-PS1AMin)/(PS1AMax-PS1AMin) -> 0.158237356 | G29: =_xlfn.RANK.EQ(F29,$F$7:$F$164) -> 135 | H29: =VLOOKUP(A29,PS1_Summary,10,FALSE) -> 13.6 | I29: =(H29-PS1BMin)/(PS1BMax-PS1BMin) -> 0.5089296708 | J29: =_xlfn.RANK.EQ(I29,$I$7:$I$164) -> 42 | K29: =VLOOKUP(A29,PS1_Summary,17,FALSE) -> 32.8 | L29: =(K29-PS1CMin)/(PS1CMax-PS1CMin) -> 0.6851735016 | M29: =_xlfn.RANK.EQ(L29,$L$7:$L$164) -> 33 | N29: =AVERAGE(F29,I29,L29) -> 0.4507801761 | O29: =(N29-PS1AvMin)/(PS1AvMax-PS1AvMin) -> 0.6226458241 | P29: =_xlfn.RANK.EQ(O29,$O$7:$O$164) -> 60 | Q29: =VLOOKUP(A29,PS2A,3,FALSE) -> 0.4398754563 | R29: =_xlfn.RANK.EQ(Q29,$Q$7:$Q$164) -> 76 | S29: =VLOOKUP(A29,PS2B,6,FALSE) -> 66 | T29: =VLOOKUP(A29,PS2B,2,FALSE) -> 12.84 | U29: =SQRT(S29*(100-T29)) -> 75.8456327 | V29: =(U29-PS2BMin)/(PS2BMax-PS2BMin) -> 0.5978408767 | W29: =_xlfn.RANK.EQ(V29,$V$7:$V$164) -> 92 | X29: =VLOOKUP(A29,PS2C_Source,3,FALSE) -> 100 | Y29: =(X29-PS2CMin)/(PS2CMax-PS2CMin) -> 1 | Z29: =_xlfn.RANK.EQ(Y29,$Y$7:$Y$164) -> 1 | AA29: =AVERAGE(Q29,V29,Y29) -> 0.6792387777 | AB29: =(AA29-PS2AvMin)/(PS2AvMax-PS2AvMin) -> 0.7022056915 | AC29: =_xlfn.RANK.EQ(AB29,$AB$7:$AB$164) -> 60 | AD29: =VLOOKUP(A29,PS_3,25,FALSE) -> -0.16155 | AE29: =(AD29-PS3Max)/(PS3Min-PS3Max) -> 0.3928083364 | AF29: =_xlfn.RANK.EQ(AE29,$AE$7:$AE$164) -> 29 | AG29: =AVERAGE(N29,AA29,AE29) -> 0.5076090967 | AH29: =(AG29-PSMin)/(PSMax-PSMin) -> 0.6281522505 | AI29: =_xlfn.RANK.EQ(AH29,$AH$7:$AH$164) -> 39 | AJ29: =VLOOKUP(A29,T1_VAT,13,FALSE) -> 20 | AK29: =(AJ29-T1_VATMax)/(T1_VATMin-T1_VATMax) -> 0.2 | AL29: =VLOOKUP(A29,T1_PIT,60,FALSE) -> 0 | AM29: =(AL29-T1_PITMin)/(T1_PITMax-T1_PITMin) -> 0 | AN29: =VLOOKUP(A29,T1_CIT,4,FALSE) -> 10 | AO29: =(AN29-T1_CITMIn)/(T1_CITMAx-T1_CITMIn) -> 0.25 | AP29: =AVERAGE(AK29,AM29,AO29) -> 0.15 | AQ29: =(AP29-T1AMin)/(T1AMax-T1AMin) -> 0.05456993612 | AR29: =VLOOKUP(A29,T1_HTP,5,FALSE) -> 1.5 | AS29: =(AR29-T1_HTPMax)/(T1_HTPMin-T1_HTPMax) -> 0.8333333333 | AT29: =AVERAGE(AQ29,AS29) -> 0.4439516347 | AU29: =(AT29-T1A_B_Min)/(T1A_B_Max-T1A_B_Min) -> 0.2608876421 | AV29: =RANK(AU29,$AU$7:$AU$164,0) -> 145 | AW29: =VLOOKUP(A29,T_2,20,FALSE) -> 0.6382192076 | AX29: =(AW29-T2Min)/(T2Max-T2Min) -> 0.8382472544 | AY29: =RANK(AX29,$AX$7:$AX$164,0) -> 10 | AZ29: =VLOOKUP(A29,T_3,30,FALSE) -> 0.04677 | BA29: =(AZ29-T3Max)/(T3Min-T3Max) -> 0.3674637883 | BB29: =RANK(BA29,$BA$7:$BA$164,0) -> 152 | BC29: =AVERAGE(AU29,AX29,BA29) -> 0.4888662283 | BD29: =(BC29-TMin)/(TMax-TMin) -> 0.4189428081 | BE29: =RANK(BD29,$BD$7:$BD$164,0) -> 125 | BF29: =VLOOKUP(A29,L1A,2,FALSE) -> 3.091579 | BG29: =(BF29-L1AMax)/(L1AMin-L1AMax) -> 0.6908421 | BH29: =RANK(BG29,$BG$7:$BG$164,0) -> 84 | BI29: =VLOOKUP(A29,L1B,9,FALSE) -> 0.8182213192 | BJ29: =(BI29-L1BMin)/(L1BMax-L1BMin) -> 0.8159590194 | BK29: =RANK(BJ29,$BJ$7:$BJ$164,0) -> 60 | BL29: =VLOOKUP(A29,L1C,6,FALSE) -> 0.4054078267 | BM29: =(BL29-L1CMin)/(L1CMax-L1CMin) -> 0.1861644923 | BN29: =RANK(BM29,$BM$7:$BM$164,0) -> 84 | BO29: =AVERAGE(BG29,BJ29,BM29) -> 0.5643218706 | BP29: =(BO29-L1Min)/(L1Max-L1Min) -> 0.6153165841 | BQ29: =RANK(BP29,$BP$7:$BP$164,0) -> 72 | BR29: =VLOOKUP(A29,L_2,3,FALSE) -> 4.34 | BS29: =VLOOKUP($A29,L_2,2,FALSE) -> 7.794 | BT29: =BS29-BS29*BR29/100 -> 7.4557404 | BU29: =BR29+BT29 -> 11.7957404 | BV29: =(BU29-L2Max)/(L2Min-L2Max) -> 0.9493814392 | BW29: =RANK(BV29,$BV$7:$BV$164,0) -> 15 | BX29: =VLOOKUP(A29,L_3,2,FALSE) -> 0.3427053947 | BY29: =(BX29-L3Max)/(L3Min-L3Max) -> 0.8686632136 | BZ29: =RANK(BY29,$BY$7:$BY$164,0) -> 20 | CA29: =AVERAGE(BP29,BV29,BY29) -> 0.8111204123 | CB29: =(CA29-LMin)/(LMax-LMin) -> 0.8618207774 | CC29: =RANK(CB29,$CB$7:$CB$164,0) -> 26 | CD29: =AVERAGE(AH29,BD29,CB29) -> 0.6363052786 | CE29: =(CD29-OverallScoreMin)/(OverallScoreMax-OverallScoreMin) -> 0.7210760066 | CF29: =RANK(CE29,$CE$7:$CE$164,0) -> 42
A30: Burkina Faso | B30: =VLOOKUP(A30,Source_WB_country_income,6,FALSE) -> LIC | C30: SSA | E30: =VLOOKUP(A30,PS1_Summary,3,FALSE) -> 22.89 | F30: =(E30-PS1AMin)/(PS1AMax-PS1AMin) -> 0.8187280921 | G30: =_xlfn.RANK.EQ(F30,$F$7:$F$164) -> 9 | H30: =VLOOKUP(A30,PS1_Summary,10,FALSE) -> 10.66 | I30: =(H30-PS1BMin)/(PS1BMax-PS1BMin) -> 0.3776793873 | J30: =_xlfn.RANK.EQ(I30,$I$7:$I$164) -> 78 | K30: =VLOOKUP(A30,PS1_Summary,17,FALSE) -> 4.54 | L30: =(K30-PS1CMin)/(PS1CMax-PS1CMin) -> 0.09085173502 | M30: =_xlfn.RANK.EQ(L30,$L$7:$L$164) -> 139 | N30: =AVERAGE(F30,I30,L30) -> 0.4290864048 | O30: =(N30-PS1AvMin)/(PS1AvMax-PS1AvMin) -> 0.5892011039 | P30: =_xlfn.RANK.EQ(O30,$O$7:$O$164) -> 71 | Q30: =VLOOKUP(A30,PS2A,3,FALSE) -> 0.001785162122 | R30: =_xlfn.RANK.EQ(Q30,$Q$7:$Q$164) -> 154 | S30: =VLOOKUP(A30,PS2B,6,FALSE) -> 40 | T30: =VLOOKUP(A30,PS2B,2,FALSE) -> 3.13 | U30: =SQRT(S30*(100-T30)) -> 62.24789153 | V30: =(U30-PS2BMin)/(PS2BMax-PS2BMin) -> 0.2806554473 | W30: =_xlfn.RANK.EQ(V30,$V$7:$V$164) -> 136 | X30: =VLOOKUP(A30,PS2C_Source,3,FALSE) -> 2.70398 | Y30: =(X30-PS2CMin)/(PS2CMax-PS2CMin) -> 0.0270398 | Z30: =_xlfn.RANK.EQ(Y30,$Y$7:$Y$164) -> 146 | AA30: =AVERAGE(Q30,V30,Y30) -> 0.1031601365 | AB30: =(AA30-PS2AvMin)/(PS2AvMax-PS2AvMin) -> 0.09984501302 | AC30: =_xlfn.RANK.EQ(AB30,$AB$7:$AB$164) -> 148 | AD30: =VLOOKUP(A30,PS_3,25,FALSE) -> -0.029195 | AE30: =(AD30-PS3Max)/(PS3Min-PS3Max) -> 0.06538991054 | AF30: =_xlfn.RANK.EQ(AE30,$AE$7:$AE$164) -> 99 | AG30: =AVERAGE(N30,AA30,AE30) -> 0.1992121506 | AH30: =(AG30-PSMin)/(PSMax-PSMin) -> 0.223351777 | AI30: =_xlfn.RANK.EQ(AH30,$AH$7:$AH$164) -> 122 | AJ30: =VLOOKUP(A30,T1_VAT,13,FALSE) -> 9 | AK30: =(AJ30-T1_VATMax)/(T1_VATMin-T1_VATMax) -> 0.64 | AL30: =VLOOKUP(A30,T1_PIT,60,FALSE) -> 0.05125649433 | AM30: =(AL30-T1_PITMin)/(T1_PITMax-T1_PITMin) -> 0.3152983685 | AN30: =VLOOKUP(A30,T1_CIT,4,FALSE) -> 27.5 | AO30: =(AN30-T1_CITMIn)/(T1_CITMAx-T1_CITMIn) -> 0.6875 | AP30: =AVERAGE(AK30,AM30,AO30) -> 0.5475994562 | AQ30: =(AP30-T1AMin)/(T1AMax-T1AMin) -> 0.5752973823 | AR30: =VLOOKUP(A30,T1_HTP,5,FALSE) -> 0 | AS30: =(AR30-T1_HTPMax)/(T1_HTPMin-T1_HTPMax) -> 1 | AT30: =AVERAGE(AQ30,AS30) -> 0.7876486911 | AU30: =(AT30-T1A_B_Min)/(T1A_B_Max-T1A_B_Min) -> 0.717737725 | AV30: =RANK(AU30,$AU$7:$AU$164,0) -> 34 | AW30: =VLOOKUP(A30,T_2,20,FALSE) -> 0.3537093428 | AX30: =(AW30-T2Min)/(T2Max-T2Min) -> 0.4645674744 | AY30: =RANK(AX30,$AX$7:$AX$164,0) -> 89 | AZ30: =VLOOKUP(A30,T_3,30,FALSE) -> 0.03783770055 | BA30: =(AZ30-T3Max)/(T3Min-T3Max) -> 0.416074201 | BB30: =RANK(BA30,$BA$7:$BA$164,0) -> 146 | BC30: =AVERAGE(AU30,AX30,BA30) -> 0.5327931335 | BD30: =(BC30-TMin)/(TMax-TMin) -> 0.5239529926 | BE30: =RANK(BD30,$BD$7:$BD$164,0) -> 94 | BF30: =VLOOKUP(A30,L1A,2,FALSE) -> 1.988421 | BG30: =(BF30-L1AMax)/(L1AMin-L1AMax) -> 0.8011579 | BH30: =RANK(BG30,$BG$7:$BG$164,0) -> 47 | BI30: =VLOOKUP(A30,L1B,9,FALSE) -> 0.7633157245 | BJ30: =(BI30-L1BMin)/(L1BMax-L1BMin) -> 0.7492943263 | BK30: =RANK(BJ30,$BJ$7:$BJ$164,0) -> 83 | BL30: =VLOOKUP(A30,L1C,6,FALSE) -> 0.9965426503 | BM30: =(BL30-L1CMin)/(L1CMax-L1CMin) -> 0.4576153798 | BN30: =RANK(BM30,$BM$7:$BM$164,0) -> 20 | BO30: =AVERAGE(BG30,BJ30,BM30) -> 0.6693558687 | BP30: =(BO30-L1Min)/(L1Max-L1Min) -> 0.7886433215 | BQ30: =RANK(BP30,$BP$7:$BP$164,0) -> 20 | BR30: =VLOOKUP(A30,L_2,3,FALSE) -> 6.264 | BS30: =VLOOKUP($A30,L_2,2,FALSE) -> 86.419 | BT30: =BS30-BS30*BR30/100 -> 81.00571384 | BU30: =BR30+BT30 -> 87.26971384 | BV30: =(BU30-L2Max)/(L2Min-L2Max) -> 0.08465357316 | BW30: =RANK(BV30,$BV$7:$BV$164,0) -> 152 | BX30: =VLOOKUP(A30,L_3,2,FALSE) -> 0.7246639927 | BY30: =(BX30-L3Max)/(L3Min-L3Max) -> 0.2141425472 | BZ30: =RANK(BY30,$BY$7:$BY$164,0) -> 143 | CA30: =AVERAGE(BP30,BV30,BY30) -> 0.362479814 | CB30: =(CA30-LMin)/(LMax-LMin) -> 0.2605975111 | CC30: =RANK(CB30,$CB$7:$CB$164,0) -> 134 | CD30: =AVERAGE(AH30,BD30,CB30) -> 0.3359674269 | CE30: =(CD30-OverallScoreMin)/(OverallScoreMax-OverallScoreMin) -> 0.3340481433 | CF30: =RANK(CE30,$CE$7:$CE$164,0) -> 134
A31: Burundi | B31: =VLOOKUP(A31,Source_WB_country_income,6,FALSE) -> LIC | C31: SSA | E31: =VLOOKUP(A31,PS1_Summary,3,FALSE) -> 18.03 | F31: =(E31-PS1AMin)/(PS1AMax-PS1AMin) -> 0.5753630446 | G31: =_xlfn.RANK.EQ(F31,$F$7:$F$164) -> 34 | H31: =VLOOKUP(A31,PS1_Summary,10,FALSE) -> 12 | I31: =(H31-PS1BMin)/(PS1BMax-PS1BMin) -> 0.437500945 | J31: =_xlfn.RANK.EQ(I31,$I$7:$I$164) -> 58 | K31: =VLOOKUP(A31,PS1_Summary,17,FALSE) -> 4.18521 | L31: =(K31-PS1CMin)/(PS1CMax-PS1CMin) -> 0.08339032597 | M31: =_xlfn.RANK.EQ(L31,$L$7:$L$164) -> 141 | N31: =AVERAGE(F31,I31,L31) -> 0.3654181052 | O31: =(N31-PS1AvMin)/(PS1AvMax-PS1AvMin) -> 0.4910453505 | P31: =_xlfn.RANK.EQ(O31,$O$7:$O$164) -> 91 | Q31: =VLOOKUP(A31,PS2A,3,FALSE) -> 0.01609190466 | R31: =_xlfn.RANK.EQ(Q31,$Q$7:$Q$164) -> 137 | S31: =VLOOKUP(A31,PS2B,6,FALSE) -> 42 | T31: =VLOOKUP(A31,PS2B,2,FALSE) -> 3.29 | U31: =SQRT(S31*(100-T31)) -> 63.73240934 | V31: =(U31-PS2BMin)/(PS2BMax-PS2BMin) -> 0.315283803 | W31: =_xlfn.RANK.EQ(V31,$V$7:$V$164) -> 134 | X31: =VLOOKUP(A31,PS2C_Source,3,FALSE) -> 3.95487 | Y31: =(X31-PS2CMin)/(PS2CMax-PS2CMin) -> 0.0395487 | Z31: =_xlfn.RANK.EQ(Y31,$Y$7:$Y$164) -> 141 | AA31: =AVERAGE(Q31,V31,Y31) -> 0.1236414692 | AB31: =(AA31-PS2AvMin)/(PS2AvMax-PS2AvMin) -> 0.1212607514 | AC31: =_xlfn.RANK.EQ(AB31,$AB$7:$AB$164) -> 144 | AD31: =VLOOKUP(A31,PS_3,25,FALSE) -> -0.023622 | AE31: =(AD31-PS3Max)/(PS3Min-PS3Max) -> 0.05160348095 | AF31: =_xlfn.RANK.EQ(AE31,$AE$7:$AE$164) -> 112 | AG31: =AVERAGE(N31,AA31,AE31) -> 0.1802210185 | AH31: =(AG31-PSMin)/(PSMax-PSMin) -> 0.1984241006 | AI31: =_xlfn.RANK.EQ(AH31,$AH$7:$AH$164) -> 127 | AJ31: =VLOOKUP(A31,T1_VAT,13,FALSE) -> 5 | AK31: =(AJ31-T1_VATMax)/(T1_VATMin-T1_VATMax) -> 0.8 | AL31: =VLOOKUP(A31,T1_PIT,60,FALSE) -> 0.08770819109 | AM31: =(AL31-T1_PITMin)/(T1_PITMax-T1_PITMin) -> 0.5395267452 | AN31: =VLOOKUP(A31,T1_CIT,4,FALSE) -> 30 | AO31: =(AN31-T1_CITMIn)/(T1_CITMAx-T1_CITMIn) -> 0.75 | AP31: =AVERAGE(AK31,AM31,AO31) -> 0.6965089151 | AQ31: =(AP31-T1AMin)/(T1AMax-T1AMin) -> 0.7703208941 | AR31: =VLOOKUP(A31,T1_HTP,5,FALSE) -> 0 | AS31: =(AR31-T1_HTPMax)/(T1_HTPMin-T1_HTPMax) -> 1 | AT31: =AVERAGE(AQ31,AS31) -> 0.885160447 | AU31: =(AT31-T1A_B_Min)/(T1A_B_Max-T1A_B_Min) -> 0.847352608 | AV31: =RANK(AU31,$AU$7:$AU$164,0) -> 6 | AW31: =VLOOKUP(A31,T_2,20,FALSE) -> 0.1543279416 | AX31: =(AW31-T2Min)/(T2Max-T2Min) -> 0.2026967722 | AY31: =RANK(AX31,$AX$7:$AX$164,0) -> 149 | AZ31: =VLOOKUP(A31,T_3,30,FALSE) -> 0.01358990034 | BA31: =(AZ31-T3Max)/(T3Min-T3Max) -> 0.5480330077 | BB31: =RANK(BA31,$BA$7:$BA$164,0) -> 109 | BC31: =AVERAGE(AU31,AX31,BA31) -> 0.5326941293 | BD31: =(BC31-TMin)/(TMax-TMin) -> 0.5237163165 | BE31: =RANK(BD31,$BD$7:$BD$164,0) -> 95 | BF31: =VLOOKUP(A31,L1A,2,FALSE) -> 3.694737 | BG31: =(BF31-L1AMax)/(L1AMin-L1AMax) -> 0.6305263 | BH31: =RANK(BG31,$BG$7:$BG$164,0) -> 98 | BI31: =VLOOKUP(A31,L1B,9,FALSE) -> 0.8255424135 | BJ31: =(BI31-L1BMin)/(L1BMax-L1BMin) -> 0.824848068 | BK31: =RANK(BJ31,$BJ$7:$BJ$164,0) -> 52 | BL31: =VLOOKUP(A31,L1C,6,FALSE) -> 0.04658037863 | BM31: =(BL31-L1CMin)/(L1CMax-L1CMin) -> 0.02138984985 | BN31: =RANK(BM31,$BM$7:$BM$164,0) -> 144 | BO31: =AVERAGE(BG31,BJ31,BM31) -> 0.4922547393 | BP31: =(BO31-L1Min)/(L1Max-L1Min) -> 0.4963916553 | BQ31: =RANK(BP31,$BP$7:$BP$164,0) -> 103 | BR31: =VLOOKUP(A31,L_2,3,FALSE) -> 1.427 | BS31: =VLOOKUP($A31,L_2,2,FALSE) -> 94.581 | BT31: =BS31-BS31*BR31/100 -> 93.23132913 | BU31: =BR31+BT31 -> 94.65832913 | BV31: =(BU31-L2Max)/(L2Min-L2Max) -> 0 | BW31: =RANK(BV31,$BV$7:$BV$164,0) -> 158 | BX31: =VLOOKUP(A31,L_3,2,FALSE) -> 0.7550838243 | BY31: =(BX31-L3Max)/(L3Min-L3Max) -> 0.1620154094 | BZ31: =RANK(BY31,$BY$7:$BY$164,0) -> 149 | CA31: =AVERAGE(BP31,BV31,BY31) -> 0.2194690216 | CB31: =(CA31-LMin)/(LMax-LMin) -> 0.06894874805 | CC31: =RANK(CB31,$CB$7:$CB$164,0) -> 156 | CD31: =AVERAGE(AH31,BD31,CB31) -> 0.2636963884 | CE31: =(CD31-OverallScoreMin)/(OverallScoreMax-OverallScoreMin) -> 0.2409166733 | CF31: =RANK(CE31,$CE$7:$CE$164,0) -> 147
A32: Cabo Verde | B32: =VLOOKUP(A32,Source_WB_country_income,6,FALSE) -> LMIC | C32: SSA | E32: =VLOOKUP(A32,PS1_Summary,3,FALSE) -> 18.66 | F32: =(E32-PS1AMin)/(PS1AMax-PS1AMin) -> 0.6069103655 | G32: =_xlfn.RANK.EQ(F32,$F$7:$F$164) -> 26 | H32: =VLOOKUP(A32,PS1_Summary,10,FALSE) -> 9.64 | I32: =(H32-PS1BMin)/(PS1BMax-PS1BMin) -> 0.3321435746 | J32: =_xlfn.RANK.EQ(I32,$I$7:$I$164) -> 100 | K32: =VLOOKUP(A32,PS1_Summary,17,FALSE) -> 11.34 | L32: =(K32-PS1CMin)/(PS1CMax-PS1CMin) -> 0.2338590957 | M32: =_xlfn.RANK.EQ(L32,$L$7:$L$164) -> 96 | N32: =AVERAGE(F32,I32,L32) -> 0.3909710119 | O32: =(N32-PS1AvMin)/(PS1AvMax-PS1AvMin) -> 0.530439599 | P32: =_xlfn.RANK.EQ(O32,$O$7:$O$164) -> 77 | Q32: =VLOOKUP(A32,PS2A,3,FALSE) -> 0.2773337062 | R32: =_xlfn.RANK.EQ(Q32,$Q$7:$Q$164) -> 94 | S32: =VLOOKUP(A32,PS2B,6,FALSE) -> 69 | T32: =VLOOKUP(A32,PS2B,2,FALSE) -> 6.993284817 | U32: =SQRT(S32*(100-T32)) -> 80.10907157 | V32: =(U32-PS2BMin)/(PS2BMax-PS2BMin) -> 0.6972912686 | W32: =_xlfn.RANK.EQ(V32,$V$7:$V$164) -> 70 | X32: =VLOOKUP(A32,PS2C_Source,3,FALSE) -> 85.8239 | Y32: =(X32-PS2CMin)/(PS2CMax-PS2CMin) -> 0.858239 | Z32: =_xlfn.RANK.EQ(Y32,$Y$7:$Y$164) -> 56 | AA32: =AVERAGE(Q32,V32,Y32) -> 0.6109546583 | AB32: =(AA32-PS2AvMin)/(PS2AvMax-PS2AvMin) -> 0.6308062929 | AC32: =_xlfn.RANK.EQ(AB32,$AB$7:$AB$164) -> 70 | AD32: =VLOOKUP(A32,PS_3,25,FALSE) -> -0.039082 | AE32: =(AD32-PS3Max)/(PS3Min-PS3Max) -> 0.08984826856 | AF32: =_xlfn.RANK.EQ(AE32,$AE$7:$AE$164) -> 76 | AG32: =AVERAGE(N32,AA32,AE32) -> 0.3639246463 | AH32: =(AG32-PSMin)/(PSMax-PSMin) -> 0.4395526735 | AI32: =_xlfn.RANK.EQ(AH32,$AH$7:$AH$164) -> 76 | AJ32: =VLOOKUP(A32,T1_VAT,13,FALSE) -> 7.5 | AK32: =(AJ32-T1_VATMax)/(T1_VATMin-T1_VATMax) -> 0.7 | AL32: =VLOOKUP(A32,T1_PIT,60,FALSE) -> 0.02842590746 | AM32: =(AL32-T1_PITMin)/(T1_PITMax-T1_PITMin) -> 0.1748586664 | AN32: =VLOOKUP(A32,T1_CIT,4,FALSE) -> 22 | AO32: =(AN32-T1_CITMIn)/(T1_CITMAx-T1_CITMIn) -> 0.55 | AP32: =AVERAGE(AK32,AM32,AO32) -> 0.4749528888 | AQ32: =(AP32-T1AMin)/(T1AMax-T1AMin) -> 0.4801537373 | AR32: =VLOOKUP(A32,T1_HTP,5,FALSE) -> 0.5 | AS32: =(AR32-T1_HTPMax)/(T1_HTPMin-T1_HTPMax) -> 0.9444444444 | AT32: =AVERAGE(AQ32,AS32) -> 0.7122990909 | AU32: =(AT32-T1A_B_Min)/(T1A_B_Max-T1A_B_Min) -> 0.6175812922 | AV32: =RANK(AU32,$AU$7:$AU$164,0) -> 66 | AW32: =VLOOKUP(A32,T_2,20,FALSE) -> 0.1912470824 | AX32: =(AW32-T2Min)/(T2Max-T2Min) -> 0.2511869587 | AY32: =RANK(AX32,$AX$7:$AX$164,0) -> 138 | AZ32: =VLOOKUP(A32,T_3,30,FALSE) -> 0.02358214721 | BA32: =(AZ32-T3Max)/(T3Min-T3Max) -> 0.4936542615 | BB32: =RANK(BA32,$BA$7:$BA$164,0) -> 131 | BC32: =AVERAGE(AU32,AX32,BA32) -> 0.4541408375 | BD32: =(BC32-TMin)/(TMax-TMin) -> 0.335929455 | BE32: =RANK(BD32,$BD$7:$BD$164,0) -> 141 | BF32: =VLOOKUP(A32,L1A,2,FALSE) -> 0.474737 | BG32: =(BF32-L1AMax)/(L1AMin-L1AMax) -> 0.9525263 | BH32: =RANK(BG32,$BG$7:$BG$164,0) -> 11 | BI32: =VLOOKUP(A32,L1B,9,FALSE) -> 0.8174152819 | BJ32: =(BI32-L1BMin)/(L1BMax-L1BMin) -> 0.8149803536 | BK32: =RANK(BJ32,$BJ$7:$BJ$164,0) -> 61 | BL32: =VLOOKUP(A32,L1C,6,FALSE) -> 0.4435961483 | BM32: =(BL32-L1CMin)/(L1CMax-L1CMin) -> 0.2037006844 | BN32: =RANK(BM32,$BM$7:$BM$164,0) -> 75 | BO32: =AVERAGE(BG32,BJ32,BM32) -> 0.6570691126 | BP32: =(BO32-L1Min)/(L1Max-L1Min) -> 0.7683677596 | BQ32: =RANK(BP32,$BP$7:$BP$164,0) -> 24 | BR32: =VLOOKUP(A32,L_2,3,FALSE) -> 12.249 | BS32: =VLOOKUP($A32,L_2,2,FALSE) -> 35.168 | BT32: =BS32-BS32*BR32/100 -> 30.86027168 | BU32: =BR32+BT32 -> 43.10927168 | BV32: =(BU32-L2Max)/(L2Min-L2Max) -> 0.5906129545 | BW32: =RANK(BV32,$BV$7:$BV$164,0) -> 82 | BX32: =VLOOKUP(A32,L_3,2,FALSE) -> 0.5013029275 | BY32: =(BX32-L3Max)/(L3Min-L3Max) -> 0.5968919708 | BZ32: =RANK(BY32,$BY$7:$BY$164,0) -> 96 | CA32: =AVERAGE(BP32,BV32,BY32) -> 0.6519575616 | CB32: =(CA32-LMin)/(LMax-LMin) -> 0.6485266411 | CC32: =RANK(CB32,$CB$7:$CB$164,0) -> 57 | CD32: =AVERAGE(AH32,BD32,CB32) -> 0.4746695899 | CE32: =(CD32-OverallScoreMin)/(OverallScoreMax-OverallScoreMin) -> 0.5127855267 | CF32: =RANK(CE32,$CE$7:$CE$164,0) -> 91
A33: Cambodia | B33: =VLOOKUP(A33,Source_WB_country_income,6,FALSE) -> LMIC | C33: EAP | E33: =VLOOKUP(A33,PS1_Summary,3,FALSE) -> 17.65055317 | F33: =(E33-PS1AMin)/(PS1AMax-PS1AMin) -> 0.5563622019 | G33: =_xlfn.RANK.EQ(F33,$F$7:$F$164) -> 41 | H33: =VLOOKUP(A33,PS1_Summary,10,FALSE) -> 8.612241169 | I33: =(H33-PS1BMin)/(PS1BMax-PS1BMin) -> 0.2862613848 | J33: =_xlfn.RANK.EQ(I33,$I$7:$I$164) -> 109 | K33: =VLOOKUP(A33,PS1_Summary,17,FALSE) -> 6.367801773 | L33: =(K33-PS1CMin)/(PS1CMax-PS1CMin) -> 0.1292913096 | M33: =_xlfn.RANK.EQ(L33,$L$7:$L$164) -> 127 | N33: =AVERAGE(F33,I33,L33) -> 0.3239716321 | O33: =(N33-PS1AvMin)/(PS1AvMax-PS1AvMin) -> 0.4271484063 | P33: =_xlfn.RANK.EQ(O33,$O$7:$O$164) -> 108 | Q33: =VLOOKUP(A33,PS2A,3,FALSE) -> 0.04673620356 | R33: =_xlfn.RANK.EQ(Q33,$Q$7:$Q$164) -> 124 | S33: =VLOOKUP(A33,PS2B,6,FALSE) -> 60 | T33: =VLOOKUP(A33,PS2B,2,FALSE) -> 15.27 | U33: =SQRT(S33*(100-T33)) -> 71.30077138 | V33: =(U33-PS2BMin)/(PS2BMax-PS2BMin) -> 0.4918259313 | W33: =_xlfn.RANK.EQ(V33,$V$7:$V$164) -> 110 | X33: =VLOOKUP(A33,PS2C_Source,3,FALSE) -> 3.17785 | Y33: =(X33-PS2CMin)/(PS2CMax-PS2CMin) -> 0.0317785 | Z33: =_xlfn.RANK.EQ(Y33,$Y$7:$Y$164) -> 145 | AA33: =AVERAGE(Q33,V33,Y33) -> 0.1901135449 | AB33: =(AA33-PS2AvMin)/(PS2AvMax-PS2AvMin) -> 0.1907654367 | AC33: =_xlfn.RANK.EQ(AB33,$AB$7:$AB$164) -> 127 | AD33: =VLOOKUP(A33,PS_3,25,FALSE) -> -0.013049725 | AE33: =(AD33-PS3Max)/(PS3Min-PS3Max) -> 0.02544989674 | AF33: =_xlfn.RANK.EQ(AE33,$AE$7:$AE$164) -> 142 | AG33: =AVERAGE(N33,AA33,AE33) -> 0.1798450246 | AH33: =(AG33-PSMin)/(PSMax-PSMin) -> 0.1979305727 | AI33: =_xlfn.RANK.EQ(AH33,$AH$7:$AH$164) -> 128 | AJ33: =VLOOKUP(A33,T1_VAT,13,FALSE) -> 0 | AK33: =(AJ33-T1_VATMax)/(T1_VATMin-T1_VATMax) -> 1 | AL33: =VLOOKUP(A33,T1_PIT,60,FALSE) -> 0.1115525822 | AM33: =(AL33-T1_PITMin)/(T1_PITMax-T1_PITMin) -> 0.6862027464 | AN33: =VLOOKUP(A33,T1_CIT,4,FALSE) -> 20 | AO33: =(AN33-T1_CITMIn)/(T1_CITMAx-T1_CITMIn) -> 0.5 | AP33: =AVERAGE(AK33,AM33,AO33) -> 0.7287342488 | AQ33: =(AP33-T1AMin)/(T1AMax-T1AMin) -> 0.8125257198 | AR33: =VLOOKUP(A33,T1_HTP,5,FALSE) -> 0.75 | AS33: =(AR33-T1_HTPMax)/(T1_HTPMin-T1_HTPMax) -> 0.9166666667 | AT33: =AVERAGE(AQ33,AS33) -> 0.8645961932 | AU33: =(AT33-T1A_B_Min)/(T1A_B_Max-T1A_B_Min) -> 0.8200181259 | AV33: =RANK(AU33,$AU$7:$AU$164,0) -> 12 | AW33: =VLOOKUP(A33,T_2,20,FALSE) -> 0.346541088 | AX33: =(AW33-T2Min)/(T2Max-T2Min) -> 0.4551525747 | AY33: =RANK(AX33,$AX$7:$AX$164,0) -> 92 | AZ33: =VLOOKUP(A33,T_3,30,FALSE) -> 0.01167178434 | BA33: =(AZ33-T3Max)/(T3Min-T3Max) -> 0.5584715752 | BB33: =RANK(BA33,$BA$7:$BA$164,0) -> 104 | BC33: =AVERAGE(AU33,AX33,BA33) -> 0.6112140919 | BD33: =(BC33-TMin)/(TMax-TMin) -> 0.7114235023 | BE33: =RANK(BD33,$BD$7:$BD$164,0) -> 33 | BF33: =VLOOKUP(A33,L1A,2,FALSE) -> 6.163158 | BG33: =(BF33-L1AMax)/(L1AMin-L1AMax) -> 0.3836842 | BH33: =RANK(BG33,$BG$7:$BG$164,0) -> 135 | BI33: =VLOOKUP(A33,L1B,9,FALSE) -> 0.7470614614 | BJ33: =(BI33-L1BMin)/(L1BMax-L1BMin) -> 0.7295588973 | BK33: =RANK(BJ33,$BJ$7:$BJ$164,0) -> 108 | BL33: =VLOOKUP(A33,L1C,6,FALSE) -> 0 | BM33: =(BL33-L1CMin)/(L1CMax-L1CMin) -> 0 | BN33: =RANK(BM33,$BM$7:$BM$164,0) -> 148 | BO33: =AVERAGE(BG33,BJ33,BM33) -> 0.3710810324 | BP33: =(BO33-L1Min)/(L1Max-L1Min) -> 0.2964312268 | BQ33: =RANK(BP33,$BP$7:$BP$164,0) -> 139 | BR33: =VLOOKUP(A33,L_2,3,FALSE) -> 0.677 | BS33: =VLOOKUP($A33,L_2,2,FALSE) -> 50.279 | BT33: =BS33-BS33*BR33/100 -> 49.93861117 | BU33: =BR33+BT33 -> 50.61561117 | BV33: =(BU33-L2Max)/(L2Min-L2Max) -> 0.50461058 | BW33: =RANK(BV33,$BV$7:$BV$164,0) -> 98 | BX33: =VLOOKUP(A33,L_3,2,FALSE) -> 0.5263149326 | BY33: =(BX33-L3Max)/(L3Min-L3Max) -> 0.5540316339 | BZ33: =RANK(BY33,$BY$7:$BY$164,0) -> 102 | CA33: =AVERAGE(BP33,BV33,BY33) -> 0.4516911469 | CB33: =(CA33-LMin)/(LMax-LMin) -> 0.3801496184 | CC33: =RANK(CB33,$CB$7:$CB$164,0) -> 114 | CD33: =AVERAGE(AH33,BD33,CB33) -> 0.4298345645 | CE33: =(CD33-OverallScoreMin)/(OverallScoreMax-OverallScoreMin) -> 0.4550092459 | CF33: =RANK(CE33,$CE$7:$CE$164,0) -> 111
A34: Cameroon | B34: =VLOOKUP(A34,Source_WB_country_income,6,FALSE) -> LMIC | C34: SSA | E34: =VLOOKUP(A34,PS1_Summary,3,FALSE) -> 17.21 | F34: =(E34-PS1AMin)/(PS1AMax-PS1AMin) -> 0.5343014522 | G34: =_xlfn.RANK.EQ(F34,$F$7:$F$164) -> 48 | H34: =VLOOKUP(A34,PS1_Summary,10,FALSE) -> 5.21 | I34: =(H34-PS1BMin)/(PS1BMax-PS1BMin) -> 0.1343752903 | J34: =_xlfn.RANK.EQ(I34,$I$7:$I$164) -> 142 | K34: =VLOOKUP(A34,PS1_Summary,17,FALSE) -> 5.81842 | L34: =(K34-PS1CMin)/(PS1CMax-PS1CMin) -> 0.1177375394 | M34: =_xlfn.RANK.EQ(L34,$L$7:$L$164) -> 132 | N34: =AVERAGE(F34,I34,L34) -> 0.262138094 | O34: =(N34-PS1AvMin)/(PS1AvMax-PS1AvMin) -> 0.3318212567 | P34: =_xlfn.RANK.EQ(O34,$O$7:$O$164) -> 130 | Q34: =VLOOKUP(A34,PS2A,3,FALSE) -> 0.004245436977 | R34: =_xlfn.RANK.EQ(Q34,$Q$7:$Q$164) -> 151 | S34: =VLOOKUP(A34,PS2B,6,FALSE) -> 46 | T34: =VLOOKUP(A34,PS2B,2,FALSE) -> 10.78 | U34: =SQRT(S34*(100-T34)) -> 64.06340609 | V34: =(U34-PS2BMin)/(PS2BMax-PS2BMin) -> 0.3230047433 | W34: =_xlfn.RANK.EQ(V34,$V$7:$V$164) -> 133 | X34: =VLOOKUP(A34,PS2C_Source,3,FALSE) -> 13.0037 | Y34: =(X34-PS2CMin)/(PS2CMax-PS2CMin) -> 0.130037 | Z34: =_xlfn.RANK.EQ(Y34,$Y$7:$Y$164) -> 118 | AA34: =AVERAGE(Q34,V34,Y34) -> 0.1524290601 | AB34: =(AA34-PS2AvMin)/(PS2AvMax-PS2AvMin) -> 0.1513616986 | AC34: =_xlfn.RANK.EQ(AB34,$AB$7:$AB$164) -> 132 | AD34: =VLOOKUP(A34,PS_3,25,FALSE) -> -0.011876 | AE34: =(AD34-PS3Max)/(PS3Min-PS3Max) -> 0.02254634801 | AF34: =_xlfn.RANK.EQ(AE34,$AE$7:$AE$164) -> 146 | AG34: =AVERAGE(N34,AA34,AE34) -> 0.1457045007 | AH34: =(AG34-PSMin)/(PSMax-PSMin) -> 0.1531178713 | AI34: =_xlfn.RANK.EQ(AH34,$AH$7:$AH$164) -> 143 | AJ34: =VLOOKUP(A34,T1_VAT,13,FALSE) -> 0 | AK34: =(AJ34-T1_VATMax)/(T1_VATMin-T1_VATMax) -> 1 | AL34: =VLOOKUP(A34,T1_PIT,60,FALSE) -> 0.05713415282 | AM34: =(AL34-T1_PITMin)/(T1_PITMax-T1_PITMin) -> 0.3514541017 | AN34: =VLOOKUP(A34,T1_CIT,4,FALSE) -> 33 | AO34: =(AN34-T1_CITMIn)/(T1_CITMAx-T1_CITMIn) -> 0.825 | AP34: =AVERAGE(AK34,AM34,AO34) -> 0.7254847006 | AQ34: =(AP34-T1AMin)/(T1AMax-T1AMin) -> 0.8082698564 | AR34: =VLOOKUP(A34,T1_HTP,5,FALSE) -> 0.75 | AS34: =(AR34-T1_HTPMax)/(T1_HTPMin-T1_HTPMax) -> 0.9166666667 | AT34: =AVERAGE(AQ34,AS34) -> 0.8624682615 | AU34: =(AT34-T1A_B_Min)/(T1A_B_Max-T1A_B_Min) -> 0.8171896298 | AV34: =RANK(AU34,$AU$7:$AU$164,0) -> 13 | AW34: =VLOOKUP(A34,T_2,20,FALSE) -> 0.1984375422 | AX34: =(AW34-T2Min)/(T2Max-T2Min) -> 0.260631023 | AY34: =RANK(AX34,$AX$7:$AX$164,0) -> 135 | AZ34: =VLOOKUP(A34,T_3,30,FALSE) -> 0.005681358874 | BA34: =(AZ34-T3Max)/(T3Min-T3Max) -> 0.5910720333 | BB34: =RANK(BA34,$BA$7:$BA$164,0) -> 85 | BC34: =AVERAGE(AU34,AX34,BA34) -> 0.556297562 | BD34: =(BC34-TMin)/(TMax-TMin) -> 0.5801418901 | BE34: =RANK(BD34,$BD$7:$BD$164,0) -> 79 | BF34: =VLOOKUP(A34,L1A,2,FALSE) -> 5.243158 | BG34: =(BF34-L1AMax)/(L1AMin-L1AMax) -> 0.4756842 | BH34: =RANK(BG34,$BG$7:$BG$164,0) -> 128 | BI34: =VLOOKUP(A34,L1B,9,FALSE) -> 0.4973157245 | BJ34: =(BI34-L1BMin)/(L1BMax-L1BMin) -> 0.4263252649 | BK34: =RANK(BJ34,$BJ$7:$BJ$164,0) -> 141 | BL34: =VLOOKUP(A34,L1C,6,FALSE) -> 0.4920042215 | BM34: =(BL34-L1CMin)/(L1CMax-L1CMin) -> 0.2259298171 | BN34: =RANK(BM34,$BM$7:$BM$164,0) -> 55 | BO34: =AVERAGE(BG34,BJ34,BM34) -> 0.3759797607 | BP34: =(BO34-L1Min)/(L1Max-L1Min) -> 0.304515091 | BQ34: =RANK(BP34,$BP$7:$BP$164,0) -> 138 | BR34: =VLOOKUP(A34,L_2,3,FALSE) -> 3.38 | BS34: =VLOOKUP($A34,L_2,2,FALSE) -> 73.562 | BT34: =BS34-BS34*BR34/100 -> 71.0756044 | BU34: =BR34+BT34 -> 74.4556044 | BV34: =(BU34-L2Max)/(L2Min-L2Max) -> 0.231468654 | BW34: =RANK(BV34,$BV$7:$BV$164,0) -> 127 | BX34: =VLOOKUP(A34,L_3,2,FALSE) -> 0.695904228 | BY34: =(BX34-L3Max)/(L3Min-L3Max) -> 0.2634250098 | BZ34: =RANK(BY34,$BY$7:$BY$164,0) -> 137 | CA34: =AVERAGE(BP34,BV34,BY34) -> 0.2664695849 | CB34: =(CA34-LMin)/(LMax-LMin) -> 0.131934203 | CC34: =RANK(CB34,$CB$7:$CB$164,0) -> 152 | CD34: =AVERAGE(AH34,BD34,CB34) -> 0.2883979882 | CE34: =(CD34-OverallScoreMin)/(OverallScoreMax-OverallScoreMin) -> 0.2727481835 | CF34: =RANK(CE34,$CE$7:$CE$164,0) -> 139
A35: Canada | B35: =VLOOKUP(A35,Source_WB_country_income,6,FALSE) -> HIC | C35: NA | D35: OECD | E35: =VLOOKUP(A35,PS1_Summary,3,FALSE) -> 12.21914 | F35: =(E35-PS1AMin)/(PS1AMax-PS1AMin) -> 0.2843835754 | G35: =_xlfn.RANK.EQ(F35,$F$7:$F$164) -> 106 | H35: =VLOOKUP(A35,PS1_Summary,10,FALSE) -> 19.52697313 | I35: =(H35-PS1BMin)/(PS1BMax-PS1BMin) -> 0.7735272571 | J35: =_xlfn.RANK.EQ(I35,$I$7:$I$164) -> 6 | K35: =VLOOKUP(A35,PS1_Summary,17,FALSE) -> 25.48287696 | L35: =(K35-PS1CMin)/(PS1CMax-PS1CMin) -> 0.5312907878 | M35: =_xlfn.RANK.EQ(L35,$L$7:$L$164) -> 55 | N35: =AVERAGE(F35,I35,L35) -> 0.5297338734 | O35: =(N35-PS1AvMin)/(PS1AvMax-PS1AvMin) -> 0.7443666756 | P35: =_xlfn.RANK.EQ(O35,$O$7:$O$164) -> 31 | Q35: =VLOOKUP(A35,PS2A,3,FALSE) -> 0.7814043376 | R35: =_xlfn.RANK.EQ(Q35,$Q$7:$Q$164) -> 37 | S35: =VLOOKUP(A35,PS2B,6,FALSE) -> 89 | T35: =VLOOKUP(A35,PS2B,2,FALSE) -> 2.64 | U35: =SQRT(S35*(100-T35)) -> 93.08619661 | V35: =(U35-PS2BMin)/(PS2BMax-PS2BMin) -> 1 | W35: =_xlfn.RANK.EQ(V35,$V$7:$V$164) -> 1 | X35: =VLOOKUP(A35,PS2C_Source,3,FALSE) -> 100 | Y35: =(X35-PS2CMin)/(PS2CMax-PS2CMin) -> 1 | Z35: =_xlfn.RANK.EQ(Y35,$Y$7:$Y$164) -> 1 | AA35: =AVERAGE(Q35,V35,Y35) -> 0.9271347792 | AB35: =(AA35-PS2AvMin)/(PS2AvMax-PS2AvMin) -> 0.9614112807 | AC35: =_xlfn.RANK.EQ(AB35,$AB$7:$AB$164) -> 7 | AD35: =VLOOKUP(A35,PS_3,25,FALSE) -> -0.145078788 | AE35: =(AD35-PS3Max)/(PS3Min-PS3Max) -> 0.3520620231 | AF35: =_xlfn.RANK.EQ(AE35,$AE$7:$AE$164) -> 32 | AG35: =AVERAGE(N35,AA35,AE35) -> 0.6029768919 | AH35: =(AG35-PSMin)/(PSMax-PSMin) -> 0.7533315984 | AI35: =_xlfn.RANK.EQ(AH35,$AH$7:$AH$164) -> 26 | AJ35: =VLOOKUP(A35,T1_VAT,13,FALSE) -> 7 | AK35: =(AJ35-T1_VATMax)/(T1_VATMin-T1_VATMax) -> 0.72 | AL35: =VLOOKUP(A35,T1_PIT,60,FALSE) -> 0.02083259055 | AM35: =(AL35-T1_PITMin)/(T1_PITMax-T1_PITMin) -> 0.1281492599 | AN35: =VLOOKUP(A35,T1_CIT,4,FALSE) -> 26.7 | AO35: =(AN35-T1_CITMIn)/(T1_CITMAx-T1_CITMIn) -> 0.6675 | AP35: =AVERAGE(AK35,AM35,AO35) -> 0.50521642 | AQ35: =(AP35-T1AMin)/(T1AMax-T1AMin) -> 0.5197892324 | AR35: =VLOOKUP(A35,T1_HTP,5,FALSE) -> 0.5 | AS35: =(AR35-T1_HTPMax)/(T1_HTPMin-T1_HTPMax) -> 0.9444444444 | AT35: =AVERAGE(AQ35,AS35) -> 0.7321168384 | AU35: =(AT35-T1A_B_Min)/(T1A_B_Max-T1A_B_Min) -> 0.643923501 | AV35: =RANK(AU35,$AU$7:$AU$164,0) -> 58 | AW35: =VLOOKUP(A35,T_2,20,FALSE) -> 0.4273791711 | AX35: =(AW35-T2Min)/(T2Max-T2Min) -> 0.5613265982 | AY35: =RANK(AX35,$AX$7:$AX$164,0) -> 59 | AZ35: =VLOOKUP(A35,T_3,30,FALSE) -> -0.0270564 | BA35: =(AZ35-T3Max)/(T3Min-T3Max) -> 0.7692339926 | BB35: =RANK(BA35,$BA$7:$BA$164,0) -> 11 | BC35: =AVERAGE(AU35,AX35,BA35) -> 0.6581613639 | BD35: =(BC35-TMin)/(TMax-TMin) -> 0.8236540742 | BE35: =RANK(BD35,$BD$7:$BD$164,0) -> 8 | BF35: =VLOOKUP(A35,L1A,2,FALSE) -> 1.9 | BG35: =(BF35-L1AMax)/(L1AMin-L1AMax) -> 0.81 | BH35: =RANK(BG35,$BG$7:$BG$164,0) -> 46 | BI35: =VLOOKUP(A35,L1B,9,FALSE) -> 0.8614614324 | BJ35: =(BI35-L1BMin)/(L1BMax-L1BMin) -> 0.8684598418 | BK35: =RANK(BJ35,$BJ$7:$BJ$164,0) -> 21 | BL35: =VLOOKUP(A35,L1C,6,FALSE) -> 0.3816420186 | BM35: =(BL35-L1CMin)/(L1CMax-L1CMin) -> 0.1752511618 | BN35: =RANK(BM35,$BM$7:$BM$164,0) -> 88 | BO35: =AVERAGE(BG35,BJ35,BM35) -> 0.6179036679 | BP35: =(BO35-L1Min)/(L1Max-L1Min) -> 0.7037370792 | BQ35: =RANK(BP35,$BP$7:$BP$164,0) -> 44 | BR35: =VLOOKUP(A35,L_2,3,FALSE) -> 5.564 | BS35: =VLOOKUP($A35,L_2,2,FALSE) -> 10.691 | BT35: =BS35-BS35*BR35/100 -> 10.09615276 | BU35: =BR35+BT35 -> 15.66015276 | BV35: =(BU35-L2Max)/(L2Min-L2Max) -> 0.905105712 | BW35: =RANK(BV35,$BV$7:$BV$164,0) -> 32 | BX35: =VLOOKUP(A35,L_3,2,FALSE) -> 0.3420408781 | BY35: =(BX35-L3Max)/(L3Min-L3Max) -> 0.8698019231 | BZ35: =RANK(BY35,$BY$7:$BY$164,0) -> 19 | CA35: =AVERAGE(BP35,BV35,BY35) -> 0.8262149048 | CB35: =(CA35-LMin)/(LMax-LMin) -> 0.8820489068 | CC35: =RANK(CB35,$CB$7:$CB$164,0) -> 20 | CD35: =AVERAGE(AH35,BD35,CB35) -> 0.8196781931 | CE35: =(CD35-OverallScoreMin)/(OverallScoreMax-OverallScoreMin) -> 0.9573779808 | CF35: =RANK(CE35,$CE$7:$CE$164,0) -> 6
A36: Central African Republic | B36: =VLOOKUP(A36,Source_WB_country_income,6,FALSE) -> LIC | C36: SSA | E36: =VLOOKUP(A36,PS1_Summary,3,FALSE) -> 10.84 | F36: =(E36-PS1AMin)/(PS1AMax-PS1AMin) -> 0.2153229845 | G36: =_xlfn.RANK.EQ(F36,$F$7:$F$164) -> 127 | H36: =VLOOKUP(A36,PS1_Summary,10,FALSE) -> 10.58 | I36: =(H36-PS1BMin)/(PS1BMax-PS1BMin) -> 0.374107951 | J36: =_xlfn.RANK.EQ(I36,$I$7:$I$164) -> 81 | K36: =VLOOKUP(A36,PS1_Summary,17,FALSE) -> 7.64680421 | L36: =(K36-PS1CMin)/(PS1CMax-PS1CMin) -> 0.156189363 | M36: =_xlfn.RANK.EQ(L36,$L$7:$L$164) -> 115 | N36: =AVERAGE(F36,I36,L36) -> 0.2485400995 | O36: =(N36-PS1AvMin)/(PS1AvMax-PS1AvMin) -> 0.310857584 | P36: =_xlfn.RANK.EQ(O36,$O$7:$O$164) -> 134 | Q36: =VLOOKUP(A36,PS2A,3,FALSE) -> 0 | R36: =_xlfn.RANK.EQ(Q36,$Q$7:$Q$164) -> 156 | S36: =VLOOKUP(A36,PS2B,6,FALSE) -> 33 | T36: =VLOOKUP(A36,PS2B,2,FALSE) -> 6.75 | U36: =SQRT(S36*(100-T36)) -> 55.47296639 | V36: =(U36-PS2BMin)/(PS2BMax-PS2BMin) -> 0.122621292 | W36: =_xlfn.RANK.EQ(V36,$V$7:$V$164) -> 155 | X36: =VLOOKUP(A36,PS2C_Source,3,FALSE) -> 1.5 | Y36: =(X36-PS2CMin)/(PS2CMax-PS2CMin) -> 0.015 | Z36: =_xlfn.RANK.EQ(Y36,$Y$7:$Y$164) -> 151 | AA36: =AVERAGE(Q36,V36,Y36) -> 0.04587376399 | AB36: =(AA36-PS2AvMin)/(PS2AvMax-PS2AvMin) -> 0.03994510401 | AC36: =_xlfn.RANK.EQ(AB36,$AB$7:$AB$164) -> 155 | AD36: =VLOOKUP(A36,PS_3,25,FALSE) -> -0.01707 | AE36: =(AD36-PS3Max)/(PS3Min-PS3Max) -> 0.03539521133 | AF36: =_xlfn.RANK.EQ(AE36,$AE$7:$AE$164) -> 133 | AG36: =AVERAGE(N36,AA36,AE36) -> 0.1099363583 | AH36: =(AG36-PSMin)/(PSMax-PSMin) -> 0.1061687651 | AI36: =_xlfn.RANK.EQ(AH36,$AH$7:$AH$164) -> 155 | AJ36: =VLOOKUP(A36,T1_VAT,13,FALSE) -> 2.5 | AK36: =(AJ36-T1_VATMax)/(T1_VATMin-T1_VATMax) -> 0.9 | AL36: =VLOOKUP(A36,T1_PIT,60,FALSE) -> 0.156979079 | AM36: =(AL36-T1_PITMin)/(T1_PITMax-T1_PITMin) -> 0.9656385621 | AN36: =VLOOKUP(A36,T1_CIT,4,FALSE) -> 30 | AO36: =(AN36-T1_CITMIn)/(T1_CITMAx-T1_CITMIn) -> 0.75 | AP36: =AVERAGE(AK36,AM36,AO36) -> 0.8718795207 | AQ36: =(AP36-T1AMin)/(T1AMax-T1AMin) -> 1 | AR36: =VLOOKUP(A36,T1_HTP,5,FALSE) -> 0 | AS36: =(AR36-T1_HTPMax)/(T1_HTPMin-T1_HTPMax) -> 1 | AT36: =AVERAGE(AQ36,AS36) -> 1 | AU36: =(AT36-T1A_B_Min)/(T1A_B_Max-T1A_B_Min) -> 1 | AV36: =RANK(AU36,$AU$7:$AU$164,0) -> 1 | AW36: =VLOOKUP(A36,T_2,20,FALSE) -> 0.08707832483 | AX36: =(AW36-T2Min)/(T2Max-T2Min) -> 0.1143700563 | AY36: =RANK(AX36,$AX$7:$AX$164,0) -> 154 | AZ36: =VLOOKUP(A36,T_3,30,FALSE) -> 0.004963236468 | BA36: =(AZ36-T3Max)/(T3Min-T3Max) -> 0.5949801229 | BB36: =RANK(BA36,$BA$7:$BA$164,0) -> 81 | BC36: =AVERAGE(AU36,AX36,BA36) -> 0.5697833931 | BD36: =(BC36-TMin)/(TMax-TMin) -> 0.6123806649 | BE36: =RANK(BD36,$BD$7:$BD$164,0) -> 64 | BF36: =VLOOKUP(A36,L1A,2,FALSE) -> 2.107368 | BG36: =(BF36-L1AMax)/(L1AMin-L1AMax) -> 0.7892632 | BH36: =RANK(BG36,$BG$7:$BG$164,0) -> 52 | BI36: =VLOOKUP(A36,L1B,9,FALSE) -> 0.4964449605 | BJ36: =(BI36-L1BMin)/(L1BMax-L1BMin) -> 0.4252680098 | BK36: =RANK(BJ36,$BJ$7:$BJ$164,0) -> 144 | BL36: =VLOOKUP(A36,L1C,6,FALSE) -> 0.6359472889 | BM36: =(BL36-L1CMin)/(L1CMax-L1CMin) -> 0.2920289062 | BN36: =RANK(BM36,$BM$7:$BM$164,0) -> 35 | BO36: =AVERAGE(BG36,BJ36,BM36) -> 0.5021867053 | BP36: =(BO36-L1Min)/(L1Max-L1Min) -> 0.512781351 | BQ36: =RANK(BP36,$BP$7:$BP$164,0) -> 98 | BR36: =VLOOKUP(A36,L_2,3,FALSE) -> 3.68 | BS36: =VLOOKUP($A36,L_2,2,FALSE) -> 91.379 | BT36: =BS36-BS36*BR36/100 -> 88.0162528 | BU36: =BR36+BT36 -> 91.6962528 | BV36: =(BU36-L2Max)/(L2Min-L2Max) -> 0.03393739361 | BW36: =RANK(BV36,$BV$7:$BV$164,0) -> 155 | BX36: =VLOOKUP(A36,L_3,2,FALSE) -> 0.8168586399 | BY36: =(BX36-L3Max)/(L3Min-L3Max) -> 0.05615866558 | BZ36: =RANK(BY36,$BY$7:$BY$164,0) -> 154 | CA36: =AVERAGE(BP36,BV36,BY36) -> 0.2009591367 | CB36: =(CA36-LMin)/(LMax-LMin) -> 0.04414365134 | CC36: =RANK(CB36,$CB$7:$CB$164,0) -> 157 | CD36: =AVERAGE(AH36,BD36,CB36) -> 0.2542310271 | CE36: =(CD36-OverallScoreMin)/(OverallScoreMax-OverallScoreMin) -> 0.2287192146 | CF36: =RANK(CE36,$CE$7:$CE$164,0) -> 151
A37: Chad | B37: =VLOOKUP(A37,Source_WB_country_income,6,FALSE) -> LIC | C37: SSA | E37: =VLOOKUP(A37,PS1_Summary,3,FALSE) -> 13.82 | F37: =(E37-PS1AMin)/(PS1AMax-PS1AMin) -> 0.3645468202 | G37: =_xlfn.RANK.EQ(F37,$F$7:$F$164) -> 93 | H37: =VLOOKUP(A37,PS1_Summary,10,FALSE) -> 6.07 | I37: =(H37-PS1BMin)/(PS1BMax-PS1BMin) -> 0.1727682303 | J37: =_xlfn.RANK.EQ(I37,$I$7:$I$164) -> 136 | K37: =VLOOKUP(A37,PS1_Summary,17,FALSE) -> 0.4962649275 | L37: =(K37-PS1CMin)/(PS1CMax-PS1CMin) -> 0.005809987959 | M37: =_xlfn.RANK.EQ(L37,$L$7:$L$164) -> 157 | N37: =AVERAGE(F37,I37,L37) -> 0.1810416795 | O37: =(N37-PS1AvMin)/(PS1AvMax-PS1AvMin) -> 0.2067970342 | P37: =_xlfn.RANK.EQ(O37,$O$7:$O$164) -> 150 | Q37: =VLOOKUP(A37,PS2A,3,FALSE) -> 0.007014601675 | R37: =_xlfn.RANK.EQ(Q37,$Q$7:$Q$164) -> 147 | S37: =VLOOKUP(A37,PS2B,6,FALSE) -> 28 | T37: =VLOOKUP(A37,PS2B,2,FALSE) -> 9.940506117 | U37: =SQRT(S37*(100-T37)) -> 50.2161909 | V37: =(U37-PS2BMin)/(PS2BMax-PS2BMin) -> 0 | W37: =_xlfn.RANK.EQ(V37,$V$7:$V$164) -> 158 | X37: =VLOOKUP(A37,PS2C_Source,3,FALSE) -> 1.6 | Y37: =(X37-PS2CMin)/(PS2CMax-PS2CMin) -> 0.016 | Z37: =_xlfn.RANK.EQ(Y37,$Y$7:$Y$164) -> 150 | AA37: =AVERAGE(Q37,V37,Y37) -> 0.007671533892 | AB37: =(AA37-PS2AvMin)/(PS2AvMax-PS2AvMin) -> 0 | AC37: =_xlfn.RANK.EQ(AB37,$AB$7:$AB$164) -> 158 | AD37: =VLOOKUP(A37,PS_3,25,FALSE) -> -0.01053020796 | AE37: =(AD37-PS3Max)/(PS3Min-PS3Max) -> 0.01921714163 | AF37: =_xlfn.RANK.EQ(AE37,$AE$7:$AE$164) -> 152 | AG37: =AVERAGE(N37,AA37,AE37) -> 0.06931011834 | AH37: =(AG37-PSMin)/(PSMax-PSMin) -> 0.05284294147 | AI37: =_xlfn.RANK.EQ(AH37,$AH$7:$AH$164) -> 157 | AJ37: =VLOOKUP(A37,T1_VAT,13,FALSE) -> 9 | AK37: =(AJ37-T1_VATMax)/(T1_VATMin-T1_VATMax) -> 0.64 | AL37: =VLOOKUP(A37,T1_PIT,60,FALSE) -> 0.1044655184 | AM37: =(AL37-T1_PITMin)/(T1_PITMax-T1_PITMin) -> 0.6426074971 | AN37: =VLOOKUP(A37,T1_CIT,4,FALSE) -> 35 | AO37: =(AN37-T1_CITMIn)/(T1_CITMAx-T1_CITMIn) -> 0.875 | AP37: =AVERAGE(AK37,AM37,AO37) -> 0.719202499 | AQ37: =(AP37-T1AMin)/(T1AMax-T1AMin) -> 0.8000421923 | AR37: =VLOOKUP(A37,T1_HTP,5,FALSE) -> 0.75 | AS37: =(AR37-T1_HTPMax)/(T1_HTPMin-T1_HTPMax) -> 0.9166666667 | AT37: =AVERAGE(AQ37,AS37) -> 0.8583544295 | AU37: =(AT37-T1A_B_Min)/(T1A_B_Max-T1A_B_Min) -> 0.811721429 | AV37: =RANK(AU37,$AU$7:$AU$164,0) -> 15 | AW37: =VLOOKUP(A37,T_2,20,FALSE) -> 0.0947039378 | AX37: =(AW37-T2Min)/(T2Max-T2Min) -> 0.1243856576 | AY37: =RANK(AX37,$AX$7:$AX$164,0) -> 153 | AZ37: =VLOOKUP(A37,T_3,30,FALSE) -> 0.008072805473 | BA37: =(AZ37-T3Max)/(T3Min-T3Max) -> 0.5780575563 | BB37: =RANK(BA37,$BA$7:$BA$164,0) -> 93 | BC37: =AVERAGE(AU37,AX37,BA37) -> 0.5047215476 | BD37: =(BC37-TMin)/(TMax-TMin) -> 0.4568460022 | BE37: =RANK(BD37,$BD$7:$BD$164,0) -> 113 | BF37: =VLOOKUP(A37,L1A,2,FALSE) -> 2.191579 | BG37: =(BF37-L1AMax)/(L1AMin-L1AMax) -> 0.7808421 | BH37: =RANK(BG37,$BG$7:$BG$164,0) -> 55 | BI37: =VLOOKUP(A37,L1B,9,FALSE) -> 0.6967352152 | BJ37: =(BI37-L1BMin)/(L1BMax-L1BMin) -> 0.6684543089 | BK37: =RANK(BJ37,$BJ$7:$BJ$164,0) -> 110 | BL37: =VLOOKUP(A37,L1C,6,FALSE) -> 1.252072289 | BM37: =(BL37-L1CMin)/(L1CMax-L1CMin) -> 0.5749553578 | BN37: =RANK(BM37,$BM$7:$BM$164,0) -> 10 | BO37: =AVERAGE(BG37,BJ37,BM37) -> 0.6747505889 | BP37: =(BO37-L1Min)/(L1Max-L1Min) -> 0.79754567 | BQ37: =RANK(BP37,$BP$7:$BP$164,0) -> 18 | BR37: =VLOOKUP(A37,L_2,3,FALSE) -> 1.891 | BS37: =VLOOKUP($A37,L_2,2,FALSE) -> 93.024 | BT37: =BS37-BS37*BR37/100 -> 91.26491616 | BU37: =BR37+BT37 -> 93.15591616 | BV37: =(BU37-L2Max)/(L2Min-L2Max) -> 0.01721359433 | BW37: =RANK(BV37,$BV$7:$BV$164,0) -> 156 | BX37: =VLOOKUP(A37,L_3,2,FALSE) -> 0.7948250731 | BY37: =(BX37-L3Max)/(L3Min-L3Max) -> 0.09391517861 | BZ37: =RANK(BY37,$BY$7:$BY$164,0) -> 153 | CA37: =AVERAGE(BP37,BV37,BY37) -> 0.302891481 | CB37: =(CA37-LMin)/(LMax-LMin) -> 0.180743186 | CC37: =RANK(CB37,$CB$7:$CB$164,0) -> 145 | CD37: =AVERAGE(AH37,BD37,CB37) -> 0.2301440432 | CE37: =(CD37-OverallScoreMin)/(OverallScoreMax-OverallScoreMin) -> 0.197679724 | CF37: =RANK(CE37,$CE$7:$CE$164,0) -> 155
A38: Chile | B38: =VLOOKUP(A38,Source_WB_country_income,6,FALSE) -> HIC | C38: LAC | D38: OECD | E38: =VLOOKUP(A38,PS1_Summary,3,FALSE) -> 20.7 | F38: =(E38-PS1AMin)/(PS1AMax-PS1AMin) -> 0.7090635954 | G38: =_xlfn.RANK.EQ(F38,$F$7:$F$164) -> 14 | H38: =VLOOKUP(A38,PS1_Summary,10,FALSE) -> 20.77867118 | I38: =(H38-PS1BMin)/(PS1BMax-PS1BMin) -> 0.829406755 | J38: =_xlfn.RANK.EQ(I38,$I$7:$I$164) -> 3 | K38: =VLOOKUP(A38,PS1_Summary,17,FALSE) -> 24.29115531 | L38: =(K38-PS1CMin)/(PS1CMax-PS1CMin) -> 0.5062282926 | M38: =_xlfn.RANK.EQ(L38,$L$7:$L$164) -> 58 | N38: =AVERAGE(F38,I38,L38) -> 0.6815662143 | O38: =(N38-PS1AvMin)/(PS1AvMax-PS1AvMin) -> 0.9784426271 | P38: =_xlfn.RANK.EQ(O38,$O$7:$O$164) -> 2 | Q38: =VLOOKUP(A38,PS2A,3,FALSE) -> 0.8310070861 | R38: =_xlfn.RANK.EQ(Q38,$Q$7:$Q$164) -> 27 | S38: =VLOOKUP(A38,PS2B,6,FALSE) -> 70 | T38: =VLOOKUP(A38,PS2B,2,FALSE) -> 11.21013246 | U38: =SQRT(S38*(100-T38)) -> 78.83711517 | V38: =(U38-PS2BMin)/(PS2BMax-PS2BMin) -> 0.6676211908 | W38: =_xlfn.RANK.EQ(V38,$V$7:$V$164) -> 81 | X38: =VLOOKUP(A38,PS2C_Source,3,FALSE) -> 78.6 | Y38: =(X38-PS2CMin)/(PS2CMax-PS2CMin) -> 0.786 | Z38: =_xlfn.RANK.EQ(Y38,$Y$7:$Y$164) -> 64 | AA38: =AVERAGE(Q38,V38,Y38) -> 0.761542759 | AB38: =(AA38-PS2AvMin)/(PS2AvMax-PS2AvMin) -> 0.7882645703 | AC38: =_xlfn.RANK.EQ(AB38,$AB$7:$AB$164) -> 50 | AD38: =VLOOKUP(A38,PS_3,25,FALSE) -> -0.0646 | AE38: =(AD38-PS3Max)/(PS3Min-PS3Max) -> 0.1529744322 | AF38: =_xlfn.RANK.EQ(AE38,$AE$7:$AE$164) -> 50 | AG38: =AVERAGE(N38,AA38,AE38) -> 0.5320278018 | AH38: =(AG38-PSMin)/(PSMax-PSMin) -> 0.6602041353 | AI38: =_xlfn.RANK.EQ(AH38,$AH$7:$AH$164) -> 37 | AJ38: =VLOOKUP(A38,T1_VAT,13,FALSE) -> 19 | AK38: =(AJ38-T1_VATMax)/(T1_VATMin-T1_VATMax) -> 0.24 | AL38: =VLOOKUP(A38,T1_PIT,60,FALSE) -> 0.08545777243 | AM38: =(AL38-T1_PITMin)/(T1_PITMax-T1_PITMin) -> 0.5256835563 | AN38: =VLOOKUP(A38,T1_CIT,4,FALSE) -> 25 | AO38: =(AN38-T1_CITMIn)/(T1_CITMAx-T1_CITMIn) -> 0.625 | AP38: =AVERAGE(AK38,AM38,AO38) -> 0.4635611854 | AQ38: =(AP38-T1AMin)/(T1AMax-T1AMin) -> 0.4652342687 | AR38: =VLOOKUP(A38,T1_HTP,5,FALSE) -> 0.5 | AS38: =(AR38-T1_HTPMax)/(T1_HTPMin-T1_HTPMax) -> 0.9444444444 | AT38: =AVERAGE(AQ38,AS38) -> 0.7048393566 | AU38: =(AT38-T1A_B_Min)/(T1A_B_Max-T1A_B_Min) -> 0.6076656407 | AV38: =RANK(AU38,$AU$7:$AU$164,0) -> 68 | AW38: =VLOOKUP(A38,T_2,20,FALSE) -> 0.3899001064 | AX38: =(AW38-T2Min)/(T2Max-T2Min) -> 0.5121009989 | AY38: =RANK(AX38,$AX$7:$AX$164,0) -> 73 | AZ38: =VLOOKUP(A38,T_3,30,FALSE) -> -0.0155336 | BA38: =(AZ38-T3Max)/(T3Min-T3Max) -> 0.7065258325 | BB38: =RANK(BA38,$BA$7:$BA$164,0) -> 22 | BC38: =AVERAGE(AU38,AX38,BA38) -> 0.6087641574 | BD38: =(BC38-TMin)/(TMax-TMin) -> 0.705566771 | BE38: =RANK(BD38,$BD$7:$BD$164,0) -> 36 | BF38: =VLOOKUP(A38,L1A,2,FALSE) -> 2.909474 | BG38: =(BF38-L1AMax)/(L1AMin-L1AMax) -> 0.7090526 | BH38: =RANK(BG38,$BG$7:$BG$164,0) -> 76 | BI38: =VLOOKUP(A38,L1B,9,FALSE) -> 0.8629852696 | BJ38: =(BI38-L1BMin)/(L1BMax-L1BMin) -> 0.8703100383 | BK38: =RANK(BJ38,$BJ$7:$BJ$164,0) -> 18 | BL38: =VLOOKUP(A38,L1C,6,FALSE) -> 0.3424088442 | BM38: =(BL38-L1CMin)/(L1CMax-L1CMin) -> 0.1572351703 | BN38: =RANK(BM38,$BM$7:$BM$164,0) -> 101 | BO38: =AVERAGE(BG38,BJ38,BM38) -> 0.5788659362 | BP38: =(BO38-L1Min)/(L1Max-L1Min) -> 0.6393171505 | BQ38: =RANK(BP38,$BP$7:$BP$164,0) -> 63 | BR38: =VLOOKUP(A38,L_2,3,FALSE) -> 7.09 | BS38: =VLOOKUP($A38,L_2,2,FALSE) -> 22.694 | BT38: =BS38-BS38*BR38/100 -> 21.0849954 | BU38: =BR38+BT38 -> 28.1749954 | BV38: =(BU38-L2Max)/(L2Min-L2Max) -> 0.7617194204 | BW38: =RANK(BV38,$BV$7:$BV$164,0) -> 53 | BX38: =VLOOKUP(A38,L_3,2,FALSE) -> 0.4835533386 | BY38: =(BX38-L3Max)/(L3Min-L3Max) -> 0.6273074997 | BZ38: =RANK(BY38,$BY$7:$BY$164,0) -> 86 | CA38: =AVERAGE(BP38,BV38,BY38) -> 0.6761146902 | CB38: =(CA38-LMin)/(LMax-LMin) -> 0.680899609 | CC38: =RANK(CB38,$CB$7:$CB$164,0) -> 47 | CD38: =AVERAGE(AH38,BD38,CB38) -> 0.6822235051 | CE38: =(CD38-OverallScoreMin)/(OverallScoreMax-OverallScoreMin) -> 0.7802481455 | CF38: =RANK(CE38,$CE$7:$CE$164,0) -> 34
A39: China | B39: =VLOOKUP(A39,Source_WB_country_income,6,FALSE) -> UMIC | C39: EAP | E39: =VLOOKUP(A39,PS1_Summary,3,FALSE) -> 14.58644844 | F39: =(E39-PS1AMin)/(PS1AMax-PS1AMin) -> 0.4029268122 | G39: =_xlfn.RANK.EQ(F39,$F$7:$F$164) -> 81 | H39: =VLOOKUP(A39,PS1_Summary,10,FALSE) -> 11.07346764 | I39: =(H39-PS1BMin)/(PS1BMax-PS1BMin) -> 0.3961378039 | J39: =_xlfn.RANK.EQ(I39,$I$7:$I$164) -> 70 | K39: =VLOOKUP(A39,PS1_Summary,17,FALSE) -> 12.26044626 | L39: =(K39-PS1CMin)/(PS1CMax-PS1CMin) -> 0.2532165355 | M39: =_xlfn.RANK.EQ(L39,$L$7:$L$164) -> 93 | N39: =AVERAGE(F39,I39,L39) -> 0.3507603839 | O39: =(N39-PS1AvMin)/(PS1AvMax-PS1AvMin) -> 0.4684479246 | P39: =_xlfn.RANK.EQ(O39,$O$7:$O$164) -> 95 | Q39: =VLOOKUP(A39,PS2A,3,FALSE) -> 0.6564311789 | R39: =_xlfn.RANK.EQ(Q39,$Q$7:$Q$164) -> 52 | S39: =VLOOKUP(A39,PS2B,6,FALSE) -> 79 | T39: =VLOOKUP(A39,PS2B,2,FALSE) -> 7.892516279 | U39: =SQRT(S39*(100-T39)) -> 85.30235175 | V39: =(U39-PS2BMin)/(PS2BMax-PS2BMin) -> 0.8184314479 | W39: =_xlfn.RANK.EQ(V39,$V$7:$V$164) -> 31 | X39: =VLOOKUP(A39,PS2C_Source,3,FALSE) -> 100 | Y39: =(X39-PS2CMin)/(PS2CMax-PS2CMin) -> 1 | Z39: =_xlfn.RANK.EQ(Y39,$Y$7:$Y$164) -> 1 | AA39: =AVERAGE(Q39,V39,Y39) -> 0.8249542089 | AB39: =(AA39-PS2AvMin)/(PS2AvMax-PS2AvMin) -> 0.854568997 | AC39: =_xlfn.RANK.EQ(AB39,$AB$7:$AB$164) -> 34 | AD39: =VLOOKUP(A39,PS_3,25,FALSE) -> -0.03380807998 | AE39: =(AD39-PS3Max)/(PS3Min-PS3Max) -> 0.07680169992 | AF39: =_xlfn.RANK.EQ(AE39,$AE$7:$AE$164) -> 87 | AG39: =AVERAGE(N39,AA39,AE39) -> 0.4175054309 | AH39: =(AG39-PSMin)/(PSMax-PSMin) -> 0.5098825755 | AI39: =_xlfn.RANK.EQ(AH39,$AH$7:$AH$164) -> 61 | AJ39: =VLOOKUP(A39,T1_VAT,13,FALSE) -> 13 | AK39: =(AJ39-T1_VATMax)/(T1_VATMin-T1_VATMax) -> 0.48 | AL39: =VLOOKUP(A39,T1_PIT,60,FALSE) -> 0.08758118557 | AM39: =(AL39-T1_PITMin)/(T1_PITMax-T1_PITMin) -> 0.5387454855 | AN39: =VLOOKUP(A39,T1_CIT,4,FALSE) -> 25 | AO39: =(AN39-T1_CITMIn)/(T1_CITMAx-T1_CITMIn) -> 0.625 | AP39: =AVERAGE(AK39,AM39,AO39) -> 0.5479151618 | AQ39: =(AP39-T1AMin)/(T1AMax-T1AMin) -> 0.5757108552 | AR39: =VLOOKUP(A39,T1_HTP,5,FALSE) -> 0.5 | AS39: =(AR39-T1_HTPMax)/(T1_HTPMin-T1_HTPMax) -> 0.9444444444 | AT39: =AVERAGE(AQ39,AS39) -> 0.7600776498 | AU39: =(AT39-T1A_B_Min)/(T1A_B_Max-T1A_B_Min) -> 0.6810896587 | AV39: =RANK(AU39,$AU$7:$AU$164,0) -> 45 | AW39: =VLOOKUP(A39,T_2,20,FALSE) -> 0.5705143669 | AX39: =(AW39-T2Min)/(T2Max-T2Min) -> 0.7493226402 | AY39: =RANK(AX39,$AX$7:$AX$164,0) -> 19 | AZ39: =VLOOKUP(A39,T_3,30,FALSE) -> -0.000698003253 | BA39: =(AZ39-T3Max)/(T3Min-T3Max) -> 0.6257891213 | BB39: =RANK(BA39,$BA$7:$BA$164,0) -> 56 | BC39: =AVERAGE(AU39,AX39,BA39) -> 0.6854004734 | BD39: =(BC39-TMin)/(TMax-TMin) -> 0.8887709745 | BE39: =RANK(BD39,$BD$7:$BD$164,0) -> 3 | BF39: =VLOOKUP(A39,L1A,2,FALSE) -> 10 | BG39: =(BF39-L1AMax)/(L1AMin-L1AMax) -> 0 | BH39: =RANK(BG39,$BG$7:$BG$164,0) -> 149 | BI39: =VLOOKUP(A39,L1B,9,FALSE) -> 0.7711526014 | BJ39: =(BI39-L1BMin)/(L1BMax-L1BMin) -> 0.7588096224 | BK39: =RANK(BJ39,$BJ$7:$BJ$164,0) -> 75 | BL39: =VLOOKUP(A39,L1C,6,FALSE) -> 0.1970567521 | BM39: =(BL39-L1CMin)/(L1CMax-L1CMin) -> 0.09048905277 | BN39: =RANK(BM39,$BM$7:$BM$164,0) -> 131 | BO39: =AVERAGE(BG39,BJ39,BM39) -> 0.2830995584 | BP39: =(BO39-L1Min)/(L1Max-L1Min) -> 0.1512445051 | BQ39: =RANK(BP39,$BP$7:$BP$164,0) -> 153 | BR39: =VLOOKUP(A39,L_2,3,FALSE) -> 4.32 | BS39: =VLOOKUP($A39,L_2,2,FALSE) -> 45.378 | BT39: =BS39-BS39*BR39/100 -> 43.4176704 | BU39: =BR39+BT39 -> 47.7376704 | BV39: =(BU39-L2Max)/(L2Min-L2Max) -> 0.5375840074 | BW39: =RANK(BV39,$BV$7:$BV$164,0) -> 91 | BX39: =VLOOKUP(A39,L_3,2,FALSE) -> 0.5704127831 | BY39: =(BX39-L3Max)/(L3Min-L3Max) -> 0.4784659713 | BZ39: =RANK(BY39,$BY$7:$BY$164,0) -> 111 | CA39: =AVERAGE(BP39,BV39,BY39) -> 0.3890981612 | CB39: =(CA39-LMin)/(LMax-LMin) -> 0.2962687583 | CC39: =RANK(CB39,$CB$7:$CB$164,0) -> 124 | CD39: =AVERAGE(AH39,BD39,CB39) -> 0.5649741027 | CE39: =(CD39-OverallScoreMin)/(OverallScoreMax-OverallScoreMin) -> 0.6291556828 | CF39: =RANK(CE39,$CE$7:$CE$164,0) -> 57
A40: Colombia | B40: =VLOOKUP(A40,Source_WB_country_income,6,FALSE) -> UMIC | C40: LAC | E40: =VLOOKUP(A40,PS1_Summary,3,FALSE) -> 16.01 | F40: =(E40-PS1AMin)/(PS1AMax-PS1AMin) -> 0.474211317 | G40: =_xlfn.RANK.EQ(F40,$F$7:$F$164) -> 64 | H40: =VLOOKUP(A40,PS1_Summary,10,FALSE) -> 15.3340081 | I40: =(H40-PS1BMin)/(PS1BMax-PS1BMin) -> 0.5863409138 | J40: =_xlfn.RANK.EQ(I40,$I$7:$I$164) -> 25 | K40: =VLOOKUP(A40,PS1_Summary,17,FALSE) -> 28.03643725 | L40: =(K40-PS1CMin)/(PS1CMax-PS1CMin) -> 0.5849934226 | M40: =_xlfn.RANK.EQ(L40,$L$7:$L$164) -> 45 | N40: =AVERAGE(F40,I40,L40) -> 0.5485152178 | O40: =(N40-PS1AvMin)/(PS1AvMax-PS1AvMin) -> 0.7733213833 | P40: =_xlfn.RANK.EQ(O40,$O$7:$O$164) -> 23 | Q40: =VLOOKUP(A40,PS2A,3,FALSE) -> 0.5465965214 | R40: =_xlfn.RANK.EQ(Q40,$Q$7:$Q$164) -> 62 | S40: =VLOOKUP(A40,PS2B,6,FALSE) -> 76 | T40: =VLOOKUP(A40,PS2B,2,FALSE) -> 8.19 | U40: =SQRT(S40*(100-T40)) -> 83.53179036 | V40: =(U40-PS2BMin)/(PS2BMax-PS2BMin) -> 0.7771307445 | W40: =_xlfn.RANK.EQ(V40,$V$7:$V$164) -> 43 | X40: =VLOOKUP(A40,PS2C_Source,3,FALSE) -> 51.7 | Y40: =(X40-PS2CMin)/(PS2CMax-PS2CMin) -> 0.517 | Z40: =_xlfn.RANK.EQ(Y40,$Y$7:$Y$164) -> 85 | AA40: =AVERAGE(Q40,V40,Y40) -> 0.6135757553 | AB40: =(AA40-PS2AvMin)/(PS2AvMax-PS2AvMin) -> 0.6335469704 | AC40: =_xlfn.RANK.EQ(AB40,$AB$7:$AB$164) -> 68 | AD40: =VLOOKUP(A40,PS_3,25,FALSE) -> -0.059 | AE40: =(AD40-PS3Max)/(PS3Min-PS3Max) -> 0.1391212103 | AF40: =_xlfn.RANK.EQ(AE40,$AE$7:$AE$164) -> 56 | AG40: =AVERAGE(N40,AA40,AE40) -> 0.4337373945 | AH40: =(AG40-PSMin)/(PSMax-PSMin) -> 0.5311885793 | AI40: =_xlfn.RANK.EQ(AH40,$AH$7:$AH$164) -> 55 | AJ40: =VLOOKUP(A40,T1_VAT,13,FALSE) -> 9.5 | AK40: =(AJ40-T1_VATMax)/(T1_VATMin-T1_VATMax) -> 0.62 | AL40: =VLOOKUP(A40,T1_PIT,60,FALSE) -> 0.06332023767 | AM40: =(AL40-T1_PITMin)/(T1_PITMax-T1_PITMin) -> 0.3895070838 | AN40: =VLOOKUP(A40,T1_CIT,4,FALSE) -> 33 | AO40: =(AN40-T1_CITMIn)/(T1_CITMAx-T1_CITMIn) -> 0.825 | AP40: =AVERAGE(AK40,AM40,AO40) -> 0.6115023613 | AQ40: =(AP40-T1AMin)/(T1AMax-T1AMin) -> 0.658989641 | AR40: =VLOOKUP(A40,T1_HTP,5,FALSE) -> 0.5 | AS40: =(AR40-T1_HTPMax)/(T1_HTPMin-T1_HTPMax) -> 0.9444444444 | AT40: =AVERAGE(AQ40,AS40) -> 0.8017170427 | AU40: =(AT40-T1A_B_Min)/(T1A_B_Max-T1A_B_Min) -> 0.7364377036 | AV40: =RANK(AU40,$AU$7:$AU$164,0) -> 28 | AW40: =VLOOKUP(A40,T_2,20,FALSE) -> 0.2791097579 | AX40: =(AW40-T2Min)/(T2Max-T2Min) -> 0.3665871937 | AY40: =RANK(AX40,$AX$7:$AX$164,0) -> 115 | AZ40: =VLOOKUP(A40,T_3,30,FALSE) -> -0.0002206048 | BA40: =(AZ40-T3Max)/(T3Min-T3Max) -> 0.6231910741 | BB40: =RANK(BA40,$BA$7:$BA$164,0) -> 60 | BC40: =AVERAGE(AU40,AX40,BA40) -> 0.5754053238 | BD40: =(BC40-TMin)/(TMax-TMin) -> 0.6258202637 | BE40: =RANK(BD40,$BD$7:$BD$164,0) -> 60 | BF40: =VLOOKUP(A40,L1A,2,FALSE) -> 6.349474 | BG40: =(BF40-L1AMax)/(L1AMin-L1AMax) -> 0.3650526 | BH40: =RANK(BG40,$BG$7:$BG$164,0) -> 138 | BI40: =VLOOKUP(A40,L1B,9,FALSE) -> 0.8388941296 | BJ40: =(BI40-L1BMin)/(L1BMax-L1BMin) -> 0.8410593132 | BK40: =RANK(BJ40,$BJ$7:$BJ$164,0) -> 32 | BL40: =VLOOKUP(A40,L1C,6,FALSE) -> 0.531801852 | BM40: =(BL40-L1CMin)/(L1CMax-L1CMin) -> 0.2442050086 | BN40: =RANK(BM40,$BM$7:$BM$164,0) -> 48 | BO40: =AVERAGE(BG40,BJ40,BM40) -> 0.4834389739 | BP40: =(BO40-L1Min)/(L1Max-L1Min) -> 0.4818439101 | BQ40: =RANK(BP40,$BP$7:$BP$164,0) -> 108 | BR40: =VLOOKUP(A40,L_2,3,FALSE) -> 9.707 | BS40: =VLOOKUP($A40,L_2,2,FALSE) -> 47.057 | BT40: =BS40-BS40*BR40/100 -> 42.48917701 | BU40: =BR40+BT40 -> 52.19617701 | BV40: =(BU40-L2Max)/(L2Min-L2Max) -> 0.4865015649 | BW40: =RANK(BV40,$BV$7:$BV$164,0) -> 101 | BX40: =VLOOKUP(A40,L_3,2,FALSE) -> 0.4612151425 | BY40: =(BX40-L3Max)/(L3Min-L3Max) -> 0.6655860228 | BZ40: =RANK(BY40,$BY$7:$BY$164,0) -> 73 | CA40: =AVERAGE(BP40,BV40,BY40) -> 0.5446438326 | CB40: =(CA40-LMin)/(LMax-LMin) -> 0.5047155127 | CC40: =RANK(CB40,$CB$7:$CB$164,0) -> 94 | CD40: =AVERAGE(AH40,BD40,CB40) -> 0.5539081186 | CE40: =(CD40-OverallScoreMin)/(OverallScoreMax-OverallScoreMin) -> 0.6148955947 | CF40: =RANK(CE40,$CE$7:$CE$164,0) -> 63
A41: Congo, Dem. Rep. | B41: =VLOOKUP(A41,Source_WB_country_income,6,FALSE) -> LIC | C41: SSA | E41: =VLOOKUP(A41,PS1_Summary,3,FALSE) -> 18.29 | F41: =(E41-PS1AMin)/(PS1AMax-PS1AMin) -> 0.5883825739 | G41: =_xlfn.RANK.EQ(F41,$F$7:$F$164) -> 31 | H41: =VLOOKUP(A41,PS1_Summary,10,FALSE) -> 11.3 | I41: =(H41-PS1BMin)/(PS1BMax-PS1BMin) -> 0.4062508775 | J41: =_xlfn.RANK.EQ(I41,$I$7:$I$164) -> 65 | K41: =VLOOKUP(A41,PS1_Summary,17,FALSE) -> 1.77 | L41: =(K41-PS1CMin)/(PS1CMax-PS1CMin) -> 0.03259726604 | M41: =_xlfn.RANK.EQ(L41,$L$7:$L$164) -> 154 | N41: =AVERAGE(F41,I41,L41) -> 0.3424102391 | O41: =(N41-PS1AvMin)/(PS1AvMax-PS1AvMin) -> 0.4555747248 | P41: =_xlfn.RANK.EQ(O41,$O$7:$O$164) -> 98 | Q41: =VLOOKUP(A41,PS2A,3,FALSE) -> 0.07230062272 | R41: =_xlfn.RANK.EQ(Q41,$Q$7:$Q$164) -> 119 | S41: =VLOOKUP(A41,PS2B,6,FALSE) -> 41 | T41: =VLOOKUP(A41,PS2B,2,FALSE) -> 15.12975075 | U41: =SQRT(S41*(100-T41)) -> 58.98881436 | V41: =(U41-PS2BMin)/(PS2BMax-PS2BMin) -> 0.2046331301 | W41: =_xlfn.RANK.EQ(V41,$V$7:$V$164) -> 148 | X41: =VLOOKUP(A41,PS2C_Source,3,FALSE) -> 15 | Y41: =(X41-PS2CMin)/(PS2CMax-PS2CMin) -> 0.15 | Z41: =_xlfn.RANK.EQ(Y41,$Y$7:$Y$164) -> 114 | AA41: =AVERAGE(Q41,V41,Y41) -> 0.1423112509 | AB41: =(AA41-PS2AvMin)/(PS2AvMax-PS2AvMin) -> 0.1407822917 | AC41: =_xlfn.RANK.EQ(AB41,$AB$7:$AB$164) -> 134 | AD41: =VLOOKUP(A41,PS_3,25,FALSE) -> -0.011765 | AE41: =(AD41-PS3Max)/(PS3Min-PS3Max) -> 0.02227175736 | AF41: =_xlfn.RANK.EQ(AE41,$AE$7:$AE$164) -> 147 | AG41: =AVERAGE(N41,AA41,AE41) -> 0.1689977491 | AH41: =(AG41-PSMin)/(PSMax-PSMin) -> 0.1836924867 | AI41: =_xlfn.RANK.EQ(AH41,$AH$7:$AH$164) -> 135 | AJ41: =VLOOKUP(A41,T1_VAT,13,FALSE) -> 0 | AK41: =(AJ41-T1_VATMax)/(T1_VATMin-T1_VATMax) -> 1 | AL41: =VLOOKUP(A41,T1_PIT,60,FALSE) -> 0.06427938521 | AM41: =(AL41-T1_PITMin)/(T1_PITMax-T1_PITMin) -> 0.3954071684 | AN41: =VLOOKUP(A41,T1_CIT,4,FALSE) -> 30 | AO41: =(AN41-T1_CITMIn)/(T1_CITMAx-T1_CITMIn) -> 0.75 | AP41: =AVERAGE(AK41,AM41,AO41) -> 0.7151357228 | AQ41: =(AP41-T1AMin)/(T1AMax-T1AMin) -> 0.7947160231 | AR41: =VLOOKUP(A41,T1_HTP,5,FALSE) -> 0.75 | AS41: =(AR41-T1_HTPMax)/(T1_HTPMin-T1_HTPMax) -> 0.9166666667 | AT41: =AVERAGE(AQ41,AS41) -> 0.8556913449 | AU41: =(AT41-T1A_B_Min)/(T1A_B_Max-T1A_B_Min) -> 0.8081815953 | AV41: =RANK(AU41,$AU$7:$AU$164,0) -> 16 | AW41: =VLOOKUP(A41,T_2,20,FALSE) -> 0.1019737722 | AX41: =(AW41-T2Min)/(T2Max-T2Min) -> 0.1339339737 | AY41: =RANK(AX41,$AX$7:$AX$164,0) -> 152 | AZ41: =VLOOKUP(A41,T_3,30,FALSE) -> 0.0054624811 | BA41: =(AZ41-T3Max)/(T3Min-T3Max) -> 0.5922631867 | BB41: =RANK(BA41,$BA$7:$BA$164,0) -> 84 | BC41: =AVERAGE(AU41,AX41,BA41) -> 0.5114595852 | BD41: =(BC41-TMin)/(TMax-TMin) -> 0.4729537286 | BE41: =RANK(BD41,$BD$7:$BD$164,0) -> 107 | BF41: =VLOOKUP(A41,L1A,2,FALSE) -> 5.011579 | BG41: =(BF41-L1AMax)/(L1AMin-L1AMax) -> 0.4988421 | BH41: =RANK(BG41,$BG$7:$BG$164,0) -> 127 | BI41: =VLOOKUP(A41,L1B,9,FALSE) -> 0.7624449605 | BJ41: =(BI41-L1BMin)/(L1BMax-L1BMin) -> 0.7482370711 | BK41: =RANK(BJ41,$BJ$7:$BJ$164,0) -> 91 | BL41: =VLOOKUP(A41,L1C,6,FALSE) -> 2.177686097 | BM41: =(BL41-L1CMin)/(L1CMax-L1CMin) -> 1 | BN41: =RANK(BM41,$BM$7:$BM$164,0) -> 1 | BO41: =AVERAGE(BG41,BJ41,BM41) -> 0.7490263904 | BP41: =(BO41-L1Min)/(L1Max-L1Min) -> 0.9201153386 | BQ41: =RANK(BP41,$BP$7:$BP$164,0) -> 5 | BR41: =VLOOKUP(A41,L_2,3,FALSE) -> 4.236 | BS41: =VLOOKUP($A41,L_2,2,FALSE) -> 79.674 | BT41: =BS41-BS41*BR41/100 -> 76.29900936 | BU41: =BR41+BT41 -> 80.53500936 | BV41: =(BU41-L2Max)/(L2Min-L2Max) -> 0.1618150948 | BW41: =RANK(BV41,$BV$7:$BV$164,0) -> 140 | BX41: =VLOOKUP(A41,L_3,2,FALSE) -> 0.7704472962 | BY41: =(BX41-L3Max)/(L3Min-L3Max) -> 0.1356887083 | BZ41: =RANK(BY41,$BY$7:$BY$164,0) -> 150 | CA41: =AVERAGE(BP41,BV41,BY41) -> 0.4058730472 | CB41: =(CA41-LMin)/(LMax-LMin) -> 0.318748783 | CC41: =RANK(CB41,$CB$7:$CB$164,0) -> 122 | CD41: =AVERAGE(AH41,BD41,CB41) -> 0.3251316661 | CE41: =(CD41-OverallScoreMin)/(OverallScoreMax-OverallScoreMin) -> 0.3200847307 | CF41: =RANK(CE41,$CE$7:$CE$164,0) -> 135
A42: Congo, Rep. | B42: =VLOOKUP(A42,Source_WB_country_income,6,FALSE) -> LMIC | C42: SSA | E42: =VLOOKUP(A42,PS1_Summary,3,FALSE) -> 16.93 | F42: =(E42-PS1AMin)/(PS1AMax-PS1AMin) -> 0.5202804206 | G42: =_xlfn.RANK.EQ(F42,$F$7:$F$164) -> 54 | H42: =VLOOKUP(A42,PS1_Summary,10,FALSE) -> 9.74 | I42: =(H42-PS1BMin)/(PS1BMax-PS1BMin) -> 0.33660787 | J42: =_xlfn.RANK.EQ(I42,$I$7:$I$164) -> 97 | K42: =VLOOKUP(A42,PS1_Summary,17,FALSE) -> 5.3 | L42: =(K42-PS1CMin)/(PS1CMax-PS1CMin) -> 0.1068349106 | M42: =_xlfn.RANK.EQ(L42,$L$7:$L$164) -> 135 | N42: =AVERAGE(F42,I42,L42) -> 0.3212410671 | O42: =(N42-PS1AvMin)/(PS1AvMax-PS1AvMin) -> 0.4229387655 | P42: =_xlfn.RANK.EQ(O42,$O$7:$O$164) -> 110 | Q42: =VLOOKUP(A42,PS2A,3,FALSE) -> 0.004385441271 | R42: =_xlfn.RANK.EQ(Q42,$Q$7:$Q$164) -> 150 | S42: =VLOOKUP(A42,PS2B,6,FALSE) -> 39 | T42: =VLOOKUP(A42,PS2B,2,FALSE) -> 4.82 | U42: =SQRT(S42*(100-T42)) -> 60.92634898 | V42: =(U42-PS2BMin)/(PS2BMax-PS2BMin) -> 0.2498287066 | W42: =_xlfn.RANK.EQ(V42,$V$7:$V$164) -> 140 | X42: =VLOOKUP(A42,PS2C_Source,3,FALSE) -> 22.1 | Y42: =(X42-PS2CMin)/(PS2CMax-PS2CMin) -> 0.221 | Z42: =_xlfn.RANK.EQ(Y42,$Y$7:$Y$164) -> 107 | AA42: =AVERAGE(Q42,V42,Y42) -> 0.1584047159 | AB42: =(AA42-PS2AvMin)/(PS2AvMax-PS2AvMin) -> 0.1576099777 | AC42: =_xlfn.RANK.EQ(AB42,$AB$7:$AB$164) -> 131 | AD42: =VLOOKUP(A42,PS_3,25,FALSE) -> -0.021427 | AE42: =(AD42-PS3Max)/(PS3Min-PS3Max) -> 0.04617351273 | AF42: =_xlfn.RANK.EQ(AE42,$AE$7:$AE$164) -> 122 | AG42: =AVERAGE(N42,AA42,AE42) -> 0.1752730986 | AH42: =(AG42-PSMin)/(PSMax-PSMin) -> 0.1919294827 | AI42: =_xlfn.RANK.EQ(AH42,$AH$7:$AH$164) -> 130 | AJ42: =VLOOKUP(A42,T1_VAT,13,FALSE) -> 11.5 | AK42: =(AJ42-T1_VATMax)/(T1_VATMin-T1_VATMax) -> 0.54 | AL42: =VLOOKUP(A42,T1_PIT,60,FALSE) -> 0.02345324195 | AM42: =(AL42-T1_PITMin)/(T1_PITMax-T1_PITMin) -> 0.1442698924 | AN42: =VLOOKUP(A42,T1_CIT,4,FALSE) -> 30 | AO42: =(AN42-T1_CITMIn)/(T1_CITMAx-T1_CITMIn) -> 0.75 | AP42: =AVERAGE(AK42,AM42,AO42) -> 0.4780899641 | AQ42: =(AP42-T1AMin)/(T1AMax-T1AMin) -> 0.4842622973 | AR42: =VLOOKUP(A42,T1_HTP,5,FALSE) -> 1.75 | AS42: =(AR42-T1_HTPMax)/(T1_HTPMin-T1_HTPMax) -> 0.8055555556 | AT42: =AVERAGE(AQ42,AS42) -> 0.6449089264 | AU42: =(AT42-T1A_B_Min)/(T1A_B_Max-T1A_B_Min) -> 0.5280047258 | AV42: =RANK(AU42,$AU$7:$AU$164,0) -> 87 | AW42: =VLOOKUP(A42,T_2,20,FALSE) -> 0.3112157406 | AX42: =(AW42-T2Min)/(T2Max-T2Min) -> 0.4087557017 | AY42: =RANK(AX42,$AX$7:$AX$164,0) -> 103 | AZ42: =VLOOKUP(A42,T_3,30,FALSE) -> 0.01323776878 | BA42: =(AZ42-T3Max)/(T3Min-T3Max) -> 0.5499493408 | BB42: =RANK(BA42,$BA$7:$BA$164,0) -> 108 | BC42: =AVERAGE(AU42,AX42,BA42) -> 0.4955699228 | BD42: =(BC42-TMin)/(TMax-TMin) -> 0.434968435 | BE42: =RANK(BD42,$BD$7:$BD$164,0) -> 118 | BF42: =VLOOKUP(A42,L1A,2,FALSE) -> 1.631579 | BG42: =(BF42-L1AMax)/(L1AMin-L1AMax) -> 0.8368421 | BH42: =RANK(BG42,$BG$7:$BG$164,0) -> 37 | BI42: =VLOOKUP(A42,L1B,9,FALSE) -> 0.6304767433 | BJ42: =(BI42-L1BMin)/(L1BMax-L1BMin) -> 0.5880052997 | BK42: =RANK(BJ42,$BJ$7:$BJ$164,0) -> 118 | BL42: =VLOOKUP(A42,L1C,6,FALSE) -> 0.7295757188 | BM42: =(BL42-L1CMin)/(L1CMax-L1CMin) -> 0.3350233625 | BN42: =RANK(BM42,$BM$7:$BM$164,0) -> 29 | BO42: =AVERAGE(BG42,BJ42,BM42) -> 0.5866235874 | BP42: =(BO42-L1Min)/(L1Max-L1Min) -> 0.6521187994 | BQ42: =RANK(BP42,$BP$7:$BP$164,0) -> 58 | BR42: =VLOOKUP(A42,L_2,3,FALSE) -> 9.472 | BS42: =VLOOKUP($A42,L_2,2,FALSE) -> 75.978 | BT42: =BS42-BS42*BR42/100 -> 68.78136384 | BU42: =BR42+BT42 -> 78.25336384 | BV42: =(BU42-L2Max)/(L2Min-L2Max) -> 0.1879565893 | BW42: =RANK(BV42,$BV$7:$BV$164,0) -> 134 | BX42: =VLOOKUP(A42,L_3,2,FALSE) -> 0.6440899534 | BY42: =(BX42-L3Max)/(L3Min-L3Max) -> 0.3522134642 | BZ42: =RANK(BY42,$BY$7:$BY$164,0) -> 125 | CA42: =AVERAGE(BP42,BV42,BY42) -> 0.3974296176 | CB42: =(CA42-LMin)/(LMax-LMin) -> 0.307433743 | CC42: =RANK(CB42,$CB$7:$CB$164,0) -> 123 | CD42: =AVERAGE(AH42,BD42,CB42) -> 0.3114438869 | CE42: =(CD42-OverallScoreMin)/(OverallScoreMax-OverallScoreMin) -> 0.3024460884 | CF42: =RANK(CE42,$CE$7:$CE$164,0) -> 137
A43: Costa Rica | B43: =VLOOKUP(A43,Source_WB_country_income,6,FALSE) -> UMIC | C43: LAC | E43: =VLOOKUP(A43,PS1_Summary,3,FALSE) -> 23.49478402 | F43: =(E43-PS1AMin)/(PS1AMax-PS1AMin) -> 0.8490127203 | G43: =_xlfn.RANK.EQ(F43,$F$7:$F$164) -> 6 | H43: =VLOOKUP(A43,PS1_Summary,10,FALSE) -> 18.07961297 | I43: =(H43-PS1BMin)/(PS1BMax-PS1BMin) -> 0.7089128247 | J43: =_xlfn.RANK.EQ(I43,$I$7:$I$164) -> 11 | K43: =VLOOKUP(A43,PS1_Summary,17,FALSE) -> 25.36074939 | L43: =(K43-PS1CMin)/(PS1CMax-PS1CMin) -> 0.5287223846 | M43: =_xlfn.RANK.EQ(L43,$L$7:$L$164) -> 56 | N43: =AVERAGE(F43,I43,L43) -> 0.6955493099 | O43: =(N43-PS1AvMin)/(PS1AvMax-PS1AvMin) -> 1 | P43: =_xlfn.RANK.EQ(O43,$O$7:$O$164) -> 1 | Q43: =VLOOKUP(A43,PS2A,3,FALSE) -> 0.3585999571 | R43: =_xlfn.RANK.EQ(Q43,$Q$7:$Q$164) -> 85 | S43: =VLOOKUP(A43,PS2B,6,FALSE) -> 77 | T43: =VLOOKUP(A43,PS2B,2,FALSE) -> 9.84 | U43: =SQRT(S43*(100-T43)) -> 83.32058569 | V43: =(U43-PS2BMin)/(PS2BMax-PS2BMin) -> 0.7722041143 | W43: =_xlfn.RANK.EQ(V43,$V$7:$V$164) -> 45 | X43: =VLOOKUP(A43,PS2C_Source,3,FALSE) -> 68.7652 | Y43: =(X43-PS2CMin)/(PS2CMax-PS2CMin) -> 0.687652 | Z43: =_xlfn.RANK.EQ(Y43,$Y$7:$Y$164) -> 75 | AA43: =AVERAGE(Q43,V43,Y43) -> 0.6061520238 | AB43: =(AA43-PS2AvMin)/(PS2AvMax-PS2AvMin) -> 0.6257845512 | AC43: =_xlfn.RANK.EQ(AB43,$AB$7:$AB$164) -> 72 | AD43: =VLOOKUP(A43,PS_3,25,FALSE) -> -0.083 | AE43: =(AD43-PS3Max)/(PS3Min-PS3Max) -> 0.1984921613 | AF43: =_xlfn.RANK.EQ(AE43,$AE$7:$AE$164) -> 48 | AG43: =AVERAGE(N43,AA43,AE43) -> 0.5000644983 | AH43: =(AG43-PSMin)/(PSMax-PSMin) -> 0.6182492438 | AI43: =_xlfn.RANK.EQ(AH43,$AH$7:$AH$164) -> 41 | AJ43: =VLOOKUP(A43,T1_VAT,13,FALSE) -> 7 | AK43: =(AJ43-T1_VATMax)/(T1_VATMin-T1_VATMax) -> 0.72 | AL43: =VLOOKUP(A43,T1_PIT,60,FALSE) -> 0.03468636064 | AM43: =(AL43-T1_PITMin)/(T1_PITMax-T1_PITMin) -> 0.2133691167 | AN43: =VLOOKUP(A43,T1_CIT,4,FALSE) -> 30 | AO43: =(AN43-T1_CITMIn)/(T1_CITMAx-T1_CITMIn) -> 0.75 | AP43: =AVERAGE(AK43,AM43,AO43) -> 0.5611230389 | AQ43: =(AP43-T1AMin)/(T1AMax-T1AMin) -> 0.5930089274 | AR43: =VLOOKUP(A43,T1_HTP,5,FALSE) -> 1.5 | AS43: =(AR43-T1_HTPMax)/(T1_HTPMin-T1_HTPMax) -> 0.8333333333 | AT43: =AVERAGE(AQ43,AS43) -> 0.7131711303 | AU43: =(AT43-T1A_B_Min)/(T1A_B_Max-T1A_B_Min) -> 0.6187404273 | AV43: =RANK(AU43,$AU$7:$AU$164,0) -> 65 | AW43: =VLOOKUP(A43,T_2,20,FALSE) -> 0.3059219338 | AX43: =(AW43-T2Min)/(T2Max-T2Min) -> 0.4018027317 | AY43: =RANK(AX43,$AX$7:$AX$164,0) -> 106 | AZ43: =VLOOKUP(A43,T_3,30,FALSE) -> -0.0254427171 | BA43: =(AZ43-T3Max)/(T3Min-T3Max) -> 0.7604521787 | BB43: =RANK(BA43,$BA$7:$BA$164,0) -> 12 | BC43: =AVERAGE(AU43,AX43,BA43) -> 0.5936651126 | BD43: =(BC43-TMin)/(TMax-TMin) -> 0.6694715015 | BE43: =RANK(BD43,$BD$7:$BD$164,0) -> 46 | BF43: =VLOOKUP(A43,L1A,2,FALSE) -> 2.733684 | BG43: =(BF43-L1AMax)/(L1AMin-L1AMax) -> 0.7266316 | BH43: =RANK(BG43,$BG$7:$BG$164,0) -> 73 | BI43: =VLOOKUP(A43,L1B,9,FALSE) -> 0.8348305638 | BJ43: =(BI43-L1BMin)/(L1BMax-L1BMin) -> 0.836125456 | BK43: =RANK(BJ43,$BJ$7:$BJ$164,0) -> 34 | BL43: =VLOOKUP(A43,L1C,6,FALSE) -> 0.3181015641 | BM43: =(BL43-L1CMin)/(L1CMax-L1CMin) -> 0.1460731942 | BN43: =RANK(BM43,$BM$7:$BM$164,0) -> 110 | BO43: =AVERAGE(BG43,BJ43,BM43) -> 0.5696100834 | BP43: =(BO43-L1Min)/(L1Max-L1Min) -> 0.6240431744 | BQ43: =RANK(BP43,$BP$7:$BP$164,0) -> 68 | BR43: =VLOOKUP(A43,L_2,3,FALSE) -> 11.854 | BS43: =VLOOKUP($A43,L_2,2,FALSE) -> 21.056 | BT43: =BS43-BS43*BR43/100 -> 18.56002176 | BU43: =BR43+BT43 -> 30.41402176 | BV43: =(BU43-L2Max)/(L2Min-L2Max) -> 0.7360662263 | BW43: =RANK(BV43,$BV$7:$BV$164,0) -> 56 | BX43: =VLOOKUP(A43,L_3,2,FALSE) -> 0.4856584286 | BY43: =(BX43-L3Max)/(L3Min-L3Max) -> 0.6237002373 | BZ43: =RANK(BY43,$BY$7:$BY$164,0) -> 87 | CA43: =AVERAGE(BP43,BV43,BY43) -> 0.6612698794 | CB43: =(CA43-LMin)/(LMax-LMin) -> 0.661006078 | CC43: =RANK(CB43,$CB$7:$CB$164,0) -> 51 | CD43: =AVERAGE(AH43,BD43,CB43) -> 0.6495756078 | CE43: =(CD43-OverallScoreMin)/(OverallScoreMax-OverallScoreMin) -> 0.7381767054 | CF43: =RANK(CE43,$CE$7:$CE$164,0) -> 40
A44: Cote d'Ivoire | B44: =VLOOKUP(A44,Source_WB_country_income,6,FALSE) -> LMIC | C44: SSA | E44: =VLOOKUP(A44,PS1_Summary,3,FALSE) -> 17.71 | F44: =(E44-PS1AMin)/(PS1AMax-PS1AMin) -> 0.5593390085 | G44: =_xlfn.RANK.EQ(F44,$F$7:$F$164) -> 37 | H44: =VLOOKUP(A44,PS1_Summary,10,FALSE) -> 5.22 | I44: =(H44-PS1BMin)/(PS1BMax-PS1BMin) -> 0.1348217198 | J44: =_xlfn.RANK.EQ(I44,$I$7:$I$164) -> 141 | K44: =VLOOKUP(A44,PS1_Summary,17,FALSE) -> 8.87 | L44: =(K44-PS1CMin)/(PS1CMax-PS1CMin) -> 0.181913775 | M44: =_xlfn.RANK.EQ(L44,$L$7:$L$164) -> 104 | N44: =AVERAGE(F44,I44,L44) -> 0.2920248344 | O44: =(N44-PS1AvMin)/(PS1AvMax-PS1AvMin) -> 0.3778968633 | P44: =_xlfn.RANK.EQ(O44,$O$7:$O$164) -> 124 | Q44: =VLOOKUP(A44,PS2A,3,FALSE) -> 0.0188550569 | R44: =_xlfn.RANK.EQ(Q44,$Q$7:$Q$164) -> 132 | S44: =VLOOKUP(A44,PS2B,6,FALSE) -> 47 | T44: =VLOOKUP(A44,PS2B,2,FALSE) -> 12.43 | U44: =SQRT(S44*(100-T44)) -> 64.15442307 | V44: =(U44-PS2BMin)/(PS2BMax-PS2BMin) -> 0.3251278357 | W44: =_xlfn.RANK.EQ(V44,$V$7:$V$164) -> 132 | X44: =VLOOKUP(A44,PS2C_Source,3,FALSE) -> 7.7 | Y44: =(X44-PS2CMin)/(PS2CMax-PS2CMin) -> 0.077 | Z44: =_xlfn.RANK.EQ(Y44,$Y$7:$Y$164) -> 132 | AA44: =AVERAGE(Q44,V44,Y44) -> 0.1403276309 | AB44: =(AA44-PS2AvMin)/(PS2AvMax-PS2AvMin) -> 0.1387081743 | AC44: =_xlfn.RANK.EQ(AB44,$AB$7:$AB$164) -> 135 | AD44: =VLOOKUP(A44,PS_3,25,FALSE) -> -0.019785 | AE44: =(AD44-PS3Max)/(PS3Min-PS3Max) -> 0.04211155016 | AF44: =_xlfn.RANK.EQ(AE44,$AE$7:$AE$164) -> 127 | AG44: =AVERAGE(N44,AA44,AE44) -> 0.1581546718 | AH44: =(AG44-PSMin)/(PSMax-PSMin) -> 0.1694599111 | AI44: =_xlfn.RANK.EQ(AH44,$AH$7:$AH$164) -> 139 | AJ44: =VLOOKUP(A44,T1_VAT,13,FALSE) -> 4.5 | AK44: =(AJ44-T1_VATMax)/(T1_VATMin-T1_VATMax) -> 0.82 | AL44: =VLOOKUP(A44,T1_PIT,60,FALSE) -> 0.05897260637 | AM44: =(AL44-T1_PITMin)/(T1_PITMax-T1_PITMin) -> 0.362763135 | AN44: =VLOOKUP(A44,T1_CIT,4,FALSE) -> 25 | AO44: =(AN44-T1_CITMIn)/(T1_CITMAx-T1_CITMIn) -> 0.625 | AP44: =AVERAGE(AK44,AM44,AO44) -> 0.6025877117 | AQ44: =(AP44-T1AMin)/(T1AMax-T1AMin) -> 0.6473143164 | AR44: =VLOOKUP(A44,T1_HTP,5,FALSE) -> 0.75 | AS44: =(AR44-T1_HTPMax)/(T1_HTPMin-T1_HTPMax) -> 0.9166666667 | AT44: =AVERAGE(AQ44,AS44) -> 0.7819904916 | AU44: =(AT44-T1A_B_Min)/(T1A_B_Max-T1A_B_Min) -> 0.7102167151 | AV44: =RANK(AU44,$AU$7:$AU$164,0) -> 38 | AW44: =VLOOKUP(A44,T_2,20,FALSE) -> 0.1613236728 | AX44: =(AW44-T2Min)/(T2Max-T2Min) -> 0.2118850768 | AY44: =RANK(AX44,$AX$7:$AX$164,0) -> 147 | AZ44: =VLOOKUP(A44,T_3,30,FALSE) -> 0.01095248328 | BA44: =(AZ44-T3Max)/(T3Min-T3Max) -> 0.5623860791 | BB44: =RANK(BA44,$BA$7:$BA$164,0) -> 102 | BC44: =AVERAGE(AU44,AX44,BA44) -> 0.4948292904 | BD44: =(BC44-TMin)/(TMax-TMin) -> 0.4331979041 | BE44: =RANK(BD44,$BD$7:$BD$164,0) -> 120 | BF44: =VLOOKUP(A44,L1A,2,FALSE) -> 2.604211 | BG44: =(BF44-L1AMax)/(L1AMin-L1AMax) -> 0.7395789 | BH44: =RANK(BG44,$BG$7:$BG$164,0) -> 67 | BI44: =VLOOKUP(A44,L1B,9,FALSE) -> 0.7630254698 | BJ44: =(BI44-L1BMin)/(L1BMax-L1BMin) -> 0.7489419079 | BK44: =RANK(BJ44,$BJ$7:$BJ$164,0) -> 87 | BL44: =VLOOKUP(A44,L1C,6,FALSE) -> 0.4723043464 | BM44: =(BL44-L1CMin)/(L1CMax-L1CMin) -> 0.2168835752 | BN44: =RANK(BM44,$BM$7:$BM$164,0) -> 63 | BO44: =AVERAGE(BG44,BJ44,BM44) -> 0.5684681277 | BP44: =(BO44-L1Min)/(L1Max-L1Min) -> 0.6221587231 | BQ44: =RANK(BP44,$BP$7:$BP$164,0) -> 69 | BR44: =VLOOKUP(A44,L_2,3,FALSE) -> 3.317 | BS44: =VLOOKUP($A44,L_2,2,FALSE) -> 71.186 | BT44: =BS44-BS44*BR44/100 -> 68.82476038 | BU44: =BR44+BT44 -> 72.14176038 | BV44: =(BU44-L2Max)/(L2Min-L2Max) -> 0.2579790563 | BW44: =RANK(BV44,$BV$7:$BV$164,0) -> 125 | BX44: =VLOOKUP(A44,L_3,2,FALSE) -> 0.7540163538 | BY44: =(BX44-L3Max)/(L3Min-L3Max) -> 0.1638446168 | BZ44: =RANK(BY44,$BY$7:$BY$164,0) -> 148 | CA44: =AVERAGE(BP44,BV44,BY44) -> 0.3479941321 | CB44: =(CA44-LMin)/(LMax-LMin) -> 0.2411852488 | CC44: =RANK(CB44,$CB$7:$CB$164,0) -> 137 | CD44: =AVERAGE(AH44,BD44,CB44) -> 0.2812810213 | CE44: =(CD44-OverallScoreMin)/(OverallScoreMax-OverallScoreMin) -> 0.2635769637 | CF44: =RANK(CE44,$CE$7:$CE$164,0) -> 141
A45: Croatia | B45: =VLOOKUP(A45,Source_WB_country_income,6,FALSE) -> HIC | C45: ECA | E45: =VLOOKUP(A45,PS1_Summary,3,FALSE) -> 11.5 | F45: =(E45-PS1AMin)/(PS1AMax-PS1AMin) -> 0.2483725588 | G45: =_xlfn.RANK.EQ(F45,$F$7:$F$164) -> 117 | H45: =VLOOKUP(A45,PS1_Summary,10,FALSE) -> 14.3 | I45: =(H45-PS1BMin)/(PS1BMax-PS1BMin) -> 0.5401797383 | J45: =_xlfn.RANK.EQ(I45,$I$7:$I$164) -> 34 | K45: =VLOOKUP(A45,PS1_Summary,17,FALSE) -> 31.9 | L45: =(K45-PS1CMin)/(PS1CMax-PS1CMin) -> 0.6662460568 | M45: =_xlfn.RANK.EQ(L45,$L$7:$L$164) -> 35 | N45: =AVERAGE(F45,I45,L45) -> 0.4849327846 | O45: =(N45-PS1AvMin)/(PS1AvMax-PS1AvMin) -> 0.675298008 | P45: =_xlfn.RANK.EQ(O45,$O$7:$O$164) -> 51 | Q45: =VLOOKUP(A45,PS2A,3,FALSE) -> 0.9828215589 | R45: =_xlfn.RANK.EQ(Q45,$Q$7:$Q$164) -> 2 | S45: =VLOOKUP(A45,PS2B,6,FALSE) -> 71 | T45: =VLOOKUP(A45,PS2B,2,FALSE) -> 2.8 | U45: =SQRT(S45*(100-T45)) -> 83.07346147 | V45: =(U45-PS2BMin)/(PS2BMax-PS2BMin) -> 0.7664396125 | W45: =_xlfn.RANK.EQ(V45,$V$7:$V$164) -> 48 | X45: =VLOOKUP(A45,PS2C_Source,3,FALSE) -> 57.6 | Y45: =(X45-PS2CMin)/(PS2CMax-PS2CMin) -> 0.576 | Z45: =_xlfn.RANK.EQ(Y45,$Y$7:$Y$164) -> 81 | AA45: =AVERAGE(Q45,V45,Y45) -> 0.7750870571 | AB45: =(AA45-PS2AvMin)/(PS2AvMax-PS2AvMin) -> 0.8024267906 | AC45: =_xlfn.RANK.EQ(AB45,$AB$7:$AB$164) -> 47 | AD45: =VLOOKUP(A45,PS_3,25,FALSE) -> -0.242 | AE45: =(AD45-PS3Max)/(PS3Min-PS3Max) -> 0.5918247118 | AF45: =_xlfn.RANK.EQ(AE45,$AE$7:$AE$164) -> 4 | AG45: =AVERAGE(N45,AA45,AE45) -> 0.6172815179 | AH45: =(AG45-PSMin)/(PSMax-PSMin) -> 0.7721077875 | AI45: =_xlfn.RANK.EQ(AH45,$AH$7:$AH$164) -> 19 | AJ45: =VLOOKUP(A45,T1_VAT,13,FALSE) -> 15 | AK45: =(AJ45-T1_VATMax)/(T1_VATMin-T1_VATMax) -> 0.4 | AL45: =VLOOKUP(A45,T1_PIT,60,FALSE) -> 0.02279079863 | AM45: =(AL45-T1_PITMin)/(T1_PITMax-T1_PITMin) -> 0.1401949493 | AN45: =VLOOKUP(A45,T1_CIT,4,FALSE) -> 18 | AO45: =(AN45-T1_CITMIn)/(T1_CITMAx-T1_CITMIn) -> 0.45 | AP45: =AVERAGE(AK45,AM45,AO45) -> 0.3300649831 | AQ45: =(AP45-T1AMin)/(T1AMax-T1AMin) -> 0.2903971671 | AR45: =VLOOKUP(A45,T1_HTP,5,FALSE) -> 1.5 | AS45: =(AR45-T1_HTPMax)/(T1_HTPMin-T1_HTPMax) -> 0.8333333333 | AT45: =AVERAGE(AQ45,AS45) -> 0.5618652502 | AU45: =(AT45-T1A_B_Min)/(T1A_B_Max-T1A_B_Min) -> 0.4176211492 | AV45: =RANK(AU45,$AU$7:$AU$164,0) -> 117 | AW45: =VLOOKUP(A45,T_2,20,FALSE) -> 0.441718414 | AX45: =(AW45-T2Min)/(T2Max-T2Min) -> 0.5801599879 | AY45: =RANK(AX45,$AX$7:$AX$164,0) -> 53 | AZ45: =VLOOKUP(A45,T_3,30,FALSE) -> 0.019203 | BA45: =(AZ45-T3Max)/(T3Min-T3Max) -> 0.5174859921 | BB45: =RANK(BA45,$BA$7:$BA$164,0) -> 125 | BC45: =AVERAGE(AU45,AX45,BA45) -> 0.505089043 | BD45: =(BC45-TMin)/(TMax-TMin) -> 0.4577245243 | BE45: =RANK(BD45,$BD$7:$BD$164,0) -> 111 | BF45: =VLOOKUP(A45,L1A,2,FALSE) -> 2.198947 | BG45: =(BF45-L1AMax)/(L1AMin-L1AMax) -> 0.7801053 | BH45: =RANK(BG45,$BG$7:$BG$164,0) -> 56 | BI45: =VLOOKUP(A45,L1B,9,FALSE) -> 0.8989768522 | BJ45: =(BI45-L1BMin)/(L1BMax-L1BMin) -> 0.9140099167 | BK45: =RANK(BJ45,$BJ$7:$BJ$164,0) -> 7 | BL45: =VLOOKUP(A45,L1C,6,FALSE) -> 0.4559886217 | BM45: =(BL45-L1CMin)/(L1CMax-L1CMin) -> 0.2093913454 | BN45: =RANK(BM45,$BM$7:$BM$164,0) -> 70 | BO45: =AVERAGE(BG45,BJ45,BM45) -> 0.6345021874 | BP45: =(BO45-L1Min)/(L1Max-L1Min) -> 0.7311278982 | BQ45: =RANK(BP45,$BP$7:$BP$164,0) -> 36 | BR45: =VLOOKUP(A45,L_2,3,FALSE) -> 6.935 | BS45: =VLOOKUP($A45,L_2,2,FALSE) -> 7.271 | BT45: =BS45-BS45*BR45/100 -> 6.76675615 | BU45: =BR45+BT45 -> 13.70175615 | BV45: =(BU45-L2Max)/(L2Min-L2Max) -> 0.9275436472 | BW45: =RANK(BV45,$BV$7:$BV$164,0) -> 22 | BX45: =VLOOKUP(A45,L_3,2,FALSE) -> 0.3240550585 | BY45: =(BX45-L3Max)/(L3Min-L3Max) -> 0.9006222547 | BZ45: =RANK(BY45,$BY$7:$BY$164,0) -> 12 | CA45: =AVERAGE(BP45,BV45,BY45) -> 0.8530979333 | CB45: =(CA45-LMin)/(LMax-LMin) -> 0.9180748534 | CC45: =RANK(CB45,$CB$7:$CB$164,0) -> 14 | CD45: =AVERAGE(AH45,BD45,CB45) -> 0.715969055 | CE45: =(CD45-OverallScoreMin)/(OverallScoreMax-OverallScoreMin) -> 0.8237340665 | CF45: =RANK(CE45,$CE$7:$CE$164,0) -> 30
A46: Cyprus | B46: =VLOOKUP(A46,Source_WB_country_income,6,FALSE) -> HIC | C46: ECA | E46: =VLOOKUP(A46,PS1_Summary,3,FALSE) -> 12 | F46: =(E46-PS1AMin)/(PS1AMax-PS1AMin) -> 0.2734101152 | G46: =_xlfn.RANK.EQ(F46,$F$7:$F$164) -> 110 | H46: =VLOOKUP(A46,PS1_Summary,10,FALSE) -> 6.2 | I46: =(H46-PS1BMin)/(PS1BMax-PS1BMin) -> 0.1785718143 | J46: =_xlfn.RANK.EQ(I46,$I$7:$I$164) -> 135 | K46: =VLOOKUP(A46,PS1_Summary,17,FALSE) -> 28.7 | L46: =(K46-PS1CMin)/(PS1CMax-PS1CMin) -> 0.5989484753 | M46: =_xlfn.RANK.EQ(L46,$L$7:$L$164) -> 42 | N46: =AVERAGE(F46,I46,L46) -> 0.3503101349 | O46: =(N46-PS1AvMin)/(PS1AvMax-PS1AvMin) -> 0.4677537876 | P46: =_xlfn.RANK.EQ(O46,$O$7:$O$164) -> 96 | Q46: =VLOOKUP(A46,PS2A,3,FALSE) -> 0.9485720421 | R46: =_xlfn.RANK.EQ(Q46,$Q$7:$Q$164) -> 7 | S46: =VLOOKUP(A46,PS2B,6,FALSE) -> 78 | T46: =VLOOKUP(A46,PS2B,2,FALSE) -> 16.07 | U46: =SQRT(S46*(100-T46)) -> 80.91069151 | V46: =(U46-PS2BMin)/(PS2BMax-PS2BMin) -> 0.7159901216 | W46: =_xlfn.RANK.EQ(V46,$V$7:$V$164) -> 65 | X46: =VLOOKUP(A46,PS2C_Source,3,FALSE) -> 100 | Y46: =(X46-PS2CMin)/(PS2CMax-PS2CMin) -> 1 | Z46: =_xlfn.RANK.EQ(Y46,$Y$7:$Y$164) -> 1 | AA46: =AVERAGE(Q46,V46,Y46) -> 0.8881873879 | AB46: =(AA46-PS2AvMin)/(PS2AvMax-PS2AvMin) -> 0.9206870195 | AC46: =_xlfn.RANK.EQ(AB46,$AB$7:$AB$164) -> 17 | AD46: =VLOOKUP(A46,PS_3,25,FALSE) -> -0.04316 | AE46: =(AD46-PS3Max)/(PS3Min-PS3Max) -> 0.09993638266 | AF46: =_xlfn.RANK.EQ(AE46,$AE$7:$AE$164) -> 68 | AG46: =AVERAGE(N46,AA46,AE46) -> 0.4461446352 | AH46: =(AG46-PSMin)/(PSMax-PSMin) -> 0.5474742689 | AI46: =_xlfn.RANK.EQ(AH46,$AH$7:$AH$164) -> 52 | AJ46: =VLOOKUP(A46,T1_VAT,13,FALSE) -> 12 | AK46: =(AJ46-T1_VATMax)/(T1_VATMin-T1_VATMax) -> 0.52 | AL46: =VLOOKUP(A46,T1_PIT,60,FALSE) -> 0.02575200818 | AM46: =(AL46-T1_PITMin)/(T1_PITMax-T1_PITMin) -> 0.1584104857 | AN46: =VLOOKUP(A46,T1_CIT,4,FALSE) -> 12.5 | AO46: =(AN46-T1_CITMIn)/(T1_CITMAx-T1_CITMIn) -> 0.3125 | AP46: =AVERAGE(AK46,AM46,AO46) -> 0.3303034952 | AQ46: =(AP46-T1AMin)/(T1AMax-T1AMin) -> 0.2907095413 | AR46: =VLOOKUP(A46,T1_HTP,5,FALSE) -> 6.5 | AS46: =(AR46-T1_HTPMax)/(T1_HTPMin-T1_HTPMax) -> 0.2777777778 | AT46: =AVERAGE(AQ46,AS46) -> 0.2842436596 | AU46: =(AT46-T1A_B_Min)/(T1A_B_Max-T1A_B_Min) -> 0.04860010477 | AV46: =RANK(AU46,$AU$7:$AU$164,0) -> 157 | AW46: =VLOOKUP(A46,T_2,20,FALSE) -> 0.570431329 | AX46: =(AW46-T2Min)/(T2Max-T2Min) -> 0.7492135768 | AY46: =RANK(AX46,$AX$7:$AX$164,0) -> 20 | AZ46: =VLOOKUP(A46,T_3,30,FALSE) -> 0.0110908344 | BA46: =(AZ46-T3Max)/(T3Min-T3Max) -> 0.5616331593 | BB46: =RANK(BA46,$BA$7:$BA$164,0) -> 103 | BC46: =AVERAGE(AU46,AX46,BA46) -> 0.453148947 | BD46: =(BC46-TMin)/(TMax-TMin) -> 0.3335582749 | BE46: =RANK(BD46,$BD$7:$BD$164,0) -> 142 | BF46: =VLOOKUP(A46,L1A,2,FALSE) -> 0.189474 | BG46: =(BF46-L1AMax)/(L1AMin-L1AMax) -> 0.9810526 | BH46: =RANK(BG46,$BG$7:$BG$164,0) -> 5 | BI46: =VLOOKUP(A46,L1B,9,FALSE) -> 0.8406356578 | BJ46: =(BI46-L1BMin)/(L1BMax-L1BMin) -> 0.8431738235 | BK46: =RANK(BJ46,$BJ$7:$BJ$164,0) -> 29 | BL46: =VLOOKUP(A46,L1C,6,FALSE) -> 0.3729075758 | BM46: =(BL46-L1CMin)/(L1CMax-L1CMin) -> 0.1712402795 | BN46: =RANK(BM46,$BM$7:$BM$164,0) -> 89 | BO46: =AVERAGE(BG46,BJ46,BM46) -> 0.6651555677 | BP46: =(BO46-L1Min)/(L1Max-L1Min) -> 0.7817119994 | BQ46: =RANK(BP46,$BP$7:$BP$164,0) -> 21 | BR46: =VLOOKUP(A46,L_2,3,FALSE) -> 7.274 | BS46: =VLOOKUP($A46,L_2,2,FALSE) -> 11.06 | BT46: =BS46-BS46*BR46/100 -> 10.2554956 | BU46: =BR46+BT46 -> 17.5294956 | BV46: =(BU46-L2Max)/(L2Min-L2Max) -> 0.8836880925 | BW46: =RANK(BV46,$BV$7:$BV$164,0) -> 38 | BX46: =VLOOKUP(A46,L_3,2,FALSE) -> 0.3919113066 | BY46: =(BX46-L3Max)/(L3Min-L3Max) -> 0.7843444251 | BZ46: =RANK(BY46,$BY$7:$BY$164,0) -> 39 | CA46: =AVERAGE(BP46,BV46,BY46) -> 0.8165815057 | CB46: =(CA46-LMin)/(LMax-LMin) -> 0.8691391887 | CC46: =RANK(CB46,$CB$7:$CB$164,0) -> 24 | CD46: =AVERAGE(AH46,BD46,CB46) -> 0.5833905775 | CE46: =(CD46-OverallScoreMin)/(OverallScoreMax-OverallScoreMin) -> 0.6528879191 | CF46: =RANK(CE46,$CE$7:$CE$164,0) -> 51
A47: Czech Republic | B47: =VLOOKUP(A47,Source_WB_country_income,6,FALSE) -> HIC | C47: ECA | D47: OECD | E47: =VLOOKUP(A47,PS1_Summary,3,FALSE) -> 11.41271356 | F47: =(E47-PS1AMin)/(PS1AMax-PS1AMin) -> 0.2440016805 | G47: =_xlfn.RANK.EQ(F47,$F$7:$F$164) -> 120 | H47: =VLOOKUP(A47,PS1_Summary,10,FALSE) -> 18.69613569 | I47: =(H47-PS1BMin)/(PS1BMax-PS1BMin) -> 0.7364362197 | J47: =_xlfn.RANK.EQ(I47,$I$7:$I$164) -> 7 | K47: =VLOOKUP(A47,PS1_Summary,17,FALSE) -> 29.5462068 | L47: =(K47-PS1CMin)/(PS1CMax-PS1CMin) -> 0.6167446226 | M47: =_xlfn.RANK.EQ(L47,$L$7:$L$164) -> 40 | N47: =AVERAGE(F47,I47,L47) -> 0.5323941742 | O47: =(N47-PS1AvMin)/(PS1AvMax-PS1AvMin) -> 0.7484679918 | P47: =_xlfn.RANK.EQ(O47,$O$7:$O$164) -> 29 | Q47: =VLOOKUP(A47,PS2A,3,FALSE) -> 0.9428816835 | R47: =_xlfn.RANK.EQ(Q47,$Q$7:$Q$164) -> 9 | S47: =VLOOKUP(A47,PS2B,6,FALSE) -> 76 | T47: =VLOOKUP(A47,PS2B,2,FALSE) -> 2.22 | U47: =SQRT(S47*(100-T47)) -> 86.20487225 | V47: =(U47-PS2BMin)/(PS2BMax-PS2BMin) -> 0.8394839411 | W47: =_xlfn.RANK.EQ(V47,$V$7:$V$164) -> 25 | X47: =VLOOKUP(A47,PS2C_Source,3,FALSE) -> 100 | Y47: =(X47-PS2CMin)/(PS2CMax-PS2CMin) -> 1 | Z47: =_xlfn.RANK.EQ(Y47,$Y$7:$Y$164) -> 1 | AA47: =AVERAGE(Q47,V47,Y47) -> 0.9274552082 | AB47: =(AA47-PS2AvMin)/(PS2AvMax-PS2AvMin) -> 0.9617463284 | AC47: =_xlfn.RANK.EQ(AB47,$AB$7:$AB$164) -> 6 | AD47: =VLOOKUP(A47,PS_3,25,FALSE) -> -0.2072329535 | AE47: =(AD47-PS3Max)/(PS3Min-PS3Max) -> 0.5058183528 | AF47: =_xlfn.RANK.EQ(AE47,$AE$7:$AE$164) -> 12 | AG47: =AVERAGE(N47,AA47,AE47) -> 0.6552225784 | AH47: =(AG47-PSMin)/(PSMax-PSMin) -> 0.8219090565 | AI47: =_xlfn.RANK.EQ(AH47,$AH$7:$AH$164) -> 12 | AJ47: =VLOOKUP(A47,T1_VAT,13,FALSE) -> 18 | AK47: =(AJ47-T1_VATMax)/(T1_VATMin-T1_VATMax) -> 0.28 | AL47: =VLOOKUP(A47,T1_PIT,60,FALSE) -> 0.01840306615 | AM47: =(AL47-T1_PITMin)/(T1_PITMax-T1_PITMin) -> 0.1132043228 | AN47: =VLOOKUP(A47,T1_CIT,4,FALSE) -> 19 | AO47: =(AN47-T1_CITMIn)/(T1_CITMAx-T1_CITMIn) -> 0.475 | AP47: =AVERAGE(AK47,AM47,AO47) -> 0.2894014409 | AQ47: =(AP47-T1AMin)/(T1AMax-T1AMin) -> 0.2371410016 | AR47: =VLOOKUP(A47,T1_HTP,5,FALSE) -> 3.5 | AS47: =(AR47-T1_HTPMax)/(T1_HTPMin-T1_HTPMax) -> 0.6111111111 | AT47: =AVERAGE(AQ47,AS47) -> 0.4241260563 | AU47: =(AT47-T1A_B_Min)/(T1A_B_Max-T1A_B_Min) -> 0.2345350244 | AV47: =RANK(AU47,$AU$7:$AU$164,0) -> 149 | AW47: =VLOOKUP(A47,T_2,20,FALSE) -> 0.5092796348 | AX47: =(AW47-T2Min)/(T2Max-T2Min) -> 0.6688959694 | AY47: =RANK(AX47,$AX$7:$AX$164,0) -> 33 | AZ47: =VLOOKUP(A47,T_3,30,FALSE) -> 0.0028186 | BA47: =(AZ47-T3Max)/(T3Min-T3Max) -> 0.6066514361 | BB47: =RANK(BA47,$BA$7:$BA$164,0) -> 69 | BC47: =AVERAGE(AU47,AX47,BA47) -> 0.50336081 | BD47: =(BC47-TMin)/(TMax-TMin) -> 0.4535930683 | BE47: =RANK(BD47,$BD$7:$BD$164,0) -> 114 | BF47: =VLOOKUP(A47,L1A,2,FALSE) -> 2.357895 | BG47: =(BF47-L1AMax)/(L1AMin-L1AMax) -> 0.7642105 | BH47: =RANK(BG47,$BG$7:$BG$164,0) -> 62 | BI47: =VLOOKUP(A47,L1B,9,FALSE) -> 0.9596981351 | BJ47: =(BI47-L1BMin)/(L1BMax-L1BMin) -> 0.9877358406 | BK47: =RANK(BJ47,$BJ$7:$BJ$164,0) -> 2 | BL47: =VLOOKUP(A47,L1C,6,FALSE) -> 0.3040686284 | BM47: =(BL47-L1CMin)/(L1CMax-L1CMin) -> 0.139629228 | BN47: =RANK(BM47,$BM$7:$BM$164,0) -> 114 | BO47: =AVERAGE(BG47,BJ47,BM47) -> 0.6305251895 | BP47: =(BO47-L1Min)/(L1Max-L1Min) -> 0.7245650702 | BQ47: =RANK(BP47,$BP$7:$BP$164,0) -> 38 | BR47: =VLOOKUP(A47,L_2,3,FALSE) -> 1.933 | BS47: =VLOOKUP($A47,L_2,2,FALSE) -> 13.681 | BT47: =BS47-BS47*BR47/100 -> 13.41654627 | BU47: =BR47+BT47 -> 15.34954627 | BV47: =(BU47-L2Max)/(L2Min-L2Max) -> 0.9086644234 | BW47: =RANK(BV47,$BV$7:$BV$164,0) -> 29 | BX47: =VLOOKUP(A47,L_3,2,FALSE) -> 0.2891449979 | BY47: =(BX47-L3Max)/(L3Min-L3Max) -> 0.9604438067 | BZ47: =RANK(BY47,$BY$7:$BY$164,0) -> 6 | CA47: =AVERAGE(BP47,BV47,BY47) -> 0.8645577668 | CB47: =(CA47-LMin)/(LMax-LMin) -> 0.9334321762 | CC47: =RANK(CB47,$CB$7:$CB$164,0) -> 9 | CD47: =AVERAGE(AH47,BD47,CB47) -> 0.7363114337 | CE47: =(CD47-OverallScoreMin)/(OverallScoreMax-OverallScoreMin) -> 0.8499481028 | CF47: =RANK(CE47,$CE$7:$CE$164,0) -> 24
A48: Denmark | B48: =VLOOKUP(A48,Source_WB_country_income,6,FALSE) -> HIC | C48: ECA | D48: OECD | E48: =VLOOKUP(A48,PS1_Summary,3,FALSE) -> 12.6 | F48: =(E48-PS1AMin)/(PS1AMax-PS1AMin) -> 0.3034551828 | G48: =_xlfn.RANK.EQ(F48,$F$7:$F$164) -> 100 | H48: =VLOOKUP(A48,PS1_Summary,10,FALSE) -> 16.3 | I48: =(H48-PS1BMin)/(PS1BMax-PS1BMin) -> 0.6294656454 | J48: =_xlfn.RANK.EQ(I48,$I$7:$I$164) -> 19 | K48: =VLOOKUP(A48,PS1_Summary,17,FALSE) -> 43.1 | L48: =(K48-PS1CMin)/(PS1CMax-PS1CMin) -> 0.901787592 | M48: =_xlfn.RANK.EQ(L48,$L$7:$L$164) -> 5 | N48: =AVERAGE(F48,I48,L48) -> 0.6115694734 | O48: =(N48-PS1AvMin)/(PS1AvMax-PS1AvMin) -> 0.8705304811 | P48: =_xlfn.RANK.EQ(O48,$O$7:$O$164) -> 7 | Q48: =VLOOKUP(A48,PS2A,3,FALSE) -> 0.6894996779 | R48: =_xlfn.RANK.EQ(Q48,$Q$7:$Q$164) -> 49 | S48: =VLOOKUP(A48,PS2B,6,FALSE) -> 81 | T48: =VLOOKUP(A48,PS2B,2,FALSE) -> 2.93 | U48: =SQRT(S48*(100-T48)) -> 88.67169785 | V48: =(U48-PS2BMin)/(PS2BMax-PS2BMin) -> 0.8970259348 | W48: =_xlfn.RANK.EQ(V48,$V$7:$V$164) -> 12 | X48: =VLOOKUP(A48,PS2C_Source,3,FALSE) -> 100 | Y48: =(X48-PS2CMin)/(PS2CMax-PS2CMin) -> 1 | Z48: =_xlfn.RANK.EQ(Y48,$Y$7:$Y$164) -> 1 | AA48: =AVERAGE(Q48,V48,Y48) -> 0.8621752042 | AB48: =(AA48-PS2AvMin)/(PS2AvMax-PS2AvMin) -> 0.8934881 | AC48: =_xlfn.RANK.EQ(AB48,$AB$7:$AB$164) -> 27 | AD48: =VLOOKUP(A48,PS_3,25,FALSE) -> -0.20942 | AE48: =(AD48-PS3Max)/(PS3Min-PS3Max) -> 0.5112286458 | AF48: =_xlfn.RANK.EQ(AE48,$AE$7:$AE$164) -> 11 | AG48: =AVERAGE(N48,AA48,AE48) -> 0.6616577745 | AH48: =(AG48-PSMin)/(PSMax-PSMin) -> 0.8303558665 | AI48: =_xlfn.RANK.EQ(AH48,$AH$7:$AH$164) -> 8 | AJ48: =VLOOKUP(A48,T1_VAT,13,FALSE) -> 25 | AK48: =(AJ48-T1_VATMax)/(T1_VATMin-T1_VATMax) -> 0 | AL48: =VLOOKUP(A48,T1_PIT,60,FALSE) -> 0.009289416151 | AM48: =(AL48-T1_PITMin)/(T1_PITMax-T1_PITMin) -> 0.05714276395 | AN48: =VLOOKUP(A48,T1_CIT,4,FALSE) -> 22 | AO48: =(AN48-T1_CITMIn)/(T1_CITMAx-T1_CITMIn) -> 0.55 | AP48: =AVERAGE(AK48,AM48,AO48) -> 0.2023809213 | AQ48: =(AP48-T1AMin)/(T1AMax-T1AMin) -> 0.1231721008 | AR48: =VLOOKUP(A48,T1_HTP,5,FALSE) -> 0 | AS48: =(AR48-T1_HTPMax)/(T1_HTPMin-T1_HTPMax) -> 1 | AT48: =AVERAGE(AQ48,AS48) -> 0.5615860504 | AU48: =(AT48-T1A_B_Min)/(T1A_B_Max-T1A_B_Min) -> 0.4172500303 | AV48: =RANK(AU48,$AU$7:$AU$164,0) -> 118 | AW48: =VLOOKUP(A48,T_2,20,FALSE) -> 0.6735908155 | AX48: =(AW48-T2Min)/(T2Max-T2Min) -> 0.8847048865 | AY48: =RANK(AX48,$AX$7:$AX$164,0) -> 6 | AZ48: =VLOOKUP(A48,T_3,30,FALSE) -> 0.0141896 | BA48: =(AZ48-T3Max)/(T3Min-T3Max) -> 0.5447693858 | BB48: =RANK(BA48,$BA$7:$BA$164,0) -> 110 | BC48: =AVERAGE(AU48,AX48,BA48) -> 0.6155747676 | BD48: =(BC48-TMin)/(TMax-TMin) -> 0.721847987 | BE48: =RANK(BD48,$BD$7:$BD$164,0) -> 28 | BF48: =VLOOKUP(A48,L1A,2,FALSE) -> 0.533684 | BG48: =(BF48-L1AMax)/(L1AMin-L1AMax) -> 0.9466316 | BH48: =RANK(BG48,$BG$7:$BG$164,0) -> 12 | BI48: =VLOOKUP(A48,L1B,9,FALSE) -> 0.8570524635 | BJ48: =(BI48-L1BMin)/(L1BMax-L1BMin) -> 0.8631066067 | BK48: =RANK(BJ48,$BJ$7:$BJ$164,0) -> 22 | BL48: =VLOOKUP(A48,L1C,6,FALSE) -> 0.5741110166 | BM48: =(BL48-L1CMin)/(L1CMax-L1CMin) -> 0.2636335041 | BN48: =RANK(BM48,$BM$7:$BM$164,0) -> 41 | BO48: =AVERAGE(BG48,BJ48,BM48) -> 0.6911239036 | BP48: =(BO48-L1Min)/(L1Max-L1Min) -> 0.8245648569 | BQ48: =RANK(BP48,$BP$7:$BP$164,0) -> 10 | BR48: =VLOOKUP(A48,L_2,3,FALSE) -> 4.913 | BS48: =VLOOKUP($A48,L_2,2,FALSE) -> 4.895 | BT48: =BS48-BS48*BR48/100 -> 4.65450865 | BU48: =BR48+BT48 -> 9.56750865 | BV48: =(BU48-L2Max)/(L2Min-L2Max) -> 0.9749109561 | BW48: =RANK(BV48,$BV$7:$BV$164,0) -> 7 | BX48: =VLOOKUP(A48,L_3,2,FALSE) -> 0.3072010215 | BY48: =(BX48-L3Max)/(L3Min-L3Max) -> 0.9295031742 | BZ48: =RANK(BY48,$BY$7:$BY$164,0) -> 9 | CA48: =AVERAGE(BP48,BV48,BY48) -> 0.9096596624 | CB48: =(CA48-LMin)/(LMax-LMin) -> 0.9938732266 | CC48: =RANK(CB48,$CB$7:$CB$164,0) -> 2 | CD48: =AVERAGE(AH48,BD48,CB48) -> 0.84869236 | CE48: =(CD48-OverallScoreMin)/(OverallScoreMax-OverallScoreMin) -> 0.9947668446 | CF48: =RANK(CE48,$CE$7:$CE$164,0) -> 2
A49: Djibouti | B49: =VLOOKUP(A49,Source_WB_country_income,6,FALSE) -> LMIC | C49: MENA | E49: =VLOOKUP(A49,PS1_Summary,3,FALSE) -> 18.88 | F49: =(E49-PS1AMin)/(PS1AMax-PS1AMin) -> 0.6179268903 | G49: =_xlfn.RANK.EQ(F49,$F$7:$F$164) -> 24 | H49: =VLOOKUP(A49,PS1_Summary,10,FALSE) -> 8.09 | I49: =(H49-PS1BMin)/(PS1BMax-PS1BMin) -> 0.2629469966 | J49: =_xlfn.RANK.EQ(I49,$I$7:$I$164) -> 117 | K49: =VLOOKUP(A49,PS1_Summary,17,FALSE) -> 5.230911053 | L49: =(K49-PS1CMin)/(PS1CMax-PS1CMin) -> 0.1053819359 | M49: =_xlfn.RANK.EQ(L49,$L$7:$L$164) -> 136 | N49: =AVERAGE(F49,I49,L49) -> 0.3287519409 | O49: =(N49-PS1AvMin)/(PS1AvMax-PS1AvMin) -> 0.4345180834 | P49: =_xlfn.RANK.EQ(O49,$O$7:$O$164) -> 104 | Q49: =VLOOKUP(A49,PS2A,3,FALSE) -> 0.1069917778 | R49: =_xlfn.RANK.EQ(Q49,$Q$7:$Q$164) -> 117 | S49: =VLOOKUP(A49,PS2B,6,FALSE) -> 47 | T49: =VLOOKUP(A49,PS2B,2,FALSE) -> 4.80852962 | U49: =SQRT(S49*(100-T49)) -> 66.88795936 | V49: =(U49-PS2BMin)/(PS2BMax-PS2BMin) -> 0.3888912116 | W49: =_xlfn.RANK.EQ(V49,$V$7:$V$164) -> 124 | X49: =VLOOKUP(A49,PS2C_Source,3,FALSE) -> 12 | Y49: =(X49-PS2CMin)/(PS2CMax-PS2CMin) -> 0.12 | Z49: =_xlfn.RANK.EQ(Y49,$Y$7:$Y$164) -> 119 | AA49: =AVERAGE(Q49,V49,Y49) -> 0.2052943298 | AB49: =(AA49-PS2AvMin)/(PS2AvMax-PS2AvMin) -> 0.206638804 | AC49: =_xlfn.RANK.EQ(AB49,$AB$7:$AB$164) -> 123 | AD49: =VLOOKUP(A49,PS_3,25,FALSE) -> -0.02351535917 | AE49: =(AD49-PS3Max)/(PS3Min-PS3Max) -> 0.05133967398 | AF49: =_xlfn.RANK.EQ(AE49,$AE$7:$AE$164) -> 113 | AG49: =AVERAGE(N49,AA49,AE49) -> 0.1951286482 | AH49: =(AG49-PSMin)/(PSMax-PSMin) -> 0.2179917898 | AI49: =_xlfn.RANK.EQ(AH49,$AH$7:$AH$164) -> 123 | AJ49: =VLOOKUP(A49,T1_VAT,13,FALSE) -> 0 | AK49: =(AJ49-T1_VATMax)/(T1_VATMin-T1_VATMax) -> 1 | AL49: =VLOOKUP(A49,T1_PIT,60,FALSE) -> 0.009546753945 | AM49: =(AL49-T1_PITMin)/(T1_PITMax-T1_PITMin) -> 0.05872574749 | AN49: =VLOOKUP(A49,T1_CIT,4,FALSE) -> 25 | AO49: =(AN49-T1_CITMIn)/(T1_CITMAx-T1_CITMIn) -> 0.625 | AP49: =AVERAGE(AK49,AM49,AO49) -> 0.5612419158 | AQ49: =(AP49-T1AMin)/(T1AMax-T1AMin) -> 0.5931646179 | AR49: =VLOOKUP(A49,T1_HTP,5,FALSE) -> 0 | AS49: =(AR49-T1_HTPMax)/(T1_HTPMin-T1_HTPMax) -> 1 | AT49: =AVERAGE(AQ49,AS49) -> 0.796582309 | AU49: =(AT49-T1A_B_Min)/(T1A_B_Max-T1A_B_Min) -> 0.7296124966 | AV49: =RANK(AU49,$AU$7:$AU$164,0) -> 30 | AW49: =VLOOKUP(A49,T_2,20,FALSE) -> 0.5179868354 | AX49: =(AW49-T2Min)/(T2Max-T2Min) -> 0.6803321451 | AY49: =RANK(AX49,$AX$7:$AX$164,0) -> 30 | AZ49: =VLOOKUP(A49,T_3,30,FALSE) -> 0.00455 | BA49: =(AZ49-T3Max)/(T3Min-T3Max) -> 0.5972289946 | BB49: =RANK(BA49,$BA$7:$BA$164,0) -> 76 | BC49: =AVERAGE(AU49,AX49,BA49) -> 0.6690578788 | BD49: =(BC49-TMin)/(TMax-TMin) -> 0.8497029166 | BE49: =RANK(BD49,$BD$7:$BD$164,0) -> 5 | BF49: =VLOOKUP(A49,L1A,2,FALSE) -> 10 | BG49: =(BF49-L1AMax)/(L1AMin-L1AMax) -> 0 | BH49: =RANK(BG49,$BG$7:$BG$164,0) -> 149 | BI49: =VLOOKUP(A49,L1B,9,FALSE) -> 0.4973157245 | BJ49: =(BI49-L1BMin)/(L1BMax-L1BMin) -> 0.4263252649 | BK49: =RANK(BJ49,$BJ$7:$BJ$164,0) -> 141 | BL49: =VLOOKUP(A49,L1C,6,FALSE) -> 0.8048648685 | BM49: =(BL49-L1CMin)/(L1CMax-L1CMin) -> 0.3695963664 | BN49: =RANK(BM49,$BM$7:$BM$164,0) -> 25 | BO49: =AVERAGE(BG49,BJ49,BM49) -> 0.2653072104 | BP49: =(BO49-L1Min)/(L1Max-L1Min) -> 0.1218836345 | BQ49: =RANK(BP49,$BP$7:$BP$164,0) -> 154 | BR49: =VLOOKUP(A49,L_2,3,FALSE) -> 10.295 | BS49: =VLOOKUP($A49,L_2,2,FALSE) -> 44.741 | BT49: =BS49-BS49*BR49/100 -> 40.13491405 | BU49: =BR49+BT49 -> 50.42991405 | BV49: =(BU49-L2Max)/(L2Min-L2Max) -> 0.5067381674 | BW49: =RANK(BV49,$BV$7:$BV$164,0) -> 97 | BX49: =VLOOKUP(A49,L_3,2,FALSE) -> 0.5519467662 | BY49: =(BX49-L3Max)/(L3Min-L3Max) -> 0.5101091645 | BZ49: =RANK(BY49,$BY$7:$BY$164,0) -> 106 | CA49: =AVERAGE(BP49,BV49,BY49) -> 0.3795769888 | CB49: =(CA49-LMin)/(LMax-LMin) -> 0.2835094351 | CC49: =RANK(CB49,$CB$7:$CB$164,0) -> 127 | CD49: =AVERAGE(AH49,BD49,CB49) -> 0.4504013805 | CE49: =(CD49-OverallScoreMin)/(OverallScoreMax-OverallScoreMin) -> 0.4815125015 | CF49: =RANK(CE49,$CE$7:$CE$164,0) -> 101
A50: Dominican Republic | B50: =VLOOKUP(A50,Source_WB_country_income,6,FALSE) -> UMIC | C50: LAC | E50: =VLOOKUP(A50,PS1_Summary,3,FALSE) -> 20.1 | F50: =(E50-PS1AMin)/(PS1AMax-PS1AMin) -> 0.6790185278 | G50: =_xlfn.RANK.EQ(F50,$F$7:$F$164) -> 17 | H50: =VLOOKUP(A50,PS1_Summary,10,FALSE) -> 8.24 | I50: =(H50-PS1BMin)/(PS1BMax-PS1BMin) -> 0.2696434396 | J50: =_xlfn.RANK.EQ(I50,$I$7:$I$164) -> 113 | K50: =VLOOKUP(A50,PS1_Summary,17,FALSE) -> 7.01 | L50: =(K50-PS1CMin)/(PS1CMax-PS1CMin) -> 0.1427970557 | M50: =_xlfn.RANK.EQ(L50,$L$7:$L$164) -> 119 | N50: =AVERAGE(F50,I50,L50) -> 0.3638196744 | O50: =(N50-PS1AvMin)/(PS1AvMax-PS1AvMin) -> 0.4885810915 | P50: =_xlfn.RANK.EQ(O50,$O$7:$O$164) -> 93 | Q50: =VLOOKUP(A50,PS2A,3,FALSE) -> 0.4746617994 | R50: =_xlfn.RANK.EQ(Q50,$Q$7:$Q$164) -> 73 | S50: =VLOOKUP(A50,PS2B,6,FALSE) -> 74 | T50: =VLOOKUP(A50,PS2B,2,FALSE) -> 9.810089345 | U50: =SQRT(S50*(100-T50)) -> 81.69487982 | V50: =(U50-PS2BMin)/(PS2BMax-PS2BMin) -> 0.7342823588 | W50: =_xlfn.RANK.EQ(V50,$V$7:$V$164) -> 60 | X50: =VLOOKUP(A50,PS2C_Source,3,FALSE) -> 11.1 | Y50: =(X50-PS2CMin)/(PS2CMax-PS2CMin) -> 0.111 | Z50: =_xlfn.RANK.EQ(Y50,$Y$7:$Y$164) -> 120 | AA50: =AVERAGE(Q50,V50,Y50) -> 0.4399813861 | AB50: =(AA50-PS2AvMin)/(PS2AvMax-PS2AvMin) -> 0.4520328254 | AC50: =_xlfn.RANK.EQ(AB50,$AB$7:$AB$164) -> 101 | AD50: =VLOOKUP(A50,PS_3,25,FALSE) -> -0.0398 | AE50: =(AD50-PS3Max)/(PS3Min-PS3Max) -> 0.09162444951 | AF50: =_xlfn.RANK.EQ(AE50,$AE$7:$AE$164) -> 74 | AG50: =AVERAGE(N50,AA50,AE50) -> 0.29847517 | AH50: =(AG50-PSMin)/(PSMax-PSMin) -> 0.3536439791 | AI50: =_xlfn.RANK.EQ(AH50,$AH$7:$AH$164) -> 96 | AJ50: =VLOOKUP(A50,T1_VAT,13,FALSE) -> 12.42 | AK50: =(AJ50-T1_VATMax)/(T1_VATMin-T1_VATMax) -> 0.5032 | AL50: =VLOOKUP(A50,T1_PIT,60,FALSE) -> 0.02771886038 | AM50: =(AL50-T1_PITMin)/(T1_PITMax-T1_PITMin) -> 0.1705093485 | AN50: =VLOOKUP(A50,T1_CIT,4,FALSE) -> 27 | AO50: =(AN50-T1_CITMIn)/(T1_CITMAx-T1_CITMIn) -> 0.675 | AP50: =AVERAGE(AK50,AM50,AO50) -> 0.4495697828 | AQ50: =(AP50-T1AMin)/(T1AMax-T1AMin) -> 0.44691003 | AR50: =VLOOKUP(A50,T1_HTP,5,FALSE) -> 3.5 | AS50: =(AR50-T1_HTPMax)/(T1_HTPMin-T1_HTPMax) -> 0.6111111111 | AT50: =AVERAGE(AQ50,AS50) -> 0.5290105705 | AU50: =(AT50-T1A_B_Min)/(T1A_B_Max-T1A_B_Min) -> 0.3739499484 | AV50: =RANK(AU50,$AU$7:$AU$164,0) -> 132 | AW50: =VLOOKUP(A50,T_2,20,FALSE) -> 0.2204182241 | AX50: =(AW50-T2Min)/(T2Max-T2Min) -> 0.2895008 | AY50: =RANK(AX50,$AX$7:$AX$164,0) -> 129 | AZ50: =VLOOKUP(A50,T_3,30,FALSE) -> -0.0158708792 | BA50: =(AZ50-T3Max)/(T3Min-T3Max) -> 0.7083613376 | BB50: =RANK(BA50,$BA$7:$BA$164,0) -> 21 | BC50: =AVERAGE(AU50,AX50,BA50) -> 0.4572706954 | BD50: =(BC50-TMin)/(TMax-TMin) -> 0.3434115882 | BE50: =RANK(BD50,$BD$7:$BD$164,0) -> 139 | BF50: =VLOOKUP(A50,L1A,2,FALSE) -> 3.089474 | BG50: =(BF50-L1AMax)/(L1AMin-L1AMax) -> 0.6910526 | BH50: =RANK(BG50,$BG$7:$BG$164,0) -> 82 | BI50: =VLOOKUP(A50,L1B,9,FALSE) -> 0.7630254698 | BJ50: =(BI50-L1BMin)/(L1BMax-L1BMin) -> 0.7489419079 | BK50: =RANK(BJ50,$BJ$7:$BJ$164,0) -> 87 | BL50: =VLOOKUP(A50,L1C,6,FALSE) -> 0.2426335207 | BM50: =(BL50-L1CMin)/(L1CMax-L1CMin) -> 0.1114180418 | BN50: =RANK(BM50,$BM$7:$BM$164,0) -> 126 | BO50: =AVERAGE(BG50,BJ50,BM50) -> 0.5171375166 | BP50: =(BO50-L1Min)/(L1Max-L1Min) -> 0.5374531276 | BQ50: =RANK(BP50,$BP$7:$BP$164,0) -> 92 | BR50: =VLOOKUP(A50,L_2,3,FALSE) -> 5.845 | BS50: =VLOOKUP($A50,L_2,2,FALSE) -> 40.4 | BT50: =BS50-BS50*BR50/100 -> 38.03862 | BU50: =BR50+BT50 -> 43.88362 | BV50: =(BU50-L2Max)/(L2Min-L2Max) -> 0.5817410144 | BW50: =RANK(BV50,$BV$7:$BV$164,0) -> 84 | BX50: =VLOOKUP(A50,L_3,2,FALSE) -> 0.4334474794 | BY50: =(BX50-L3Max)/(L3Min-L3Max) -> 0.7131684296 | BZ50: =RANK(BY50,$BY$7:$BY$164,0) -> 64 | CA50: =AVERAGE(BP50,BV50,BY50) -> 0.6107875239 | CB50: =(CA50-LMin)/(LMax-LMin) -> 0.5933546734 | CC50: =RANK(CB50,$CB$7:$CB$164,0) -> 72 | CD50: =AVERAGE(AH50,BD50,CB50) -> 0.4301367469 | CE50: =(CD50-OverallScoreMin)/(OverallScoreMax-OverallScoreMin) -> 0.4553986507 | CF50: =RANK(CE50,$CE$7:$CE$164,0) -> 110
A51: Ecuador | B51: =VLOOKUP(A51,Source_WB_country_income,6,FALSE) -> UMIC | C51: LAC | E51: =VLOOKUP(A51,PS1_Summary,3,FALSE) -> 15.29 | F51: =(E51-PS1AMin)/(PS1AMax-PS1AMin) -> 0.4381572359 | G51: =_xlfn.RANK.EQ(F51,$F$7:$F$164) -> 73 | H51: =VLOOKUP(A51,PS1_Summary,10,FALSE) -> 8.92 | I51: =(H51-PS1BMin)/(PS1BMax-PS1BMin) -> 0.300000648 | J51: =_xlfn.RANK.EQ(I51,$I$7:$I$164) -> 106 | K51: =VLOOKUP(A51,PS1_Summary,17,FALSE) -> 6.309148265 | L51: =(K51-PS1CMin)/(PS1CMax-PS1CMin) -> 0.1280577974 | M51: =_xlfn.RANK.EQ(L51,$L$7:$L$164) -> 128 | N51: =AVERAGE(F51,I51,L51) -> 0.2887385604 | O51: =(N51-PS1AvMin)/(PS1AvMax-PS1AvMin) -> 0.3728305005 | P51: =_xlfn.RANK.EQ(O51,$O$7:$O$164) -> 126 | Q51: =VLOOKUP(A51,PS2A,3,FALSE) -> 0.601674898 | R51: =_xlfn.RANK.EQ(Q51,$Q$7:$Q$164) -> 58 | S51: =VLOOKUP(A51,PS2B,6,FALSE) -> 77 | T51: =VLOOKUP(A51,PS2B,2,FALSE) -> 18.37 | U51: =SQRT(S51*(100-T51)) -> 79.28120837 | V51: =(U51-PS2BMin)/(PS2BMax-PS2BMin) -> 0.6779802564 | W51: =_xlfn.RANK.EQ(V51,$V$7:$V$164) -> 75 | X51: =VLOOKUP(A51,PS2C_Source,3,FALSE) -> 52 | Y51: =(X51-PS2CMin)/(PS2CMax-PS2CMin) -> 0.52 | Z51: =_xlfn.RANK.EQ(Y51,$Y$7:$Y$164) -> 84 | AA51: =AVERAGE(Q51,V51,Y51) -> 0.5998850515 | AB51: =(AA51-PS2AvMin)/(PS2AvMax-PS2AvMin) -> 0.6192316651 | AC51: =_xlfn.RANK.EQ(AB51,$AB$7:$AB$164) -> 73 | AD51: =VLOOKUP(A51,PS_3,25,FALSE) -> -0.0559 | AE51: =(AD51-PS3Max)/(PS3Min-PS3Max) -> 0.1314524625 | AF51: =_xlfn.RANK.EQ(AE51,$AE$7:$AE$164) -> 57 | AG51: =AVERAGE(N51,AA51,AE51) -> 0.3400253581 | AH51: =(AG51-PSMin)/(PSMax-PSMin) -> 0.4081825731 | AI51: =_xlfn.RANK.EQ(AH51,$AH$7:$AH$164) -> 81 | AJ51: =VLOOKUP(A51,T1_VAT,13,FALSE) -> 6 | AK51: =(AJ51-T1_VATMax)/(T1_VATMin-T1_VATMax) -> 0.76 | AL51: =VLOOKUP(A51,T1_PIT,60,FALSE) -> 0.1195262301 | AM51: =(AL51-T1_PITMin)/(T1_PITMax-T1_PITMin) -> 0.7352517146 | AN51: =VLOOKUP(A51,T1_CIT,4,FALSE) -> 25 | AO51: =(AN51-T1_CITMIn)/(T1_CITMAx-T1_CITMIn) -> 0.625 | AP51: =AVERAGE(AK51,AM51,AO51) -> 0.7067505715 | AQ51: =(AP51-T1AMin)/(T1AMax-T1AMin) -> 0.783734171 | AR51: =VLOOKUP(A51,T1_HTP,5,FALSE) -> 1.5 | AS51: =(AR51-T1_HTPMax)/(T1_HTPMin-T1_HTPMax) -> 0.8333333333 | AT51: =AVERAGE(AQ51,AS51) -> 0.8085337522 | AU51: =(AT51-T1A_B_Min)/(T1A_B_Max-T1A_B_Min) -> 0.7454986316 | AV51: =RANK(AU51,$AU$7:$AU$164,0) -> 26 | AW51: =VLOOKUP(A51,T_2,20,FALSE) -> 0.3351625443 | AX51: =(AW51-T2Min)/(T2Max-T2Min) -> 0.4402078144 | AY51: =RANK(AX51,$AX$7:$AX$164,0) -> 96 | AZ51: =VLOOKUP(A51,T_3,30,FALSE) -> -0.01079702348 | BA51: =(AZ51-T3Max)/(T3Min-T3Max) -> 0.6807489382 | BB51: =RANK(BA51,$BA$7:$BA$164,0) -> 34 | BC51: =AVERAGE(AU51,AX51,BA51) -> 0.6221517947 | BD51: =(BC51-TMin)/(TMax-TMin) -> 0.7375708073 | BE51: =RANK(BD51,$BD$7:$BD$164,0) -> 24 | BF51: =VLOOKUP(A51,L1A,2,FALSE) -> 6.058947 | BG51: =(BF51-L1AMax)/(L1AMin-L1AMax) -> 0.3941053 | BH51: =RANK(BG51,$BG$7:$BG$164,0) -> 134 | BI51: =VLOOKUP(A51,L1B,9,FALSE) -> 0.8272839417 | BJ51: =(BI51-L1BMin)/(L1BMax-L1BMin) -> 0.8269625783 | BK51: =RANK(BJ51,$BJ$7:$BJ$164,0) -> 45 | BL51: =VLOOKUP(A51,L1C,6,FALSE) -> 0.8832859261 | BM51: =(BL51-L1CMin)/(L1CMax-L1CMin) -> 0.4056075517 | BN51: =RANK(BM51,$BM$7:$BM$164,0) -> 22 | BO51: =AVERAGE(BG51,BJ51,BM51) -> 0.5422251433 | BP51: =(BO51-L1Min)/(L1Max-L1Min) -> 0.5788526418 | BQ51: =RANK(BP51,$BP$7:$BP$164,0) -> 81 | BR51: =VLOOKUP(A51,L_2,3,FALSE) -> 3.968 | BS51: =VLOOKUP($A51,L_2,2,FALSE) -> 46.728 | BT51: =BS51-BS51*BR51/100 -> 44.87383296 | BU51: =BR51+BT51 -> 48.84183296 | BV51: =(BU51-L2Max)/(L2Min-L2Max) -> 0.524933287 | BW51: =RANK(BV51,$BV$7:$BV$164,0) -> 93 | BX51: =VLOOKUP(A51,L_3,2,FALSE) -> 0.4970492058 | BY51: =(BX51-L3Max)/(L3Min-L3Max) -> 0.6041811084 | BZ51: =RANK(BY51,$BY$7:$BY$164,0) -> 93 | CA51: =AVERAGE(BP51,BV51,BY51) -> 0.5693223457 | CB51: =(CA51-LMin)/(LMax-LMin) -> 0.5377871881 | CC51: =RANK(CB51,$CB$7:$CB$164,0) -> 87 | CD51: =AVERAGE(AH51,BD51,CB51) -> 0.5611801895 | CE51: =(CD51-OverallScoreMin)/(OverallScoreMax-OverallScoreMin) -> 0.6242666882 | CF51: =RANK(CE51,$CE$7:$CE$164,0) -> 58
A52: Egypt, Arab Rep. | B52: =VLOOKUP(A52,Source_WB_country_income,6,FALSE) -> LMIC | C52: MENA | E52: =VLOOKUP(A52,PS1_Summary,3,FALSE) -> 8.39 | F52: =(E52-PS1AMin)/(PS1AMax-PS1AMin) -> 0.09263895844 | G52: =_xlfn.RANK.EQ(F52,$F$7:$F$164) -> 150 | H52: =VLOOKUP(A52,PS1_Summary,10,FALSE) -> 4.64 | I52: =(H52-PS1BMin)/(PS1BMax-PS1BMin) -> 0.1089288067 | J52: =_xlfn.RANK.EQ(I52,$I$7:$I$164) -> 151 | K52: =VLOOKUP(A52,PS1_Summary,17,FALSE) -> 17.21 | L52: =(K52-PS1CMin)/(PS1CMax-PS1CMin) -> 0.3573080967 | M52: =_xlfn.RANK.EQ(L52,$L$7:$L$164) -> 74 | N52: =AVERAGE(F52,I52,L52) -> 0.186291954 | O52: =(N52-PS1AvMin)/(PS1AvMax-PS1AvMin) -> 0.2148912451 | P52: =_xlfn.RANK.EQ(O52,$O$7:$O$164) -> 149 | Q52: =VLOOKUP(A52,PS2A,3,FALSE) -> 0.2890434829 | R52: =_xlfn.RANK.EQ(Q52,$Q$7:$Q$164) -> 91 | S52: =VLOOKUP(A52,PS2B,6,FALSE) -> 68 | T52: =VLOOKUP(A52,PS2B,2,FALSE) -> 26.2 | U52: =SQRT(S52*(100-T52)) -> 70.84066629 | V52: =(U52-PS2BMin)/(PS2BMax-PS2BMin) -> 0.4810933669 | W52: =_xlfn.RANK.EQ(V52,$V$7:$V$164) -> 113 | X52: =VLOOKUP(A52,PS2C_Source,3,FALSE) -> 37.5 | Y52: =(X52-PS2CMin)/(PS2CMax-PS2CMin) -> 0.375 | Z52: =_xlfn.RANK.EQ(Y52,$Y$7:$Y$164) -> 93 | AA52: =AVERAGE(Q52,V52,Y52) -> 0.3817122833 | AB52: =(AA52-PS2AvMin)/(PS2AvMax-PS2AvMin) -> 0.3911053517 | AC52: =_xlfn.RANK.EQ(AB52,$AB$7:$AB$164) -> 106 | AD52: =VLOOKUP(A52,PS_3,25,FALSE) -> -0.033 | AE52: =(AD52-PS3Max)/(PS3Min-PS3Max) -> 0.07480268006 | AF52: =_xlfn.RANK.EQ(AE52,$AE$7:$AE$164) -> 89 | AG52: =AVERAGE(N52,AA52,AE52) -> 0.2142689724 | AH52: =(AG52-PSMin)/(PSMax-PSMin) -> 0.243115295 | AI52: =_xlfn.RANK.EQ(AH52,$AH$7:$AH$164) -> 117 | AJ52: =VLOOKUP(A52,T1_VAT,13,FALSE) -> 9.5 | AK52: =(AJ52-T1_VATMax)/(T1_VATMin-T1_VATMax) -> 0.62 | AL52: =VLOOKUP(A52,T1_PIT,60,FALSE) -> 0.01611516717 | AM52: =(AL52-T1_PITMin)/(T1_PITMax-T1_PITMin) -> 0.09913057816 | AN52: =VLOOKUP(A52,T1_CIT,4,FALSE) -> 22.5 | AO52: =(AN52-T1_CITMIn)/(T1_CITMAx-T1_CITMIn) -> 0.5625 | AP52: =AVERAGE(AK52,AM52,AO52) -> 0.4272101927 | AQ52: =(AP52-T1AMin)/(T1AMax-T1AMin) -> 0.4176261563 | AR52: =VLOOKUP(A52,T1_HTP,5,FALSE) -> 0.5 | AS52: =(AR52-T1_HTPMax)/(T1_HTPMin-T1_HTPMax) -> 0.9444444444 | AT52: =AVERAGE(AQ52,AS52) -> 0.6810353004 | AU52: =(AT52-T1A_B_Min)/(T1A_B_Max-T1A_B_Min) -> 0.5760247382 | AV52: =RANK(AU52,$AU$7:$AU$164,0) -> 74 | AW52: =VLOOKUP(A52,T_2,20,FALSE) -> 0.3279792224 | AX52: =(AW52-T2Min)/(T2Max-T2Min) -> 0.4307731253 | AY52: =RANK(AX52,$AX$7:$AX$164,0) -> 99 | AZ52: =VLOOKUP(A52,T_3,30,FALSE) -> -0.00068 | BA52: =(AZ52-T3Max)/(T3Min-T3Max) -> 0.6256911459 | BB52: =RANK(BA52,$BA$7:$BA$164,0) -> 57 | BC52: =AVERAGE(AU52,AX52,BA52) -> 0.5441630031 | BD52: =(BC52-TMin)/(TMax-TMin) -> 0.5511334211 | BE52: =RANK(BD52,$BD$7:$BD$164,0) -> 87 | BF52: =VLOOKUP(A52,L1A,2,FALSE) -> 10 | BG52: =(BF52-L1AMax)/(L1AMin-L1AMax) -> 0 | BH52: =RANK(BG52,$BG$7:$BG$164,0) -> 149 | BI52: =VLOOKUP(A52,L1B,9,FALSE) -> 0.7601229229 | BJ52: =(BI52-L1BMin)/(L1BMax-L1BMin) -> 0.7454177241 | BK52: =RANK(BJ52,$BJ$7:$BJ$164,0) -> 96 | BL52: =VLOOKUP(A52,L1C,6,FALSE) -> 0 | BM52: =(BL52-L1CMin)/(L1CMax-L1CMin) -> 0 | BN52: =RANK(BM52,$BM$7:$BM$164,0) -> 148 | BO52: =AVERAGE(BG52,BJ52,BM52) -> 0.2484725747 | BP52: =(BO52-L1Min)/(L1Max-L1Min) -> 0.09410317737 | BQ52: =RANK(BP52,$BP$7:$BP$164,0) -> 155 | BR52: =VLOOKUP(A52,L_2,3,FALSE) -> 10.76 | BS52: =VLOOKUP($A52,L_2,2,FALSE) -> 20.721 | BT52: =BS52-BS52*BR52/100 -> 18.4914204 | BU52: =BR52+BT52 -> 29.2514204 | BV52: =(BU52-L2Max)/(L2Min-L2Max) -> 0.7493864975 | BW52: =RANK(BV52,$BV$7:$BV$164,0) -> 54 | BX52: =VLOOKUP(A52,L_3,2,FALSE) -> 0.4267852205 | BY52: =(BX52-L3Max)/(L3Min-L3Max) -> 0.7245848138 | BZ52: =RANK(BY52,$BY$7:$BY$164,0) -> 55 | CA52: =AVERAGE(BP52,BV52,BY52) -> 0.5226914962 | CB52: =(CA52-LMin)/(LMax-LMin) -> 0.4752971866 | CC52: =RANK(CB52,$CB$7:$CB$164,0) -> 98 | CD52: =AVERAGE(AH52,BD52,CB52) -> 0.4231819676 | CE52: =(CD52-OverallScoreMin)/(OverallScoreMax-OverallScoreMin) -> 0.4464364325 | CF52: =RANK(CE52,$CE$7:$CE$164,0) -> 114
A53: El Salvador | B53: =VLOOKUP(A53,Source_WB_country_income,6,FALSE) -> LMIC | C53: LAC | E53: =VLOOKUP(A53,PS1_Summary,3,FALSE) -> 14.5 | F53: =(E53-PS1AMin)/(PS1AMax-PS1AMin) -> 0.3985978968 | G53: =_xlfn.RANK.EQ(F53,$F$7:$F$164) -> 83 | H53: =VLOOKUP(A53,PS1_Summary,10,FALSE) -> 10.78 | I53: =(H53-PS1BMin)/(PS1BMax-PS1BMin) -> 0.3830365417 | J53: =_xlfn.RANK.EQ(I53,$I$7:$I$164) -> 76 | K53: =VLOOKUP(A53,PS1_Summary,17,FALSE) -> 18.14904916 | L53: =(K53-PS1CMin)/(PS1CMax-PS1CMin) -> 0.3770567646 | M53: =_xlfn.RANK.EQ(L53,$L$7:$L$164) -> 70 | N53: =AVERAGE(F53,I53,L53) -> 0.3862304011 | O53: =(N53-PS1AvMin)/(PS1AvMax-PS1AvMin) -> 0.5231311231 | P53: =_xlfn.RANK.EQ(O53,$O$7:$O$164) -> 85 | Q53: =VLOOKUP(A53,PS2A,3,FALSE) -> 0.3229546919 | R53: =_xlfn.RANK.EQ(Q53,$Q$7:$Q$164) -> 89 | S53: =VLOOKUP(A53,PS2B,6,FALSE) -> 76 | T53: =VLOOKUP(A53,PS2B,2,FALSE) -> 1.69 | U53: =SQRT(S53*(100-T53)) -> 86.43818601 | V53: =(U53-PS2BMin)/(PS2BMax-PS2BMin) -> 0.8449262953 | W53: =_xlfn.RANK.EQ(V53,$V$7:$V$164) -> 21 | X53: =VLOOKUP(A53,PS2C_Source,3,FALSE) -> 18.1 | Y53: =(X53-PS2CMin)/(PS2CMax-PS2CMin) -> 0.181 | Z53: =_xlfn.RANK.EQ(Y53,$Y$7:$Y$164) -> 110 | AA53: =AVERAGE(Q53,V53,Y53) -> 0.4496269957 | AB53: =(AA53-PS2AvMin)/(PS2AvMax-PS2AvMin) -> 0.46211849 | AC53: =_xlfn.RANK.EQ(AB53,$AB$7:$AB$164) -> 99 | AD53: =VLOOKUP(A53,PS_3,25,FALSE) -> -0.0303 | AE53: =(AD53-PS3Max)/(PS3Min-PS3Max) -> 0.06812344807 | AF53: =_xlfn.RANK.EQ(AE53,$AE$7:$AE$164) -> 94 | AG53: =AVERAGE(N53,AA53,AE53) -> 0.3013269483 | AH53: =(AG53-PSMin)/(PSMax-PSMin) -> 0.3573872108 | AI53: =_xlfn.RANK.EQ(AH53,$AH$7:$AH$164) -> 95 | AJ53: =VLOOKUP(A53,T1_VAT,13,FALSE) -> 6.5 | AK53: =(AJ53-T1_VATMax)/(T1_VATMin-T1_VATMax) -> 0.74 | AL53: =VLOOKUP(A53,T1_PIT,60,FALSE) -> 0.06057016901 | AM53: =(AL53-T1_PITMin)/(T1_PITMax-T1_PITMin) -> 0.372590356 | AN53: =VLOOKUP(A53,T1_CIT,4,FALSE) -> 30 | AO53: =(AN53-T1_CITMIn)/(T1_CITMAx-T1_CITMIn) -> 0.75 | AP53: =AVERAGE(AK53,AM53,AO53) -> 0.620863452 | AQ53: =(AP53-T1AMin)/(T1AMax-T1AMin) -> 0.67124966 | AR53: =VLOOKUP(A53,T1_HTP,5,FALSE) -> 1 | AS53: =(AR53-T1_HTPMax)/(T1_HTPMin-T1_HTPMax) -> 0.8888888889 | AT53: =AVERAGE(AQ53,AS53) -> 0.7800692744 | AU53: =(AT53-T1A_B_Min)/(T1A_B_Max-T1A_B_Min) -> 0.7076629889 | AV53: =RANK(AU53,$AU$7:$AU$164,0) -> 39 | AW53: =VLOOKUP(A53,T_2,20,FALSE) -> 0.3865364846 | AX53: =(AW53-T2Min)/(T2Max-T2Min) -> 0.5076831645 | AY53: =RANK(AX53,$AX$7:$AX$164,0) -> 74 | AZ53: =VLOOKUP(A53,T_3,30,FALSE) -> -0.0047759582 | BA53: =(AZ53-T3Max)/(T3Min-T3Max) -> 0.6479817352 | BB53: =RANK(BA53,$BA$7:$BA$164,0) -> 48 | BC53: =AVERAGE(AU53,AX53,BA53) -> 0.6211092962 | BD53: =(BC53-TMin)/(TMax-TMin) -> 0.7350786454 | BE53: =RANK(BD53,$BD$7:$BD$164,0) -> 26 | BF53: =VLOOKUP(A53,L1A,2,FALSE) -> 4.991579 | BG53: =(BF53-L1AMax)/(L1AMin-L1AMax) -> 0.5008421 | BH53: =RANK(BG53,$BG$7:$BG$164,0) -> 126 | BI53: =VLOOKUP(A53,L1B,9,FALSE) -> 0.7673792903 | BJ53: =(BI53-L1BMin)/(L1BMax-L1BMin) -> 0.7542281835 | BK53: =RANK(BJ53,$BJ$7:$BJ$164,0) -> 79 | BL53: =VLOOKUP(A53,L1C,6,FALSE) -> 0.6074215124 | BM53: =(BL53-L1CMin)/(L1CMax-L1CMin) -> 0.2789297839 | BN53: =RANK(BM53,$BM$7:$BM$164,0) -> 37 | BO53: =AVERAGE(BG53,BJ53,BM53) -> 0.5113333558 | BP53: =(BO53-L1Min)/(L1Max-L1Min) -> 0.5278751218 | BQ53: =RANK(BP53,$BP$7:$BP$164,0) -> 94 | BR53: =VLOOKUP(A53,L_2,3,FALSE) -> 4.11 | BS53: =VLOOKUP($A53,L_2,2,FALSE) -> 34.191 | BT53: =BS53-BS53*BR53/100 -> 32.7857499 | BU53: =BR53+BT53 -> 36.8957499 | BV53: =(BU53-L2Max)/(L2Min-L2Max) -> 0.6618031302 | BW53: =RANK(BV53,$BV$7:$BV$164,0) -> 72 | BX53: =VLOOKUP(A53,L_3,2,FALSE) -> 0.3875526197 | BY53: =(BX53-L3Max)/(L3Min-L3Max) -> 0.79181343 | BZ53: =RANK(BY53,$BY$7:$BY$164,0) -> 35 | CA53: =AVERAGE(BP53,BV53,BY53) -> 0.6604972273 | CB53: =(CA53-LMin)/(LMax-LMin) -> 0.6599706471 | CC53: =RANK(CB53,$CB$7:$CB$164,0) -> 52 | CD53: =AVERAGE(AH53,BD53,CB53) -> 0.5841455011 | CE53: =(CD53-OverallScoreMin)/(OverallScoreMax-OverallScoreMin) -> 0.653860745 | CF53: =RANK(CE53,$CE$7:$CE$164,0) -> 50
A54: Estonia | B54: =VLOOKUP(A54,Source_WB_country_income,6,FALSE) -> HIC | C54: ECA | D54: OECD | E54: =VLOOKUP(A54,PS1_Summary,3,FALSE) -> 15.82964178 | F54: =(E54-PS1AMin)/(PS1AMax-PS1AMin) -> 0.4651798588 | G54: =_xlfn.RANK.EQ(F54,$F$7:$F$164) -> 65 | H54: =VLOOKUP(A54,PS1_Summary,10,FALSE) -> 13.13930988 | I54: =(H54-PS1BMin)/(PS1BMax-PS1BMin) -> 0.4883631033 | J54: =_xlfn.RANK.EQ(I54,$I$7:$I$164) -> 50 | K54: =VLOOKUP(A54,PS1_Summary,17,FALSE) -> 33.33104146 | L54: =(K54-PS1CMin)/(PS1CMax-PS1CMin) -> 0.6963415659 | M54: =_xlfn.RANK.EQ(L54,$L$7:$L$164) -> 30 | N54: =AVERAGE(F54,I54,L54) -> 0.5499615093 | O54: =(N54-PS1AvMin)/(PS1AvMax-PS1AvMin) -> 0.7755510932 | P54: =_xlfn.RANK.EQ(O54,$O$7:$O$164) -> 22 | Q54: =VLOOKUP(A54,PS2A,3,FALSE) -> 0.7542409276 | R54: =_xlfn.RANK.EQ(Q54,$Q$7:$Q$164) -> 42 | S54: =VLOOKUP(A54,PS2B,6,FALSE) -> 75 | T54: =VLOOKUP(A54,PS2B,2,FALSE) -> 7.104340083 | U54: =SQRT(S54*(100-T54)) -> 83.46960221 | V54: =(U54-PS2BMin)/(PS2BMax-PS2BMin) -> 0.7756801232 | W54: =_xlfn.RANK.EQ(V54,$V$7:$V$164) -> 44 | X54: =VLOOKUP(A54,PS2C_Source,3,FALSE) -> 100 | Y54: =(X54-PS2CMin)/(PS2CMax-PS2CMin) -> 1 | Z54: =_xlfn.RANK.EQ(Y54,$Y$7:$Y$164) -> 1 | AA54: =AVERAGE(Q54,V54,Y54) -> 0.8433070169 | AB54: =(AA54-PS2AvMin)/(PS2AvMax-PS2AvMin) -> 0.8737591025 | AC54: =_xlfn.RANK.EQ(AB54,$AB$7:$AB$164) -> 28 | AD54: =VLOOKUP(A54,PS_3,25,FALSE) -> -0.1560120602 | AE54: =(AD54-PS3Max)/(PS3Min-PS3Max) -> 0.3791086385 | AF54: =_xlfn.RANK.EQ(AE54,$AE$7:$AE$164) -> 31 | AG54: =AVERAGE(N54,AA54,AE54) -> 0.5907923882 | AH54: =(AG54-PSMin)/(PSMax-PSMin) -> 0.7373382726 | AI54: =_xlfn.RANK.EQ(AH54,$AH$7:$AH$164) -> 27 | AJ54: =VLOOKUP(A54,T1_VAT,13,FALSE) -> 20 | AK54: =(AJ54-T1_VATMax)/(T1_VATMin-T1_VATMax) -> 0.2 | AL54: =VLOOKUP(A54,T1_PIT,60,FALSE) -> 0 | AM54: =(AL54-T1_PITMin)/(T1_PITMax-T1_PITMin) -> 0 | AN54: =VLOOKUP(A54,T1_CIT,4,FALSE) -> 20 | AO54: =(AN54-T1_CITMIn)/(T1_CITMAx-T1_CITMIn) -> 0.5 | AP54: =AVERAGE(AK54,AM54,AO54) -> 0.2333333333 | AQ54: =(AP54-T1AMin)/(T1AMax-T1AMin) -> 0.1637098083 | AR54: =VLOOKUP(A54,T1_HTP,5,FALSE) -> 1 | AS54: =(AR54-T1_HTPMax)/(T1_HTPMin-T1_HTPMax) -> 0.8888888889 | AT54: =AVERAGE(AQ54,AS54) -> 0.5262993486 | AU54: =(AT54-T1A_B_Min)/(T1A_B_Max-T1A_B_Min) -> 0.3703461295 | AV54: =RANK(AU54,$AU$7:$AU$164,0) -> 133 | AW54: =VLOOKUP(A54,T_2,20,FALSE) -> 0.5554251374 | AX54: =(AW54-T2Min)/(T2Max-T2Min) -> 0.7295042062 | AY54: =RANK(AX54,$AX$7:$AX$164,0) -> 23 | AZ54: =VLOOKUP(A54,T_3,30,FALSE) -> 0.0311765 | BA54: =(AZ54-T3Max)/(T3Min-T3Max) -> 0.4523250802 | BB54: =RANK(BA54,$BA$7:$BA$164,0) -> 140 | BC54: =AVERAGE(AU54,AX54,BA54) -> 0.5173918053 | BD54: =(BC54-TMin)/(TMax-TMin) -> 0.4871350946 | BE54: =RANK(BD54,$BD$7:$BD$164,0) -> 103 | BF54: =VLOOKUP(A54,L1A,2,FALSE) -> 2.031579 | BG54: =(BF54-L1AMax)/(L1AMin-L1AMax) -> 0.7968421 | BH54: =RANK(BG54,$BG$7:$BG$164,0) -> 51 | BI54: =VLOOKUP(A54,L1B,9,FALSE) -> 0.9697989986 | BJ54: =(BI54-L1BMin)/(L1BMax-L1BMin) -> 1 | BK54: =RANK(BJ54,$BJ$7:$BJ$164,0) -> 1 | BL54: =VLOOKUP(A54,L1C,6,FALSE) -> 0.3093743138 | BM54: =(BL54-L1CMin)/(L1CMax-L1CMin) -> 0.1420656146 | BN54: =RANK(BM54,$BM$7:$BM$164,0) -> 113 | BO54: =AVERAGE(BG54,BJ54,BM54) -> 0.6463025715 | BP54: =(BO54-L1Min)/(L1Max-L1Min) -> 0.750600851 | BQ54: =RANK(BP54,$BP$7:$BP$164,0) -> 28 | BR54: =VLOOKUP(A54,L_2,3,FALSE) -> 5.115 | BS54: =VLOOKUP($A54,L_2,2,FALSE) -> 6.149 | BT54: =BS54-BS54*BR54/100 -> 5.83447865 | BU54: =BR54+BT54 -> 10.94947865 | BV54: =(BU54-L2Max)/(L2Min-L2Max) -> 0.9590773129 | BW54: =RANK(BV54,$BV$7:$BV$164,0) -> 12 | BX54: =VLOOKUP(A54,L_3,2,FALSE) -> 0.4106527138 | BY54: =(BX54-L3Max)/(L3Min-L3Max) -> 0.7522293258 | BZ54: =RANK(BY54,$BY$7:$BY$164,0) -> 44 | CA54: =AVERAGE(BP54,BV54,BY54) -> 0.8206358299 | CB54: =(CA54-LMin)/(LMax-LMin) -> 0.8745723886 | CC54: =RANK(CB54,$CB$7:$CB$164,0) -> 22 | CD54: =AVERAGE(AH54,BD54,CB54) -> 0.6996819186 | CE54: =(CD54-OverallScoreMin)/(OverallScoreMax-OverallScoreMin) -> 0.8027457842 | CF54: =RANK(CE54,$CE$7:$CE$164,0) -> 31
A55: Eswatini | B55: =VLOOKUP(A55,Source_WB_country_income,6,FALSE) -> LMIC | C55: SSA | E55: =VLOOKUP(A55,PS1_Summary,3,FALSE) -> 20.98 | F55: =(E55-PS1AMin)/(PS1AMax-PS1AMin) -> 0.7230846269 | G55: =_xlfn.RANK.EQ(F55,$F$7:$F$164) -> 12 | H55: =VLOOKUP(A55,PS1_Summary,10,FALSE) -> 15.35 | I55: =(H55-PS1BMin)/(PS1BMax-PS1BMin) -> 0.5870548395 | J55: =_xlfn.RANK.EQ(I55,$I$7:$I$164) -> 24 | K55: =VLOOKUP(A55,PS1_Summary,17,FALSE) -> 9.449188602 | L55: =(K55-PS1CMin)/(PS1CMax-PS1CMin) -> 0.1940943975 | M55: =_xlfn.RANK.EQ(L55,$L$7:$L$164) -> 102 | N55: =AVERAGE(F55,I55,L55) -> 0.501411288 | O55: =(N55-PS1AvMin)/(PS1AvMax-PS1AvMin) -> 0.7007024859 | P55: =_xlfn.RANK.EQ(O55,$O$7:$O$164) -> 47 | Q55: =VLOOKUP(A55,PS2A,3,FALSE) -> 0.1259185098 | R55: =_xlfn.RANK.EQ(Q55,$Q$7:$Q$164) -> 113 | S55: =VLOOKUP(A55,PS2B,6,FALSE) -> 63 | T55: =VLOOKUP(A55,PS2B,2,FALSE) -> 13.39 | U55: =SQRT(S55*(100-T55)) -> 73.86765192 | V55: =(U55-PS2BMin)/(PS2BMax-PS2BMin) -> 0.5517018396 | W55: =_xlfn.RANK.EQ(V55,$V$7:$V$164) -> 103 | X55: =VLOOKUP(A55,PS2C_Source,3,FALSE) -> 86 | Y55: =(X55-PS2CMin)/(PS2CMax-PS2CMin) -> 0.86 | Z55: =_xlfn.RANK.EQ(Y55,$Y$7:$Y$164) -> 55 | AA55: =AVERAGE(Q55,V55,Y55) -> 0.5125401165 | AB55: =(AA55-PS2AvMin)/(PS2AvMax-PS2AvMin) -> 0.5279018526 | AC55: =_xlfn.RANK.EQ(AB55,$AB$7:$AB$164) -> 89 | AD55: =VLOOKUP(A55,PS_3,25,FALSE) -> -0.051 | AE55: =(AD55-PS3Max)/(PS3Min-PS3Max) -> 0.1193308933 | AF55: =_xlfn.RANK.EQ(AE55,$AE$7:$AE$164) -> 62 | AG55: =AVERAGE(N55,AA55,AE55) -> 0.3777607659 | AH55: =(AG55-PSMin)/(PSMax-PSMin) -> 0.4577139032 | AI55: =_xlfn.RANK.EQ(AH55,$AH$7:$AH$164) -> 73 | AJ55: =VLOOKUP(A55,T1_VAT,13,FALSE) -> 7.5 | AK55: =(AJ55-T1_VATMax)/(T1_VATMin-T1_VATMax) -> 0.7 | AL55: =VLOOKUP(A55,T1_PIT,60,FALSE) -> 0.04327551649 | AM55: =(AL55-T1_PITMin)/(T1_PITMax-T1_PITMin) -> 0.2662043107 | AN55: =VLOOKUP(A55,T1_CIT,4,FALSE) -> 27.5 | AO55: =(AN55-T1_CITMIn)/(T1_CITMAx-T1_CITMIn) -> 0.6875 | AP55: =AVERAGE(AK55,AM55,AO55) -> 0.5512347702 | AQ55: =(AP55-T1AMin)/(T1AMax-T1AMin) -> 0.5800584748 | AR55: =VLOOKUP(A55,T1_HTP,5,FALSE) -> 2 | AS55: =(AR55-T1_HTPMax)/(T1_HTPMin-T1_HTPMax) -> 0.7777777778 | AT55: =AVERAGE(AQ55,AS55) -> 0.6789181263 | AU55: =(AT55-T1A_B_Min)/(T1A_B_Max-T1A_B_Min) -> 0.5732105415 | AV55: =RANK(AU55,$AU$7:$AU$164,0) -> 75 | AW55: =VLOOKUP(A55,T_2,20,FALSE) -> 0.301620787 | AX55: =(AW55-T2Min)/(T2Max-T2Min) -> 0.3961535372 | AY55: =RANK(AX55,$AX$7:$AX$164,0) -> 107 | AZ55: =VLOOKUP(A55,T_3,30,FALSE) -> 0.018423153 | BA55: =(AZ55-T3Max)/(T3Min-T3Max) -> 0.5217299927 | BB55: =RANK(BA55,$BA$7:$BA$164,0) -> 123 | BC55: =AVERAGE(AU55,AX55,BA55) -> 0.4970313571 | BD55: =(BC55-TMin)/(TMax-TMin) -> 0.4384620909 | BE55: =RANK(BD55,$BD$7:$BD$164,0) -> 116 | BF55: =VLOOKUP(A55,L1A,2,FALSE) -> 4.538947 | BG55: =(BF55-L1AMax)/(L1AMin-L1AMax) -> 0.5461053 | BH55: =RANK(BG55,$BG$7:$BG$164,0) -> 121 | BI55: =VLOOKUP(A55,L1B,9,FALSE) -> 0.8040635658 | BJ55: =(BI55-L1BMin)/(L1BMax-L1BMin) -> 0.7987691083 | BK55: =RANK(BJ55,$BJ$7:$BJ$164,0) -> 68 | BL55: =VLOOKUP(A55,L1C,6,FALSE) -> 0.1696716583 | BM55: =(BL55-L1CMin)/(L1CMax-L1CMin) -> 0.07791373539 | BN55: =RANK(BM55,$BM$7:$BM$164,0) -> 137 | BO55: =AVERAGE(BG55,BJ55,BM55) -> 0.4742627146 | BP55: =(BO55-L1Min)/(L1Max-L1Min) -> 0.4667012789 | BQ55: =RANK(BP55,$BP$7:$BP$164,0) -> 112 | BR55: =VLOOKUP(A55,L_2,3,FALSE) -> 22.083 | BS55: =VLOOKUP($A55,L_2,2,FALSE) -> 32.637 | BT55: =BS55-BS55*BR55/100 -> 25.42977129 | BU55: =BR55+BT55 -> 47.51277129 | BV55: =(BU55-L2Max)/(L2Min-L2Max) -> 0.5401607437 | BW55: =RANK(BV55,$BV$7:$BV$164,0) -> 90 | BX55: =VLOOKUP(A55,L_3,2,FALSE) -> 0.5094487186 | BY55: =(BX55-L3Max)/(L3Min-L3Max) -> 0.5829334197 | BZ55: =RANK(BY55,$BY$7:$BY$164,0) -> 101 | CA55: =AVERAGE(BP55,BV55,BY55) -> 0.5299318141 | CB55: =(CA55-LMin)/(LMax-LMin) -> 0.4849999366 | CC55: =RANK(CB55,$CB$7:$CB$164,0) -> 97 | CD55: =AVERAGE(AH55,BD55,CB55) -> 0.4603919769 | CE55: =(CD55-OverallScoreMin)/(OverallScoreMax-OverallScoreMin) -> 0.4943868001 | CF55: =RANK(CE55,$CE$7:$CE$164,0) -> 96
A56: Ethiopia | B56: =VLOOKUP(A56,Source_WB_country_income,6,FALSE) -> LIC | C56: SSA | E56: =VLOOKUP(A56,PS1_Summary,3,FALSE) -> 25.48 | F56: =(E56-PS1AMin)/(PS1AMax-PS1AMin) -> 0.948422634 | G56: =_xlfn.RANK.EQ(F56,$F$7:$F$164) -> 2 | H56: =VLOOKUP(A56,PS1_Summary,10,FALSE) -> 10.33 | I56: =(H56-PS1BMin)/(PS1BMax-PS1BMin) -> 0.3629472126 | J56: =_xlfn.RANK.EQ(I56,$I$7:$I$164) -> 86 | K56: =VLOOKUP(A56,PS1_Summary,17,FALSE) -> 8.2 | L56: =(K56-PS1CMin)/(PS1CMax-PS1CMin) -> 0.1678233438 | M56: =_xlfn.RANK.EQ(L56,$L$7:$L$164) -> 110 | N56: =AVERAGE(F56,I56,L56) -> 0.4930643968 | O56: =(N56-PS1AvMin)/(PS1AvMax-PS1AvMin) -> 0.6878343019 | P56: =_xlfn.RANK.EQ(O56,$O$7:$O$164) -> 49 | Q56: =VLOOKUP(A56,PS2A,3,FALSE) -> 0.01724575907 | R56: =_xlfn.RANK.EQ(Q56,$Q$7:$Q$164) -> 136 | S56: =VLOOKUP(A56,PS2B,6,FALSE) -> 39 | T56: =VLOOKUP(A56,PS2B,2,FALSE) -> 4.91 | U56: =SQRT(S56*(100-T56)) -> 60.8975369 | V56: =(U56-PS2BMin)/(PS2BMax-PS2BMin) -> 0.2491566263 | W56: =_xlfn.RANK.EQ(V56,$V$7:$V$164) -> 141 | X56: =VLOOKUP(A56,PS2C_Source,3,FALSE) -> 15.3 | Y56: =(X56-PS2CMin)/(PS2CMax-PS2CMin) -> 0.153 | Z56: =_xlfn.RANK.EQ(Y56,$Y$7:$Y$164) -> 113 | AA56: =AVERAGE(Q56,V56,Y56) -> 0.1398007951 | AB56: =(AA56-PS2AvMin)/(PS2AvMax-PS2AvMin) -> 0.1381573031 | AC56: =_xlfn.RANK.EQ(AB56,$AB$7:$AB$164) -> 136 | AD56: =VLOOKUP(A56,PS_3,25,FALSE) -> -0.0113 | AE56: =(AD56-PS3Max)/(PS3Min-PS3Max) -> 0.02112144519 | AF56: =_xlfn.RANK.EQ(AE56,$AE$7:$AE$164) -> 149 | AG56: =AVERAGE(N56,AA56,AE56) -> 0.2179955457 | AH56: =(AG56-PSMin)/(PSMax-PSMin) -> 0.2480067787 | AI56: =_xlfn.RANK.EQ(AH56,$AH$7:$AH$164) -> 116 | AJ56: =VLOOKUP(A56,T1_VAT,13,FALSE) -> 0 | AK56: =(AJ56-T1_VATMax)/(T1_VATMin-T1_VATMax) -> 1 | AL56: =VLOOKUP(A56,T1_PIT,60,FALSE) -> 0.03778902922 | AM56: =(AL56-T1_PITMin)/(T1_PITMax-T1_PITMin) -> 0.2324548219 | AN56: =VLOOKUP(A56,T1_CIT,4,FALSE) -> 30 | AO56: =(AN56-T1_CITMIn)/(T1_CITMAx-T1_CITMIn) -> 0.75 | AP56: =AVERAGE(AK56,AM56,AO56) -> 0.660818274 | AQ56: =(AP56-T1AMin)/(T1AMax-T1AMin) -> 0.72357763 | AR56: =VLOOKUP(A56,T1_HTP,5,FALSE) -> 0 | AS56: =(AR56-T1_HTPMax)/(T1_HTPMin-T1_HTPMax) -> 1 | AT56: =AVERAGE(AQ56,AS56) -> 0.861788815 | AU56: =(AT56-T1A_B_Min)/(T1A_B_Max-T1A_B_Min) -> 0.8162864937 | AV56: =RANK(AU56,$AU$7:$AU$164,0) -> 14 | AW56: =VLOOKUP(A56,T_2,20,FALSE) -> 0.1820873711 | AX56: =(AW56-T2Min)/(T2Max-T2Min) -> 0.2391564483 | AY56: =RANK(AX56,$AX$7:$AX$164,0) -> 142 | AZ56: =VLOOKUP(A56,T_3,30,FALSE) -> -0.01128167992 | BA56: =(AZ56-T3Max)/(T3Min-T3Max) -> 0.683386484 | BB56: =RANK(BA56,$BA$7:$BA$164,0) -> 29 | BC56: =AVERAGE(AU56,AX56,BA56) -> 0.5796098087 | BD56: =(BC56-TMin)/(TMax-TMin) -> 0.6358713641 | BE56: =RANK(BD56,$BD$7:$BD$164,0) -> 55 | BF56: =VLOOKUP(A56,L1A,2,FALSE) -> 3.311579 | BG56: =(BF56-L1AMax)/(L1AMin-L1AMax) -> 0.6688421 | BH56: =RANK(BG56,$BG$7:$BG$164,0) -> 90 | BI56: =VLOOKUP(A56,L1B,9,FALSE) -> 0.5697013279 | BJ56: =(BI56-L1BMin)/(L1BMax-L1BMin) -> 0.5142136498 | BK56: =RANK(BJ56,$BJ$7:$BJ$164,0) -> 133 | BL56: =VLOOKUP(A56,L1C,6,FALSE) -> 0 | BM56: =(BL56-L1CMin)/(L1CMax-L1CMin) -> 0 | BN56: =RANK(BM56,$BM$7:$BM$164,0) -> 148 | BO56: =AVERAGE(BG56,BJ56,BM56) -> 0.3943519166 | BP56: =(BO56-L1Min)/(L1Max-L1Min) -> 0.3348327587 | BQ56: =RANK(BP56,$BP$7:$BP$164,0) -> 135 | BR56: =VLOOKUP(A56,L_2,3,FALSE) -> 2.081 | BS56: =VLOOKUP($A56,L_2,2,FALSE) -> 85.971 | BT56: =BS56-BS56*BR56/100 -> 84.18194349 | BU56: =BR56+BT56 -> 86.26294349 | BV56: =(BU56-L2Max)/(L2Min-L2Max) -> 0.09618844189 | BW56: =RANK(BV56,$BV$7:$BV$164,0) -> 149 | BX56: =VLOOKUP(A56,L_3,2,FALSE) -> 0.7098204874 | BY56: =(BX56-L3Max)/(L3Min-L3Max) -> 0.2395782385 | BZ56: =RANK(BY56,$BY$7:$BY$164,0) -> 138 | CA56: =AVERAGE(BP56,BV56,BY56) -> 0.2235331464 | CB56: =(CA56-LMin)/(LMax-LMin) -> 0.07439508166 | CC56: =RANK(CB56,$CB$7:$CB$164,0) -> 155 | CD56: =AVERAGE(AH56,BD56,CB56) -> 0.3194244081 | CE56: =(CD56-OverallScoreMin)/(OverallScoreMax-OverallScoreMin) -> 0.3127301204 | CF56: =RANK(CE56,$CE$7:$CE$164,0) -> 136
A57: Fiji | B57: =VLOOKUP(A57,Source_WB_country_income,6,FALSE) -> UMIC | C57: EAP | E57: =VLOOKUP(A57,PS1_Summary,3,FALSE) -> 14.8 | F57: =(E57-PS1AMin)/(PS1AMax-PS1AMin) -> 0.4136204306 | G57: =_xlfn.RANK.EQ(F57,$F$7:$F$164) -> 77 | H57: =VLOOKUP(A57,PS1_Summary,10,FALSE) -> 6.85 | I57: =(H57-PS1BMin)/(PS1BMax-PS1BMin) -> 0.2075897341 | J57: =_xlfn.RANK.EQ(I57,$I$7:$I$164) -> 131 | K57: =VLOOKUP(A57,PS1_Summary,17,FALSE) -> 3.71 | L57: =(K57-PS1CMin)/(PS1CMax-PS1CMin) -> 0.07339642482 | M57: =_xlfn.RANK.EQ(L57,$L$7:$L$164) -> 146 | N57: =AVERAGE(F57,I57,L57) -> 0.2315355299 | O57: =(N57-PS1AvMin)/(PS1AvMax-PS1AvMin) -> 0.2846420835 | P57: =_xlfn.RANK.EQ(O57,$O$7:$O$164) -> 138 | Q57: =VLOOKUP(A57,PS2A,3,FALSE) -> 0.8580077624 | R57: =_xlfn.RANK.EQ(Q57,$Q$7:$Q$164) -> 23 | S57: =VLOOKUP(A57,PS2B,6,FALSE) -> 64 | T57: =VLOOKUP(A57,PS2B,2,FALSE) -> 0.78 | U57: =SQRT(S57*(100-T57)) -> 79.68738922 | V57: =(U57-PS2BMin)/(PS2BMax-PS2BMin) -> 0.6874549659 | W57: =_xlfn.RANK.EQ(V57,$V$7:$V$164) -> 74 | X57: =VLOOKUP(A57,PS2C_Source,3,FALSE) -> 10.6 | Y57: =(X57-PS2CMin)/(PS2CMax-PS2CMin) -> 0.106 | Z57: =_xlfn.RANK.EQ(Y57,$Y$7:$Y$164) -> 123 | AA57: =AVERAGE(Q57,V57,Y57) -> 0.5504875761 | AB57: =(AA57-PS2AvMin)/(PS2AvMax-PS2AvMin) -> 0.5675805629 | AC57: =_xlfn.RANK.EQ(AB57,$AB$7:$AB$164) -> 81 | AD57: =VLOOKUP(A57,PS_3,25,FALSE) -> -0.026231 | AE57: =(AD57-PS3Max)/(PS3Min-PS3Max) -> 0.05805759809 | AF57: =_xlfn.RANK.EQ(AE57,$AE$7:$AE$164) -> 105 | AG57: =AVERAGE(N57,AA57,AE57) -> 0.2800269014 | AH57: =(AG57-PSMin)/(PSMax-PSMin) -> 0.329428863 | AI57: =_xlfn.RANK.EQ(AH57,$AH$7:$AH$164) -> 99 | AJ57: =VLOOKUP(A57,T1_VAT,13,FALSE) -> 9 | AK57: =(AJ57-T1_VATMax)/(T1_VATMin-T1_VATMax) -> 0.64 | AL57: =VLOOKUP(A57,T1_PIT,60,FALSE) -> 0.0858035641 | AM57: =(AL57-T1_PITMin)/(T1_PITMax-T1_PITMin) -> 0.5278106535 | AN57: =VLOOKUP(A57,T1_CIT,4,FALSE) -> 20 | AO57: =(AN57-T1_CITMIn)/(T1_CITMAx-T1_CITMIn) -> 0.5 | AP57: =AVERAGE(AK57,AM57,AO57) -> 0.5559368845 | AQ57: =(AP57-T1AMin)/(T1AMax-T1AMin) -> 0.5862167326 | AR57: =VLOOKUP(A57,T1_HTP,5,FALSE) -> 3.5 | AS57: =(AR57-T1_HTPMax)/(T1_HTPMin-T1_HTPMax) -> 0.6111111111 | AT57: =AVERAGE(AQ57,AS57) -> 0.5986639219 | AU57: =(AT57-T1A_B_Min)/(T1A_B_Max-T1A_B_Min) -> 0.4665347953 | AV57: =RANK(AU57,$AU$7:$AU$164,0) -> 107 | AW57: =VLOOKUP(A57,T_2,20,FALSE) -> 0.6562348392 | AX57: =(AW57-T2Min)/(T2Max-T2Min) -> 0.8619092713 | AY57: =RANK(AX57,$AX$7:$AX$164,0) -> 7 | AZ57: =VLOOKUP(A57,T_3,30,FALSE) -> 0.04600267204 | BA57: =(AZ57-T3Max)/(T3Min-T3Max) -> 0.3716396591 | BB57: =RANK(BA57,$BA$7:$BA$164,0) -> 151 | BC57: =AVERAGE(AU57,AX57,BA57) -> 0.5666945752 | BD57: =(BC57-TMin)/(TMax-TMin) -> 0.6049966408 | BE57: =RANK(BD57,$BD$7:$BD$164,0) -> 65 | BF57: =VLOOKUP(A57,L1A,2,FALSE) -> 5.566316 | BG57: =(BF57-L1AMax)/(L1AMin-L1AMax) -> 0.4433684 | BH57: =RANK(BG57,$BG$7:$BG$164,0) -> 131 | BI57: =VLOOKUP(A57,L1B,9,FALSE) -> 0.8313475074 | BJ57: =(BI57-L1BMin)/(L1BMax-L1BMin) -> 0.8318964355 | BK57: =RANK(BJ57,$BJ$7:$BJ$164,0) -> 36 | BL57: =VLOOKUP(A57,L1C,6,FALSE) -> 0.4079605573 | BM57: =(BL57-L1CMin)/(L1CMax-L1CMin) -> 0.1873367139 | BN57: =RANK(BM57,$BM$7:$BM$164,0) -> 83 | BO57: =AVERAGE(BG57,BJ57,BM57) -> 0.4875338498 | BP57: =(BO57-L1Min)/(L1Max-L1Min) -> 0.48860126 | BQ57: =RANK(BP57,$BP$7:$BP$164,0) -> 105 | BR57: =VLOOKUP(A57,L_2,3,FALSE) -> 4.101 | BS57: =VLOOKUP($A57,L_2,2,FALSE) -> 43.141 | BT57: =BS57-BS57*BR57/100 -> 41.37178759 | BU57: =BR57+BT57 -> 45.47278759 | BV57: =(BU57-L2Max)/(L2Min-L2Max) -> 0.5635334465 | BW57: =RANK(BV57,$BV$7:$BV$164,0) -> 89 | BX57: =VLOOKUP(A57,L_3,2,FALSE) -> 0.4526689044 | BY57: =(BX57-L3Max)/(L3Min-L3Max) -> 0.6802307762 | BZ57: =RANK(BY57,$BY$7:$BY$164,0) -> 72 | CA57: =AVERAGE(BP57,BV57,BY57) -> 0.5774551609 | CB57: =(CA57-LMin)/(LMax-LMin) -> 0.5486859737 | CC57: =RANK(CB57,$CB$7:$CB$164,0) -> 83 | CD57: =AVERAGE(AH57,BD57,CB57) -> 0.4943704925 | CE57: =(CD57-OverallScoreMin)/(OverallScoreMax-OverallScoreMin) -> 0.5381729303 | CF57: =RANK(CE57,$CE$7:$CE$164,0) -> 86
A58: Finland | B58: =VLOOKUP(A58,Source_WB_country_income,6,FALSE) -> HIC | C58: ECA | D58: OECD | E58: =VLOOKUP(A58,PS1_Summary,3,FALSE) -> 10.35209003 | F58: =(E58-PS1AMin)/(PS1AMax-PS1AMin) -> 0.1908908379 | G58: =_xlfn.RANK.EQ(F58,$F$7:$F$164) -> 131 | H58: =VLOOKUP(A58,PS1_Summary,10,FALSE) -> 13.19131833 | I58: =(H58-PS1BMin)/(PS1BMax-PS1BMin) -> 0.4906849139 | J58: =_xlfn.RANK.EQ(I58,$I$7:$I$164) -> 49 | K58: =VLOOKUP(A58,PS1_Summary,17,FALSE) -> 45.48231511 | L58: =(K58-PS1CMin)/(PS1CMax-PS1CMin) -> 0.9518888562 | M58: =_xlfn.RANK.EQ(L58,$L$7:$L$164) -> 2 | N58: =AVERAGE(F58,I58,L58) -> 0.5444882026 | O58: =(N58-PS1AvMin)/(PS1AvMax-PS1AvMin) -> 0.7671130393 | P58: =_xlfn.RANK.EQ(O58,$O$7:$O$164) -> 27 | Q58: =VLOOKUP(A58,PS2A,3,FALSE) -> 0.9223749195 | R58: =_xlfn.RANK.EQ(Q58,$Q$7:$Q$164) -> 10 | S58: =VLOOKUP(A58,PS2B,6,FALSE) -> 78 | T58: =VLOOKUP(A58,PS2B,2,FALSE) -> 6.35 | U58: =SQRT(S58*(100-T58)) -> 85.4675377 | V58: =(U58-PS2BMin)/(PS2BMax-PS2BMin) -> 0.8222846302 | W58: =_xlfn.RANK.EQ(V58,$V$7:$V$164) -> 29 | X58: =VLOOKUP(A58,PS2C_Source,3,FALSE) -> 100 | Y58: =(X58-PS2CMin)/(PS2CMax-PS2CMin) -> 1 | Z58: =_xlfn.RANK.EQ(Y58,$Y$7:$Y$164) -> 1 | AA58: =AVERAGE(Q58,V58,Y58) -> 0.9148865166 | AB58: =(AA58-PS2AvMin)/(PS2AvMax-PS2AvMin) -> 0.9486042241 | AC58: =_xlfn.RANK.EQ(AB58,$AB$7:$AB$164) -> 11 | AD58: =VLOOKUP(A58,PS_3,25,FALSE) -> -0.2537055873 | AE58: =(AD58-PS3Max)/(PS3Min-PS3Max) -> 0.6207818723 | AF58: =_xlfn.RANK.EQ(AE58,$AE$7:$AE$164) -> 3 | AG58: =AVERAGE(N58,AA58,AE58) -> 0.6933855305 | AH58: =(AG58-PSMin)/(PSMax-PSMin) -> 0.8720015794 | AI58: =_xlfn.RANK.EQ(AH58,$AH$7:$AH$164) -> 2 | AJ58: =VLOOKUP(A58,T1_VAT,13,FALSE) -> 19 | AK58: =(AJ58-T1_VATMax)/(T1_VATMin-T1_VATMax) -> 0.24 | AL58: =VLOOKUP(A58,T1_PIT,60,FALSE) -> 0.02164139404 | AM58: =(AL58-T1_PITMin)/(T1_PITMax-T1_PITMin) -> 0.1331245205 | AN58: =VLOOKUP(A58,T1_CIT,4,FALSE) -> 20 | AO58: =(AN58-T1_CITMIn)/(T1_CITMAx-T1_CITMIn) -> 0.5 | AP58: =AVERAGE(AK58,AM58,AO58) -> 0.2910415068 | AQ58: =(AP58-T1AMin)/(T1AMax-T1AMin) -> 0.2392889606 | AR58: =VLOOKUP(A58,T1_HTP,5,FALSE) -> 1 | AS58: =(AR58-T1_HTPMax)/(T1_HTPMin-T1_HTPMax) -> 0.8888888889 | AT58: =AVERAGE(AQ58,AS58) -> 0.5640889247 | AU58: =(AT58-T1A_B_Min)/(T1A_B_Max-T1A_B_Min) -> 0.4205769088 | AV58: =RANK(AU58,$AU$7:$AU$164,0) -> 116 | AW58: =VLOOKUP(A58,T_2,20,FALSE) -> 0.5057576328 | AX58: =(AW58-T2Min)/(T2Max-T2Min) -> 0.6642701161 | AY58: =RANK(AX58,$AX$7:$AX$164,0) -> 36 | AZ58: =VLOOKUP(A58,T_3,30,FALSE) -> -0.003539970833 | BA58: =(AZ58-T3Max)/(T3Min-T3Max) -> 0.6412553759 | BB58: =RANK(BA58,$BA$7:$BA$164,0) -> 49 | BC58: =AVERAGE(AU58,AX58,BA58) -> 0.5753674669 | BD58: =(BC58-TMin)/(TMax-TMin) -> 0.6257297643 | BE58: =RANK(BD58,$BD$7:$BD$164,0) -> 61 | BF58: =VLOOKUP(A58,L1A,2,FALSE) -> 0 | BG58: =(BF58-L1AMax)/(L1AMin-L1AMax) -> 1 | BH58: =RANK(BG58,$BG$7:$BG$164,0) -> 1 | BI58: =VLOOKUP(A58,L1B,9,FALSE) -> 0.8676583702 | BJ58: =(BI58-L1BMin)/(L1BMax-L1BMin) -> 0.8759839741 | BK58: =RANK(BJ58,$BJ$7:$BJ$164,0) -> 16 | BL58: =VLOOKUP(A58,L1C,6,FALSE) -> 0.3575570347 | BM58: =(BL58-L1CMin)/(L1CMax-L1CMin) -> 0.1641912648 | BN58: =RANK(BM58,$BM$7:$BM$164,0) -> 96 | BO58: =AVERAGE(BG58,BJ58,BM58) -> 0.680058413 | BP58: =(BO58-L1Min)/(L1Max-L1Min) -> 0.8063046228 | BQ58: =RANK(BP58,$BP$7:$BP$164,0) -> 14 | BR58: =VLOOKUP(A58,L_2,3,FALSE) -> 6.595 | BS58: =VLOOKUP($A58,L_2,2,FALSE) -> 9.585 | BT58: =BS58-BS58*BR58/100 -> 8.95286925 | BU58: =BR58+BT58 -> 15.54786925 | BV58: =(BU58-L2Max)/(L2Min-L2Max) -> 0.9063921777 | BW58: =RANK(BV58,$BV$7:$BV$164,0) -> 31 | BX58: =VLOOKUP(A58,L_3,2,FALSE) -> 0.284184433 | BY58: =(BX58-L3Max)/(L3Min-L3Max) -> 0.9689441841 | BZ58: =RANK(BY58,$BY$7:$BY$164,0) -> 4 | CA58: =AVERAGE(BP58,BV58,BY58) -> 0.8938803282 | CB58: =(CA58-LMin)/(LMax-LMin) -> 0.9727273408 | CC58: =RANK(CB58,$CB$7:$CB$164,0) -> 4 | CD58: =AVERAGE(AH58,BD58,CB58) -> 0.8234862282 | CE58: =(CD58-OverallScoreMin)/(OverallScoreMax-OverallScoreMin) -> 0.9622851734 | CF58: =RANK(CE58,$CE$7:$CE$164,0) -> 5
A59: France | B59: =VLOOKUP(A59,Source_WB_country_income,6,FALSE) -> HIC | C59: ECA | D59: OECD | E59: =VLOOKUP(A59,PS1_Summary,3,FALSE) -> 9.142106137 | F59: =(E59-PS1AMin)/(PS1AMax-PS1AMin) -> 0.130300758 | G59: =_xlfn.RANK.EQ(F59,$F$7:$F$164) -> 143 | H59: =VLOOKUP(A59,PS1_Summary,10,FALSE) -> 14.50000872 | I59: =(H59-PS1BMin)/(PS1BMax-PS1BMin) -> 0.5491087183 | J59: =_xlfn.RANK.EQ(I59,$I$7:$I$164) -> 32 | K59: =VLOOKUP(A59,PS1_Summary,17,FALSE) -> 42.63563305 | L59: =(K59-PS1CMin)/(PS1CMax-PS1CMin) -> 0.8920217255 | M59: =_xlfn.RANK.EQ(L59,$L$7:$L$164) -> 8 | N59: =AVERAGE(F59,I59,L59) -> 0.5238104006 | O59: =(N59-PS1AvMin)/(PS1AvMax-PS1AvMin) -> 0.7352346124 | P59: =_xlfn.RANK.EQ(O59,$O$7:$O$164) -> 34 | Q59: =VLOOKUP(A59,PS2A,3,FALSE) -> 0.8398110371 | R59: =_xlfn.RANK.EQ(Q59,$Q$7:$Q$164) -> 25 | S59: =VLOOKUP(A59,PS2B,6,FALSE) -> 78 | T59: =VLOOKUP(A59,PS2B,2,FALSE) -> 1.42 | U59: =SQRT(S59*(100-T59)) -> 87.68831165 | V59: =(U59-PS2BMin)/(PS2BMax-PS2BMin) -> 0.8740871415 | W59: =_xlfn.RANK.EQ(V59,$V$7:$V$164) -> 17 | X59: =VLOOKUP(A59,PS2C_Source,3,FALSE) -> 100 | Y59: =(X59-PS2CMin)/(PS2CMax-PS2CMin) -> 1 | Z59: =_xlfn.RANK.EQ(Y59,$Y$7:$Y$164) -> 1 | AA59: =AVERAGE(Q59,V59,Y59) -> 0.9046327262 | AB59: =(AA59-PS2AvMin)/(PS2AvMax-PS2AvMin) -> 0.9378826321 | AC59: =_xlfn.RANK.EQ(AB59,$AB$7:$AB$164) -> 14 | AD59: =VLOOKUP(A59,PS_3,25,FALSE) -> -0.255538016 | AE59: =(AD59-PS3Max)/(PS3Min-PS3Max) -> 0.6253149152 | AF59: =_xlfn.RANK.EQ(AE59,$AE$7:$AE$164) -> 2 | AG59: =AVERAGE(N59,AA59,AE59) -> 0.684586014 | AH59: =(AG59-PSMin)/(PSMax-PSMin) -> 0.8604513728 | AI59: =_xlfn.RANK.EQ(AH59,$AH$7:$AH$164) -> 3 | AJ59: =VLOOKUP(A59,T1_VAT,13,FALSE) -> 12.75 | AK59: =(AJ59-T1_VATMax)/(T1_VATMin-T1_VATMax) -> 0.49 | AL59: =VLOOKUP(A59,T1_PIT,60,FALSE) -> 0.0250618802 | AM59: =(AL59-T1_PITMin)/(T1_PITMax-T1_PITMin) -> 0.1541652437 | AN59: =VLOOKUP(A59,T1_CIT,4,FALSE) -> 28 | AO59: =(AN59-T1_CITMIn)/(T1_CITMAx-T1_CITMIn) -> 0.7 | AP59: =AVERAGE(AK59,AM59,AO59) -> 0.4480550812 | AQ59: =(AP59-T1AMin)/(T1AMax-T1AMin) -> 0.4449262579 | AR59: =VLOOKUP(A59,T1_HTP,5,FALSE) -> 0 | AS59: =(AR59-T1_HTPMax)/(T1_HTPMin-T1_HTPMax) -> 1 | AT59: =AVERAGE(AQ59,AS59) -> 0.722463129 | AU59: =(AT59-T1A_B_Min)/(T1A_B_Max-T1A_B_Min) -> 0.6310915669 | AV59: =RANK(AU59,$AU$7:$AU$164,0) -> 60 | AW59: =VLOOKUP(A59,T_2,20,FALSE) -> 0.3672242177 | AX59: =(AW59-T2Min)/(T2Max-T2Min) -> 0.4823181261 | AY59: =RANK(AX59,$AX$7:$AX$164,0) -> 84 | AZ59: =VLOOKUP(A59,T_3,30,FALSE) -> -0.006772795803 | BA59: =(AZ59-T3Max)/(T3Min-T3Max) -> 0.6588487131 | BB59: =RANK(BA59,$BA$7:$BA$164,0) -> 47 | BC59: =AVERAGE(AU59,AX59,BA59) -> 0.590752802 | BD59: =(BC59-TMin)/(TMax-TMin) -> 0.6625094298 | BE59: =RANK(BD59,$BD$7:$BD$164,0) -> 47 | BF59: =VLOOKUP(A59,L1A,2,FALSE) -> 1.672632 | BG59: =(BF59-L1AMax)/(L1AMin-L1AMax) -> 0.8327368 | BH59: =RANK(BG59,$BG$7:$BG$164,0) -> 40 | BI59: =VLOOKUP(A59,L1B,9,FALSE) -> 0.8488382556 | BJ59: =(BI59-L1BMin)/(L1BMax-L1BMin) -> 0.8531331667 | BK59: =RANK(BJ59,$BJ$7:$BJ$164,0) -> 23 | BL59: =VLOOKUP(A59,L1C,6,FALSE) -> 0.4909298551 | BM59: =(BL59-L1CMin)/(L1CMax-L1CMin) -> 0.2254364648 | BN59: =RANK(BM59,$BM$7:$BM$164,0) -> 56 | BO59: =AVERAGE(BG59,BJ59,BM59) -> 0.6371021438 | BP59: =(BO59-L1Min)/(L1Max-L1Min) -> 0.7354183373 | BQ59: =RANK(BP59,$BP$7:$BP$164,0) -> 35 | BR59: =VLOOKUP(A59,L_2,3,FALSE) -> 8.427 | BS59: =VLOOKUP($A59,L_2,2,FALSE) -> 7.428 | BT59: =BS59-BS59*BR59/100 -> 6.80204244 | BU59: =BR59+BT59 -> 15.22904244 | BV59: =(BU59-L2Max)/(L2Min-L2Max) -> 0.9100450718 | BW59: =RANK(BV59,$BV$7:$BV$164,0) -> 27 | BX59: =VLOOKUP(A59,L_3,2,FALSE) -> 0.327173346 | BY59: =(BX59-L3Max)/(L3Min-L3Max) -> 0.8952787864 | BZ59: =RANK(BY59,$BY$7:$BY$164,0) -> 13 | CA59: =AVERAGE(BP59,BV59,BY59) -> 0.8469140652 | CB59: =(CA59-LMin)/(LMax-LMin) -> 0.9097878516 | CC59: =RANK(CB59,$CB$7:$CB$164,0) -> 16 | CD59: =AVERAGE(AH59,BD59,CB59) -> 0.8109162181 | CE59: =(CD59-OverallScoreMin)/(OverallScoreMax-OverallScoreMin) -> 0.9460869349 | CF59: =RANK(CE59,$CE$7:$CE$164,0) -> 7
A60: Gambia, The | B60: =VLOOKUP(A60,Source_WB_country_income,6,FALSE) -> LIC | C60: SSA | E60: =VLOOKUP(A60,PS1_Summary,3,FALSE) -> 15.46 | F60: =(E60-PS1AMin)/(PS1AMax-PS1AMin) -> 0.446670005 | G60: =_xlfn.RANK.EQ(F60,$F$7:$F$164) -> 71 | H60: =VLOOKUP(A60,PS1_Summary,10,FALSE) -> 7.47 | I60: =(H60-PS1BMin)/(PS1BMax-PS1BMin) -> 0.2352683653 | J60: =_xlfn.RANK.EQ(I60,$I$7:$I$164) -> 123 | K60: =VLOOKUP(A60,PS1_Summary,17,FALSE) -> 2 | L60: =(K60-PS1CMin)/(PS1CMax-PS1CMin) -> 0.03743427971 | M60: =_xlfn.RANK.EQ(L60,$L$7:$L$164) -> 153 | N60: =AVERAGE(F60,I60,L60) -> 0.2397908834 | O60: =(N60-PS1AvMin)/(PS1AvMax-PS1AvMin) -> 0.2973691462 | P60: =_xlfn.RANK.EQ(O60,$O$7:$O$164) -> 136 | Q60: =VLOOKUP(A60,PS2A,3,FALSE) -> 0.1258190895 | R60: =_xlfn.RANK.EQ(Q60,$Q$7:$Q$164) -> 114 | S60: =VLOOKUP(A60,PS2B,6,FALSE) -> 44 | T60: =VLOOKUP(A60,PS2B,2,FALSE) -> 0.2 | U60: =SQRT(S60*(100-T60)) -> 66.26613011 | V60: =(U60-PS2BMin)/(PS2BMax-PS2BMin) -> 0.3743862158 | W60: =_xlfn.RANK.EQ(V60,$V$7:$V$164) -> 126 | X60: =VLOOKUP(A60,PS2C_Source,3,FALSE) -> 17.0444 | Y60: =(X60-PS2CMin)/(PS2CMax-PS2CMin) -> 0.170444 | Z60: =_xlfn.RANK.EQ(Y60,$Y$7:$Y$164) -> 112 | AA60: =AVERAGE(Q60,V60,Y60) -> 0.2235497684 | AB60: =(AA60-PS2AvMin)/(PS2AvMax-PS2AvMin) -> 0.2257270979 | AC60: =_xlfn.RANK.EQ(AB60,$AB$7:$AB$164) -> 119 | AD60: =VLOOKUP(A60,PS_3,25,FALSE) -> -0.023302 | AE60: =(AD60-PS3Max)/(PS3Min-PS3Max) -> 0.05081186827 | AF60: =_xlfn.RANK.EQ(AE60,$AE$7:$AE$164) -> 116 | AG60: =AVERAGE(N60,AA60,AE60) -> 0.1713841734 | AH60: =(AG60-PSMin)/(PSMax-PSMin) -> 0.1868248966 | AI60: =_xlfn.RANK.EQ(AH60,$AH$7:$AH$164) -> 132 | AJ60: =VLOOKUP(A60,T1_VAT,13,FALSE) -> 0 | AK60: =(AJ60-T1_VATMax)/(T1_VATMin-T1_VATMax) -> 1 | AL60: =VLOOKUP(A60,T1_PIT,60,FALSE) -> 0.0257617508 | AM60: =(AL60-T1_PITMin)/(T1_PITMax-T1_PITMin) -> 0.1584704164 | AN60: =VLOOKUP(A60,T1_CIT,4,FALSE) -> 27 | AO60: =(AN60-T1_CITMIn)/(T1_CITMAx-T1_CITMIn) -> 0.675 | AP60: =AVERAGE(AK60,AM60,AO60) -> 0.6111568055 | AQ60: =(AP60-T1AMin)/(T1AMax-T1AMin) -> 0.658537074 | AR60: =VLOOKUP(A60,T1_HTP,5,FALSE) -> 0 | AS60: =(AR60-T1_HTPMax)/(T1_HTPMin-T1_HTPMax) -> 1 | AT60: =AVERAGE(AQ60,AS60) -> 0.829268537 | AU60: =(AT60-T1A_B_Min)/(T1A_B_Max-T1A_B_Min) -> 0.7730597875 | AV60: =RANK(AU60,$AU$7:$AU$164,0) -> 19 | AW60: =VLOOKUP(A60,T_2,20,FALSE) -> 0.1698127483 | AX60: =(AW60-T2Min)/(T2Max-T2Min) -> 0.2230347635 | AY60: =RANK(AX60,$AX$7:$AX$164,0) -> 144 | AZ60: =VLOOKUP(A60,T_3,30,FALSE) -> 0.007823935992 | BA60: =(AZ60-T3Max)/(T3Min-T3Max) -> 0.5794119274 | BB60: =RANK(BA60,$BA$7:$BA$164,0) -> 91 | BC60: =AVERAGE(AU60,AX60,BA60) -> 0.5251688261 | BD60: =(BC60-TMin)/(TMax-TMin) -> 0.5057265794 | BE60: =RANK(BD60,$BD$7:$BD$164,0) -> 100 | BF60: =VLOOKUP(A60,L1A,2,FALSE) -> 1.276842 | BG60: =(BF60-L1AMax)/(L1AMin-L1AMax) -> 0.8723158 | BH60: =RANK(BG60,$BG$7:$BG$164,0) -> 28 | BI60: =VLOOKUP(A60,L1B,9,FALSE) -> 0.7598326682 | BJ60: =(BI60-L1BMin)/(L1BMax-L1BMin) -> 0.7450653058 | BK60: =RANK(BJ60,$BJ$7:$BJ$164,0) -> 99 | BL60: =VLOOKUP(A60,L1C,6,FALSE) -> 0.3423911755 | BM60: =(BL60-L1CMin)/(L1CMax-L1CMin) -> 0.1572270567 | BN60: =RANK(BM60,$BM$7:$BM$164,0) -> 102 | BO60: =AVERAGE(BG60,BJ60,BM60) -> 0.5915360542 | BP60: =(BO60-L1Min)/(L1Max-L1Min) -> 0.660225335 | BQ60: =RANK(BP60,$BP$7:$BP$164,0) -> 55 | BR60: =VLOOKUP(A60,L_2,3,FALSE) -> 9.056 | BS60: =VLOOKUP($A60,L_2,2,FALSE) -> 72.051 | BT60: =BS60-BS60*BR60/100 -> 65.52606144 | BU60: =BR60+BT60 -> 74.58206144 | BV60: =(BU60-L2Max)/(L2Min-L2Max) -> 0.2300197979 | BW60: =RANK(BV60,$BV$7:$BV$164,0) -> 128 | BX60: =VLOOKUP(A60,L_3,2,FALSE) -> 0.6383640643 | BY60: =(BX60-L3Max)/(L3Min-L3Max) -> 0.3620252941 | BZ60: =RANK(BY60,$BY$7:$BY$164,0) -> 124 | CA60: =AVERAGE(BP60,BV60,BY60) -> 0.4174234756 | CB60: =(CA60-LMin)/(LMax-LMin) -> 0.3342275122 | CC60: =RANK(CB60,$CB$7:$CB$164,0) -> 121 | CD60: =AVERAGE(AH60,BD60,CB60) -> 0.3422596627 | CE60: =(CD60-OverallScoreMin)/(OverallScoreMax-OverallScoreMin) -> 0.3421565804 | CF60: =RANK(CE60,$CE$7:$CE$164,0) -> 132
A61: Georgia | B61: =VLOOKUP(A61,Source_WB_country_income,6,FALSE) -> UMIC | C61: ECA | E61: =VLOOKUP(A61,PS1_Summary,3,FALSE) -> 12.92962743 | F61: =(E61-PS1AMin)/(PS1AMax-PS1AMin) -> 0.3199613137 | G61: =_xlfn.RANK.EQ(F61,$F$7:$F$164) -> 98 | H61: =VLOOKUP(A61,PS1_Summary,10,FALSE) -> 10.02861636 | I61: =(H61-PS1BMin)/(PS1BMax-PS1BMin) -> 0.3494925567 | J61: =_xlfn.RANK.EQ(I61,$I$7:$I$164) -> 91 | K61: =VLOOKUP(A61,PS1_Summary,17,FALSE) -> 24.01746079 | L61: =(K61-PS1CMin)/(PS1CMax-PS1CMin) -> 0.5004723615 | M61: =_xlfn.RANK.EQ(L61,$L$7:$L$164) -> 59 | N61: =AVERAGE(F61,I61,L61) -> 0.3899754106 | O61: =(N61-PS1AvMin)/(PS1AvMax-PS1AvMin) -> 0.5289047064 | P61: =_xlfn.RANK.EQ(O61,$O$7:$O$164) -> 79 | Q61: =VLOOKUP(A61,PS2A,3,FALSE) -> 0.9570538974 | R61: =_xlfn.RANK.EQ(Q61,$Q$7:$Q$164) -> 4 | S61: =VLOOKUP(A61,PS2B,6,FALSE) -> 66 | T61: =VLOOKUP(A61,PS2B,2,FALSE) -> 29.21 | U61: =SQRT(S61*(100-T61)) -> 68.35305406 | V61: =(U61-PS2BMin)/(PS2BMax-PS2BMin) -> 0.4230664975 | W61: =_xlfn.RANK.EQ(V61,$V$7:$V$164) -> 117 | X61: =VLOOKUP(A61,PS2C_Source,3,FALSE) -> 91.8598 | Y61: =(X61-PS2CMin)/(PS2CMax-PS2CMin) -> 0.918598 | Z61: =_xlfn.RANK.EQ(Y61,$Y$7:$Y$164) -> 50 | AA61: =AVERAGE(Q61,V61,Y61) -> 0.7662394649 | AB61: =(AA61-PS2AvMin)/(PS2AvMax-PS2AvMin) -> 0.7931755509 | AC61: =_xlfn.RANK.EQ(AB61,$AB$7:$AB$164) -> 49 | AD61: =VLOOKUP(A61,PS_3,25,FALSE) -> -0.0846 | AE61: =(AD61-PS3Max)/(PS3Min-PS3Max) -> 0.2024502247 | AF61: =_xlfn.RANK.EQ(AE61,$AE$7:$AE$164) -> 46 | AG61: =AVERAGE(N61,AA61,AE61) -> 0.4528883668 | AH61: =(AG61-PSMin)/(PSMax-PSMin) -> 0.5563260613 | AI61: =_xlfn.RANK.EQ(AH61,$AH$7:$AH$164) -> 50 | AJ61: =VLOOKUP(A61,T1_VAT,13,FALSE) -> 18 | AK61: =(AJ61-T1_VATMax)/(T1_VATMin-T1_VATMax) -> 0.28 | AL61: =VLOOKUP(A61,T1_PIT,60,FALSE) -> 0 | AM61: =(AL61-T1_PITMin)/(T1_PITMax-T1_PITMin) -> 0 | AN61: =VLOOKUP(A61,T1_CIT,4,FALSE) -> 15 | AO61: =(AN61-T1_CITMIn)/(T1_CITMAx-T1_CITMIn) -> 0.375 | AP61: =AVERAGE(AK61,AM61,AO61) -> 0.2183333333 | AQ61: =(AP61-T1AMin)/(T1AMax-T1AMin) -> 0.1440646313 | AR61: =VLOOKUP(A61,T1_HTP,5,FALSE) -> 1.5 | AS61: =(AR61-T1_HTPMax)/(T1_HTPMin-T1_HTPMax) -> 0.8333333333 | AT61: =AVERAGE(AQ61,AS61) -> 0.4886989823 | AU61: =(AT61-T1A_B_Min)/(T1A_B_Max-T1A_B_Min) -> 0.3203668523 | AV61: =RANK(AU61,$AU$7:$AU$164,0) -> 141 | AW61: =VLOOKUP(A61,T_2,20,FALSE) -> 0.6510552525 | AX61: =(AW61-T2Min)/(T2Max-T2Min) -> 0.8551063198 | AY61: =RANK(AX61,$AX$7:$AX$164,0) -> 8 | AZ61: =VLOOKUP(A61,T_3,30,FALSE) -> -0.03971 | BA61: =(AZ61-T3Max)/(T3Min-T3Max) -> 0.8380960725 | BB61: =RANK(BA61,$BA$7:$BA$164,0) -> 4 | BC61: =AVERAGE(AU61,AX61,BA61) -> 0.6711897482 | BD61: =(BC61-TMin)/(TMax-TMin) -> 0.8547992921 | BE61: =RANK(BD61,$BD$7:$BD$164,0) -> 4 | BF61: =VLOOKUP(A61,L1A,2,FALSE) -> 3.632632 | BG61: =(BF61-L1AMax)/(L1AMin-L1AMax) -> 0.6367368 | BH61: =RANK(BG61,$BG$7:$BG$164,0) -> 95 | BI61: =VLOOKUP(A61,L1B,9,FALSE) -> 0.6531166098 | BJ61: =(BI61-L1BMin)/(L1BMax-L1BMin) -> 0.6154939329 | BK61: =RANK(BJ61,$BJ$7:$BJ$164,0) -> 116 | BL61: =VLOOKUP(A61,L1C,6,FALSE) -> 0.0199126548 | BM61: =(BL61-L1CMin)/(L1CMax-L1CMin) -> 0.009143950925 | BN61: =RANK(BM61,$BM$7:$BM$164,0) -> 146 | BO61: =AVERAGE(BG61,BJ61,BM61) -> 0.4204582279 | BP61: =(BO61-L1Min)/(L1Max-L1Min) -> 0.3779133026 | BQ61: =RANK(BP61,$BP$7:$BP$164,0) -> 129 | BR61: =VLOOKUP(A61,L_2,3,FALSE) -> 14.398 | BS61: =VLOOKUP($A61,L_2,2,FALSE) -> 49.084 | BT61: =BS61-BS61*BR61/100 -> 42.01688568 | BU61: =BR61+BT61 -> 56.41488568 | BV61: =(BU61-L2Max)/(L2Min-L2Max) -> 0.4381665591 | BW61: =RANK(BV61,$BV$7:$BV$164,0) -> 107 | BX61: =VLOOKUP(A61,L_3,2,FALSE) -> 0.4323751804 | BY61: =(BX61-L3Max)/(L3Min-L3Max) -> 0.715005911 | BZ61: =RANK(BY61,$BY$7:$BY$164,0) -> 63 | CA61: =AVERAGE(BP61,BV61,BY61) -> 0.5103619242 | CB61: =(CA61-LMin)/(LMax-LMin) -> 0.4587743272 | CC61: =RANK(CB61,$CB$7:$CB$164,0) -> 102 | CD61: =AVERAGE(AH61,BD61,CB61) -> 0.6232998935 | CE61: =(CD61-OverallScoreMin)/(OverallScoreMax-OverallScoreMin) -> 0.7043167258 | CF61: =RANK(CE61,$CE$7:$CE$164,0) -> 45
A62: Germany | B62: =VLOOKUP(A62,Source_WB_country_income,6,FALSE) -> HIC | C62: ECA | D62: OECD | E62: =VLOOKUP(A62,PS1_Summary,3,FALSE) -> 9.352109161 | F62: =(E62-PS1AMin)/(PS1AMax-PS1AMin) -> 0.1408166831 | G62: =_xlfn.RANK.EQ(F62,$F$7:$F$164) -> 139 | H62: =VLOOKUP(A62,PS1_Summary,10,FALSE) -> 16.24732137 | I62: =(H62-PS1BMin)/(PS1BMax-PS1BMin) -> 0.6271139156 | J62: =_xlfn.RANK.EQ(I62,$I$7:$I$164) -> 20 | K62: =VLOOKUP(A62,PS1_Summary,17,FALSE) -> 43.6105248 | L62: =(K62-PS1CMin)/(PS1CMax-PS1CMin) -> 0.912524181 | M62: =_xlfn.RANK.EQ(L62,$L$7:$L$164) -> 4 | N62: =AVERAGE(F62,I62,L62) -> 0.5601515932 | O62: =(N62-PS1AvMin)/(PS1AvMax-PS1AvMin) -> 0.7912608791 | P62: =_xlfn.RANK.EQ(O62,$O$7:$O$164) -> 20 | Q62: =VLOOKUP(A62,PS2A,3,FALSE) -> 0.8164054112 | R62: =_xlfn.RANK.EQ(Q62,$Q$7:$Q$164) -> 29 | S62: =VLOOKUP(A62,PS2B,6,FALSE) -> 83 | T62: =VLOOKUP(A62,PS2B,2,FALSE) -> 1.72 | U62: =SQRT(S62*(100-T62)) -> 90.31744018 | V62: =(U62-PS2BMin)/(PS2BMax-PS2BMin) -> 0.9354150672 | W62: =_xlfn.RANK.EQ(V62,$V$7:$V$164) -> 4 | X62: =VLOOKUP(A62,PS2C_Source,3,FALSE) -> 100 | Y62: =(X62-PS2CMin)/(PS2CMax-PS2CMin) -> 1 | Z62: =_xlfn.RANK.EQ(Y62,$Y$7:$Y$164) -> 1 | AA62: =AVERAGE(Q62,V62,Y62) -> 0.9172734928 | AB62: =(AA62-PS2AvMin)/(PS2AvMax-PS2AvMin) -> 0.9511000997 | AC62: =_xlfn.RANK.EQ(AB62,$AB$7:$AB$164) -> 10 | AD62: =VLOOKUP(A62,PS_3,25,FALSE) -> -0.2101054219 | AE62: =(AD62-PS3Max)/(PS3Min-PS3Max) -> 0.5129242355 | AF62: =_xlfn.RANK.EQ(AE62,$AE$7:$AE$164) -> 8 | AG62: =AVERAGE(N62,AA62,AE62) -> 0.6634497738 | AH62: =(AG62-PSMin)/(PSMax-PSMin) -> 0.832708037 | AI62: =_xlfn.RANK.EQ(AH62,$AH$7:$AH$164) -> 5 | AJ62: =VLOOKUP(A62,T1_VAT,13,FALSE) -> 13 | AK62: =(AJ62-T1_VATMax)/(T1_VATMin-T1_VATMax) -> 0.48 | AL62: =VLOOKUP(A62,T1_PIT,60,FALSE) -> 0.02170542484 | AM62: =(AL62-T1_PITMin)/(T1_PITMax-T1_PITMin) -> 0.1335183986 | AN62: =VLOOKUP(A62,T1_CIT,4,FALSE) -> 29.825 | AO62: =(AN62-T1_CITMIn)/(T1_CITMAx-T1_CITMIn) -> 0.745625 | AP62: =AVERAGE(AK62,AM62,AO62) -> 0.4530477995 | AQ62: =(AP62-T1AMin)/(T1AMax-T1AMin) -> 0.4514651136 | AR62: =VLOOKUP(A62,T1_HTP,5,FALSE) -> 1 | AS62: =(AR62-T1_HTPMax)/(T1_HTPMin-T1_HTPMax) -> 0.8888888889 | AT62: =AVERAGE(AQ62,AS62) -> 0.6701770012 | AU62: =(AT62-T1A_B_Min)/(T1A_B_Max-T1A_B_Min) -> 0.5615916357 | AV62: =RANK(AU62,$AU$7:$AU$164,0) -> 77 | AW62: =VLOOKUP(A62,T_2,20,FALSE) -> 0.4391017722 | AX62: =(AW62-T2Min)/(T2Max-T2Min) -> 0.5767232489 | AY62: =RANK(AX62,$AX$7:$AX$164,0) -> 54 | AZ62: =VLOOKUP(A62,T_3,30,FALSE) -> -0.0282017 | BA62: =(AZ62-T3Max)/(T3Min-T3Max) -> 0.7754668228 | BB62: =RANK(BA62,$BA$7:$BA$164,0) -> 10 | BC62: =AVERAGE(AU62,AX62,BA62) -> 0.6379272358 | BD62: =(BC62-TMin)/(TMax-TMin) -> 0.775283047 | BE62: =RANK(BD62,$BD$7:$BD$164,0) -> 17 | BF62: =VLOOKUP(A62,L1A,2,FALSE) -> 0.958947 | BG62: =(BF62-L1AMax)/(L1AMin-L1AMax) -> 0.9041053 | BH62: =RANK(BG62,$BG$7:$BG$164,0) -> 23 | BI62: =VLOOKUP(A62,L1B,9,FALSE) -> 0.8867426166 | BJ62: =(BI62-L1BMin)/(L1BMax-L1BMin) -> 0.8991554822 | BK62: =RANK(BJ62,$BJ$7:$BJ$164,0) -> 11 | BL62: =VLOOKUP(A62,L1C,6,FALSE) -> 0.4506690616 | BM62: =(BL62-L1CMin)/(L1CMax-L1CMin) -> 0.2069485874 | BN62: =RANK(BM62,$BM$7:$BM$164,0) -> 72 | BO62: =AVERAGE(BG62,BJ62,BM62) -> 0.6700697899 | BP62: =(BO62-L1Min)/(L1Max-L1Min) -> 0.7898214318 | BQ62: =RANK(BP62,$BP$7:$BP$164,0) -> 19 | BR62: =VLOOKUP(A62,L_2,3,FALSE) -> 3.043 | BS62: =VLOOKUP($A62,L_2,2,FALSE) -> 5.62 | BT62: =BS62-BS62*BR62/100 -> 5.4489834 | BU62: =BR62+BT62 -> 8.4919834 | BV62: =(BU62-L2Max)/(L2Min-L2Max) -> 0.9872335703 | BW62: =RANK(BV62,$BV$7:$BV$164,0) -> 4 | BX62: =VLOOKUP(A62,L_3,2,FALSE) -> 0.3875613196 | BY62: =(BX62-L3Max)/(L3Min-L3Max) -> 0.791798522 | BZ62: =RANK(BY62,$BY$7:$BY$164,0) -> 36 | CA62: =AVERAGE(BP62,BV62,BY62) -> 0.856284508 | CB62: =(CA62-LMin)/(LMax-LMin) -> 0.9223451822 | CC62: =RANK(CB62,$CB$7:$CB$164,0) -> 11 | CD62: =AVERAGE(AH62,BD62,CB62) -> 0.843445422 | CE62: =(CD62-OverallScoreMin)/(OverallScoreMax-OverallScoreMin) -> 0.9880054218 | CF62: =RANK(CE62,$CE$7:$CE$164,0) -> 3
A63: Ghana | B63: =VLOOKUP(A63,Source_WB_country_income,6,FALSE) -> LMIC | C63: SSA | E63: =VLOOKUP(A63,PS1_Summary,3,FALSE) -> 17.71 | F63: =(E63-PS1AMin)/(PS1AMax-PS1AMin) -> 0.5593390085 | G63: =_xlfn.RANK.EQ(F63,$F$7:$F$164) -> 37 | H63: =VLOOKUP(A63,PS1_Summary,10,FALSE) -> 8.3 | I63: =(H63-PS1BMin)/(PS1BMax-PS1BMin) -> 0.2723220168 | J63: =_xlfn.RANK.EQ(I63,$I$7:$I$164) -> 111 | K63: =VLOOKUP(A63,PS1_Summary,17,FALSE) -> 5.097457483 | L63: =(K63-PS1CMin)/(PS1CMax-PS1CMin) -> 0.1025753414 | M63: =_xlfn.RANK.EQ(L63,$L$7:$L$164) -> 137 | N63: =AVERAGE(F63,I63,L63) -> 0.3114121222 | O63: =(N63-PS1AvMin)/(PS1AvMax-PS1AvMin) -> 0.4077857382 | P63: =_xlfn.RANK.EQ(O63,$O$7:$O$164) -> 114 | Q63: =VLOOKUP(A63,PS2A,3,FALSE) -> 0.2092232124 | R63: =_xlfn.RANK.EQ(Q63,$Q$7:$Q$164) -> 102 | S63: =VLOOKUP(A63,PS2B,6,FALSE) -> 47 | T63: =VLOOKUP(A63,PS2B,2,FALSE) -> 1.11 | U63: =SQRT(S63*(100-T63)) -> 68.17499542 | V63: =(U63-PS2BMin)/(PS2BMax-PS2BMin) -> 0.4189130423 | W63: =_xlfn.RANK.EQ(V63,$V$7:$V$164) -> 118 | X63: =VLOOKUP(A63,PS2C_Source,3,FALSE) -> 33.3 | Y63: =(X63-PS2CMin)/(PS2CMax-PS2CMin) -> 0.333 | Z63: =_xlfn.RANK.EQ(Y63,$Y$7:$Y$164) -> 97 | AA63: =AVERAGE(Q63,V63,Y63) -> 0.3203787515 | AB63: =(AA63-PS2AvMin)/(PS2AvMax-PS2AvMin) -> 0.3269736427 | AC63: =_xlfn.RANK.EQ(AB63,$AB$7:$AB$164) -> 112 | AD63: =VLOOKUP(A63,PS_3,25,FALSE) -> -0.0158 | AE63: =(AD63-PS3Max)/(PS3Min-PS3Max) -> 0.0322534985 | AF63: =_xlfn.RANK.EQ(AE63,$AE$7:$AE$164) -> 135 | AG63: =AVERAGE(N63,AA63,AE63) -> 0.2213481241 | AH63: =(AG63-PSMin)/(PSMax-PSMin) -> 0.2524073583 | AI63: =_xlfn.RANK.EQ(AH63,$AH$7:$AH$164) -> 114 | AJ63: =VLOOKUP(A63,T1_VAT,13,FALSE) -> 0 | AK63: =(AJ63-T1_VATMax)/(T1_VATMin-T1_VATMax) -> 1 | AL63: =VLOOKUP(A63,T1_PIT,60,FALSE) -> 0.0369219465 | AM63: =(AL63-T1_PITMin)/(T1_PITMax-T1_PITMin) -> 0.2271210633 | AN63: =VLOOKUP(A63,T1_CIT,4,FALSE) -> 25 | AO63: =(AN63-T1_CITMIn)/(T1_CITMAx-T1_CITMIn) -> 0.625 | AP63: =AVERAGE(AK63,AM63,AO63) -> 0.6173736878 | AQ63: =(AP63-T1AMin)/(T1AMax-T1AMin) -> 0.6666791909 | AR63: =VLOOKUP(A63,T1_HTP,5,FALSE) -> 0.75 | AS63: =(AR63-T1_HTPMax)/(T1_HTPMin-T1_HTPMax) -> 0.9166666667 | AT63: =AVERAGE(AQ63,AS63) -> 0.7916729288 | AU63: =(AT63-T1A_B_Min)/(T1A_B_Max-T1A_B_Min) -> 0.7230868349 | AV63: =RANK(AU63,$AU$7:$AU$164,0) -> 33 | AW63: =VLOOKUP(A63,T_2,20,FALSE) -> 0.2077474973 | AX63: =(AW63-T2Min)/(T2Max-T2Min) -> 0.272858866 | AY63: =RANK(AX63,$AX$7:$AX$164,0) -> 130 | AZ63: =VLOOKUP(A63,T_3,30,FALSE) -> -0.01387027952 | BA63: =(AZ63-T3Max)/(T3Min-T3Max) -> 0.6974738862 | BB63: =RANK(BA63,$BA$7:$BA$164,0) -> 24 | BC63: =AVERAGE(AU63,AX63,BA63) -> 0.5644731957 | BD63: =(BC63-TMin)/(TMax-TMin) -> 0.5996862854 | BE63: =RANK(BD63,$BD$7:$BD$164,0) -> 68 | BF63: =VLOOKUP(A63,L1A,2,FALSE) -> 2.536842 | BG63: =(BF63-L1AMax)/(L1AMin-L1AMax) -> 0.7463158 | BH63: =RANK(BG63,$BG$7:$BG$164,0) -> 64 | BI63: =VLOOKUP(A63,L1B,9,FALSE) -> 0.7583813947 | BJ63: =(BI63-L1BMin)/(L1BMax-L1BMin) -> 0.7433032139 | BK63: =RANK(BJ63,$BJ$7:$BJ$164,0) -> 101 | BL63: =VLOOKUP(A63,L1C,6,FALSE) -> 0.2400712047 | BM63: =(BL63-L1CMin)/(L1CMax-L1CMin) -> 0.1102414186 | BN63: =RANK(BM63,$BM$7:$BM$164,0) -> 127 | BO63: =AVERAGE(BG63,BJ63,BM63) -> 0.5332868108 | BP63: =(BO63-L1Min)/(L1Max-L1Min) -> 0.5641026367 | BQ63: =RANK(BP63,$BP$7:$BP$164,0) -> 83 | BR63: =VLOOKUP(A63,L_2,3,FALSE) -> 4.331 | BS63: =VLOOKUP($A63,L_2,2,FALSE) -> 68.701 | BT63: =BS63-BS63*BR63/100 -> 65.72555969 | BU63: =BR63+BT63 -> 70.05655969 | BV63: =(BU63-L2Max)/(L2Min-L2Max) -> 0.2818698237 | BW63: =RANK(BV63,$BV$7:$BV$164,0) -> 123 | BX63: =VLOOKUP(A63,L_3,2,FALSE) -> 0.6802996619 | BY63: =(BX63-L3Max)/(L3Min-L3Max) -> 0.2901648479 | BZ63: =RANK(BY63,$BY$7:$BY$164,0) -> 135 | CA63: =AVERAGE(BP63,BV63,BY63) -> 0.3787124361 | CB63: =(CA63-LMin)/(LMax-LMin) -> 0.282350848 | CC63: =RANK(CB63,$CB$7:$CB$164,0) -> 128 | CD63: =AVERAGE(AH63,BD63,CB63) -> 0.3781481639 | CE63: =(CD63-OverallScoreMin)/(OverallScoreMax-OverallScoreMin) -> 0.3884039976 | CF63: =RANK(CE63,$CE$7:$CE$164,0) -> 122
A64: Greece | B64: =VLOOKUP(A64,Source_WB_country_income,6,FALSE) -> HIC | C64: ECA | D64: OECD | E64: =VLOOKUP(A64,PS1_Summary,3,FALSE) -> 8.281649874 | F64: =(E64-PS1AMin)/(PS1AMax-PS1AMin) -> 0.08721331369 | G64: =_xlfn.RANK.EQ(F64,$F$7:$F$164) -> 151 | H64: =VLOOKUP(A64,PS1_Summary,10,FALSE) -> 10.62873216 | I64: =(H64-PS1BMin)/(PS1BMax-PS1BMin) -> 0.3762834986 | J64: =_xlfn.RANK.EQ(I64,$I$7:$I$164) -> 80 | K64: =VLOOKUP(A64,PS1_Summary,17,FALSE) -> 40.51483642 | L64: =(K64-PS1CMin)/(PS1CMax-PS1CMin) -> 0.8474203243 | M64: =_xlfn.RANK.EQ(L64,$L$7:$L$164) -> 11 | N64: =AVERAGE(F64,I64,L64) -> 0.4369723788 | O64: =(N64-PS1AvMin)/(PS1AvMax-PS1AvMin) -> 0.6013587039 | P64: =_xlfn.RANK.EQ(O64,$O$7:$O$164) -> 67 | Q64: =VLOOKUP(A64,PS2A,3,FALSE) -> 0.8858707322 | R64: =_xlfn.RANK.EQ(Q64,$Q$7:$Q$164) -> 18 | S64: =VLOOKUP(A64,PS2B,6,FALSE) -> 75 | T64: =VLOOKUP(A64,PS2B,2,FALSE) -> 16.89 | U64: =SQRT(S64*(100-T64)) -> 78.95093413 | V64: =(U64-PS2BMin)/(PS2BMax-PS2BMin) -> 0.6702761698 | W64: =_xlfn.RANK.EQ(V64,$V$7:$V$164) -> 79 | X64: =VLOOKUP(A64,PS2C_Source,3,FALSE) -> 77.4 | Y64: =(X64-PS2CMin)/(PS2CMax-PS2CMin) -> 0.774 | Z64: =_xlfn.RANK.EQ(Y64,$Y$7:$Y$164) -> 67 | AA64: =AVERAGE(Q64,V64,Y64) -> 0.776715634 | AB64: =(AA64-PS2AvMin)/(PS2AvMax-PS2AvMin) -> 0.804129667 | AC64: =_xlfn.RANK.EQ(AB64,$AB$7:$AB$164) -> 46 | AD64: =VLOOKUP(A64,PS_3,25,FALSE) -> -0.1719965352 | AE64: =(AD64-PS3Max)/(PS3Min-PS3Max) -> 0.4186508668 | AF64: =_xlfn.RANK.EQ(AE64,$AE$7:$AE$164) -> 25 | AG64: =AVERAGE(N64,AA64,AE64) -> 0.5441129599 | AH64: =(AG64-PSMin)/(PSMax-PSMin) -> 0.6760670605 | AI64: =_xlfn.RANK.EQ(AH64,$AH$7:$AH$164) -> 35 | AJ64: =VLOOKUP(A64,T1_VAT,13,FALSE) -> 18.5 | AK64: =(AJ64-T1_VATMax)/(T1_VATMin-T1_VATMax) -> 0.26 | AL64: =VLOOKUP(A64,T1_PIT,60,FALSE) -> 0.01771396047 | AM64: =(AL64-T1_PITMin)/(T1_PITMax-T1_PITMin) -> 0.1089653693 | AN64: =VLOOKUP(A64,T1_CIT,4,FALSE) -> 28 | AO64: =(AN64-T1_CITMIn)/(T1_CITMAx-T1_CITMIn) -> 0.7 | AP64: =AVERAGE(AK64,AM64,AO64) -> 0.3563217898 | AQ64: =(AP64-T1AMin)/(T1AMax-T1AMin) -> 0.3247851414 | AR64: =VLOOKUP(A64,T1_HTP,5,FALSE) -> 2.5 | AS64: =(AR64-T1_HTPMax)/(T1_HTPMin-T1_HTPMax) -> 0.7222222222 | AT64: =AVERAGE(AQ64,AS64) -> 0.5235036818 | AU64: =(AT64-T1A_B_Min)/(T1A_B_Max-T1A_B_Min) -> 0.3666300645 | AV64: =RANK(AU64,$AU$7:$AU$164,0) -> 134 | AW64: =VLOOKUP(A64,T_2,20,FALSE) -> 0.3061402707 | AX64: =(AW64-T2Min)/(T2Max-T2Min) -> 0.4020894989 | AY64: =RANK(AX64,$AX$7:$AX$164,0) -> 105 | AZ64: =VLOOKUP(A64,T_3,30,FALSE) -> -0.01600499792 | BA64: =(AZ64-T3Max)/(T3Min-T3Max) -> 0.7090912243 | BB64: =RANK(BA64,$BA$7:$BA$164,0) -> 20 | BC64: =AVERAGE(AU64,AX64,BA64) -> 0.4926035959 | BD64: =(BC64-TMin)/(TMax-TMin) -> 0.4278772336 | BE64: =RANK(BD64,$BD$7:$BD$164,0) -> 121 | BF64: =VLOOKUP(A64,L1A,2,FALSE) -> 2.258947 | BG64: =(BF64-L1AMax)/(L1AMin-L1AMax) -> 0.7741053 | BH64: =RANK(BG64,$BG$7:$BG$164,0) -> 59 | BI64: =VLOOKUP(A64,L1B,9,FALSE) -> 0.8351208185 | BJ64: =(BI64-L1BMin)/(L1BMax-L1BMin) -> 0.8364778744 | BK64: =RANK(BJ64,$BJ$7:$BJ$164,0) -> 33 | BL64: =VLOOKUP(A64,L1C,6,FALSE) -> 0.5086435896 | BM64: =(BL64-L1CMin)/(L1CMax-L1CMin) -> 0.2335706649 | BN64: =RANK(BM64,$BM$7:$BM$164,0) -> 52 | BO64: =AVERAGE(BG64,BJ64,BM64) -> 0.6147179464 | BP64: =(BO64-L1Min)/(L1Max-L1Min) -> 0.6984800127 | BQ64: =RANK(BP64,$BP$7:$BP$164,0) -> 47 | BR64: =VLOOKUP(A64,L_2,3,FALSE) -> 17.238 | BS64: =VLOOKUP($A64,L_2,2,FALSE) -> 25.796 | BT64: =BS64-BS64*BR64/100 -> 21.34928552 | BU64: =BR64+BT64 -> 38.58728552 | BV64: =(BU64-L2Max)/(L2Min-L2Max) -> 0.6424227012 | BW64: =RANK(BV64,$BV$7:$BV$164,0) -> 74 | BX64: =VLOOKUP(A64,L_3,2,FALSE) -> 0.3318441291 | BY64: =(BX64-L3Max)/(L3Min-L3Max) -> 0.8872749765 | BZ64: =RANK(BY64,$BY$7:$BY$164,0) -> 14 | CA64: =AVERAGE(BP64,BV64,BY64) -> 0.7427258968 | CB64: =(CA64-LMin)/(LMax-LMin) -> 0.7701652871 | CC64: =RANK(CB64,$CB$7:$CB$164,0) -> 40 | CD64: =AVERAGE(AH64,BD64,CB64) -> 0.6247031937 | CE64: =(CD64-OverallScoreMin)/(OverallScoreMax-OverallScoreMin) -> 0.7061250768 | CF64: =RANK(CE64,$CE$7:$CE$164,0) -> 44
A65: Guatemala | B65: =VLOOKUP(A65,Source_WB_country_income,6,FALSE) -> UMIC | C65: LAC | E65: =VLOOKUP(A65,PS1_Summary,3,FALSE) -> 22.25 | F65: =(E65-PS1AMin)/(PS1AMax-PS1AMin) -> 0.78668002 | G65: =_xlfn.RANK.EQ(F65,$F$7:$F$164) -> 10 | H65: =VLOOKUP(A65,PS1_Summary,10,FALSE) -> 11.03 | I65: =(H65-PS1BMin)/(PS1BMax-PS1BMin) -> 0.3941972801 | J65: =_xlfn.RANK.EQ(I65,$I$7:$I$164) -> 71 | K65: =VLOOKUP(A65,PS1_Summary,17,FALSE) -> 15.29 | L65: =(K65-PS1CMin)/(PS1CMax-PS1CMin) -> 0.3169295478 | M65: =_xlfn.RANK.EQ(L65,$L$7:$L$164) -> 79 | N65: =AVERAGE(F65,I65,L65) -> 0.4992689493 | O65: =(N65-PS1AvMin)/(PS1AvMax-PS1AvMin) -> 0.6973996984 | P65: =_xlfn.RANK.EQ(O65,$O$7:$O$164) -> 48 | Q65: =VLOOKUP(A65,PS2A,3,FALSE) -> 0.05023480782 | R65: =_xlfn.RANK.EQ(Q65,$Q$7:$Q$164) -> 122 | S65: =VLOOKUP(A65,PS2B,6,FALSE) -> 55 | T65: =VLOOKUP(A65,PS2B,2,FALSE) -> 1.36 | U65: =SQRT(S65*(100-T65)) -> 73.65595699 | V65: =(U65-PS2BMin)/(PS2BMax-PS2BMin) -> 0.5467637734 | W65: =_xlfn.RANK.EQ(V65,$V$7:$V$164) -> 104 | X65: =VLOOKUP(A65,PS2C_Source,3,FALSE) -> 8.34023 | Y65: =(X65-PS2CMin)/(PS2CMax-PS2CMin) -> 0.0834023 | Z65: =_xlfn.RANK.EQ(Y65,$Y$7:$Y$164) -> 129 | AA65: =AVERAGE(Q65,V65,Y65) -> 0.2268002937 | AB65: =(AA65-PS2AvMin)/(PS2AvMax-PS2AvMin) -> 0.2291259196 | AC65: =_xlfn.RANK.EQ(AB65,$AB$7:$AB$164) -> 118 | AD65: =VLOOKUP(A65,PS_3,25,FALSE) -> -0.0204 | AE65: =(AD65-PS3Max)/(PS3Min-PS3Max) -> 0.04363293078 | AF65: =_xlfn.RANK.EQ(AE65,$AE$7:$AE$164) -> 125 | AG65: =AVERAGE(N65,AA65,AE65) -> 0.2565673913 | AH65: =(AG65-PSMin)/(PSMax-PSMin) -> 0.2986360133 | AI65: =_xlfn.RANK.EQ(AH65,$AH$7:$AH$164) -> 109 | AJ65: =VLOOKUP(A65,T1_VAT,13,FALSE) -> 6 | AK65: =(AJ65-T1_VATMax)/(T1_VATMin-T1_VATMax) -> 0.76 | AL65: =VLOOKUP(A65,T1_PIT,60,FALSE) -> 0.03220340553 | AM65: =(AL65-T1_PITMin)/(T1_PITMax-T1_PITMin) -> 0.1980955069 | AN65: =VLOOKUP(A65,T1_CIT,4,FALSE) -> 25 | AO65: =(AN65-T1_CITMIn)/(T1_CITMAx-T1_CITMIn) -> 0.625 | AP65: =AVERAGE(AK65,AM65,AO65) -> 0.5276985023 | AQ65: =(AP65-T1AMin)/(T1AMax-T1AMin) -> 0.5492335315 | AR65: =VLOOKUP(A65,T1_HTP,5,FALSE) -> 3.5 | AS65: =(AR65-T1_HTPMax)/(T1_HTPMin-T1_HTPMax) -> 0.6111111111 | AT65: =AVERAGE(AQ65,AS65) -> 0.5801723213 | AU65: =(AT65-T1A_B_Min)/(T1A_B_Max-T1A_B_Min) -> 0.4419553318 | AV65: =RANK(AU65,$AU$7:$AU$164,0) -> 112 | AW65: =VLOOKUP(A65,T_2,20,FALSE) -> 0.2595841248 | AX65: =(AW65-T2Min)/(T2Max-T2Min) -> 0.3409419166 | AY65: =RANK(AX65,$AX$7:$AX$164,0) -> 120 | AZ65: =VLOOKUP(A65,T_3,30,FALSE) -> -0.0028508226 | BA65: =(AZ65-T3Max)/(T3Min-T3Max) -> 0.6375049665 | BB65: =RANK(BA65,$BA$7:$BA$164,0) -> 51 | BC65: =AVERAGE(AU65,AX65,BA65) -> 0.473467405 | BD65: =(BC65-TMin)/(TMax-TMin) -> 0.3821308982 | BE65: =RANK(BD65,$BD$7:$BD$164,0) -> 131 | BF65: =VLOOKUP(A65,L1A,2,FALSE) -> 6.511579 | BG65: =(BF65-L1AMax)/(L1AMin-L1AMax) -> 0.3488421 | BH65: =RANK(BG65,$BG$7:$BG$164,0) -> 141 | BI65: =VLOOKUP(A65,L1B,9,FALSE) -> 0.6249619041 | BJ65: =(BI65-L1BMin)/(L1BMax-L1BMin) -> 0.5813093506 | BK65: =RANK(BJ65,$BJ$7:$BJ$164,0) -> 123 | BL65: =VLOOKUP(A65,L1C,6,FALSE) -> 0.9983077122 | BM65: =(BL65-L1CMin)/(L1CMax-L1CMin) -> 0.4584259015 | BN65: =RANK(BM65,$BM$7:$BM$164,0) -> 19 | BO65: =AVERAGE(BG65,BJ65,BM65) -> 0.4628591174 | BP65: =(BO65-L1Min)/(L1Max-L1Min) -> 0.4478831025 | BQ65: =RANK(BP65,$BP$7:$BP$164,0) -> 116 | BR65: =VLOOKUP(A65,L_2,3,FALSE) -> 2.459 | BS65: =VLOOKUP($A65,L_2,2,FALSE) -> 37.543 | BT65: =BS65-BS65*BR65/100 -> 36.61981763 | BU65: =BR65+BT65 -> 39.07881763 | BV65: =(BU65-L2Max)/(L2Min-L2Max) -> 0.6367910709 | BW65: =RANK(BV65,$BV$7:$BV$164,0) -> 75 | BX65: =VLOOKUP(A65,L_3,2,FALSE) -> 0.4864507078 | BY65: =(BX65-L3Max)/(L3Min-L3Max) -> 0.622342595 | BZ65: =RANK(BY65,$BY$7:$BY$164,0) -> 90 | CA65: =AVERAGE(BP65,BV65,BY65) -> 0.5690055895 | CB65: =(CA65-LMin)/(LMax-LMin) -> 0.5373627031 | CC65: =RANK(CB65,$CB$7:$CB$164,0) -> 88 | CD65: =AVERAGE(AH65,BD65,CB65) -> 0.4060432049 | CE65: =(CD65-OverallScoreMin)/(OverallScoreMax-OverallScoreMin) -> 0.4243507091 | CF65: =RANK(CE65,$CE$7:$CE$164,0) -> 117
A66: Guinea | B66: =VLOOKUP(A66,Source_WB_country_income,6,FALSE) -> LIC | C66: SSA | E66: =VLOOKUP(A66,PS1_Summary,3,FALSE) -> 14.66 | F66: =(E66-PS1AMin)/(PS1AMax-PS1AMin) -> 0.4066099149 | G66: =_xlfn.RANK.EQ(F66,$F$7:$F$164) -> 78 | H66: =VLOOKUP(A66,PS1_Summary,10,FALSE) -> 6.47 | I66: =(H66-PS1BMin)/(PS1BMax-PS1BMin) -> 0.1906254118 | J66: =_xlfn.RANK.EQ(I66,$I$7:$I$164) -> 133 | K66: =VLOOKUP(A66,PS1_Summary,17,FALSE) -> 8.57 | L66: =(K66-PS1CMin)/(PS1CMax-PS1CMin) -> 0.1756046267 | M66: =_xlfn.RANK.EQ(L66,$L$7:$L$164) -> 106 | N66: =AVERAGE(F66,I66,L66) -> 0.2576133178 | O66: =(N66-PS1AvMin)/(PS1AvMax-PS1AvMin) -> 0.3248455275 | P66: =_xlfn.RANK.EQ(O66,$O$7:$O$164) -> 131 | Q66: =VLOOKUP(A66,PS2A,3,FALSE) -> 0.009147305132 | R66: =_xlfn.RANK.EQ(Q66,$Q$7:$Q$164) -> 145 | S66: =VLOOKUP(A66,PS2B,6,FALSE) -> 37 | T66: =VLOOKUP(A66,PS2B,2,FALSE) -> 6.97 | U66: =SQRT(S66*(100-T66)) -> 58.66949804 | V66: =(U66-PS2BMin)/(PS2BMax-PS2BMin) -> 0.1971846515 | W66: =_xlfn.RANK.EQ(V66,$V$7:$V$164) -> 150 | X66: =VLOOKUP(A66,PS2C_Source,3,FALSE) -> 8.8 | Y66: =(X66-PS2CMin)/(PS2CMax-PS2CMin) -> 0.088 | Z66: =_xlfn.RANK.EQ(Y66,$Y$7:$Y$164) -> 126 | AA66: =AVERAGE(Q66,V66,Y66) -> 0.09811065221 | AB66: =(AA66-PS2AvMin)/(PS2AvMax-PS2AvMin) -> 0.09456515963 | AC66: =_xlfn.RANK.EQ(AB66,$AB$7:$AB$164) -> 149 | AD66: =VLOOKUP(A66,PS_3,25,FALSE) -> -0.0031 | AE66: =(AD66-PS3Max)/(PS3Min-PS3Max) -> 0.0008363702587 | AF66: =_xlfn.RANK.EQ(AE66,$AE$7:$AE$164) -> 156 | AG66: =AVERAGE(N66,AA66,AE66) -> 0.1188534467 | AH66: =(AG66-PSMin)/(PSMax-PSMin) -> 0.1178732962 | AI66: =_xlfn.RANK.EQ(AH66,$AH$7:$AH$164) -> 149 | AJ66: =VLOOKUP(A66,T1_VAT,13,FALSE) -> 0 | AK66: =(AJ66-T1_VATMax)/(T1_VATMin-T1_VATMax) -> 1 | AL66: =VLOOKUP(A66,T1_PIT,60,FALSE) -> 0.02101945239 | AM66: =(AL66-T1_PITMin)/(T1_PITMax-T1_PITMin) -> 0.1292987188 | AN66: =VLOOKUP(A66,T1_CIT,4,FALSE) -> 35 | AO66: =(AN66-T1_CITMIn)/(T1_CITMAx-T1_CITMIn) -> 0.875 | AP66: =AVERAGE(AK66,AM66,AO66) -> 0.6680995729 | AQ66: =(AP66-T1AMin)/(T1AMax-T1AMin) -> 0.7331137904 | AR66: =VLOOKUP(A66,T1_HTP,5,FALSE) -> 0 | AS66: =(AR66-T1_HTPMax)/(T1_HTPMin-T1_HTPMax) -> 1 | AT66: =AVERAGE(AQ66,AS66) -> 0.8665568952 | AU66: =(AT66-T1A_B_Min)/(T1A_B_Max-T1A_B_Min) -> 0.8226243363 | AV66: =RANK(AU66,$AU$7:$AU$164,0) -> 10 | AW66: =VLOOKUP(A66,T_2,20,FALSE) -> 0.1791574082 | AX66: =(AW66-T2Min)/(T2Max-T2Min) -> 0.2353081884 | AY66: =RANK(AX66,$AX$7:$AX$164,0) -> 143 | AZ66: =VLOOKUP(A66,T_3,30,FALSE) -> 9.954824609e-05 | BA66: =(AZ66-T3Max)/(T3Min-T3Max) -> 0.6214487711 | BB66: =RANK(BA66,$BA$7:$BA$164,0) -> 62 | BC66: =AVERAGE(AU66,AX66,BA66) -> 0.5597937653 | BD66: =(BC66-TMin)/(TMax-TMin) -> 0.5884997962 | BE66: =RANK(BD66,$BD$7:$BD$164,0) -> 73 | BF66: =VLOOKUP(A66,L1A,2,FALSE) -> 2.741053 | BG66: =(BF66-L1AMax)/(L1AMin-L1AMax) -> 0.7258947 | BH66: =RANK(BG66,$BG$7:$BG$164,0) -> 75 | BI66: =VLOOKUP(A66,L1B,9,FALSE) -> 0.7624449605 | BJ66: =(BI66-L1BMin)/(L1BMax-L1BMin) -> 0.7482370711 | BK66: =RANK(BJ66,$BJ$7:$BJ$164,0) -> 91 | BL66: =VLOOKUP(A66,L1C,6,FALSE) -> 0.5728933553 | BM66: =(BL66-L1CMin)/(L1CMax-L1CMin) -> 0.2630743504 | BN66: =RANK(BM66,$BM$7:$BM$164,0) -> 43 | BO66: =AVERAGE(BG66,BJ66,BM66) -> 0.5790687072 | BP66: =(BO66-L1Min)/(L1Max-L1Min) -> 0.6396517624 | BQ66: =RANK(BP66,$BP$7:$BP$164,0) -> 62 | BR66: =VLOOKUP(A66,L_2,3,FALSE) -> 4.296 | BS66: =VLOOKUP($A66,L_2,2,FALSE) -> 89.374 | BT66: =BS66-BS66*BR66/100 -> 85.53449296 | BU66: =BR66+BT66 -> 89.83049296 | BV66: =(BU66-L2Max)/(L2Min-L2Max) -> 0.0553139616 | BW66: =RANK(BV66,$BV$7:$BV$164,0) -> 154 | BX66: =VLOOKUP(A66,L_3,2,FALSE) -> 0.7714248606 | BY66: =(BX66-L3Max)/(L3Min-L3Max) -> 0.134013563 | BZ66: =RANK(BY66,$BY$7:$BY$164,0) -> 151 | CA66: =AVERAGE(BP66,BV66,BY66) -> 0.276326429 | CB66: =(CA66-LMin)/(LMax-LMin) -> 0.1451433598 | CC66: =RANK(CB66,$CB$7:$CB$164,0) -> 150 | CD66: =AVERAGE(AH66,BD66,CB66) -> 0.2838388174 | CE66: =(CD66-OverallScoreMin)/(OverallScoreMax-OverallScoreMin) -> 0.2668730462 | CF66: =RANK(CE66,$CE$7:$CE$164,0) -> 140
A67: Guinea-Bissau | B67: =VLOOKUP(A67,Source_WB_country_income,6,FALSE) -> LIC | C67: SSA | E67: =VLOOKUP(A67,PS1_Summary,3,FALSE) -> 12.6 | F67: =(E67-PS1AMin)/(PS1AMax-PS1AMin) -> 0.3034551828 | G67: =_xlfn.RANK.EQ(F67,$F$7:$F$164) -> 100 | H67: =VLOOKUP(A67,PS1_Summary,10,FALSE) -> 7.97 | I67: =(H67-PS1BMin)/(PS1BMax-PS1BMin) -> 0.2575898421 | J67: =_xlfn.RANK.EQ(I67,$I$7:$I$164) -> 118 | K67: =VLOOKUP(A67,PS1_Summary,17,FALSE) -> 5.99 | L67: =(K67-PS1CMin)/(PS1CMax-PS1CMin) -> 0.1213459516 | M67: =_xlfn.RANK.EQ(L67,$L$7:$L$164) -> 131 | N67: =AVERAGE(F67,I67,L67) -> 0.2274636588 | O67: =(N67-PS1AvMin)/(PS1AvMax-PS1AvMin) -> 0.2783645863 | P67: =_xlfn.RANK.EQ(O67,$O$7:$O$164) -> 140 | Q67: =VLOOKUP(A67,PS2A,3,FALSE) -> 0.02015095555 | R67: =_xlfn.RANK.EQ(Q67,$Q$7:$Q$164) -> 130 | S67: =VLOOKUP(A67,PS2B,6,FALSE) -> 40 | T67: =VLOOKUP(A67,PS2B,2,FALSE) -> 16.54818138 | U67: =SQRT(S67*(100-T67)) -> 57.77605685 | V67: =(U67-PS2BMin)/(PS2BMax-PS2BMin) -> 0.1763439454 | W67: =_xlfn.RANK.EQ(V67,$V$7:$V$164) -> 152 | X67: =VLOOKUP(A67,PS2C_Source,3,FALSE) -> 6.2 | Y67: =(X67-PS2CMin)/(PS2CMax-PS2CMin) -> 0.062 | Z67: =_xlfn.RANK.EQ(Y67,$Y$7:$Y$164) -> 134 | AA67: =AVERAGE(Q67,V67,Y67) -> 0.08616496697 | AB67: =(AA67-PS2AvMin)/(PS2AvMax-PS2AvMin) -> 0.08207448467 | AC67: =_xlfn.RANK.EQ(AB67,$AB$7:$AB$164) -> 151 | AD67: =VLOOKUP(A67,PS_3,25,FALSE) -> -0.015624 | AE67: =(AD67-PS3Max)/(PS3Min-PS3Max) -> 0.03181811153 | AF67: =_xlfn.RANK.EQ(AE67,$AE$7:$AE$164) -> 136 | AG67: =AVERAGE(N67,AA67,AE67) -> 0.1151489124 | AH67: =(AG67-PSMin)/(PSMax-PSMin) -> 0.1130107408 | AI67: =_xlfn.RANK.EQ(AH67,$AH$7:$AH$164) -> 151 | AJ67: =VLOOKUP(A67,T1_VAT,13,FALSE) -> 8.5 | AK67: =(AJ67-T1_VATMax)/(T1_VATMin-T1_VATMax) -> 0.66 | AL67: =VLOOKUP(A67,T1_PIT,60,FALSE) -> 0.05638942511 | AM67: =(AL67-T1_PITMin)/(T1_PITMax-T1_PITMin) -> 0.3468729957 | AN67: =VLOOKUP(A67,T1_CIT,4,FALSE) -> 25 | AO67: =(AN67-T1_CITMIn)/(T1_CITMAx-T1_CITMIn) -> 0.625 | AP67: =AVERAGE(AK67,AM67,AO67) -> 0.5439576652 | AQ67: =(AP67-T1AMin)/(T1AMax-T1AMin) -> 0.5705278071 | AR67: =VLOOKUP(A67,T1_HTP,5,FALSE) -> 0 | AS67: =(AR67-T1_HTPMax)/(T1_HTPMin-T1_HTPMax) -> 1 | AT67: =AVERAGE(AQ67,AS67) -> 0.7852639036 | AU67: =(AT67-T1A_B_Min)/(T1A_B_Max-T1A_B_Min) -> 0.7145678101 | AV67: =RANK(AU67,$AU$7:$AU$164,0) -> 36 | AW67: =VLOOKUP(A67,T_2,20,FALSE) -> 0.1030987611 | AX67: =(AW67-T2Min)/(T2Max-T2Min) -> 0.135411552 | AY67: =RANK(AX67,$AX$7:$AX$164,0) -> 151 | AZ67: =VLOOKUP(A67,T_3,30,FALSE) -> 0.0118335 | BA67: =(AZ67-T3Max)/(T3Min-T3Max) -> 0.5575915034 | BB67: =RANK(BA67,$BA$7:$BA$164,0) -> 105 | BC67: =AVERAGE(AU67,AX67,BA67) -> 0.4691902885 | BD67: =(BC67-TMin)/(TMax-TMin) -> 0.3719061673 | BE67: =RANK(BD67,$BD$7:$BD$164,0) -> 132 | BF67: =VLOOKUP(A67,L1A,2,FALSE) -> 3.18 | BG67: =(BF67-L1AMax)/(L1AMin-L1AMax) -> 0.682 | BH67: =RANK(BG67,$BG$7:$BG$164,0) -> 88 | BI67: =VLOOKUP(A67,L1B,9,FALSE) -> 0.4174152819 | BJ67: =(BI67-L1BMin)/(L1BMax-L1BMin) -> 0.3293125921 | BK67: =RANK(BJ67,$BJ$7:$BJ$164,0) -> 150 | BL67: =VLOOKUP(A67,L1C,6,FALSE) -> 1.548857245 | BM67: =(BL67-L1CMin)/(L1CMax-L1CMin) -> 0.7112399014 | BN67: =RANK(BM67,$BM$7:$BM$164,0) -> 7 | BO67: =AVERAGE(BG67,BJ67,BM67) -> 0.5741841645 | BP67: =(BO67-L1Min)/(L1Max-L1Min) -> 0.6315913071 | BQ67: =RANK(BP67,$BP$7:$BP$164,0) -> 67 | BR67: =VLOOKUP(A67,L_2,3,FALSE) -> 2.466 | BS67: =VLOOKUP($A67,L_2,2,FALSE) -> 75.74 | BT67: =BS67-BS67*BR67/100 -> 73.8722516 | BU67: =BR67+BT67 -> 76.3382516 | BV67: =(BU67-L2Max)/(L2Min-L2Max) -> 0.2098986025 | BW67: =RANK(BV67,$BV$7:$BV$164,0) -> 131 | BX67: =VLOOKUP(A67,L_3,2,FALSE) -> 0.6712801421 | BY67: =(BX67-L3Max)/(L3Min-L3Max) -> 0.3056206123 | BZ67: =RANK(BY67,$BY$7:$BY$164,0) -> 131 | CA67: =AVERAGE(BP67,BV67,BY67) -> 0.382370174 | CB67: =(CA67-LMin)/(LMax-LMin) -> 0.2872525825 | CC67: =RANK(CB67,$CB$7:$CB$164,0) -> 126 | CD67: =AVERAGE(AH67,BD67,CB67) -> 0.2573898302 | CE67: =(CD67-OverallScoreMin)/(OverallScoreMax-OverallScoreMin) -> 0.2327897798 | CF67: =RANK(CE67,$CE$7:$CE$164,0) -> 150
A68: Guyana | B68: =VLOOKUP(A68,Source_WB_country_income,6,FALSE) -> UMIC | C68: LAC | E68: =VLOOKUP(A68,PS1_Summary,3,FALSE) -> 17.94 | F68: =(E68-PS1AMin)/(PS1AMax-PS1AMin) -> 0.5708562844 | G68: =_xlfn.RANK.EQ(F68,$F$7:$F$164) -> 36 | H68: =VLOOKUP(A68,PS1_Summary,10,FALSE) -> 12.34 | I68: =(H68-PS1BMin)/(PS1BMax-PS1BMin) -> 0.4526795493 | J68: =_xlfn.RANK.EQ(I68,$I$7:$I$164) -> 54 | K68: =VLOOKUP(A68,PS1_Summary,17,FALSE) -> 7.110021453 | L68: =(K68-PS1CMin)/(PS1CMax-PS1CMin) -> 0.1449005563 | M68: =_xlfn.RANK.EQ(L68,$L$7:$L$164) -> 118 | N68: =AVERAGE(F68,I68,L68) -> 0.3894787967 | O68: =(N68-PS1AvMin)/(PS1AvMax-PS1AvMin) -> 0.5281390897 | P68: =_xlfn.RANK.EQ(O68,$O$7:$O$164) -> 80 | Q68: =VLOOKUP(A68,PS2A,3,FALSE) -> 0.2795977024 | R68: =_xlfn.RANK.EQ(Q68,$Q$7:$Q$164) -> 93 | S68: =VLOOKUP(A68,PS2B,6,FALSE) -> 72 | T68: =VLOOKUP(A68,PS2B,2,FALSE) -> 7.41002034 | U68: =SQRT(S68*(100-T68)) -> 81.64850602 | V68: =(U68-PS2BMin)/(PS2BMax-PS2BMin) -> 0.7332006282 | W68: =_xlfn.RANK.EQ(V68,$V$7:$V$164) -> 61 | X68: =VLOOKUP(A68,PS2C_Source,3,FALSE) -> 100 | Y68: =(X68-PS2CMin)/(PS2CMax-PS2CMin) -> 1 | Z68: =_xlfn.RANK.EQ(Y68,$Y$7:$Y$164) -> 1 | AA68: =AVERAGE(Q68,V68,Y68) -> 0.6709327769 | AB68: =(AA68-PS2AvMin)/(PS2AvMax-PS2AvMin) -> 0.6935207517 | AC68: =_xlfn.RANK.EQ(AB68,$AB$7:$AB$164) -> 61 | AD68: =VLOOKUP(A68,PS_3,25,FALSE) -> -0.040674 | AE68: =(AD68-PS3Max)/(PS3Min-PS3Max) -> 0.09378654165 | AF68: =_xlfn.RANK.EQ(AE68,$AE$7:$AE$164) -> 72 | AG68: =AVERAGE(N68,AA68,AE68) -> 0.3847327051 | AH68: =(AG68-PSMin)/(PSMax-PSMin) -> 0.4668652398 | AI68: =_xlfn.RANK.EQ(AH68,$AH$7:$AH$164) -> 71 | AJ68: =VLOOKUP(A68,T1_VAT,13,FALSE) -> 0 | AK68: =(AJ68-T1_VATMax)/(T1_VATMin-T1_VATMax) -> 1 | AL68: =VLOOKUP(A68,T1_PIT,60,FALSE) -> 0.003575713715 | AM68: =(AL68-T1_PITMin)/(T1_PITMax-T1_PITMin) -> 0.02199558739 | AN68: =VLOOKUP(A68,T1_CIT,4,FALSE) -> 40 | AO68: =(AN68-T1_CITMIn)/(T1_CITMAx-T1_CITMIn) -> 1 | AP68: =AVERAGE(AK68,AM68,AO68) -> 0.6739985291 | AQ68: =(AP68-T1AMin)/(T1AMax-T1AMin) -> 0.7408395264 | AR68: =VLOOKUP(A68,T1_HTP,5,FALSE) -> 2 | AS68: =(AR68-T1_HTPMax)/(T1_HTPMin-T1_HTPMax) -> 0.7777777778 | AT68: =AVERAGE(AQ68,AS68) -> 0.7593086521 | AU68: =(AT68-T1A_B_Min)/(T1A_B_Max-T1A_B_Min) -> 0.6800674891 | AV68: =RANK(AU68,$AU$7:$AU$164,0) -> 46 | AW68: =VLOOKUP(A68,T_2,20,FALSE) -> 0.4514752497 | AX68: =(AW68-T2Min)/(T2Max-T2Min) -> 0.592974771 | AY68: =RANK(AX68,$AX$7:$AX$164,0) -> 52 | AZ68: =VLOOKUP(A68,T_3,30,FALSE) -> 0.01429852045 | BA68: =(AZ68-T3Max)/(T3Min-T3Max) -> 0.5441766305 | BB68: =RANK(BA68,$BA$7:$BA$164,0) -> 111 | BC68: =AVERAGE(AU68,AX68,BA68) -> 0.6057396302 | BD68: =(BC68-TMin)/(TMax-TMin) -> 0.6983364379 | BE68: =RANK(BD68,$BD$7:$BD$164,0) -> 38 | BF68: =VLOOKUP(A68,L1A,2,FALSE) -> 1.08 | BG68: =(BF68-L1AMax)/(L1AMin-L1AMax) -> 0.892 | BH68: =RANK(BG68,$BG$7:$BG$164,0) -> 24 | BI68: =VLOOKUP(A68,L1B,9,FALSE) -> 0.8264131776 | BJ68: =(BI68-L1BMin)/(L1BMax-L1BMin) -> 0.8259053232 | BK68: =RANK(BJ68,$BJ$7:$BJ$164,0) -> 48 | BL68: =VLOOKUP(A68,L1C,6,FALSE) -> 0.4881973253 | BM68: =(BL68-L1CMin)/(L1CMax-L1CMin) -> 0.2241816789 | BN68: =RANK(BM68,$BM$7:$BM$164,0) -> 58 | BO68: =AVERAGE(BG68,BJ68,BM68) -> 0.647362334 | BP68: =(BO68-L1Min)/(L1Max-L1Min) -> 0.7523496673 | BQ68: =RANK(BP68,$BP$7:$BP$164,0) -> 27 | BR68: =VLOOKUP(A68,L_2,3,FALSE) -> 11.852 | BS68: =VLOOKUP($A68,L_2,2,FALSE) -> 25.513 | BT68: =BS68-BS68*BR68/100 -> 22.48919924 | BU68: =BR68+BT68 -> 34.34119924 | BV68: =(BU68-L2Max)/(L2Min-L2Max) -> 0.6910713804 | BW68: =RANK(BV68,$BV$7:$BV$164,0) -> 64 | BX68: =VLOOKUP(A68,L_3,2,FALSE) -> 0.3970351995 | BY68: =(BX68-L3Max)/(L3Min-L3Max) -> 0.7755641704 | BZ68: =RANK(BY68,$BY$7:$BY$164,0) -> 40 | CA68: =AVERAGE(BP68,BV68,BY68) -> 0.7396617394 | CB68: =(CA68-LMin)/(LMax-LMin) -> 0.7660590097 | CC68: =RANK(CB68,$CB$7:$CB$164,0) -> 42 | CD68: =AVERAGE(AH68,BD68,CB68) -> 0.6437535625 | CE68: =(CD68-OverallScoreMin)/(OverallScoreMax-OverallScoreMin) -> 0.7306741754 | CF68: =RANK(CE68,$CE$7:$CE$164,0) -> 41
A69: Haiti | B69: =VLOOKUP(A69,Source_WB_country_income,6,FALSE) -> LIC | C69: LAC | E69: =VLOOKUP(A69,PS1_Summary,3,FALSE) -> 14.39 | F69: =(E69-PS1AMin)/(PS1AMax-PS1AMin) -> 0.3930896345 | G69: =_xlfn.RANK.EQ(F69,$F$7:$F$164) -> 86 | H69: =VLOOKUP(A69,PS1_Summary,10,FALSE) -> 7.84 | I69: =(H69-PS1BMin)/(PS1BMax-PS1BMin) -> 0.2517862582 | J69: =_xlfn.RANK.EQ(I69,$I$7:$I$164) -> 119 | K69: =VLOOKUP(A69,PS1_Summary,17,FALSE) -> 4.17 | L69: =(K69-PS1CMin)/(PS1CMax-PS1CMin) -> 0.08307045216 | M69: =_xlfn.RANK.EQ(L69,$L$7:$L$164) -> 142 | N69: =AVERAGE(F69,I69,L69) -> 0.2426487816 | O69: =(N69-PS1AvMin)/(PS1AvMax-PS1AvMin) -> 0.3017750932 | P69: =_xlfn.RANK.EQ(O69,$O$7:$O$164) -> 135 | Q69: =VLOOKUP(A69,PS2A,3,FALSE) -> 0.01008599957 | R69: =_xlfn.RANK.EQ(Q69,$Q$7:$Q$164) -> 143 | S69: =VLOOKUP(A69,PS2B,6,FALSE) -> 49 | T69: =VLOOKUP(A69,PS2B,2,FALSE) -> 11.54 | U69: =SQRT(S69*(100-T69)) -> 65.83722351 | V69: =(U69-PS2BMin)/(PS2BMax-PS2BMin) -> 0.364381398 | W69: =_xlfn.RANK.EQ(V69,$V$7:$V$164) -> 128 | X69: =VLOOKUP(A69,PS2C_Source,3,FALSE) -> 1 | Y69: =(X69-PS2CMin)/(PS2CMax-PS2CMin) -> 0.01 | Z69: =_xlfn.RANK.EQ(Y69,$Y$7:$Y$164) -> 152 | AA69: =AVERAGE(Q69,V69,Y69) -> 0.1281557992 | AB69: =(AA69-PS2AvMin)/(PS2AvMax-PS2AvMin) -> 0.1259810355 | AC69: =_xlfn.RANK.EQ(AB69,$AB$7:$AB$164) -> 141 | AD69: =VLOOKUP(A69,PS_3,25,FALSE) -> -0.020623 | AE69: =(AD69-PS3Max)/(PS3Min-PS3Max) -> 0.04418458587 | AF69: =_xlfn.RANK.EQ(AE69,$AE$7:$AE$164) -> 124 | AG69: =AVERAGE(N69,AA69,AE69) -> 0.1383297222 | AH69: =(AG69-PSMin)/(PSMax-PSMin) -> 0.1434377696 | AI69: =_xlfn.RANK.EQ(AH69,$AH$7:$AH$164) -> 145 | AJ69: =VLOOKUP(A69,T1_VAT,13,FALSE) -> 10 | AK69: =(AJ69-T1_VATMax)/(T1_VATMin-T1_VATMax) -> 0.6 | AL69: =VLOOKUP(A69,T1_PIT,60,FALSE) -> 0.09120092318 | AM69: =(AL69-T1_PITMin)/(T1_PITMax-T1_PITMin) -> 0.5610118807 | AN69: =VLOOKUP(A69,T1_CIT,4,FALSE) -> 30 | AO69: =(AN69-T1_CITMIn)/(T1_CITMAx-T1_CITMIn) -> 0.75 | AP69: =AVERAGE(AK69,AM69,AO69) -> 0.6370039602 | AQ69: =(AP69-T1AMin)/(T1AMax-T1AMin) -> 0.6923885361 | AR69: =VLOOKUP(A69,T1_HTP,5,FALSE) -> 0 | AS69: =(AR69-T1_HTPMax)/(T1_HTPMin-T1_HTPMax) -> 1 | AT69: =AVERAGE(AQ69,AS69) -> 0.846194268 | AU69: =(AT69-T1A_B_Min)/(T1A_B_Max-T1A_B_Min) -> 0.795557861 | AV69: =RANK(AU69,$AU$7:$AU$164,0) -> 17 | AW69: =VLOOKUP(A69,T_2,20,FALSE) -> 0.2049831242 | AX69: =(AW69-T2Min)/(T2Max-T2Min) -> 0.2692280944 | AY69: =RANK(AX69,$AX$7:$AX$164,0) -> 133 | AZ69: =VLOOKUP(A69,T_3,30,FALSE) -> 0.02564835436 | BA69: =(AZ69-T3Max)/(T3Min-T3Max) -> 0.4824097681 | BB69: =RANK(BA69,$BA$7:$BA$164,0) -> 134 | BC69: =AVERAGE(AU69,AX69,BA69) -> 0.5157319078 | BD69: =(BC69-TMin)/(TMax-TMin) -> 0.4831669995 | BE69: =RANK(BD69,$BD$7:$BD$164,0) -> 105 | BF69: =VLOOKUP(A69,L1A,2,FALSE) -> 4.761053 | BG69: =(BF69-L1AMax)/(L1AMin-L1AMax) -> 0.5238947 | BH69: =RANK(BG69,$BG$7:$BG$164,0) -> 124 | BI69: =VLOOKUP(A69,L1B,9,FALSE) -> 0.3461906973 | BJ69: =(BI69-L1BMin)/(L1BMax-L1BMin) -> 0.2428338807 | BK69: =RANK(BJ69,$BJ$7:$BJ$164,0) -> 154 | BL69: =VLOOKUP(A69,L1C,6,FALSE) -> 0.8684833766 | BM69: =(BL69-L1CMin)/(L1CMax-L1CMin) -> 0.3988101765 | BN69: =RANK(BM69,$BM$7:$BM$164,0) -> 23 | BO69: =AVERAGE(BG69,BJ69,BM69) -> 0.3885129191 | BP69: =(BO69-L1Min)/(L1Max-L1Min) -> 0.3251972653 | BQ69: =RANK(BP69,$BP$7:$BP$164,0) -> 136 | BR69: =VLOOKUP(A69,L_2,3,FALSE) -> 13.781 | BS69: =VLOOKUP($A69,L_2,2,FALSE) -> 72.269 | BT69: =BS69-BS69*BR69/100 -> 62.30960911 | BU69: =BR69+BT69 -> 76.09060911 | BV69: =(BU69-L2Max)/(L2Min-L2Max) -> 0.2127359165 | BW69: =RANK(BV69,$BV$7:$BV$164,0) -> 130 | BX69: =VLOOKUP(A69,L_3,2,FALSE) -> 0.6776970178 | BY69: =(BX69-L3Max)/(L3Min-L3Max) -> 0.2946247143 | BZ69: =RANK(BY69,$BY$7:$BY$164,0) -> 134 | CA69: =AVERAGE(BP69,BV69,BY69) -> 0.2775192987 | CB69: =(CA69-LMin)/(LMax-LMin) -> 0.1467419245 | CC69: =RANK(CB69,$CB$7:$CB$164,0) -> 149 | CD69: =AVERAGE(AH69,BD69,CB69) -> 0.2577822312 | CE69: =(CD69-OverallScoreMin)/(OverallScoreMax-OverallScoreMin) -> 0.233295444 | CF69: =RANK(CE69,$CE$7:$CE$164,0) -> 149
A70: Honduras | B70: =VLOOKUP(A70,Source_WB_country_income,6,FALSE) -> LMIC | C70: LAC | E70: =VLOOKUP(A70,PS1_Summary,3,FALSE) -> 14.84 | F70: =(E70-PS1AMin)/(PS1AMax-PS1AMin) -> 0.4156234352 | G70: =_xlfn.RANK.EQ(F70,$F$7:$F$164) -> 76 | H70: =VLOOKUP(A70,PS1_Summary,10,FALSE) -> 5.64 | I70: =(H70-PS1BMin)/(PS1BMax-PS1BMin) -> 0.1535717603 | J70: =_xlfn.RANK.EQ(I70,$I$7:$I$164) -> 137 | K70: =VLOOKUP(A70,PS1_Summary,17,FALSE) -> 17.61 | L70: =(K70-PS1CMin)/(PS1CMax-PS1CMin) -> 0.3657202944 | M70: =_xlfn.RANK.EQ(L70,$L$7:$L$164) -> 73 | N70: =AVERAGE(F70,I70,L70) -> 0.3116384966 | O70: =(N70-PS1AvMin)/(PS1AvMax-PS1AvMin) -> 0.4081347336 | P70: =_xlfn.RANK.EQ(O70,$O$7:$O$164) -> 113 | Q70: =VLOOKUP(A70,PS2A,3,FALSE) -> 0.1453725574 | R70: =_xlfn.RANK.EQ(Q70,$Q$7:$Q$164) -> 109 | S70: =VLOOKUP(A70,PS2B,6,FALSE) -> 65 | T70: =VLOOKUP(A70,PS2B,2,FALSE) -> 13.33801738 | U70: =SQRT(S70*(100-T70)) -> 75.05350672 | V70: =(U70-PS2BMin)/(PS2BMax-PS2BMin) -> 0.5793634827 | W70: =_xlfn.RANK.EQ(V70,$V$7:$V$164) -> 97 | X70: =VLOOKUP(A70,PS2C_Source,3,FALSE) -> 56.9 | Y70: =(X70-PS2CMin)/(PS2CMax-PS2CMin) -> 0.569 | Z70: =_xlfn.RANK.EQ(Y70,$Y$7:$Y$164) -> 82 | AA70: =AVERAGE(Q70,V70,Y70) -> 0.4312453467 | AB70: =(AA70-PS2AvMin)/(PS2AvMax-PS2AvMin) -> 0.4428982278 | AC70: =_xlfn.RANK.EQ(AB70,$AB$7:$AB$164) -> 102 | AD70: =VLOOKUP(A70,PS_3,25,FALSE) -> -0.0175 | AE70: =(AD70-PS3Max)/(PS3Min-PS3Max) -> 0.03645894087 | AF70: =_xlfn.RANK.EQ(AE70,$AE$7:$AE$164) -> 132 | AG70: =AVERAGE(N70,AA70,AE70) -> 0.2597809281 | AH70: =(AG70-PSMin)/(PSMax-PSMin) -> 0.3028540876 | AI70: =_xlfn.RANK.EQ(AH70,$AH$7:$AH$164) -> 107 | AJ70: =VLOOKUP(A70,T1_VAT,13,FALSE) -> 7.5 | AK70: =(AJ70-T1_VATMax)/(T1_VATMin-T1_VATMax) -> 0.7 | AL70: =VLOOKUP(A70,T1_PIT,60,FALSE) -> 0.08015192112 | AM70: =(AL70-T1_PITMin)/(T1_PITMax-T1_PITMin) -> 0.4930452285 | AN70: =VLOOKUP(A70,T1_CIT,4,FALSE) -> 25 | AO70: =(AN70-T1_CITMIn)/(T1_CITMAx-T1_CITMIn) -> 0.625 | AP70: =AVERAGE(AK70,AM70,AO70) -> 0.6060150762 | AQ70: =(AP70-T1AMin)/(T1AMax-T1AMin) -> 0.6518030619 | AR70: =VLOOKUP(A70,T1_HTP,5,FALSE) -> 0.75 | AS70: =(AR70-T1_HTPMax)/(T1_HTPMin-T1_HTPMax) -> 0.9166666667 | AT70: =AVERAGE(AQ70,AS70) -> 0.7842348643 | AU70: =(AT70-T1A_B_Min)/(T1A_B_Max-T1A_B_Min) -> 0.7131999873 | AV70: =RANK(AU70,$AU$7:$AU$164,0) -> 37 | AW70: =VLOOKUP(A70,T_2,20,FALSE) -> 0.3722631828 | AX70: =(AW70-T2Min)/(T2Max-T2Min) -> 0.488936383 | AY70: =RANK(AX70,$AX$7:$AX$164,0) -> 79 | AZ70: =VLOOKUP(A70,T_3,30,FALSE) -> -0.0081981714 | BA70: =(AZ70-T3Max)/(T3Min-T3Max) -> 0.666605741 | BB70: =RANK(BA70,$BA$7:$BA$164,0) -> 40 | BC70: =AVERAGE(AU70,AX70,BA70) -> 0.6229140371 | BD70: =(BC70-TMin)/(TMax-TMin) -> 0.7393929983 | BE70: =RANK(BD70,$BD$7:$BD$164,0) -> 22 | BF70: =VLOOKUP(A70,L1A,2,FALSE) -> 5.513684 | BG70: =(BF70-L1AMax)/(L1AMin-L1AMax) -> 0.4486316 | BH70: =RANK(BG70,$BG$7:$BG$164,0) -> 130 | BI70: =VLOOKUP(A70,L1B,9,FALSE) -> 0.8203178289 | BJ70: =(BI70-L1BMin)/(L1BMax-L1BMin) -> 0.8185045373 | BK70: =RANK(BJ70,$BJ$7:$BJ$164,0) -> 58 | BL70: =VLOOKUP(A70,L1C,6,FALSE) -> 1.213877822 | BM70: =(BL70-L1CMin)/(L1CMax-L1CMin) -> 0.5574163436 | BN70: =RANK(BM70,$BM$7:$BM$164,0) -> 12 | BO70: =AVERAGE(BG70,BJ70,BM70) -> 0.6081841603 | BP70: =(BO70-L1Min)/(L1Max-L1Min) -> 0.6876979817 | BQ70: =RANK(BP70,$BP$7:$BP$164,0) -> 49 | BR70: =VLOOKUP(A70,L_2,3,FALSE) -> 5.386 | BS70: =VLOOKUP($A70,L_2,2,FALSE) -> 41.39 | BT70: =BS70-BS70*BR70/100 -> 39.1607346 | BU70: =BR70+BT70 -> 44.5467346 | BV70: =(BU70-L2Max)/(L2Min-L2Max) -> 0.5741435123 | BW70: =RANK(BV70,$BV$7:$BV$164,0) -> 86 | BX70: =VLOOKUP(A70,L_3,2,FALSE) -> 0.4797365513 | BY70: =(BX70-L3Max)/(L3Min-L3Max) -> 0.6338479105 | BZ70: =RANK(BY70,$BY$7:$BY$164,0) -> 84 | CA70: =AVERAGE(BP70,BV70,BY70) -> 0.6318964682 | CB70: =(CA70-LMin)/(LMax-LMin) -> 0.6216427697 | CC70: =RANK(CB70,$CB$7:$CB$164,0) -> 65 | CD70: =AVERAGE(AH70,BD70,CB70) -> 0.5546299519 | CE70: =(CD70-OverallScoreMin)/(OverallScoreMax-OverallScoreMin) -> 0.6158257792 | CF70: =RANK(CE70,$CE$7:$CE$164,0) -> 62
A71: Hong Kong SAR, China | B71: =VLOOKUP(A71,Source_WB_country_income,6,FALSE) -> HIC | C71: EAP | E71: =VLOOKUP(A71,PS1_Summary,3,FALSE) -> 20.4283 | F71: =(E71-PS1AMin)/(PS1AMax-PS1AMin) -> 0.6954581873 | G71: =_xlfn.RANK.EQ(F71,$F$7:$F$164) -> 16 | H71: =VLOOKUP(A71,PS1_Summary,10,FALSE) -> 14.5771 | I71: =(H71-PS1BMin)/(PS1BMax-PS1BMin) -> 0.5525503007 | J71: =_xlfn.RANK.EQ(I71,$I$7:$I$164) -> 29 | K71: =VLOOKUP(A71,PS1_Summary,17,FALSE) -> 21 | L71: =(K71-PS1CMin)/(PS1CMax-PS1CMin) -> 0.4370136698 | M71: =_xlfn.RANK.EQ(L71,$L$7:$L$164) -> 66 | N71: =AVERAGE(F71,I71,L71) -> 0.5616740526 | O71: =(N71-PS1AvMin)/(PS1AvMax-PS1AvMin) -> 0.793608015 | P71: =_xlfn.RANK.EQ(O71,$O$7:$O$164) -> 18 | R71: =_xlfn.RANK.EQ(Q71,$Q$7:$Q$164) -> 156 | S71: =VLOOKUP(A71,PS2B,6,FALSE) -> 75 | T71: =VLOOKUP(A71,PS2B,2,FALSE) -> 7.85 | U71: =SQRT(S71*(100-T71)) -> 83.13392809 | V71: =(U71-PS2BMin)/(PS2BMax-PS2BMin) -> 0.7678500771 | W71: =_xlfn.RANK.EQ(V71,$V$7:$V$164) -> 46 | X71: =VLOOKUP(A71,PS2C_Source,3,FALSE) -> 72.9 | Y71: =(X71-PS2CMin)/(PS2CMax-PS2CMin) -> 0.729 | Z71: =_xlfn.RANK.EQ(Y71,$Y$7:$Y$164) -> 73 | AA71: =AVERAGE(Q71,V71,Y71) -> 0.7484250385 | AB71: =(AA71-PS2AvMin)/(PS2AvMax-PS2AvMin) -> 0.7745483892 | AC71: =_xlfn.RANK.EQ(AB71,$AB$7:$AB$164) -> 52 | AD71: =VLOOKUP(A71,PS_3,25,FALSE) -> -0.01095522035 | AE71: =(AD71-PS3Max)/(PS3Min-PS3Max) -> 0.02026853286 | AF71: =_xlfn.RANK.EQ(AE71,$AE$7:$AE$164) -> 151 | AG71: =AVERAGE(N71,AA71,AE71) -> 0.4434558747 | AH71: =(AG71-PSMin)/(PSMax-PSMin) -> 0.5439450137 | AI71: =_xlfn.RANK.EQ(AH71,$AH$7:$AH$164) -> 53 | AJ71: =VLOOKUP(A71,T1_VAT,13,FALSE) -> 0 | AK71: =(AJ71-T1_VATMax)/(T1_VATMin-T1_VATMax) -> 1 | AL71: =VLOOKUP(A71,T1_PIT,60,FALSE) -> 0.006270921913 | AM71: =(AL71-T1_PITMin)/(T1_PITMax-T1_PITMin) -> 0.03857484742 | AN71: =VLOOKUP(A71,T1_CIT,4,FALSE) -> 8.25 | AO71: =(AN71-T1_CITMIn)/(T1_CITMAx-T1_CITMIn) -> 0.20625 | AP71: =AVERAGE(AK71,AM71,AO71) -> 0.4149416158 | AQ71: =(AP71-T1AMin)/(T1AMax-T1AMin) -> 0.4015582653 | AR71: =VLOOKUP(A71,T1_HTP,5,FALSE) -> 7 | AS71: =(AR71-T1_HTPMax)/(T1_HTPMin-T1_HTPMax) -> 0.2222222222 | AT71: =AVERAGE(AQ71,AS71) -> 0.3118902438 | AU71: =(AT71-T1A_B_Min)/(T1A_B_Max-T1A_B_Min) -> 0.08534858443 | AV71: =RANK(AU71,$AU$7:$AU$164,0) -> 155 | AW71: =VLOOKUP(A71,T_2,20,FALSE) -> 0.5588205507 | AX71: =(AW71-T2Min)/(T2Max-T2Min) -> 0.733963796 | AY71: =RANK(AX71,$AX$7:$AX$164,0) -> 21 | AZ71: =VLOOKUP(A71,T_3,30,FALSE) -> -0.0003346980519 | BA71: =(AZ71-T3Max)/(T3Min-T3Max) -> 0.6238119803 | BB71: =RANK(BA71,$BA$7:$BA$164,0) -> 59 | BC71: =AVERAGE(AU71,AX71,BA71) -> 0.4810414536 | BD71: =(BC71-TMin)/(TMax-TMin) -> 0.4002371645 | BE71: =RANK(BD71,$BD$7:$BD$164,0) -> 128 | BI71: =VLOOKUP(A71,L1B,9,FALSE) -> 0.8174152819 | BJ71: =(BI71-L1BMin)/(L1BMax-L1BMin) -> 0.8149803536 | BK71: =RANK(BJ71,$BJ$7:$BJ$164,0) -> 61 | BL71: =VLOOKUP(A71,L1C,6,FALSE) -> 0.1205010714 | BM71: =(BL71-L1CMin)/(L1CMax-L1CMin) -> 0.05533445412 | BN71: =RANK(BM71,$BM$7:$BM$164,0) -> 142 | BO71: =AVERAGE(BG71,BJ71,BM71) -> 0.4351574038 | BP71: =(BO71-L1Min)/(L1Max-L1Min) -> 0.4021698315 | BQ71: =RANK(BP71,$BP$7:$BP$164,0) -> 125 | BR71: =VLOOKUP(A71,L_2,3,FALSE) -> 3.629 | BS71: =VLOOKUP($A71,L_2,2,FALSE) -> 5.717 | BT71: =BS71-BS71*BR71/100 -> 5.50953007 | BU71: =BR71+BT71 -> 9.13853007 | BV71: =(BU71-L2Max)/(L2Min-L2Max) -> 0.9798258919 | BW71: =RANK(BV71,$BV$7:$BV$164,0) -> 5 | BX71: =VLOOKUP(A71,L_3,2,FALSE) -> 0.4132398632 | BY71: =(BX71-L3Max)/(L3Min-L3Max) -> 0.7477960108 | BZ71: =RANK(BY71,$BY$7:$BY$164,0) -> 47 | CA71: =AVERAGE(BP71,BV71,BY71) -> 0.7099305781 | CB71: =(CA71-LMin)/(LMax-LMin) -> 0.7262162804 | CC71: =RANK(CB71,$CB$7:$CB$164,0) -> 45 | CD71: =AVERAGE(AH71,BD71,CB71) -> 0.5567994862 | CE71: =(CD71-OverallScoreMin)/(OverallScoreMax-OverallScoreMin) -> 0.6186215315 | CF71: =RANK(CE71,$CE$7:$CE$164,0) -> 59
A72: Hungary | B72: =VLOOKUP(A72,Source_WB_country_income,6,FALSE) -> HIC | C72: ECA | D72: OECD | E72: =VLOOKUP(A72,PS1_Summary,3,FALSE) -> 10.96531414 | F72: =(E72-PS1AMin)/(PS1AMax-PS1AMin) -> 0.2215981043 | G72: =_xlfn.RANK.EQ(F72,$F$7:$F$164) -> 125 | H72: =VLOOKUP(A72,PS1_Summary,10,FALSE) -> 10.12523099 | I72: =(H72-PS1BMin)/(PS1BMax-PS1BMin) -> 0.3538057191 | J72: =_xlfn.RANK.EQ(I72,$I$7:$I$164) -> 88 | K72: =VLOOKUP(A72,PS1_Summary,17,FALSE) -> 28.51753974 | L72: =(K72-PS1CMin)/(PS1CMax-PS1CMin) -> 0.5951112459 | M72: =_xlfn.RANK.EQ(L72,$L$7:$L$164) -> 44 | N72: =AVERAGE(F72,I72,L72) -> 0.3901716897 | O72: =(N72-PS1AvMin)/(PS1AvMax-PS1AvMin) -> 0.5292073048 | P72: =_xlfn.RANK.EQ(O72,$O$7:$O$164) -> 78 | Q72: =VLOOKUP(A72,PS2A,3,FALSE) -> 0.7077517715 | R72: =_xlfn.RANK.EQ(Q72,$Q$7:$Q$164) -> 46 | S72: =VLOOKUP(A72,PS2B,6,FALSE) -> 74 | T72: =VLOOKUP(A72,PS2B,2,FALSE) -> 7.38 | U72: =SQRT(S72*(100-T72)) -> 82.78816341 | V72: =(U72-PS2BMin)/(PS2BMax-PS2BMin) -> 0.7597846551 | W72: =_xlfn.RANK.EQ(V72,$V$7:$V$164) -> 50 | X72: =VLOOKUP(A72,PS2C_Source,3,FALSE) -> 100 | Y72: =(X72-PS2CMin)/(PS2CMax-PS2CMin) -> 1 | Z72: =_xlfn.RANK.EQ(Y72,$Y$7:$Y$164) -> 1 | AA72: =AVERAGE(Q72,V72,Y72) -> 0.8225121422 | AB72: =(AA72-PS2AvMin)/(PS2AvMax-PS2AvMin) -> 0.8520155176 | AC72: =_xlfn.RANK.EQ(AB72,$AB$7:$AB$164) -> 36 | AD72: =VLOOKUP(A72,PS_3,25,FALSE) -> -0.1943011388 | AE72: =(AD72-PS3Max)/(PS3Min-PS3Max) -> 0.4738277639 | AF72: =_xlfn.RANK.EQ(AE72,$AE$7:$AE$164) -> 17 | AG72: =AVERAGE(N72,AA72,AE72) -> 0.562170532 | AH72: =(AG72-PSMin)/(PSMax-PSMin) -> 0.6997693501 | AI72: =_xlfn.RANK.EQ(AH72,$AH$7:$AH$164) -> 32 | AJ72: =VLOOKUP(A72,T1_VAT,13,FALSE) -> 22.5 | AK72: =(AJ72-T1_VATMax)/(T1_VATMin-T1_VATMax) -> 0.1 | AL72: =VLOOKUP(A72,T1_PIT,60,FALSE) -> 0 | AM72: =(AL72-T1_PITMin)/(T1_PITMax-T1_PITMin) -> 0 | AN72: =VLOOKUP(A72,T1_CIT,4,FALSE) -> 9 | AO72: =(AN72-T1_CITMIn)/(T1_CITMAx-T1_CITMIn) -> 0.225 | AP72: =AVERAGE(AK72,AM72,AO72) -> 0.1083333333 | AQ72: =(AP72-T1AMin)/(T1AMax-T1AMin) -> 0 | AR72: =VLOOKUP(A72,T1_HTP,5,FALSE) -> 3 | AS72: =(AR72-T1_HTPMax)/(T1_HTPMin-T1_HTPMax) -> 0.6666666667 | AT72: =AVERAGE(AQ72,AS72) -> 0.3333333333 | AU72: =(AT72-T1A_B_Min)/(T1A_B_Max-T1A_B_Min) -> 0.1138512354 | AV72: =RANK(AU72,$AU$7:$AU$164,0) -> 154 | AW72: =VLOOKUP(A72,T_2,20,FALSE) -> 0.6060487165 | AX72: =(AW72-T2Min)/(T2Max-T2Min) -> 0.7959940199 | AY72: =RANK(AX72,$AX$7:$AX$164,0) -> 15 | AZ72: =VLOOKUP(A72,T_3,30,FALSE) -> 0.01979785 | BA72: =(AZ72-T3Max)/(T3Min-T3Max) -> 0.5142487625 | BB72: =RANK(BA72,$BA$7:$BA$164,0) -> 127 | BC72: =AVERAGE(AU72,AX72,BA72) -> 0.4746980059 | BD72: =(BC72-TMin)/(TMax-TMin) -> 0.3850727316 | BE72: =RANK(BD72,$BD$7:$BD$164,0) -> 129 | BF72: =VLOOKUP(A72,L1A,2,FALSE) -> 3.463158 | BG72: =(BF72-L1AMax)/(L1AMin-L1AMax) -> 0.6536842 | BH72: =RANK(BG72,$BG$7:$BG$164,0) -> 92 | BI72: =VLOOKUP(A72,L1B,9,FALSE) -> 0.8894604165 | BJ72: =(BI72-L1BMin)/(L1BMax-L1BMin) -> 0.9024553517 | BK72: =RANK(BJ72,$BJ$7:$BJ$164,0) -> 9 | BL72: =VLOOKUP(A72,L1C,6,FALSE) -> 0.3849106828 | BM72: =(BL72-L1CMin)/(L1CMax-L1CMin) -> 0.1767521422 | BN72: =RANK(BM72,$BM$7:$BM$164,0) -> 87 | BO72: =AVERAGE(BG72,BJ72,BM72) -> 0.5776305646 | BP72: =(BO72-L1Min)/(L1Max-L1Min) -> 0.6372785446 | BQ72: =RANK(BP72,$BP$7:$BP$164,0) -> 65 | BR72: =VLOOKUP(A72,L_2,3,FALSE) -> 3.399 | BS72: =VLOOKUP($A72,L_2,2,FALSE) -> 6.024 | BT72: =BS72-BS72*BR72/100 -> 5.81924424 | BU72: =BR72+BT72 -> 9.21824424 | BV72: =(BU72-L2Max)/(L2Min-L2Max) -> 0.9789125828 | BW72: =RANK(BV72,$BV$7:$BV$164,0) -> 6 | BX72: =VLOOKUP(A72,L_3,2,FALSE) -> 0.3068218038 | BY72: =(BX72-L3Max)/(L3Min-L3Max) -> 0.9301529981 | BZ72: =RANK(BY72,$BY$7:$BY$164,0) -> 8 | CA72: =AVERAGE(BP72,BV72,BY72) -> 0.8487813752 | CB72: =(CA72-LMin)/(LMax-LMin) -> 0.9122902338 | CC72: =RANK(CB72,$CB$7:$CB$164,0) -> 15 | CD72: =AVERAGE(AH72,BD72,CB72) -> 0.6657107718 | CE72: =(CD72-OverallScoreMin)/(OverallScoreMax-OverallScoreMin) -> 0.7589691497 | CF72: =RANK(CE72,$CE$7:$CE$164,0) -> 38
A73: Iceland | B73: =VLOOKUP(A73,Source_WB_country_income,6,FALSE) -> HIC | C73: ECA | D73: OECD | E73: =VLOOKUP(A73,PS1_Summary,3,FALSE) -> 17.39827157 | F73: =(E73-PS1AMin)/(PS1AMax-PS1AMin) -> 0.5437291721 | G73: =_xlfn.RANK.EQ(F73,$F$7:$F$164) -> 45 | H73: =VLOOKUP(A73,PS1_Summary,10,FALSE) -> 18.5257071 | I73: =(H73-PS1BMin)/(PS1BMax-PS1BMin) -> 0.7288277841 | J73: =_xlfn.RANK.EQ(I73,$I$7:$I$164) -> 8 | K73: =VLOOKUP(A73,PS1_Summary,17,FALSE) -> 23.58118494 | L73: =(K73-PS1CMin)/(PS1CMax-PS1CMin) -> 0.4912972648 | M73: =_xlfn.RANK.EQ(L73,$L$7:$L$164) -> 61 | N73: =AVERAGE(F73,I73,L73) -> 0.587951407 | O73: =(N73-PS1AvMin)/(PS1AvMax-PS1AvMin) -> 0.8341191254 | P73: =_xlfn.RANK.EQ(O73,$O$7:$O$164) -> 11 | Q73: =VLOOKUP(A73,PS2A,3,FALSE) -> 0.7691646983 | R73: =_xlfn.RANK.EQ(Q73,$Q$7:$Q$164) -> 38 | S73: =VLOOKUP(A73,PS2B,6,FALSE) -> 84 | T73: =VLOOKUP(A73,PS2B,2,FALSE) -> 6.825067905 | U73: =SQRT(S73*(100-T73)) -> 88.46860627 | V73: =(U73-PS2BMin)/(PS2BMax-PS2BMin) -> 0.8922885532 | W73: =_xlfn.RANK.EQ(V73,$V$7:$V$164) -> 13 | X73: =VLOOKUP(A73,PS2C_Source,3,FALSE) -> 85.56911729 | Y73: =(X73-PS2CMin)/(PS2CMax-PS2CMin) -> 0.8556911729 | Z73: =_xlfn.RANK.EQ(Y73,$Y$7:$Y$164) -> 57 | AA73: =AVERAGE(Q73,V73,Y73) -> 0.8390481415 | AB73: =(AA73-PS2AvMin)/(PS2AvMax-PS2AvMin) -> 0.8693059273 | AC73: =_xlfn.RANK.EQ(AB73,$AB$7:$AB$164) -> 29 | AD73: =VLOOKUP(A73,PS_3,25,FALSE) -> -0.1599392469 | AE73: =(AD73-PS3Max)/(PS3Min-PS3Max) -> 0.3888236722 | AF73: =_xlfn.RANK.EQ(AE73,$AE$7:$AE$164) -> 30 | AG73: =AVERAGE(N73,AA73,AE73) -> 0.6052744069 | AH73: =(AG73-PSMin)/(PSMax-PSMin) -> 0.7563473065 | AI73: =_xlfn.RANK.EQ(AH73,$AH$7:$AH$164) -> 25 | AJ73: =VLOOKUP(A73,T1_VAT,13,FALSE) -> 17.5 | AK73: =(AJ73-T1_VATMax)/(T1_VATMin-T1_VATMax) -> 0.3 | AL73: =VLOOKUP(A73,T1_PIT,60,FALSE) -> 0.005840611383 | AM73: =(AL73-T1_PITMin)/(T1_PITMax-T1_PITMin) -> 0.0359278422 | AN73: =VLOOKUP(A73,T1_CIT,4,FALSE) -> 20 | AO73: =(AN73-T1_CITMIn)/(T1_CITMAx-T1_CITMIn) -> 0.5 | AP73: =AVERAGE(AK73,AM73,AO73) -> 0.2786426141 | AQ73: =(AP73-T1AMin)/(T1AMax-T1AMin) -> 0.2230503977 | AR73: =VLOOKUP(A73,T1_HTP,5,FALSE) -> 1 | AS73: =(AR73-T1_HTPMax)/(T1_HTPMin-T1_HTPMax) -> 0.8888888889 | AT73: =AVERAGE(AQ73,AS73) -> 0.5559696433 | AU73: =(AT73-T1A_B_Min)/(T1A_B_Max-T1A_B_Min) -> 0.4097845719 | AV73: =RANK(AU73,$AU$7:$AU$164,0) -> 125 | AW73: =VLOOKUP(A73,T_2,20,FALSE) -> 0.5245144426 | AX73: =(AW73-T2Min)/(T2Max-T2Min) -> 0.6889056082 | AY73: =RANK(AX73,$AX$7:$AX$164,0) -> 28 | AZ73: =VLOOKUP(A73,T_3,30,FALSE) -> 0.004661116667 | BA73: =(AZ73-T3Max)/(T3Min-T3Max) -> 0.5966242873 | BB73: =RANK(BA73,$BA$7:$BA$164,0) -> 78 | BC73: =AVERAGE(AU73,AX73,BA73) -> 0.5651048225 | BD73: =(BC73-TMin)/(TMax-TMin) -> 0.6011962312 | BE73: =RANK(BD73,$BD$7:$BD$164,0) -> 67 | BF73: =VLOOKUP(A73,L1A,2,FALSE) -> 0.172632 | BG73: =(BF73-L1AMax)/(L1AMin-L1AMax) -> 0.9827368 | BH73: =RANK(BG73,$BG$7:$BG$164,0) -> 2 | BI73: =VLOOKUP(A73,L1B,9,FALSE) -> 0.8626950149 | BJ73: =(BI73-L1BMin)/(L1BMax-L1BMin) -> 0.8699576199 | BK73: =RANK(BJ73,$BJ$7:$BJ$164,0) -> 20 | BL73: =VLOOKUP(A73,L1C,6,FALSE) -> 0.4630606221 | BM73: =(BL73-L1CMin)/(L1CMax-L1CMin) -> 0.2126388292 | BN73: =RANK(BM73,$BM$7:$BM$164,0) -> 67 | BO73: =AVERAGE(BG73,BJ73,BM73) -> 0.6884444164 | BP73: =(BO73-L1Min)/(L1Max-L1Min) -> 0.8201431764 | BQ73: =RANK(BP73,$BP$7:$BP$164,0) -> 12 | BR73: =VLOOKUP(A73,L_2,3,FALSE) -> 2.842 | BS73: =VLOOKUP($A73,L_2,2,FALSE) -> 8.108 | BT73: =BS73-BS73*BR73/100 -> 7.87757064 | BU73: =BR73+BT73 -> 10.71957064 | BV73: =(BU73-L2Max)/(L2Min-L2Max) -> 0.9617114377 | BW73: =RANK(BV73,$BV$7:$BV$164,0) -> 11 | BX73: =VLOOKUP(A73,L_3,2,FALSE) -> 0.3443577473 | BY73: =(BX73-L3Max)/(L3Min-L3Max) -> 0.8658317578 | BZ73: =RANK(BY73,$BY$7:$BY$164,0) -> 22 | CA73: =AVERAGE(BP73,BV73,BY73) -> 0.8825621239 | CB73: =(CA73-LMin)/(LMax-LMin) -> 0.9575598153 | CC73: =RANK(CB73,$CB$7:$CB$164,0) -> 6 | CD73: =AVERAGE(AH73,BD73,CB73) -> 0.7717011177 | CE73: =(CD73-OverallScoreMin)/(OverallScoreMax-OverallScoreMin) -> 0.8955527234 | CF73: =RANK(CE73,$CE$7:$CE$164,0) -> 14
A74: India | B74: =VLOOKUP(A74,Source_WB_country_income,6,FALSE) -> LMIC | C74: SA | E74: =VLOOKUP(A74,PS1_Summary,3,FALSE) -> 9.05 | F74: =(E74-PS1AMin)/(PS1AMax-PS1AMin) -> 0.1256885328 | G74: =_xlfn.RANK.EQ(F74,$F$7:$F$164) -> 145 | H74: =VLOOKUP(A74,PS1_Summary,10,FALSE) -> 3.98 | I74: =(H74-PS1BMin)/(PS1BMax-PS1BMin) -> 0.07946445737 | J74: =_xlfn.RANK.EQ(I74,$I$7:$I$164) -> 155 | K74: =VLOOKUP(A74,PS1_Summary,17,FALSE) -> 11.23 | L74: =(K74-PS1CMin)/(PS1CMax-PS1CMin) -> 0.2315457413 | M74: =_xlfn.RANK.EQ(L74,$L$7:$L$164) -> 97 | N74: =AVERAGE(F74,I74,L74) -> 0.1455662438 | O74: =(N74-PS1AvMin)/(PS1AvMax-PS1AvMin) -> 0.1521054822 | P74: =_xlfn.RANK.EQ(O74,$O$7:$O$164) -> 154 | Q74: =VLOOKUP(A74,PS2A,3,FALSE) -> 0.1446973373 | R74: =_xlfn.RANK.EQ(Q74,$Q$7:$Q$164) -> 110 | S74: =VLOOKUP(A74,PS2B,6,FALSE) -> 55 | T74: =VLOOKUP(A74,PS2B,2,FALSE) -> 17.33 | U74: =SQRT(S74*(100-T74)) -> 67.43033442 | V74: =(U74-PS2BMin)/(PS2BMax-PS2BMin) -> 0.4015428324 | W74: =_xlfn.RANK.EQ(V74,$V$7:$V$164) -> 121 | X74: =VLOOKUP(A74,PS2C_Source,3,FALSE) -> 24.1 | Y74: =(X74-PS2CMin)/(PS2CMax-PS2CMin) -> 0.241 | Z74: =_xlfn.RANK.EQ(Y74,$Y$7:$Y$164) -> 104 | AA74: =AVERAGE(Q74,V74,Y74) -> 0.2624133899 | AB74: =(AA74-PS2AvMin)/(PS2AvMax-PS2AvMin) -> 0.2663637674 | AC74: =_xlfn.RANK.EQ(AB74,$AB$7:$AB$164) -> 116 | AD74: =VLOOKUP(A74,PS_3,25,FALSE) -> -0.016916 | AE74: =(AD74-PS3Max)/(PS3Min-PS3Max) -> 0.03501424772 | AF74: =_xlfn.RANK.EQ(AE74,$AE$7:$AE$164) -> 134 | AG74: =AVERAGE(N74,AA74,AE74) -> 0.1476646272 | AH74: =(AG74-PSMin)/(PSMax-PSMin) -> 0.1556907247 | AI74: =_xlfn.RANK.EQ(AH74,$AH$7:$AH$164) -> 141 | AJ74: =VLOOKUP(A74,T1_VAT,13,FALSE) -> 0 | AK74: =(AJ74-T1_VATMax)/(T1_VATMin-T1_VATMax) -> 1 | AL74: =VLOOKUP(A74,T1_PIT,60,FALSE) -> 0.08456028276 | AM74: =(AL74-T1_PITMin)/(T1_PITMax-T1_PITMin) -> 0.5201627529 | AN74: =VLOOKUP(A74,T1_CIT,4,FALSE) -> 27.84 | AO74: =(AN74-T1_CITMIn)/(T1_CITMAx-T1_CITMIn) -> 0.696 | AP74: =AVERAGE(AK74,AM74,AO74) -> 0.7387209176 | AQ74: =(AP74-T1AMin)/(T1AMax-T1AMin) -> 0.8256050449 | AR74: =VLOOKUP(A74,T1_HTP,5,FALSE) -> 0.5 | AS74: =(AR74-T1_HTPMax)/(T1_HTPMin-T1_HTPMax) -> 0.9444444444 | AT74: =AVERAGE(AQ74,AS74) -> 0.8850247447 | AU74: =(AT74-T1A_B_Min)/(T1A_B_Max-T1A_B_Min) -> 0.8471722293 | AV74: =RANK(AU74,$AU$7:$AU$164,0) -> 7 | AW74: =VLOOKUP(A74,T_2,20,FALSE) -> 0.3349977839 | AX74: =(AW74-T2Min)/(T2Max-T2Min) -> 0.4399914155 | AY74: =RANK(AX74,$AX$7:$AX$164,0) -> 97 | AZ74: =VLOOKUP(A74,T_3,30,FALSE) -> 0.003845171973 | BA74: =(AZ74-T3Max)/(T3Min-T3Max) -> 0.6010647349 | BB74: =RANK(BA74,$BA$7:$BA$164,0) -> 72 | BC74: =AVERAGE(AU74,AX74,BA74) -> 0.6294094599 | BD74: =(BC74-TMin)/(TMax-TMin) -> 0.754920738 | BE74: =RANK(BD74,$BD$7:$BD$164,0) -> 19 | BF74: =VLOOKUP(A74,L1A,2,FALSE) -> 6.472632 | BG74: =(BF74-L1AMax)/(L1AMin-L1AMax) -> 0.3527368 | BH74: =RANK(BG74,$BG$7:$BG$164,0) -> 140 | BI74: =VLOOKUP(A74,L1B,9,FALSE) -> 0.7868263551 | BJ74: =(BI74-L1BMin)/(L1BMax-L1BMin) -> 0.7778402146 | BK74: =RANK(BJ74,$BJ$7:$BJ$164,0) -> 74 | BL74: =VLOOKUP(A74,L1C,6,FALSE) -> 0.4154966297 | BM74: =(BL74-L1CMin)/(L1CMax-L1CMin) -> 0.190797301 | BN74: =RANK(BM74,$BM$7:$BM$164,0) -> 77 | BO74: =AVERAGE(BG74,BJ74,BM74) -> 0.4404581052 | BP74: =(BO74-L1Min)/(L1Max-L1Min) -> 0.4109170303 | BQ74: =RANK(BP74,$BP$7:$BP$164,0) -> 123 | BR74: =VLOOKUP(A74,L_2,3,FALSE) -> 5.355 | BS74: =VLOOKUP($A74,L_2,2,FALSE) -> 74.27 | BT74: =BS74-BS74*BR74/100 -> 70.2928415 | BU74: =BR74+BT74 -> 75.6478415 | BV74: =(BU74-L2Max)/(L2Min-L2Max) -> 0.2178088373 | BW74: =RANK(BV74,$BV$7:$BV$164,0) -> 129 | BX74: =VLOOKUP(A74,L_3,2,FALSE) -> 0.7435210122 | BY74: =(BX74-L3Max)/(L3Min-L3Max) -> 0.1818293357 | BZ74: =RANK(BY74,$BY$7:$BY$164,0) -> 145 | CA74: =AVERAGE(BP74,BV74,BY74) -> 0.2701850678 | CB74: =(CA74-LMin)/(LMax-LMin) -> 0.1369133216 | CC74: =RANK(CB74,$CB$7:$CB$164,0) -> 151 | CD74: =AVERAGE(AH74,BD74,CB74) -> 0.3491749281 | CE74: =(CD74-OverallScoreMin)/(OverallScoreMax-OverallScoreMin) -> 0.3510678793 | CF74: =RANK(CE74,$CE$7:$CE$164,0) -> 129
A75: Indonesia | B75: =VLOOKUP(A75,Source_WB_country_income,6,FALSE) -> LMIC | C75: EAP | E75: =VLOOKUP(A75,PS1_Summary,3,FALSE) -> 16.26243336 | F75: =(E75-PS1AMin)/(PS1AMax-PS1AMin) -> 0.4868519458 | G75: =_xlfn.RANK.EQ(F75,$F$7:$F$164) -> 60 | H75: =VLOOKUP(A75,PS1_Summary,10,FALSE) -> 10.09824245 | I75: =(H75-PS1BMin)/(PS1BMax-PS1BMin) -> 0.352600871 | J75: =_xlfn.RANK.EQ(I75,$I$7:$I$164) -> 89 | K75: =VLOOKUP(A75,PS1_Summary,17,FALSE) -> 7.772792909 | L75: =(K75-PS1CMin)/(PS1CMax-PS1CMin) -> 0.1588389676 | M75: =_xlfn.RANK.EQ(L75,$L$7:$L$164) -> 114 | N75: =AVERAGE(F75,I75,L75) -> 0.3327639281 | O75: =(N75-PS1AvMin)/(PS1AvMax-PS1AvMin) -> 0.4407032592 | P75: =_xlfn.RANK.EQ(O75,$O$7:$O$164) -> 103 | Q75: =VLOOKUP(A75,PS2A,3,FALSE) -> 0.3393363753 | R75: =_xlfn.RANK.EQ(Q75,$Q$7:$Q$164) -> 88 | S75: =VLOOKUP(A75,PS2B,6,FALSE) -> 57 | T75: =VLOOKUP(A75,PS2B,2,FALSE) -> 2.71 | U75: =SQRT(S75*(100-T75)) -> 74.46831541 | V75: =(U75-PS2BMin)/(PS2BMax-PS2BMin) -> 0.5657131159 | W75: =_xlfn.RANK.EQ(V75,$V$7:$V$164) -> 100 | X75: =VLOOKUP(A75,PS2C_Source,3,FALSE) -> 14 | Y75: =(X75-PS2CMin)/(PS2CMax-PS2CMin) -> 0.14 | Z75: =_xlfn.RANK.EQ(Y75,$Y$7:$Y$164) -> 116 | AA75: =AVERAGE(Q75,V75,Y75) -> 0.3483498304 | AB75: =(AA75-PS2AvMin)/(PS2AvMax-PS2AvMin) -> 0.3562208267 | AC75: =_xlfn.RANK.EQ(AB75,$AB$7:$AB$164) -> 111 | AD75: =VLOOKUP(A75,PS_3,25,FALSE) -> -0.0223 | AE75: =(AD75-PS3Max)/(PS3Min-PS3Max) -> 0.04833313107 | AF75: =_xlfn.RANK.EQ(AE75,$AE$7:$AE$164) -> 120 | AG75: =AVERAGE(N75,AA75,AE75) -> 0.2431489632 | AH75: =(AG75-PSMin)/(PSMax-PSMin) -> 0.2810230437 | AI75: =_xlfn.RANK.EQ(AH75,$AH$7:$AH$164) -> 111 | AJ75: =VLOOKUP(A75,T1_VAT,13,FALSE) -> 0 | AK75: =(AJ75-T1_VATMax)/(T1_VATMin-T1_VATMax) -> 1 | AL75: =VLOOKUP(A75,T1_PIT,60,FALSE) -> 0.05501714007 | AM75: =(AL75-T1_PITMin)/(T1_PITMax-T1_PITMin) -> 0.3384315438 | AN75: =VLOOKUP(A75,T1_CIT,4,FALSE) -> 25 | AO75: =(AN75-T1_CITMIn)/(T1_CITMAx-T1_CITMIn) -> 0.625 | AP75: =AVERAGE(AK75,AM75,AO75) -> 0.6544771813 | AQ75: =(AP75-T1AMin)/(T1AMax-T1AMin) -> 0.7152728374 | AR75: =VLOOKUP(A75,T1_HTP,5,FALSE) -> 0.5 | AS75: =(AR75-T1_HTPMax)/(T1_HTPMin-T1_HTPMax) -> 0.9444444444 | AT75: =AVERAGE(AQ75,AS75) -> 0.8298586409 | AU75: =(AT75-T1A_B_Min)/(T1A_B_Max-T1A_B_Min) -> 0.7738441673 | AV75: =RANK(AU75,$AU$7:$AU$164,0) -> 18 | AW75: =VLOOKUP(A75,T_2,20,FALSE) -> 0.3281822808 | AX75: =(AW75-T2Min)/(T2Max-T2Min) -> 0.4310398254 | AY75: =RANK(AX75,$AX$7:$AX$164,0) -> 98 | AZ75: =VLOOKUP(A75,T_3,30,FALSE) -> -0.001141033 | BA75: =(AZ75-T3Max)/(T3Min-T3Max) -> 0.6282001308 | BB75: =RANK(BA75,$BA$7:$BA$164,0) -> 54 | BC75: =AVERAGE(AU75,AX75,BA75) -> 0.6110280412 | BD75: =(BC75-TMin)/(TMax-TMin) -> 0.7109787356 | BE75: =RANK(BD75,$BD$7:$BD$164,0) -> 34 | BF75: =VLOOKUP(A75,L1A,2,FALSE) -> 5.842105 | BG75: =(BF75-L1AMax)/(L1AMin-L1AMax) -> 0.4157895 | BH75: =RANK(BG75,$BG$7:$BG$164,0) -> 133 | BI75: =VLOOKUP(A75,L1B,9,FALSE) -> 0.7607034323 | BJ75: =(BI75-L1BMin)/(L1BMax-L1BMin) -> 0.7461225609 | BK75: =RANK(BJ75,$BJ$7:$BJ$164,0) -> 95 | BL75: =VLOOKUP(A75,L1C,6,FALSE) -> 0.3130922722 | BM75: =(BL75-L1CMin)/(L1CMax-L1CMin) -> 0.1437729123 | BN75: =RANK(BM75,$BM$7:$BM$164,0) -> 112 | BO75: =AVERAGE(BG75,BJ75,BM75) -> 0.4352283244 | BP75: =(BO75-L1Min)/(L1Max-L1Min) -> 0.4022868643 | BQ75: =RANK(BP75,$BP$7:$BP$164,0) -> 124 | BR75: =VLOOKUP(A75,L_2,3,FALSE) -> 4.687 | BS75: =VLOOKUP($A75,L_2,2,FALSE) -> 47.895 | BT75: =BS75-BS75*BR75/100 -> 45.65016135 | BU75: =BR75+BT75 -> 50.33716135 | BV75: =(BU75-L2Max)/(L2Min-L2Max) -> 0.5078008628 | BW75: =RANK(BV75,$BV$7:$BV$164,0) -> 96 | BX75: =VLOOKUP(A75,L_3,2,FALSE) -> 0.5688752827 | BY75: =(BX75-L3Max)/(L3Min-L3Max) -> 0.4811006175 | BZ75: =RANK(BY75,$BY$7:$BY$164,0) -> 109 | CA75: =AVERAGE(BP75,BV75,BY75) -> 0.4637294482 | CB75: =(CA75-LMin)/(LMax-LMin) -> 0.396282146 | CC75: =RANK(CB75,$CB$7:$CB$164,0) -> 111 | CD75: =AVERAGE(AH75,BD75,CB75) -> 0.4627613085 | CE75: =(CD75-OverallScoreMin)/(OverallScoreMax-OverallScoreMin) -> 0.4974400194 | CF75: =RANK(CE75,$CE$7:$CE$164,0) -> 93
A76: Ireland | B76: =VLOOKUP(A76,Source_WB_country_income,6,FALSE) -> HIC | C76: ECA | D76: OECD | E76: =VLOOKUP(A76,PS1_Summary,3,FALSE) -> 12.59714475 | F76: =(E76-PS1AMin)/(PS1AMax-PS1AMin) -> 0.3033122058 | G76: =_xlfn.RANK.EQ(F76,$F$7:$F$164) -> 102 | H76: =VLOOKUP(A76,PS1_Summary,10,FALSE) -> 19.79496552 | I76: =(H76-PS1BMin)/(PS1BMax-PS1BMin) -> 0.785491229 | J76: =_xlfn.RANK.EQ(I76,$I$7:$I$164) -> 5 | K76: =VLOOKUP(A76,PS1_Summary,17,FALSE) -> 35.42878048 | L76: =(K76-PS1CMin)/(PS1CMax-PS1CMin) -> 0.7404580542 | M76: =_xlfn.RANK.EQ(L76,$L$7:$L$164) -> 24 | N76: =AVERAGE(F76,I76,L76) -> 0.6097538297 | O76: =(N76-PS1AvMin)/(PS1AvMax-PS1AvMin) -> 0.8677313506 | P76: =_xlfn.RANK.EQ(O76,$O$7:$O$164) -> 8 | Q76: =VLOOKUP(A76,PS2A,3,FALSE) -> 1 | R76: =_xlfn.RANK.EQ(Q76,$Q$7:$Q$164) -> 1 | S76: =VLOOKUP(A76,PS2B,6,FALSE) -> 76 | T76: =VLOOKUP(A76,PS2B,2,FALSE) -> 6.4 | U76: =SQRT(S76*(100-T76)) -> 84.34216028 | V76: =(U76-PS2BMin)/(PS2BMax-PS2BMin) -> 0.7960337025 | W76: =_xlfn.RANK.EQ(V76,$V$7:$V$164) -> 38 | X76: =VLOOKUP(A76,PS2C_Source,3,FALSE) -> 95.8418002 | Y76: =(X76-PS2CMin)/(PS2CMax-PS2CMin) -> 0.958418002 | Z76: =_xlfn.RANK.EQ(Y76,$Y$7:$Y$164) -> 46 | AA76: =AVERAGE(Q76,V76,Y76) -> 0.9181505682 | AB76: =(AA76-PS2AvMin)/(PS2AvMax-PS2AvMin) -> 0.9520171893 | AC76: =_xlfn.RANK.EQ(AB76,$AB$7:$AB$164) -> 9 | AD76: =VLOOKUP(A76,PS_3,25,FALSE) -> -0.1942990841 | AE76: =(AD76-PS3Max)/(PS3Min-PS3Max) -> 0.473822681 | AF76: =_xlfn.RANK.EQ(AE76,$AE$7:$AE$164) -> 18 | AG76: =AVERAGE(N76,AA76,AE76) -> 0.6672423596 | AH76: =(AG76-PSMin)/(PSMax-PSMin) -> 0.8376861684 | AI76: =_xlfn.RANK.EQ(AH76,$AH$7:$AH$164) -> 4 | AJ76: =VLOOKUP(A76,T1_VAT,13,FALSE) -> 11.5 | AK76: =(AJ76-T1_VATMax)/(T1_VATMin-T1_VATMax) -> 0.54 | AL76: =VLOOKUP(A76,T1_PIT,60,FALSE) -> 0.005789215416 | AM76: =(AL76-T1_PITMin)/(T1_PITMax-T1_PITMin) -> 0.03561168588 | AN76: =VLOOKUP(A76,T1_CIT,4,FALSE) -> 12.5 | AO76: =(AN76-T1_CITMIn)/(T1_CITMAx-T1_CITMIn) -> 0.3125 | AP76: =AVERAGE(AK76,AM76,AO76) -> 0.2960372286 | AQ76: =(AP76-T1AMin)/(T1AMax-T1AMin) -> 0.2458317498 | AR76: =VLOOKUP(A76,T1_HTP,5,FALSE) -> 6 | AS76: =(AR76-T1_HTPMax)/(T1_HTPMin-T1_HTPMax) -> 0.3333333333 | AT76: =AVERAGE(AQ76,AS76) -> 0.2895825416 | AU76: =(AT76-T1A_B_Min)/(T1A_B_Max-T1A_B_Min) -> 0.05569667033 | AV76: =RANK(AU76,$AU$7:$AU$164,0) -> 156 | AW76: =VLOOKUP(A76,T_2,20,FALSE) -> 0.4788331381 | AX76: =(AW76-T2Min)/(T2Max-T2Min) -> 0.6289070566 | AY76: =RANK(AX76,$AX$7:$AX$164,0) -> 46 | AZ76: =VLOOKUP(A76,T_3,30,FALSE) -> -0.0694603 | BA76: =(AZ76-T3Max)/(T3Min-T3Max) -> 1 | BB76: =RANK(BA76,$BA$7:$BA$164,0) -> 1 | BC76: =AVERAGE(AU76,AX76,BA76) -> 0.5615345756 | BD76: =(BC76-TMin)/(TMax-TMin) -> 0.592661319 | BE76: =RANK(BD76,$BD$7:$BD$164,0) -> 72 | BF76: =VLOOKUP(A76,L1A,2,FALSE) -> 0.321053 | BG76: =(BF76-L1AMax)/(L1AMin-L1AMax) -> 0.9678947 | BH76: =RANK(BG76,$BG$7:$BG$164,0) -> 7 | BI76: =VLOOKUP(A76,L1B,9,FALSE) -> 0.8170669763 | BJ76: =(BI76-L1BMin)/(L1BMax-L1BMin) -> 0.8145574515 | BK76: =RANK(BJ76,$BJ$7:$BJ$164,0) -> 63 | BL76: =VLOOKUP(A76,L1C,6,FALSE) -> 0.2870041383 | BM76: =(BL76-L1CMin)/(L1CMax-L1CMin) -> 0.1317931628 | BN76: =RANK(BM76,$BM$7:$BM$164,0) -> 117 | BO76: =AVERAGE(BG76,BJ76,BM76) -> 0.6380817714 | BP76: =(BO76-L1Min)/(L1Max-L1Min) -> 0.7370349153 | BQ76: =RANK(BP76,$BP$7:$BP$164,0) -> 34 | BR76: =VLOOKUP(A76,L_2,3,FALSE) -> 4.928 | BS76: =VLOOKUP($A76,L_2,2,FALSE) -> 10.61 | BT76: =BS76-BS76*BR76/100 -> 10.0871392 | BU76: =BR76+BT76 -> 15.0151392 | BV76: =(BU76-L2Max)/(L2Min-L2Max) -> 0.9124958251 | BW76: =RANK(BV76,$BV$7:$BV$164,0) -> 25 | BX76: =VLOOKUP(A76,L_3,2,FALSE) -> 0.3398564303 | BY76: =(BX76-L3Max)/(L3Min-L3Max) -> 0.8735451723 | BZ76: =RANK(BY76,$BY$7:$BY$164,0) -> 17 | CA76: =AVERAGE(BP76,BV76,BY76) -> 0.8410253042 | CB76: =(CA76-LMin)/(LMax-LMin) -> 0.9018963231 | CC76: =RANK(CB76,$CB$7:$CB$164,0) -> 17 | CD76: =AVERAGE(AH76,BD76,CB76) -> 0.7774146035 | CE76: =(CD76-OverallScoreMin)/(OverallScoreMax-OverallScoreMin) -> 0.9029153592 | CF76: =RANK(CE76,$CE$7:$CE$164,0) -> 11
A77: Israel | B77: =VLOOKUP(A77,Source_WB_country_income,6,FALSE) -> HIC | D77: OECD | E77: =VLOOKUP(A77,PS1_Summary,3,FALSE) -> 17.70140987 | F77: =(E77-PS1AMin)/(PS1AMax-PS1AMin) -> 0.5589088569 | G77: =_xlfn.RANK.EQ(F77,$F$7:$F$164) -> 39 | H77: =VLOOKUP(A77,PS1_Summary,10,FALSE) -> 13.42384063 | I77: =(H77-PS1BMin)/(PS1BMax-PS1BMin) -> 0.5010653962 | J77: =_xlfn.RANK.EQ(I77,$I$7:$I$164) -> 46 | K77: =VLOOKUP(A77,PS1_Summary,17,FALSE) -> 27.62527218 | L77: =(K77-PS1CMin)/(PS1CMax-PS1CMin) -> 0.5763464181 | M77: =_xlfn.RANK.EQ(L77,$L$7:$L$164) -> 46 | N77: =AVERAGE(F77,I77,L77) -> 0.5454402237 | O77: =(N77-PS1AvMin)/(PS1AvMax-PS1AvMin) -> 0.7685807453 | P77: =_xlfn.RANK.EQ(O77,$O$7:$O$164) -> 26 | Q77: =VLOOKUP(A77,PS2A,3,FALSE) -> 0.877388877 | R77: =_xlfn.RANK.EQ(Q77,$Q$7:$Q$164) -> 19 | S77: =VLOOKUP(A77,PS2B,6,FALSE) -> 82 | T77: =VLOOKUP(A77,PS2B,2,FALSE) -> 6.72 | U77: =SQRT(S77*(100-T77)) -> 87.45833294 | V77: =(U77-PS2BMin)/(PS2BMax-PS2BMin) -> 0.8687225816 | W77: =_xlfn.RANK.EQ(V77,$V$7:$V$164) -> 19 | X77: =VLOOKUP(A77,PS2C_Source,3,FALSE) -> 99.09788642 | Y77: =(X77-PS2CMin)/(PS2CMax-PS2CMin) -> 0.9909788642 | Z77: =_xlfn.RANK.EQ(Y77,$Y$7:$Y$164) -> 42 | AA77: =AVERAGE(Q77,V77,Y77) -> 0.9123634409 | AB77: =(AA77-PS2AvMin)/(PS2AvMax-PS2AvMin) -> 0.9459660399 | AC77: =_xlfn.RANK.EQ(AB77,$AB$7:$AB$164) -> 12 | AD77: =VLOOKUP(A77,PS_3,25,FALSE) -> -0.09316643439 | AE77: =(AD77-PS3Max)/(PS3Min-PS3Max) -> 0.2236417813 | AF77: =_xlfn.RANK.EQ(AE77,$AE$7:$AE$164) -> 43 | AG77: =AVERAGE(N77,AA77,AE77) -> 0.5604818153 | AH77: =(AG77-PSMin)/(PSMax-PSMin) -> 0.697552748 | AI77: =_xlfn.RANK.EQ(AH77,$AH$7:$AH$164) -> 33 | AJ77: =VLOOKUP(A77,T1_VAT,13,FALSE) -> 17 | AK77: =(AJ77-T1_VATMax)/(T1_VATMin-T1_VATMax) -> 0.32 | AL77: =VLOOKUP(A77,T1_PIT,60,FALSE) -> 0.0316587428 | AM77: =(AL77-T1_PITMin)/(T1_PITMax-T1_PITMin) -> 0.1947450773 | AN77: =VLOOKUP(A77,T1_CIT,4,FALSE) -> 23 | AO77: =(AN77-T1_CITMIn)/(T1_CITMAx-T1_CITMIn) -> 0.575 | AP77: =AVERAGE(AK77,AM77,AO77) -> 0.3632483591 | AQ77: =(AP77-T1AMin)/(T1AMax-T1AMin) -> 0.3338567201 | AR77: =VLOOKUP(A77,T1_HTP,5,FALSE) -> 0.5 | AS77: =(AR77-T1_HTPMax)/(T1_HTPMin-T1_HTPMax) -> 0.9444444444 | AT77: =AVERAGE(AQ77,AS77) -> 0.6391505823 | AU77: =(AT77-T1A_B_Min)/(T1A_B_Max-T1A_B_Min) -> 0.5203506014 | AV77: =RANK(AU77,$AU$7:$AU$164,0) -> 89 | AW77: =VLOOKUP(A77,T_2,20,FALSE) -> 0.4913708568 | AX77: =(AW77-T2Min)/(T2Max-T2Min) -> 0.6453742957 | AY77: =RANK(AX77,$AX$7:$AX$164,0) -> 41 | AZ77: =VLOOKUP(A77,T_3,30,FALSE) -> -0.0020591 | BA77: =(AZ77-T3Max)/(T3Min-T3Max) -> 0.6331963377 | BB77: =RANK(BA77,$BA$7:$BA$164,0) -> 52 | BC77: =AVERAGE(AU77,AX77,BA77) -> 0.5996404116 | BD77: =(BC77-TMin)/(TMax-TMin) -> 0.6837558508 | BE77: =RANK(BD77,$BD$7:$BD$164,0) -> 41 | BF77: =VLOOKUP(A77,L1A,2,FALSE) -> 0.893684 | BG77: =(BF77-L1AMax)/(L1AMin-L1AMax) -> 0.9106316 | BH77: =RANK(BG77,$BG$7:$BG$164,0) -> 18 | BI77: =VLOOKUP(A77,L1B,9,FALSE) -> 0.8304767433 | BJ77: =(BI77-L1BMin)/(L1BMax-L1BMin) -> 0.8308391804 | BK77: =RANK(BJ77,$BJ$7:$BJ$164,0) -> 39 | BL77: =VLOOKUP(A77,L1C,6,FALSE) -> 0.4140783649 | BM77: =(BL77-L1CMin)/(L1CMax-L1CMin) -> 0.1901460295 | BN77: =RANK(BM77,$BM$7:$BM$164,0) -> 79 | BO77: =AVERAGE(BG77,BJ77,BM77) -> 0.64387227 | BP77: =(BO77-L1Min)/(L1Max-L1Min) -> 0.7465903758 | BQ77: =RANK(BP77,$BP$7:$BP$164,0) -> 31 | BR77: =VLOOKUP(A77,L_2,3,FALSE) -> 3.861 | BS77: =VLOOKUP($A77,L_2,2,FALSE) -> 8.268 | BT77: =BS77-BS77*BR77/100 -> 7.94877252 | BU77: =BR77+BT77 -> 11.80977252 | BV77: =(BU77-L2Max)/(L2Min-L2Max) -> 0.949220669 | BW77: =RANK(BV77,$BV$7:$BV$164,0) -> 16 | BX77: =VLOOKUP(A77,L_3,2,FALSE) -> 0.3430723436 | BY77: =(BX77-L3Max)/(L3Min-L3Max) -> 0.8680344135 | BZ77: =RANK(BY77,$BY$7:$BY$164,0) -> 21 | CA77: =AVERAGE(BP77,BV77,BY77) -> 0.8546151528 | CB77: =(CA77-LMin)/(LMax-LMin) -> 0.9201080792 | CC77: =RANK(CB77,$CB$7:$CB$164,0) -> 13 | CD77: =AVERAGE(AH77,BD77,CB77) -> 0.7671388927 | CE77: =(CD77-OverallScoreMin)/(OverallScoreMax-OverallScoreMin) -> 0.8896736502 | CF77: =RANK(CE77,$CE$7:$CE$164,0) -> 17
A78: Italy | B78: =VLOOKUP(A78,Source_WB_country_income,6,FALSE) -> HIC | C78: ECA | D78: OECD | E78: =VLOOKUP(A78,PS1_Summary,3,FALSE) -> 8.171043363 | F78: =(E78-PS1AMin)/(PS1AMax-PS1AMin) -> 0.08167468016 | G78: =_xlfn.RANK.EQ(F78,$F$7:$F$164) -> 153 | H78: =VLOOKUP(A78,PS1_Summary,10,FALSE) -> 14.14822338 | I78: =(H78-PS1BMin)/(PS1BMax-PS1BMin) -> 0.5334039818 | J78: =_xlfn.RANK.EQ(I78,$I$7:$I$164) -> 37 | K78: =VLOOKUP(A78,PS1_Summary,17,FALSE) -> 42.92723396 | L78: =(K78-PS1CMin)/(PS1CMax-PS1CMin) -> 0.8981542369 | M78: =_xlfn.RANK.EQ(L78,$L$7:$L$164) -> 6 | N78: =AVERAGE(F78,I78,L78) -> 0.5044109663 | O78: =(N78-PS1AvMin)/(PS1AvMax-PS1AvMin) -> 0.7053270116 | P78: =_xlfn.RANK.EQ(O78,$O$7:$O$164) -> 44 | Q78: =VLOOKUP(A78,PS2A,3,FALSE) -> 0.8084603822 | R78: =_xlfn.RANK.EQ(Q78,$Q$7:$Q$164) -> 32 | S78: =VLOOKUP(A78,PS2B,6,FALSE) -> 82 | T78: =VLOOKUP(A78,PS2B,2,FALSE) -> 9.29 | U78: =SQRT(S78*(100-T78)) -> 86.2451158 | V78: =(U78-PS2BMin)/(PS2BMax-PS2BMin) -> 0.8404226756 | W78: =_xlfn.RANK.EQ(V78,$V$7:$V$164) -> 23 | X78: =VLOOKUP(A78,PS2C_Source,3,FALSE) -> 100 | Y78: =(X78-PS2CMin)/(PS2CMax-PS2CMin) -> 1 | Z78: =_xlfn.RANK.EQ(Y78,$Y$7:$Y$164) -> 1 | AA78: =AVERAGE(Q78,V78,Y78) -> 0.8829610193 | AB78: =(AA78-PS2AvMin)/(PS2AvMax-PS2AvMin) -> 0.9152222119 | AC78: =_xlfn.RANK.EQ(AB78,$AB$7:$AB$164) -> 20 | AD78: =VLOOKUP(A78,PS_3,25,FALSE) -> -0.192061536 | AE78: =(AD78-PS3Max)/(PS3Min-PS3Max) -> 0.4682874578 | AF78: =_xlfn.RANK.EQ(AE78,$AE$7:$AE$164) -> 20 | AG78: =AVERAGE(N78,AA78,AE78) -> 0.6185531478 | AH78: =(AG78-PSMin)/(PSMax-PSMin) -> 0.7737769233 | AI78: =_xlfn.RANK.EQ(AH78,$AH$7:$AH$164) -> 18 | AJ78: =VLOOKUP(A78,T1_VAT,13,FALSE) -> 13 | AK78: =(AJ78-T1_VATMax)/(T1_VATMin-T1_VATMax) -> 0.48 | AL78: =VLOOKUP(A78,T1_PIT,60,FALSE) -> 0.01149254743 | AM78: =(AL78-T1_PITMin)/(T1_PITMax-T1_PITMin) -> 0.07069507002 | AN78: =VLOOKUP(A78,T1_CIT,4,FALSE) -> 27.9 | AO78: =(AN78-T1_CITMIn)/(T1_CITMAx-T1_CITMIn) -> 0.6975 | AP78: =AVERAGE(AK78,AM78,AO78) -> 0.4160650233 | AQ78: =(AP78-T1AMin)/(T1AMax-T1AMin) -> 0.403029568 | AR78: =VLOOKUP(A78,T1_HTP,5,FALSE) -> 2 | AS78: =(AR78-T1_HTPMax)/(T1_HTPMin-T1_HTPMax) -> 0.7777777778 | AT78: =AVERAGE(AQ78,AS78) -> 0.5904036729 | AU78: =(AT78-T1A_B_Min)/(T1A_B_Max-T1A_B_Min) -> 0.4555550811 | AV78: =RANK(AU78,$AU$7:$AU$164,0) -> 109 | AW78: =VLOOKUP(A78,T_2,20,FALSE) -> 0.3624417702 | AX78: =(AW78-T2Min)/(T2Max-T2Min) -> 0.4760367835 | AY78: =RANK(AX78,$AX$7:$AX$164,0) -> 87 | AZ78: =VLOOKUP(A78,T_3,30,FALSE) -> -0.01805313636 | BA78: =(AZ78-T3Max)/(T3Min-T3Max) -> 0.7202373861 | BB78: =RANK(BA78,$BA$7:$BA$164,0) -> 18 | BC78: =AVERAGE(AU78,AX78,BA78) -> 0.5506097502 | BD78: =(BC78-TMin)/(TMax-TMin) -> 0.5665447983 | BE78: =RANK(BD78,$BD$7:$BD$164,0) -> 81 | BF78: =VLOOKUP(A78,L1A,2,FALSE) -> 0.922105 | BG78: =(BF78-L1AMax)/(L1AMin-L1AMax) -> 0.9077895 | BH78: =RANK(BG78,$BG$7:$BG$164,0) -> 22 | BI78: =VLOOKUP(A78,L1B,9,FALSE) -> 0.8629852696 | BJ78: =(BI78-L1BMin)/(L1BMax-L1BMin) -> 0.8703100383 | BK78: =RANK(BJ78,$BJ$7:$BJ$164,0) -> 18 | BL78: =VLOOKUP(A78,L1C,6,FALSE) -> 0.3592877095 | BM78: =(BL78-L1CMin)/(L1CMax-L1CMin) -> 0.1649859959 | BN78: =RANK(BM78,$BM$7:$BM$164,0) -> 93 | BO78: =AVERAGE(BG78,BJ78,BM78) -> 0.6476951781 | BP78: =(BO78-L1Min)/(L1Max-L1Min) -> 0.7528989254 | BQ78: =RANK(BP78,$BP$7:$BP$164,0) -> 26 | BR78: =VLOOKUP(A78,L_2,3,FALSE) -> 9.887 | BS78: =VLOOKUP($A78,L_2,2,FALSE) -> 16.866 | BT78: =BS78-BS78*BR78/100 -> 15.19845858 | BU78: =BR78+BT78 -> 25.08545858 | BV78: =(BU78-L2Max)/(L2Min-L2Max) -> 0.7971171669 | BW78: =RANK(BV78,$BV$7:$BV$164,0) -> 50 | BX78: =VLOOKUP(A78,L_3,2,FALSE) -> 0.3599189205 | BY78: =(BX78-L3Max)/(L3Min-L3Max) -> 0.8391662776 | BZ78: =RANK(BY78,$BY$7:$BY$164,0) -> 25 | CA78: =AVERAGE(BP78,BV78,BY78) -> 0.7963941233 | CB78: =(CA78-LMin)/(LMax-LMin) -> 0.8420860775 | CC78: =RANK(CB78,$CB$7:$CB$164,0) -> 31 | CD78: =AVERAGE(AH78,BD78,CB78) -> 0.7274692664 | CE78: =(CD78-OverallScoreMin)/(OverallScoreMax-OverallScoreMin) -> 0.8385537177 | CF78: =RANK(CE78,$CE$7:$CE$164,0) -> 25
